Workbook

Sheet PI vs x
A1: Measurement | B1: Hall
A2: Type | B2: Off-axis
A4: Project | B4: ='10 x=-2'!B5 -> 504314
A5: PS serial no | B5: ='10 x=-2'!B7 -> 2410102
A7: Measurement date | B7: =LEFT('10 x=-2'!B4,10) -> 26-09-2024
C11: Nominal gap [mm] | D11: Encoder [counts] | E11: Encoder [mm] | F11: PI [T^2mm^3] | G11: x [mm] | H11: Encoder value at 10 mm gap:
B12: ='PI vs x'!$C$12 & "mm gap" -> 10mm gap | C12: ='10 x=-2'!B48 -> 10 | D12: ='10 x=-2'!$B$50 -> 19.7631 | E12: =D12-$H$12+10 -> 10 | F12: ='10 x=-2'!$K$3 -> 10593.91248 | G12: -2 | H12: 19.7631
C13: =C12 -> 10 | D13: ='10 x=-1'!$B$50 -> 19.7631 | E13: =D13-$H$12+10 -> 10 | F13: ='10 x=-1'!$K$3 -> 10600.08474 | G13: -1
C14: =C13 -> 10 | D14: ='10 x=0'!$B$50 -> 19.7631 | E14: 10 | F14: ='10 x=0'!$K$3 -> 10600.59887 | G14: 0
C15: 10 | D15: ='10 x=1'!$B$50 -> 19.7631 | E15: 10 | F15: ='10 x=1'!$K$3 -> 10596.95538 | G15: 1
C16: 10 | D16: ='10 x=2'!$B$50 -> 19.7631 | E16: 10 | F16: ='10 x=2'!$K$3 -> 10588.61518 | G16: 2
B17: ='PI vs x'!$C$17 & "mm gap" -> 30mm gap | C17: ='30 x=-2'!B48 -> 30 | D17: ='30 x=-2'!$B$50 -> 39.762 | E17: 29.9989 | F17: ='30 x=-2'!$K$3 -> 2459.987245 | G17: =G12 -> -2
C18: 30 | D18: ='30 x=-1'!$B$50 -> 39.762 | E18: 29.9989 | F18: ='30 x=-1'!$K$3 -> 2461.972526 | G18: =G13 -> -1
C19: 30 | D19: ='30 x=0'!$B$50 -> 39.762 | E19: 29.9989 | F19: ='30 x=0'!$K$3 -> 2461.112025 | G19: 0
C20: 30 | D20: ='30 x=1'!$B$50 -> 39.762 | E20: 29.9989 | F20: ='30 x=1'!$K$3 -> 2457.928622 | G20: 1
C21: 30 | D21: ='30 x=2'!$B$50 -> 39.762 | E21: 29.9989 | F21: ='30 x=2'!$K$3 -> 2452.575129 | G21: 2

Sheet 10 x=-2
A1: =IF('DF raw data'!A1="","",'DF raw data'!A1) -> Number of header lines | B1: =IF('DF raw data'!B1="","",'DF raw data'!B1) -> 54 | C1: =IF('DF raw data'!C1="","",'DF raw data'!C1) ->  | D1: =IF('DF raw data'!D1="","",'DF raw data'!D1) ->  | F1: T_coeff | G1: -0.001 | H1: /degC | J1: IBy total | K1: =J1262*1000 -> 5.30191253 | L1: muTm | M1: =L1262*1000 -> 52.37667955 | R1: DF ref | S1: 1
A2: =IF('DF raw data'!A2="","",'DF raw data'!A2) -> Measured by | B2: =IF('DF raw data'!B2="","",'DF raw data'!B2) -> Danfysik | C2: =IF('DF raw data'!C2="","",'DF raw data'!C2) ->  | D2: =IF('DF raw data'!D2="","",'DF raw data'!D2) ->  | F2: Tcorr | G2: 20 | H2: degC | J2: JBy total | K2: =K1262 -> -2.9145685 | L2: muTm^2 | M2: =M1262 -> 16.5682012
A3: =IF('DF raw data'!A3="","",'DF raw data'!A3) -> Operator | B3: =IF('DF raw data'!B3="","",'DF raw data'!B3) -> PMHA | C3: =IF('DF raw data'!C3="","",'DF raw data'!C3) ->  | D3: =IF('DF raw data'!D3="","",'DF raw data'!D3) ->  | F3: Step | G3: =A63-A62 -> 0.5 | H3: mm | J3: PI total | K3: =N1262 -> 10593.91248 | L3: T^2mm^3
A4: =IF('DF raw data'!A4="","",'DF raw data'!A4) -> Data-time | B4: =IF('DF raw data'!B4="","",'DF raw data'!B4) -> 26-09-2024, 09:10:03 | C4: =IF('DF raw data'!C4="","",'DF raw data'!C4) ->  | D4: =IF('DF raw data'!D4="","",'DF raw data'!D4) -> 
A5: =IF('DF raw data'!A5="","",'DF raw data'!A5) -> Project | B5: =IF('DF raw data'!B5="","",'DF raw data'!B5) -> 504314 | C5: =IF('DF raw data'!C5="","",'DF raw data'!C5) ->  | D5: =IF('DF raw data'!D5="","",'DF raw data'!D5) -> 
A6: =IF('DF raw data'!A6="","",'DF raw data'!A6) -> Magnet type | B6: =IF('DF raw data'!B6="","",'DF raw data'!B6) -> Dipole | C6: =IF('DF raw data'!C6="","",'DF raw data'!C6) ->  | D6: =IF('DF raw data'!D6="","",'DF raw data'!D6) -> 
A7: =IF('DF raw data'!A7="","",'DF raw data'!A7) -> Magnet nr. | B7: =IF('DF raw data'!B7="","",'DF raw data'!B7) -> 2410102 | C7: =IF('DF raw data'!C7="","",'DF raw data'!C7) ->  | D7: =IF('DF raw data'!D7="","",'DF raw data'!D7) -> 
A8: =IF('DF raw data'!A8="","",'DF raw data'!A8) -> Meas. number | B8: =IF('DF raw data'!B8="","",'DF raw data'!B8) -> 688 | C8: =IF('DF raw data'!C8="","",'DF raw data'!C8) ->  | D8: =IF('DF raw data'!D8="","",'DF raw data'!D8) -> 
A9: =IF('DF raw data'!A9="","",'DF raw data'!A9) -> Add. info | B9: =IF('DF raw data'!B9="","",'DF raw data'!B9) -> X-alignment scan 1) | C9: =IF('DF raw data'!C9="","",'DF raw data'!C9) ->  | D9: =IF('DF raw data'!D9="","",'DF raw data'!D9) -> 
A10: =IF('DF raw data'!A10="","",'DF raw data'!A10) -> Device | B10: =IF('DF raw data'!B10="","",'DF raw data'!B10) -> (HAL) HALL-PROBE | C10: =IF('DF raw data'!C10="","",'DF raw data'!C10) ->  | D10: =IF('DF raw data'!D10="","",'DF raw data'!D10) -> 
A11: =IF('DF raw data'!A11="","",'DF raw data'!A11) -> Goal | B11: =IF('DF raw data'!B11="","",'DF raw data'!B11) -> (AXI) AXis Integral (Line, EFB) | C11: =IF('DF raw data'!C11="","",'DF raw data'!C11) ->  | D11: =IF('DF raw data'!D11="","",'DF raw data'!D11) -> 
A12: =IF('DF raw data'!A12="","",'DF raw data'!A12) -> Power supply mode | B12: =IF('DF raw data'!B12="","",'DF raw data'!B12) -> (PM) Permanent Magnet (no MPS in use) | C12: =IF('DF raw data'!C12="","",'DF raw data'!C12) ->  | D12: =IF('DF raw data'!D12="","",'DF raw data'!D12) -> 
A13: =IF('DF raw data'!A13="","",'DF raw data'!A13) -> Data format | B13: =IF('DF raw data'!B13="","",'DF raw data'!B13) -> Raw data text file | C13: =IF('DF raw data'!C13="","",'DF raw data'!C13) ->  | D13: =IF('DF raw data'!D13="","",'DF raw data'!D13) -> 
A14: =IF('DF raw data'!A14="","",'DF raw data'!A14) -> Direction of the pos. x-axis | B14: =IF('DF raw data'!B14="","",'DF raw data'!B14) -> See test program | C14: =IF('DF raw data'!C14="","",'DF raw data'!C14) ->  | D14: =IF('DF raw data'!D14="","",'DF raw data'!D14) -> 
A15: =IF('DF raw data'!A15="","",'DF raw data'!A15) -> Direction of the pos. y-axis | B15: =IF('DF raw data'!B15="","",'DF raw data'!B15) -> Vertical up | C15: =IF('DF raw data'!C15="","",'DF raw data'!C15) ->  | D15: =IF('DF raw data'!D15="","",'DF raw data'!D15) -> 
A16: =IF('DF raw data'!A16="","",'DF raw data'!A16) -> Direction of the pos. z-axis | B16: =IF('DF raw data'!B16="","",'DF raw data'!B16) -> See test program | C16: =IF('DF raw data'!C16="","",'DF raw data'!C16) ->  | D16: =IF('DF raw data'!D16="","",'DF raw data'!D16) -> 
A17: =IF('DF raw data'!A17="","",'DF raw data'!A17) -> Mapper type | B17: =IF('DF raw data'!B17="","",'DF raw data'!B17) -> Precision Hall Mapper | C17: =IF('DF raw data'!C17="","",'DF raw data'!C17) ->  | D17: =IF('DF raw data'!D17="","",'DF raw data'!D17) -> 
A18: =IF('DF raw data'!A18="","",'DF raw data'!A18) -> Mapper Danfysik Reg. Number | B18: =IF('DF raw data'!B18="","",'DF raw data'!B18) -> 2033-D (mapper 1) | C18: =IF('DF raw data'!C18="","",'DF raw data'!C18) ->  | D18: =IF('DF raw data'!D18="","",'DF raw data'!D18) -> 
A19: =IF('DF raw data'!A19="","",'DF raw data'!A19) -> Measurement consept | B19: =IF('DF raw data'!B19="","",'DF raw data'!B19) -> Square line grid | C19: =IF('DF raw data'!C19="","",'DF raw data'!C19) ->  | D19: =IF('DF raw data'!D19="","",'DF raw data'!D19) -> 
A20: =IF('DF raw data'!A20="","",'DF raw data'!A20) -> Mode | B20: =IF('DF raw data'!B20="","",'DF raw data'!B20) -> On-the-fly measurement | C20: =IF('DF raw data'!C20="","",'DF raw data'!C20) ->  | D20: =IF('DF raw data'!D20="","",'DF raw data'!D20) -> 
A21: =IF('DF raw data'!A21="","",'DF raw data'!A21) ->  | B21: =IF('DF raw data'!B21="","",'DF raw data'!B21) ->  | C21: =IF('DF raw data'!C21="","",'DF raw data'!C21) ->  | D21: =IF('DF raw data'!D21="","",'DF raw data'!D21) -> 
A22: =IF('DF raw data'!A22="","",'DF raw data'!A22) -> Probe Name | B22: =IF('DF raw data'!B22="","",'DF raw data'!B22) -> ID12_By | C22: =IF('DF raw data'!C22="","",'DF raw data'!C22) ->  | D22: =IF('DF raw data'!D22="","",'DF raw data'!D22) -> 
A23: =IF('DF raw data'!A23="","",'DF raw data'!A23) -> Probe Type | B23: =IF('DF raw data'!B23="","",'DF raw data'!B23) -> DF_ID_3D_Bxyz | C23: =IF('DF raw data'!C23="","",'DF raw data'!C23) ->  | D23: =IF('DF raw data'!D23="","",'DF raw data'!D23) -> 
A24: =IF('DF raw data'!A24="","",'DF raw data'!A24) -> Probe Danfysik Reg. Number | B24: =IF('DF raw data'!B24="","",'DF raw data'!B24) -> 2277 | C24: =IF('DF raw data'!C24="","",'DF raw data'!C24) ->  | D24: =IF('DF raw data'!D24="","",'DF raw data'!D24) -> 
A25: =IF('DF raw data'!A25="","",'DF raw data'!A25) -> Probe Axis | B25: =IF('DF raw data'!B25="","",'DF raw data'!B25) -> By | C25: =IF('DF raw data'!C25="","",'DF raw data'!C25) ->  | D25: =IF('DF raw data'!D25="","",'DF raw data'!D25) -> 
A26: =IF('DF raw data'!A26="","",'DF raw data'!A26) -> Probe Current Supply | B26: =IF('DF raw data'!B26="","",'DF raw data'!B26) -> 1825-D | C26: =IF('DF raw data'!C26="","",'DF raw data'!C26) ->  | D26: =IF('DF raw data'!D26="","",'DF raw data'!D26) -> 
A27: =IF('DF raw data'!A27="","",'DF raw data'!A27) -> Probe Gain Correction | B27: =IF('DF raw data'!B27="","",'DF raw data'!B27) -> 0.99599 | C27: =IF('DF raw data'!C27="","",'DF raw data'!C27) ->  | D27: =IF('DF raw data'!D27="","",'DF raw data'!D27) -> 
A28: =IF('DF raw data'!A28="","",'DF raw data'!A28) -> Probe Offset Correction | B28: =IF('DF raw data'!B28="","",'DF raw data'!B28) -> 0.0027595 | C28: =IF('DF raw data'!C28="","",'DF raw data'!C28) ->  | D28: =IF('DF raw data'!D28="","",'DF raw data'!D28) -> 
A29: =IF('DF raw data'!A29="","",'DF raw data'!A29) -> DVM Number | B29: =IF('DF raw data'!B29="","",'DF raw data'!B29) -> 2 | C29: =IF('DF raw data'!C29="","",'DF raw data'!C29) ->  | D29: =IF('DF raw data'!D29="","",'DF raw data'!D29) -> 
A30: =IF('DF raw data'!A30="","",'DF raw data'!A30) -> DVM Type | B30: =IF('DF raw data'!B30="","",'DF raw data'!B30) -> K2701 | C30: =IF('DF raw data'!C30="","",'DF raw data'!C30) ->  | D30: =IF('DF raw data'!D30="","",'DF raw data'!D30) -> 
A31: =IF('DF raw data'!A31="","",'DF raw data'!A31) -> DVM Danfysik Reg. Number | B31: =IF('DF raw data'!B31="","",'DF raw data'!B31) -> 1743-D | C31: =IF('DF raw data'!C31="","",'DF raw data'!C31) ->  | D31: =IF('DF raw data'!D31="","",'DF raw data'!D31) -> 
A32: =IF('DF raw data'!A32="","",'DF raw data'!A32) -> Probe Name | B32: =IF('DF raw data'!B32="","",'DF raw data'!B32) -> ID12_Bx | C32: =IF('DF raw data'!C32="","",'DF raw data'!C32) ->  | D32: =IF('DF raw data'!D32="","",'DF raw data'!D32) -> 
A33: =IF('DF raw data'!A33="","",'DF raw data'!A33) -> Probe Type | B33: =IF('DF raw data'!B33="","",'DF raw data'!B33) -> DF_ID_3D_Bxyz | C33: =IF('DF raw data'!C33="","",'DF raw data'!C33) ->  | D33: =IF('DF raw data'!D33="","",'DF raw data'!D33) -> 
A34: =IF('DF raw data'!A34="","",'DF raw data'!A34) -> Probe Danfysik Reg. Number | B34: =IF('DF raw data'!B34="","",'DF raw data'!B34) -> 2277 | C34: =IF('DF raw data'!C34="","",'DF raw data'!C34) ->  | D34: =IF('DF raw data'!D34="","",'DF raw data'!D34) -> 
A35: =IF('DF raw data'!A35="","",'DF raw data'!A35) -> Probe Axis | B35: =IF('DF raw data'!B35="","",'DF raw data'!B35) -> Bx | C35: =IF('DF raw data'!C35="","",'DF raw data'!C35) ->  | D35: =IF('DF raw data'!D35="","",'DF raw data'!D35) -> 
A36: =IF('DF raw data'!A36="","",'DF raw data'!A36) -> Probe Current Supply | B36: =IF('DF raw data'!B36="","",'DF raw data'!B36) -> 1825-D | C36: =IF('DF raw data'!C36="","",'DF raw data'!C36) ->  | D36: =IF('DF raw data'!D36="","",'DF raw data'!D36) -> 
A37: =IF('DF raw data'!A37="","",'DF raw data'!A37) -> Probe Gain Correction | B37: =IF('DF raw data'!B37="","",'DF raw data'!B37) -> 1 | C37: =IF('DF raw data'!C37="","",'DF raw data'!C37) ->  | D37: =IF('DF raw data'!D37="","",'DF raw data'!D37) -> 
A38: =IF('DF raw data'!A38="","",'DF raw data'!A38) -> Probe Offset Correction | B38: =IF('DF raw data'!B38="","",'DF raw data'!B38) -> -0.17537 | C38: =IF('DF raw data'!C38="","",'DF raw data'!C38) ->  | D38: =IF('DF raw data'!D38="","",'DF raw data'!D38) -> 
A39: =IF('DF raw data'!A39="","",'DF raw data'!A39) -> DVM Number | B39: =IF('DF raw data'!B39="","",'DF raw data'!B39) -> 3 | C39: =IF('DF raw data'!C39="","",'DF raw data'!C39) ->  | D39: =IF('DF raw data'!D39="","",'DF raw data'!D39) -> 
A40: =IF('DF raw data'!A40="","",'DF raw data'!A40) -> DVM Type | B40: =IF('DF raw data'!B40="","",'DF raw data'!B40) -> K2701 | C40: =IF('DF raw data'!C40="","",'DF raw data'!C40) ->  | D40: =IF('DF raw data'!D40="","",'DF raw data'!D40) -> 
A41: =IF('DF raw data'!A41="","",'DF raw data'!A41) -> DVM Danfysik Reg. Number | B41: =IF('DF raw data'!B41="","",'DF raw data'!B41) -> 1744-D | C41: =IF('DF raw data'!C41="","",'DF raw data'!C41) ->  | D41: =IF('DF raw data'!D41="","",'DF raw data'!D41) -> 
A42: =IF('DF raw data'!A42="","",'DF raw data'!A42) -> Probe Name | B42: =IF('DF raw data'!B42="","",'DF raw data'!B42) -> ID12_Bz | C42: =IF('DF raw data'!C42="","",'DF raw data'!C42) ->  | D42: =IF('DF raw data'!D42="","",'DF raw data'!D42) -> 
A43: =IF('DF raw data'!A43="","",'DF raw data'!A43) -> Probe Type | B43: =IF('DF raw data'!B43="","",'DF raw data'!B43) -> DF_ID_3D_Bxyz | C43: =IF('DF raw data'!C43="","",'DF raw data'!C43) ->  | D43: =IF('DF raw data'!D43="","",'DF raw data'!D43) -> 
A44: =IF('DF raw data'!A44="","",'DF raw data'!A44) -> Probe Danfysik Reg. Number | B44: =IF('DF raw data'!B44="","",'DF raw data'!B44) -> 2277 | C44: =IF('DF raw data'!C44="","",'DF raw data'!C44) ->  | D44: =IF('DF raw data'!D44="","",'DF raw data'!D44) -> 
A45: =IF('DF raw data'!A45="","",'DF raw data'!A45) -> Probe Axis | B45: =IF('DF raw data'!B45="","",'DF raw data'!B45) -> Bz | C45: =IF('DF raw data'!C45="","",'DF raw data'!C45) ->  | D45: =IF('DF raw data'!D45="","",'DF raw data'!D45) -> 
A46: =IF('DF raw data'!A46="","",'DF raw data'!A46) -> Probe Current Supply | B46: =IF('DF raw data'!B46="","",'DF raw data'!B46) -> 1825-D | C46: =IF('DF raw data'!C46="","",'DF raw data'!C46) ->  | D46: =IF('DF raw data'!D46="","",'DF raw data'!D46) -> 
A47: =IF('DF raw data'!A47="","",'DF raw data'!A47) -> Probe Gain Correction | B47: =IF('DF raw data'!B47="","",'DF raw data'!B47) -> 1 | C47: =IF('DF raw data'!C47="","",'DF raw data'!C47) ->  | D47: =IF('DF raw data'!D47="","",'DF raw data'!D47) -> 
A48: =IF('DF raw data'!A53="","",'DF raw data'!A53) -> PS-Gap: | B48: =IF('DF raw data'!B53="","",'DF raw data'!B53) -> 10 | C48: =IF('DF raw data'!C53="","",'DF raw data'!C53) ->  | D48: =IF('DF raw data'!D53="","",'DF raw data'!D53) -> 
A49: =IF('DF raw data'!A54="","",'DF raw data'!A54) -> PS-Temperature: | B49: =IF('DF raw data'!B54="","",'DF raw data'!B54) -> 24 | C49: =IF('DF raw data'!C54="","",'DF raw data'!C54) ->  | D49: =IF('DF raw data'!D54="","",'DF raw data'!D54) -> 
A50: =IF('DF raw data'!A55="","",'DF raw data'!A55) -> PS-Encoder: | B50: =IF('DF raw data'!B55="","",'DF raw data'!B55) -> 19.7631 | C50: =IF('DF raw data'!C55="","",'DF raw data'!C55) ->  | D50: =IF('DF raw data'!D55="","",'DF raw data'!D55) -> 
A51: =IF('DF raw data'!A56="","",'DF raw data'!A56) ->  | B51: =IF('DF raw data'!B56="","",'DF raw data'!B56) ->  | C51: =IF('DF raw data'!C56="","",'DF raw data'!C56) ->  | D51: =IF('DF raw data'!D56="","",'DF raw data'!D56) -> 
A52: =IF('DF raw data'!A57="","",'DF raw data'!A57) -> Monitor-Index | B52: =IF('DF raw data'!B57="","",'DF raw data'!B57) -> [1,1,4] | C52: =IF('DF raw data'!C57="","",'DF raw data'!C57) ->  | D52: =IF('DF raw data'!D57="","",'DF raw data'!D57) -> 
A53: =IF('DF raw data'!A58="","",'DF raw data'!A58) ->  | B53: =IF('DF raw data'!B58="","",'DF raw data'!B58) ->  | C53: =IF('DF raw data'!C58="","",'DF raw data'!C58) ->  | D53: =IF('DF raw data'!D58="","",'DF raw data'!D58) -> 
A54: =IF('DF raw data'!A59="","",'DF raw data'!A59) -> Time [s] | B54: =IF('DF raw data'!B59="","",'DF raw data'!B59) -> Y [mm] | C54: =IF('DF raw data'!C59="","",'DF raw data'!C59) -> X [mm] | D54: =IF('DF raw data'!D59="","",'DF raw data'!D59) -> Nominal current [A]
A55: =IF('DF raw data'!A60="","",'DF raw data'!A60) ->  | B55: =IF('DF raw data'!B60="","",'DF raw data'!B60) ->  | C55: =IF('DF raw data'!C60="","",'DF raw data'!C60) ->  | D55: =IF('DF raw data'!D60="","",'DF raw data'!D60) -> 
A56: =IF('DF raw data'!A61="","",'DF raw data'!A61) -> 215.1 | B56: =IF('DF raw data'!B61="","",'DF raw data'!B61) -> 31.55 | C56: =IF('DF raw data'!C61="","",'DF raw data'!C61) -> 300.55 | D56: =IF('DF raw data'!D61="","",'DF raw data'!D61) -> 0
A57: =IF('DF raw data'!A62="","",'DF raw data'!A62) ->  | B57: =IF('DF raw data'!B62="","",'DF raw data'!B62) ->  | C57: =IF('DF raw data'!C62="","",'DF raw data'!C62) ->  | D57: =IF('DF raw data'!D62="","",'DF raw data'!D62) -> 
A58: =IF('DF raw data'!A63="","",'DF raw data'!A63) -> Measurement-Index | B58: =IF('DF raw data'!B63="","",'DF raw data'!B63) -> [1,1,1201,2] | C58: =IF('DF raw data'!C63="","",'DF raw data'!C63) ->  | D58: =IF('DF raw data'!D63="","",'DF raw data'!D63) -> 
A59: =IF('DF raw data'!A64="","",'DF raw data'!A64) ->  | B59: =IF('DF raw data'!B64="","",'DF raw data'!B64) ->  | C59: =IF('DF raw data'!C64="","",'DF raw data'!C64) ->  | D59: =IF('DF raw data'!D64="","",'DF raw data'!D64) -> 
A60: =IF('DF raw data'!A65="","",'DF raw data'!A65) -> Z [mm] | B60: =IF('DF raw data'!B65="","",'DF raw data'!B65) -> By [T] | C60: =IF('DF raw data'!C65="","",'DF raw data'!C65) -> Bx [T] | D60: =IF('DF raw data'!D65="","",'DF raw data'!D65) -> Bz [T] | F60: By_corr | G60: Bx_corr | H60: Bz_corr | J60: Iy | K60: Jy | L60: Ix | M60: Jx | N60: PI
A62: =IF('DF raw data'!A67="","",'DF raw data'!A67) -> -300 | B62: =IF('DF raw data'!B67="","",'DF raw data'!B67) -> -1.70886e-05 | C62: =IF('DF raw data'!C67="","",'DF raw data'!C67) -> 0.000105051 | D62: =IF('DF raw data'!D67="","",'DF raw data'!D67) -> -4.16553e-05 | F62: =(1-$G$1*($B$49))*B62 -> -1.74987264e-05 | G62: =(1-$G$1*($B$49-$G$2))*C62 -> 0.000105471204 | H62: =(1-$G$1*($B$49-$G$2))*D62 -> -4.18219212e-05 | J62: =F62*$G$3 -> -8.7493632e-06 | K62: =J62*$G$3 -> -4.3746816e-06 | L62: =G62*$G$3 -> 5.2735602e-05 | M62: =L62*$G$3 -> 2.6367801e-05 | N62: =(J62^2+L62^2)*$G$3 -> 1.428797537e-09
A63: =IF('DF raw data'!A68="","",'DF raw data'!A68) -> -299.5 | B63: =IF('DF raw data'!B68="","",'DF raw data'!B68) -> -2.66305e-05 | C63: =IF('DF raw data'!C68="","",'DF raw data'!C68) -> 0.000114066 | D63: =IF('DF raw data'!D68="","",'DF raw data'!D68) -> -4.0837e-05 | F63: =(1-$G$1*($B$49-$G$2))*B63 -> -2.6737022e-05 | G63: =(1-$G$1*($B$49-$G$2))*C63 -> 0.000114522264 | H63: -4.1000348e-05 | J63: =F63*$G$3+J62 -> -2.21178742e-05 | K63: =J63*$G$3+K62 -> -1.54336187e-05 | L63: =G63*$G$3+L62 -> 0.000109996734 | M63: =L63*$G$3+M62 -> 8.1366168e-05 | N63: =(J63^2+L63^2)*$G$3+N62 -> 7.723038462e-09
A64: =IF('DF raw data'!A69="","",'DF raw data'!A69) -> -299 | B64: =IF('DF raw data'!B69="","",'DF raw data'!B69) -> -2.63109e-05 | C64: =IF('DF raw data'!C69="","",'DF raw data'!C69) -> 0.000107657 | D64: =IF('DF raw data'!D69="","",'DF raw data'!D69) -> -3.96004e-05 | F64: =(1-$G$1*($B$49-$G$2))*B64 -> -2.64161436e-05 | G64: 0.000108087628 | H64: -3.97588016e-05 | J64: =F64*$G$3+J63 -> -3.5325946e-05 | K64: =J64*$G$3+K63 -> -3.30965917e-05 | L64: =G64*$G$3+L63 -> 0.000164040548 | M64: =L64*$G$3+M63 -> 0.000163386442 | N64: =(J64^2+L64^2)*$G$3+N63 -> 2.180165039e-08
A65: =IF('DF raw data'!A70="","",'DF raw data'!A70) -> -298.5 | B65: =IF('DF raw data'!B70="","",'DF raw data'!B70) -> -1.36954e-05 | C65: =IF('DF raw data'!C70="","",'DF raw data'!C70) -> 0.000110778 | D65: =IF('DF raw data'!D70="","",'DF raw data'!D70) -> -3.93531e-05 | F65: -1.37501816e-05 | G65: 0.000111221112 | H65: -3.95105124e-05 | J65: -4.22010368e-05 | K65: -5.41971101e-05 | L65: 0.000219651104 | M65: 0.000273211994 | N65: 4.681541788e-08
A66: =IF('DF raw data'!A71="","",'DF raw data'!A71) -> -298 | B66: =IF('DF raw data'!B71="","",'DF raw data'!B71) -> -2.11872e-05 | C66: =IF('DF raw data'!C71="","",'DF raw data'!C71) -> 0.000105992 | D66: =IF('DF raw data'!D71="","",'DF raw data'!D71) -> -3.95713e-05 | F66: -2.12719488e-05 | G66: 0.000106415968 | H66: -3.97295852e-05 | J66: -5.28370112e-05 | K66: -8.06156157e-05 | L66: 0.000272859088 | M66: 0.000409641538 | N66: 8.543733371e-08
A67: =IF('DF raw data'!A72="","",'DF raw data'!A72) -> -297.5 | B67: =IF('DF raw data'!B72="","",'DF raw data'!B72) -> -1.68337e-05 | C67: =IF('DF raw data'!C72="","",'DF raw data'!C72) -> 0.000104281 | D67: =IF('DF raw data'!D72="","",'DF raw data'!D72) -> -3.97518e-05 | F67: -1.69010348e-05 | G67: 0.000104698124 | H67: -3.99108072e-05 | J67: -6.12875286e-05 | K67: -0.00011125938 | L67: 0.00032520815 | M67: 0.000572245613 | N67: 1.401955847e-07
A68: =IF('DF raw data'!A73="","",'DF raw data'!A73) -> -297 | B68: =IF('DF raw data'!B73="","",'DF raw data'!B73) -> -1.43981e-05 | C68: =IF('DF raw data'!C73="","",'DF raw data'!C73) -> 0.000104518 | D68: =IF('DF raw data'!D73="","",'DF raw data'!D73) -> -4.02445e-05 | F68: -1.44556924e-05 | G68: 0.000104936072 | H68: -4.0405478e-05 | J68: -6.85153748e-05 | K68: -0.0001455170674 | L68: 0.000377676186 | M68: 0.000761083706 | N68: 2.138624137e-07
A69: =IF('DF raw data'!A74="","",'DF raw data'!A74) -> -296.5 | B69: =IF('DF raw data'!B74="","",'DF raw data'!B74) -> -1.51037e-05 | C69: =IF('DF raw data'!C74="","",'DF raw data'!C74) -> 0.000107712 | D69: =IF('DF raw data'!D74="","",'DF raw data'!D74) -> -4.07159e-05 | F69: -1.51641148e-05 | G69: 0.000108142848 | H69: -4.08787636e-05 | J69: -7.60974322e-05 | K69: -0.0001835657835 | L69: 0.00043174761 | M69: 0.000976957511 | N69: 3.099608227e-07
A70: =IF('DF raw data'!A75="","",'DF raw data'!A75) -> -296 | B70: =IF('DF raw data'!B75="","",'DF raw data'!B75) -> -2.77193e-05 | C70: =IF('DF raw data'!C75="","",'DF raw data'!C75) -> 0.000111068 | D70: =IF('DF raw data'!D75="","",'DF raw data'!D75) -> -4.0317e-05 | F70: -2.78301772e-05 | G70: 0.000111512272 | H70: -4.0478268e-05 | J70: -9.00125208e-05 | K70: -0.0002285720439 | L70: 0.000487503746 | M70: 0.001220709384 | N70: 4.328419008e-07
A71: =IF('DF raw data'!A76="","",'DF raw data'!A76) -> -295.5 | B71: =IF('DF raw data'!B76="","",'DF raw data'!B76) -> -1.75383e-05 | C71: =IF('DF raw data'!C76="","",'DF raw data'!C76) -> 0.000113568 | D71: =IF('DF raw data'!D76="","",'DF raw data'!D76) -> -3.97199e-05 | F71: -1.76084532e-05 | G71: 0.000114022272 | H71: -3.98787796e-05 | J71: -9.88167474e-05 | K71: -0.0002779804176 | L71: 0.000544514882 | M71: 0.001492966825 | N71: 5.85972504e-07
A72: =IF('DF raw data'!A77="","",'DF raw data'!A77) -> -295 | B72: =IF('DF raw data'!B77="","",'DF raw data'!B77) -> -2.01626e-05 | C72: =IF('DF raw data'!C77="","",'DF raw data'!C77) -> 0.000104763 | D72: =IF('DF raw data'!D77="","",'DF raw data'!D77) -> -3.97581e-05 | F72: -2.02432504e-05 | G72: 0.000105182052 | H72: -3.99171324e-05 | J72: -0.0001089383726 | K72: -0.0003324496039 | L72: 0.000597105908 | M72: 0.001791519779 | N72: 7.701740212e-07
A73: =IF('DF raw data'!A78="","",'DF raw data'!A78) -> -294.5 | B73: =IF('DF raw data'!B78="","",'DF raw data'!B78) -> -1.42714e-05 | C73: =IF('DF raw data'!C78="","",'DF raw data'!C78) -> 0.000107698 | D73: =IF('DF raw data'!D78="","",'DF raw data'!D78) -> -4.01077e-05 | F73: -1.43284856e-05 | G73: 0.000108128792 | H73: -4.02681308e-05 | J73: -0.0001161026154 | K73: -0.0003905009116 | L73: 0.000651170304 | M73: 0.002117104931 | N73: 9.889253122e-07
A74: =IF('DF raw data'!A79="","",'DF raw data'!A79) -> -294 | B74: =IF('DF raw data'!B79="","",'DF raw data'!B79) -> -2.56704e-05 | C74: =IF('DF raw data'!C79="","",'DF raw data'!C79) -> 0.000115051 | D74: =IF('DF raw data'!D79="","",'DF raw data'!D79) -> -3.99613e-05 | F74: -2.57730816e-05 | G74: 0.000115511204 | H74: -4.01211452e-05 | J74: -0.0001289891562 | K74: -0.0004549954897 | L74: 0.000708925906 | M74: 0.002471567884 | N74: 1.248532384e-06
A75: =IF('DF raw data'!A80="","",'DF raw data'!A80) -> -293.5 | B75: =IF('DF raw data'!B80="","",'DF raw data'!B80) -> -1.43997e-05 | C75: =IF('DF raw data'!C80="","",'DF raw data'!C80) -> 0.000111977 | D75: =IF('DF raw data'!D80="","",'DF raw data'!D80) -> -3.97258e-05 | F75: -1.44572988e-05 | G75: 0.000112424908 | H75: -3.98847032e-05 | J75: -0.0001362178056 | K75: -0.0005231043925 | L75: 0.00076513836 | M75: 0.002854137064 | N75: 1.550528384e-06
A76: =IF('DF raw data'!A81="","",'DF raw data'!A81) -> -293 | B76: =IF('DF raw data'!B81="","",'DF raw data'!B81) -> -2.04188e-05 | C76: =IF('DF raw data'!C81="","",'DF raw data'!C81) -> 0.00011126 | D76: =IF('DF raw data'!D81="","",'DF raw data'!D81) -> -3.98649e-05 | F76: -2.05004752e-05 | G76: 0.00011170504 | H76: -4.00243596e-05 | J76: -0.0001464680432 | K76: -0.0005963384141 | L76: 0.00082099088 | M76: 0.003264632504 | N76: 1.89826784e-06
A77: =IF('DF raw data'!A82="","",'DF raw data'!A82) -> -292.5 | B77: =IF('DF raw data'!B82="","",'DF raw data'!B82) -> -1.25418e-05 | C77: =IF('DF raw data'!C82="","",'DF raw data'!C82) -> 0.000108472 | D77: =IF('DF raw data'!D82="","",'DF raw data'!D82) -> -4.02555e-05 | F77: -1.25919672e-05 | G77: 0.000108905888 | H77: -4.0416522e-05 | J77: -0.0001527640268 | K77: -0.0006727204275 | L77: 0.000875443824 | M77: 0.003702354416 | N77: 2.293137209e-06
A78: =IF('DF raw data'!A83="","",'DF raw data'!A83) -> -292 | B78: =IF('DF raw data'!B83="","",'DF raw data'!B83) -> -2.31084e-05 | C78: =IF('DF raw data'!C83="","",'DF raw data'!C83) -> 0.000109921 | D78: =IF('DF raw data'!D83="","",'DF raw data'!D83) -> -4.01117e-05 | F78: -2.32008336e-05 | G78: 0.000110360684 | H78: -4.02721468e-05 | J78: -0.0001643644436 | K78: -0.0007549026493 | L78: 0.000930624166 | M78: 0.004167666499 | N78: 2.739675713e-06
A79: =IF('DF raw data'!A84="","",'DF raw data'!A84) -> -291.5 | B79: =IF('DF raw data'!B84="","",'DF raw data'!B84) -> -1.92795e-05 | C79: =IF('DF raw data'!C84="","",'DF raw data'!C84) -> 0.000115705 | D79: =IF('DF raw data'!D84="","",'DF raw data'!D84) -> -2.11741e-05 | F79: -1.9356618e-05 | G79: 0.00011616782 | H79: -2.12587964e-05 | J79: -0.0001740427526 | K79: -0.0008419240256 | L79: 0.000988708076 | M79: 0.004662020537 | N79: 3.243592983e-06
A80: =IF('DF raw data'!A85="","",'DF raw data'!A85) -> -291 | B80: =IF('DF raw data'!B85="","",'DF raw data'!B85) -> -1.45995e-05 | C80: =IF('DF raw data'!C85="","",'DF raw data'!C85) -> 0.000122837 | D80: =IF('DF raw data'!D85="","",'DF raw data'!D85) -> -2.60629e-05 | F80: -1.4657898e-05 | G80: 0.000123328348 | H80: -2.61671516e-05 | J80: -0.0001813717016 | K80: -0.0009326098764 | L80: 0.00105037225 | M80: 0.005187206662 | N80: 3.811681761e-06
A81: =IF('DF raw data'!A86="","",'DF raw data'!A86) -> -290.5 | B81: =IF('DF raw data'!B86="","",'DF raw data'!B86) -> -1.49165e-05 | C81: =IF('DF raw data'!C86="","",'DF raw data'!C86) -> 0.000120517 | D81: =IF('DF raw data'!D86="","",'DF raw data'!D86) -> -3.27507e-05 | F81: -1.4976166e-05 | G81: 0.000120999068 | H81: -3.28817028e-05 | J81: -0.0001888597846 | K81: -0.001027039769 | L81: 0.001110871784 | M81: 0.005742642554 | N81: 4.446533831e-06
A82: =IF('DF raw data'!A87="","",'DF raw data'!A87) -> -290 | B82: =IF('DF raw data'!B87="","",'DF raw data'!B87) -> -2.06116e-05 | C82: =IF('DF raw data'!C87="","",'DF raw data'!C87) -> 0.00011727 | D82: =IF('DF raw data'!D87="","",'DF raw data'!D87) -> -3.88785e-05 | F82: -2.06940464e-05 | G82: 0.00011773908 | H82: -3.9034014e-05 | J82: -0.0001992068078 | K82: -0.001126643173 | L82: 0.001169741324 | M82: 0.006327513216 | N82: 5.150522889e-06
A83: =IF('DF raw data'!A88="","",'DF raw data'!A88) -> -289.5 | B83: =IF('DF raw data'!B88="","",'DF raw data'!B88) -> -2.40124e-05 | C83: =IF('DF raw data'!C88="","",'DF raw data'!C88) -> 0.000113218 | D83: =IF('DF raw data'!D88="","",'DF raw data'!D88) -> -3.11759e-05 | F83: -2.41084496e-05 | G83: 0.000113670872 | H83: -3.13006036e-05 | J83: -0.0002112610326 | K83: -0.001232273689 | L83: 0.00122657676 | M83: 0.006940801596 | N83: 5.925083775e-06
A84: =IF('DF raw data'!A89="","",'DF raw data'!A89) -> -289 | B84: =IF('DF raw data'!B89="","",'DF raw data'!B89) -> -2.03673e-05 | C84: =IF('DF raw data'!C89="","",'DF raw data'!C89) -> 0.000115526 | D84: =IF('DF raw data'!D89="","",'DF raw data'!D89) -> -2.06865e-05 | F84: -2.04487692e-05 | G84: 0.000115988104 | H84: -2.0769246e-05 | J84: -0.0002214854172 | K84: -0.001343016397 | L84: 0.001284570812 | M84: 0.007583087002 | N84: 6.774672756e-06
A85: =IF('DF raw data'!A90="","",'DF raw data'!A90) -> -288.5 | B85: =IF('DF raw data'!B90="","",'DF raw data'!B90) -> -3.04814e-05 | C85: =IF('DF raw data'!C90="","",'DF raw data'!C90) -> 0.000114305 | D85: =IF('DF raw data'!D90="","",'DF raw data'!D90) -> -3.13271e-05 | F85: -3.06033256e-05 | G85: 0.00011476222 | H85: -3.14524084e-05 | J85: -0.00023678708 | K85: -0.001461409937 | L85: 0.001341951922 | M85: 0.008254062963 | N85: 7.703124297e-06
A86: =IF('DF raw data'!A91="","",'DF raw data'!A91) -> -288 | B86: =IF('DF raw data'!B91="","",'DF raw data'!B91) -> -2.08119e-05 | C86: =IF('DF raw data'!C91="","",'DF raw data'!C91) -> 0.000107686 | D86: =IF('DF raw data'!D91="","",'DF raw data'!D91) -> -2.66786e-05 | F86: -2.08951476e-05 | G86: 0.000108116744 | H86: -2.67853144e-05 | J86: -0.0002472346538 | K86: -0.001585027264 | L86: 0.001396010294 | M86: 0.00895206811 | N86: 8.708109155e-06
A87: =IF('DF raw data'!A92="","",'DF raw data'!A92) -> -287.5 | B87: =IF('DF raw data'!B92="","",'DF raw data'!B92) -> -1.10737e-05 | C87: =IF('DF raw data'!C92="","",'DF raw data'!C92) -> 0.000106247 | D87: =IF('DF raw data'!D92="","",'DF raw data'!D92) -> -3.21472e-05 | F87: -1.11179948e-05 | G87: 0.000106671988 | H87: -3.22757888e-05 | J87: -0.0002527936512 | K87: -0.00171142409 | L87: 0.001449346288 | M87: 0.009676741254 | N87: 9.790363801e-06
A88: =IF('DF raw data'!A93="","",'DF raw data'!A93) -> -287 | B88: =IF('DF raw data'!B93="","",'DF raw data'!B93) -> -1.80014e-05 | C88: =IF('DF raw data'!C93="","",'DF raw data'!C93) -> 0.000112125 | D88: =IF('DF raw data'!D93="","",'DF raw data'!D93) -> -1.49667e-05 | F88: -1.80734056e-05 | G88: 0.0001125735 | H88: -1.50265668e-05 | J88: -0.000261830354 | K88: -0.001842339267 | L88: 0.001505633038 | M88: 0.01042955777 | N88: 1.095810679e-05
A89: =IF('DF raw data'!A94="","",'DF raw data'!A94) -> -286.5 | B89: =IF('DF raw data'!B94="","",'DF raw data'!B94) -> -3.01605e-05 | C89: =IF('DF raw data'!C94="","",'DF raw data'!C94) -> 0.000112127 | D89: =IF('DF raw data'!D94="","",'DF raw data'!D94) -> -3.19054e-05 | F89: -3.0281142e-05 | G89: 0.000112575508 | H89: -3.20330216e-05 | J89: -0.000276970925 | K89: -0.001980824729 | L89: 0.001561920792 | M89: 0.01121051817 | N89: 1.221626152e-05
A90: =IF('DF raw data'!A95="","",'DF raw data'!A95) -> -286 | B90: =IF('DF raw data'!B95="","",'DF raw data'!B95) -> -1.65166e-05 | C90: =IF('DF raw data'!C95="","",'DF raw data'!C95) -> 0.000107776 | D90: =IF('DF raw data'!D95="","",'DF raw data'!D95) -> -3.33678e-05 | F90: -1.65826664e-05 | G90: 0.000108207104 | H90: -3.35012712e-05 | J90: -0.0002852622582 | K90: -0.002123455859 | L90: 0.001616024344 | M90: 0.01201853034 | N90: 1.356271614e-05
A91: =IF('DF raw data'!A96="","",'DF raw data'!A96) -> -285.5 | B91: =IF('DF raw data'!B96="","",'DF raw data'!B96) -> -3.34268e-05 | C91: =IF('DF raw data'!C96="","",'DF raw data'!C96) -> 0.000108092 | D91: =IF('DF raw data'!D96="","",'DF raw data'!D96) -> -3.22862e-05 | F91: -3.35605072e-05 | G91: 0.000108524368 | H91: -3.24153448e-05 | J91: -0.0003020425118 | K91: -0.002274477114 | L91: 0.001670286528 | M91: 0.01285367361 | N91: 1.500325952e-05
A92: =IF('DF raw data'!A97="","",'DF raw data'!A97) -> -285 | B92: =IF('DF raw data'!B97="","",'DF raw data'!B97) -> -2.2539e-05 | C92: =IF('DF raw data'!C97="","",'DF raw data'!C97) -> 0.000110574 | D92: =IF('DF raw data'!D97="","",'DF raw data'!D97) -> -3.02633e-05 | F92: -2.2629156e-05 | G92: 0.000111016296 | H92: -3.03843532e-05 | J92: -0.0003133570898 | K92: -0.002431155659 | L92: 0.001725794676 | M92: 0.01371657094 | N92: 1.654153948e-05
A93: =IF('DF raw data'!A98="","",'DF raw data'!A98) -> -284.5 | B93: =IF('DF raw data'!B98="","",'DF raw data'!B98) -> -1.98587e-05 | C93: =IF('DF raw data'!C98="","",'DF raw data'!C98) -> 0.000118786 | D93: =IF('DF raw data'!D98="","",'DF raw data'!D98) -> -1.61839e-05 | F93: -1.99381348e-05 | G93: 0.000119261144 | H93: -1.62486356e-05 | J93: -0.0003233261572 | K93: -0.002592818738 | L93: 0.001785425248 | M93: 0.01460928357 | N93: 1.818768104e-05
A94: =IF('DF raw data'!A99="","",'DF raw data'!A99) -> -284 | B94: =IF('DF raw data'!B99="","",'DF raw data'!B99) -> -1.81909e-05 | C94: =IF('DF raw data'!C99="","",'DF raw data'!C99) -> 0.000116476 | D94: =IF('DF raw data'!D99="","",'DF raw data'!D99) -> -1.92137e-05 | F94: -1.82636636e-05 | G94: 0.000116941904 | H94: -1.92905548e-05 | J94: -0.000332457989 | K94: -0.002759047732 | L94: 0.0018438962 | M94: 0.01553123167 | N94: 1.99429218e-05
A95: =IF('DF raw data'!A100="","",'DF raw data'!A100) -> -283.5 | B95: =IF('DF raw data'!B100="","",'DF raw data'!B100) -> -1.32534e-05 | C95: =IF('DF raw data'!C100="","",'DF raw data'!C100) -> 0.000117015 | D95: =IF('DF raw data'!D100="","",'DF raw data'!D100) -> -2.90536e-05 | F95: -1.33064136e-05 | G95: 0.00011748306 | H95: -2.91698144e-05 | J95: -0.0003391111958 | K95: -0.00292860333 | L95: 0.00190263773 | M95: 0.01648255053 | N95: 2.181043517e-05
A96: =IF('DF raw data'!A101="","",'DF raw data'!A101) -> -283 | B96: =IF('DF raw data'!B101="","",'DF raw data'!B101) -> -1.90089e-05 | C96: =IF('DF raw data'!C101="","",'DF raw data'!C101) -> 0.000111679 | D96: =IF('DF raw data'!D101="","",'DF raw data'!D101) -> -4.21191e-05 | F96: -1.90849356e-05 | G96: 0.000112125716 | H96: -4.22875764e-05 | J96: -0.0003486536636 | K96: -0.003102930162 | L96: 0.001958700588 | M96: 0.01746190083 | N96: 2.378946885e-05
A97: =IF('DF raw data'!A102="","",'DF raw data'!A102) -> -282.5 | B97: =IF('DF raw data'!B102="","",'DF raw data'!B102) -> -2.67663e-05 | C97: =IF('DF raw data'!C102="","",'DF raw data'!C102) -> 0.000107453 | D97: =IF('DF raw data'!D102="","",'DF raw data'!D102) -> -3.09851e-05 | F97: -2.68733652e-05 | G97: 0.000107882812 | H97: -3.11090404e-05 | J97: -0.0003620903462 | K97: -0.003283975335 | L97: 0.002012641994 | M97: 0.01846822182 | N97: 2.588038746e-05
A98: =IF('DF raw data'!A103="","",'DF raw data'!A103) -> -282 | B98: =IF('DF raw data'!B103="","",'DF raw data'!B103) -> -1.3315e-05 | C98: =IF('DF raw data'!C103="","",'DF raw data'!C103) -> 0.000109164 | D98: =IF('DF raw data'!D103="","",'DF raw data'!D103) -> -3.21082e-05 | F98: -1.336826e-05 | G98: 0.000109600656 | H98: -3.22366328e-05 | J98: -0.0003687744762 | K98: -0.003468362573 | L98: 0.002067442322 | M98: 0.01950194298 | N98: 2.808554364e-05
A99: =IF('DF raw data'!A104="","",'DF raw data'!A104) -> -281.5 | B99: =IF('DF raw data'!B104="","",'DF raw data'!B104) -> -3.38791e-05 | C99: =IF('DF raw data'!C104="","",'DF raw data'!C104) -> 0.000103726 | D99: =IF('DF raw data'!D104="","",'DF raw data'!D104) -> -2.57271e-05 | F99: -3.40146164e-05 | G99: 0.000104140904 | H99: -2.58300084e-05 | J99: -0.0003857817844 | K99: -0.003661253466 | L99: 0.002119512774 | M99: 0.02056169937 | N99: 3.040612463e-05
A100: =IF('DF raw data'!A105="","",'DF raw data'!A105) -> -281 | B100: =IF('DF raw data'!B105="","",'DF raw data'!B105) -> -2.93332e-05 | C100: =IF('DF raw data'!C105="","",'DF raw data'!C105) -> 0.000111048 | D100: =IF('DF raw data'!D105="","",'DF raw data'!D105) -> -2.26742e-05 | F100: -2.94505328e-05 | G100: 0.000111492192 | H100: -2.27648968e-05 | J100: -0.0004005070508 | K100: -0.003861506991 | L100: 0.00217525887 | M100: 0.02164932881 | N100: 3.285220316e-05
A101: =IF('DF raw data'!A106="","",'DF raw data'!A106) -> -280.5 | B101: =IF('DF raw data'!B106="","",'DF raw data'!B106) -> -1.64595e-05 | C101: =IF('DF raw data'!C106="","",'DF raw data'!C106) -> 0.000111037 | D101: =IF('DF raw data'!D106="","",'DF raw data'!D106) -> -2.30902e-05 | F101: -1.6525338e-05 | G101: 0.000111481148 | H101: -2.31825608e-05 | J101: -0.0004087697198 | K101: -0.004065891851 | L101: 0.002230999444 | M101: 0.02276482853 | N101: 3.542442876e-05
A102: =IF('DF raw data'!A107="","",'DF raw data'!A107) -> -280 | B102: =IF('DF raw data'!B107="","",'DF raw data'!B107) -> -1.79916e-05 | C102: =IF('DF raw data'!C107="","",'DF raw data'!C107) -> 0.000111038 | D102: =IF('DF raw data'!D107="","",'DF raw data'!D107) -> -3.05346e-05 | F102: -1.80635664e-05 | G102: 0.000111482152 | H102: -3.06567384e-05 | J102: -0.000417801503 | K102: -0.004274792602 | L102: 0.00228674052 | M102: 0.02390819879 | N102: 3.812629891e-05
A103: =IF('DF raw data'!A108="","",'DF raw data'!A108) -> -279.5 | B103: =IF('DF raw data'!B108="","",'DF raw data'!B108) -> -1.99207e-05 | C103: =IF('DF raw data'!C108="","",'DF raw data'!C108) -> 0.000115344 | D103: =IF('DF raw data'!D108="","",'DF raw data'!D108) -> -1.90912e-05 | F103: -2.00003828e-05 | G103: 0.000115805376 | H103: -1.91675648e-05 | J103: -0.0004278016944 | K103: -0.00448869345 | L103: 0.002344643208 | M103: 0.02508052039 | N103: 4.096648194e-05
A104: =IF('DF raw data'!A109="","",'DF raw data'!A109) -> -279 | B104: =IF('DF raw data'!B109="","",'DF raw data'!B109) -> -2.27322e-05 | C104: =IF('DF raw data'!C109="","",'DF raw data'!C109) -> 0.000106332 | D104: =IF('DF raw data'!D109="","",'DF raw data'!D109) -> -2.90887e-05 | F104: -2.28231288e-05 | G104: 0.000106757328 | H104: -2.92050548e-05 | J104: -0.0004392132588 | K104: -0.004708300079 | L104: 0.002398021872 | M104: 0.02627953133 | N104: 4.393819054e-05
A105: =IF('DF raw data'!A110="","",'DF raw data'!A110) -> -278.5 | B105: =IF('DF raw data'!B110="","",'DF raw data'!B110) -> -3.11225e-05 | C105: =IF('DF raw data'!C110="","",'DF raw data'!C110) -> 0.000104976 | D105: =IF('DF raw data'!D110="","",'DF raw data'!D110) -> -2.9131e-05 | F105: -3.124699e-05 | G105: 0.000105395904 | H105: -2.9247524e-05 | J105: -0.0004548367538 | K105: -0.004935718456 | L105: 0.002450719824 | M105: 0.02750489124 | N105: 4.70446426e-05
A106: =IF('DF raw data'!A111="","",'DF raw data'!A111) -> -278 | B106: =IF('DF raw data'!B111="","",'DF raw data'!B111) -> -2.49786e-05 | C106: =IF('DF raw data'!C111="","",'DF raw data'!C111) -> 0.000118957 | D106: =IF('DF raw data'!D111="","",'DF raw data'!D111) -> -2.18111e-05 | F106: -2.50785144e-05 | G106: 0.000119432828 | H106: -2.18983444e-05 | J106: -0.000467376011 | K106: -0.005169406461 | L106: 0.002510436238 | M106: 0.02876010936 | N106: 5.030500782e-05
A107: =IF('DF raw data'!A112="","",'DF raw data'!A112) -> -277.5 | B107: =IF('DF raw data'!B112="","",'DF raw data'!B112) -> -2.43339e-05 | C107: =IF('DF raw data'!C112="","",'DF raw data'!C112) -> 0.00011791 | D107: =IF('DF raw data'!D112="","",'DF raw data'!D112) -> -2.84521e-05 | F107: -2.44312356e-05 | G107: 0.00011838164 | H107: -2.85659084e-05 | J107: -0.0004795916288 | K107: -0.005409202276 | L107: 0.002569627058 | M107: 0.03004492289 | N107: 5.372150349e-05
A108: =IF('DF raw data'!A113="","",'DF raw data'!A113) -> -277 | B108: =IF('DF raw data'!B113="","",'DF raw data'!B113) -> -2.62674e-05 | C108: =IF('DF raw data'!C113="","",'DF raw data'!C113) -> 0.000119808 | D108: =IF('DF raw data'!D113="","",'DF raw data'!D113) -> -9.65864e-06 | F108: -2.63724696e-05 | G108: 0.000120287232 | H108: -9.69727456e-06 | J108: -0.0004927778636 | K108: -0.005655591208 | L108: 0.002629770674 | M108: 0.03135980823 | N108: 5.73007654e-05
A109: =IF('DF raw data'!A114="","",'DF raw data'!A114) -> -276.5 | B109: =IF('DF raw data'!B114="","",'DF raw data'!B114) -> -3.30473e-05 | C109: =IF('DF raw data'!C114="","",'DF raw data'!C114) -> 0.00011938 | D109: =IF('DF raw data'!D114="","",'DF raw data'!D114) -> -2.38938e-05 | F109: -3.31794892e-05 | G109: 0.00011985752 | H109: -2.39893752e-05 | J109: -0.0005093676082 | K109: -0.005910275012 | L109: 0.002689699434 | M109: 0.03270465794 | N109: 6.104773461e-05
A110: =IF('DF raw data'!A115="","",'DF raw data'!A115) -> -276 | B110: =IF('DF raw data'!B115="","",'DF raw data'!B115) -> -2.38249e-05 | C110: =IF('DF raw data'!C115="","",'DF raw data'!C115) -> 0.000118762 | D110: =IF('DF raw data'!D115="","",'DF raw data'!D115) -> -2.32336e-05 | F110: -2.39201996e-05 | G110: 0.000119237048 | H110: -2.33265344e-05 | J110: -0.000521327708 | K110: -0.006170938866 | L110: 0.002749317958 | M110: 0.03407931692 | N110: 6.496300051e-05
A111: =IF('DF raw data'!A116="","",'DF raw data'!A116) -> -275.5 | B111: =IF('DF raw data'!B116="","",'DF raw data'!B116) -> -2.55502e-05 | C111: =IF('DF raw data'!C116="","",'DF raw data'!C116) -> 0.000123412 | D111: =IF('DF raw data'!D116="","",'DF raw data'!D116) -> -2.95275e-05 | F111: -2.56524008e-05 | G111: 0.000123905648 | H111: -2.964561e-05 | J111: -0.0005341539084 | K111: -0.00643801582 | L111: 0.002811270782 | M111: 0.03548495231 | N111: 6.905728242e-05
A112: =IF('DF raw data'!A117="","",'DF raw data'!A117) -> -275 | B112: =IF('DF raw data'!B117="","",'DF raw data'!B117) -> -2.47798e-05 | C112: =IF('DF raw data'!C117="","",'DF raw data'!C117) -> 0.00012536 | D112: =IF('DF raw data'!D117="","",'DF raw data'!D117) -> -3.18997e-05 | F112: -2.48789192e-05 | G112: 0.00012586144 | H112: -3.20272988e-05 | J112: -0.000546593368 | K112: -0.006711312504 | L112: 0.002874201502 | M112: 0.03692205306 | N112: 7.333718171e-05
A113: =IF('DF raw data'!A118="","",'DF raw data'!A118) -> -274.5 | B113: =IF('DF raw data'!B118="","",'DF raw data'!B118) -> -2.81194e-05 | C113: =IF('DF raw data'!C118="","",'DF raw data'!C118) -> 0.000124355 | D113: =IF('DF raw data'!D118="","",'DF raw data'!D118) -> -1.80436e-05 | F113: -2.82318776e-05 | G113: 0.00012485242 | H113: -1.81157744e-05 | J113: -0.0005607093068 | K113: -0.006991667157 | L113: 0.002936627712 | M113: 0.03839036692 | N113: 7.780627033e-05
A114: =IF('DF raw data'!A119="","",'DF raw data'!A119) -> -274 | B114: =IF('DF raw data'!B119="","",'DF raw data'!B119) -> -3.40705e-05 | C114: =IF('DF raw data'!C119="","",'DF raw data'!C119) -> 0.000121614 | D114: =IF('DF raw data'!D119="","",'DF raw data'!D119) -> -2.63184e-05 | F114: -3.4206782e-05 | G114: 0.000122100456 | H114: -2.64236736e-05 | J114: -0.0005778126978 | K114: -0.007280573506 | L114: 0.00299767794 | M114: 0.03988920589 | N114: 8.246624061e-05
A115: =IF('DF raw data'!A120="","",'DF raw data'!A120) -> -273.5 | B115: =IF('DF raw data'!B120="","",'DF raw data'!B120) -> -2.14491e-05 | C115: =IF('DF raw data'!C120="","",'DF raw data'!C120) -> 0.000121608 | D115: =IF('DF raw data'!D120="","",'DF raw data'!D120) -> -3.24307e-05 | F115: -2.15348964e-05 | G115: 0.000122094432 | H115: -3.25604228e-05 | J115: -0.000588580146 | K115: -0.007574863579 | L115: 0.003058725156 | M115: 0.04141856847 | N115: 8.731735369e-05
A116: =IF('DF raw data'!A121="","",'DF raw data'!A121) -> -273 | B116: =IF('DF raw data'!B121="","",'DF raw data'!B121) -> -3.0868e-05 | C116: =IF('DF raw data'!C121="","",'DF raw data'!C121) -> 0.000117766 | D116: =IF('DF raw data'!D121="","",'DF raw data'!D121) -> -2.66136e-05 | F116: -3.0991472e-05 | G116: 0.000118237064 | H116: -2.67200544e-05 | J116: -0.000604075882 | K116: -0.00787690152 | L116: 0.003117843688 | M116: 0.04297749031 | N116: 9.236028216e-05
A117: =IF('DF raw data'!A122="","",'DF raw data'!A122) -> -272.5 | B117: =IF('DF raw data'!B122="","",'DF raw data'!B122) -> -2.71481e-05 | C117: =IF('DF raw data'!C122="","",'DF raw data'!C122) -> 0.000125122 | D117: =IF('DF raw data'!D122="","",'DF raw data'!D122) -> -3.41917e-05 | F117: -2.72566924e-05 | G117: 0.000125622488 | H117: -3.43284668e-05 | J117: -0.0006177042282 | K117: -0.008185753634 | L117: 0.003180654932 | M117: 0.04456781778 | N117: 9.760934431e-05
A118: =IF('DF raw data'!A123="","",'DF raw data'!A123) -> -272 | B118: =IF('DF raw data'!B123="","",'DF raw data'!B123) -> -2.36941e-05 | C118: =IF('DF raw data'!C123="","",'DF raw data'!C123) -> 0.000130073 | D118: =IF('DF raw data'!D123="","",'DF raw data'!D123) -> -2.74525e-05 | F118: -2.37888764e-05 | G118: 0.000130593292 | H118: -2.756231e-05 | J118: -0.0006295986664 | K118: -0.008500552967 | L118: 0.003245951578 | M118: 0.04619079357 | N118: 0.0001030756424
A119: =IF('DF raw data'!A124="","",'DF raw data'!A124) -> -271.5 | B119: =IF('DF raw data'!B124="","",'DF raw data'!B124) -> -2.23452e-05 | C119: =IF('DF raw data'!C124="","",'DF raw data'!C124) -> 0.00012808 | D119: =IF('DF raw data'!D124="","",'DF raw data'!D124) -> -3.32395e-05 | F119: -2.24345808e-05 | G119: 0.00012859232 | H119: -3.3372458e-05 | J119: -0.0006408159568 | K119: -0.008820960946 | L119: 0.003310247738 | M119: 0.04784591744 | N119: 0.000108759835
A120: =IF('DF raw data'!A125="","",'DF raw data'!A125) -> -271 | B120: =IF('DF raw data'!B125="","",'DF raw data'!B125) -> -1.76681e-05 | C120: =IF('DF raw data'!C125="","",'DF raw data'!C125) -> 0.000132204 | D120: =IF('DF raw data'!D125="","",'DF raw data'!D125) -> -3.58112e-05 | F120: -1.77387724e-05 | G120: 0.000132732816 | H120: -3.59544448e-05 | J120: -0.000649685343 | K120: -0.009145803617 | L120: 0.003376614146 | M120: 0.04953422451 | N120: 0.000114671642
A121: =IF('DF raw data'!A126="","",'DF raw data'!A126) -> -270.5 | B121: =IF('DF raw data'!B126="","",'DF raw data'!B126) -> -2.44593e-05 | C121: =IF('DF raw data'!C126="","",'DF raw data'!C126) -> 0.000123216 | D121: =IF('DF raw data'!D126="","",'DF raw data'!D126) -> -3.25146e-05 | F121: -2.45571372e-05 | G121: 0.000123708864 | H121: -3.26446584e-05 | J121: -0.0006619639116 | K121: -0.009476785573 | L121: 0.003438468578 | M121: 0.0512534588 | N121: 0.0001208022732
A122: =IF('DF raw data'!A127="","",'DF raw data'!A127) -> -270 | B122: =IF('DF raw data'!B127="","",'DF raw data'!B127) -> -2.88832e-05 | C122: =IF('DF raw data'!C127="","",'DF raw data'!C127) -> 0.000119524 | D122: =IF('DF raw data'!D127="","",'DF raw data'!D127) -> -2.54632e-05 | F122: -2.89987328e-05 | G122: 0.000120002096 | H122: -2.55650528e-05 | J122: -0.000676463278 | K122: -0.009815017212 | L122: 0.003498469626 | M122: 0.05300269361 | N122: 0.0001271507194
A123: =IF('DF raw data'!A128="","",'DF raw data'!A128) -> -269.5 | B123: =IF('DF raw data'!B128="","",'DF raw data'!B128) -> -2.74063e-05 | C123: =IF('DF raw data'!C128="","",'DF raw data'!C128) -> 0.000118408 | D123: =IF('DF raw data'!D128="","",'DF raw data'!D128) -> -3.11581e-05 | F123: -2.75159252e-05 | G123: 0.000118881632 | H123: -3.12827324e-05 | J123: -0.0006902212406 | K123: -0.01016012783 | L123: 0.003557910442 | M123: 0.05478164883 | N123: 0.0001337182854
A124: =IF('DF raw data'!A129="","",'DF raw data'!A129) -> -269 | B124: =IF('DF raw data'!B129="","",'DF raw data'!B129) -> -2.68894e-05 | C124: =IF('DF raw data'!C129="","",'DF raw data'!C129) -> 0.000118809 | D124: =IF('DF raw data'!D129="","",'DF raw data'!D129) -> -3.81651e-05 | F124: -2.69969576e-05 | G124: 0.000119284236 | H124: -3.83177604e-05 | J124: -0.0007037197194 | K124: -0.01051198769 | L124: 0.00361755256 | M124: 0.05659042511 | N124: 0.0001405092394
A125: =IF('DF raw data'!A130="","",'DF raw data'!A130) -> -268.5 | B125: =IF('DF raw data'!B130="","",'DF raw data'!B130) -> -2.10007e-05 | C125: =IF('DF raw data'!C130="","",'DF raw data'!C130) -> 0.000121552 | D125: =IF('DF raw data'!D130="","",'DF raw data'!D130) -> -3.2298e-05 | F125: -2.10847028e-05 | G125: 0.000122038208 | H125: -3.2427192e-05 | J125: -0.0007142620708 | K125: -0.01086911873 | L125: 0.003678571664 | M125: 0.05842971094 | N125: 0.0001475302693
A126: =IF('DF raw data'!A131="","",'DF raw data'!A131) -> -268 | B126: =IF('DF raw data'!B131="","",'DF raw data'!B131) -> -2.24114e-05 | C126: =IF('DF raw data'!C131="","",'DF raw data'!C131) -> 0.00013202 | D126: =IF('DF raw data'!D131="","",'DF raw data'!D131) -> -3.01682e-05 | F126: -2.25010456e-05 | G126: 0.00013254808 | H126: -3.02888728e-05 | J126: -0.0007255125936 | K126: -0.01123187502 | L126: 0.003744845704 | M126: 0.0603021338 | N126: 0.0001548053882
A127: =IF('DF raw data'!A132="","",'DF raw data'!A132) -> -267.5 | B127: =IF('DF raw data'!B132="","",'DF raw data'!B132) -> -2.8491e-05 | C127: =IF('DF raw data'!C132="","",'DF raw data'!C132) -> 0.000121286 | D127: =IF('DF raw data'!D132="","",'DF raw data'!D132) -> -3.77098e-05 | F127: -2.8604964e-05 | G127: 0.000121771144 | H127: -3.78606392e-05 | J127: -0.0007398150756 | K127: -0.01160178256 | L127: 0.003805731276 | M127: 0.06220499943 | N127: 0.0001623208467
A128: =IF('DF raw data'!A133="","",'DF raw data'!A133) -> -267 | B128: =IF('DF raw data'!B133="","",'DF raw data'!B133) -> -2.27937e-05 | C128: =IF('DF raw data'!C133="","",'DF raw data'!C133) -> 0.000122219 | D128: =IF('DF raw data'!D133="","",'DF raw data'!D133) -> -3.33078e-05 | F128: =(1-$G$1*($B$49-$G$2))*B128 -> -2.28848748e-05 | G128: 0.000122707876 | H128: -3.34410312e-05 | J128: =F128*$G$3+J127 -> -0.000751257513 | K128: =J128*$G$3+K127 -> -0.01197741132 | L128: =G128*$G$3+L127 -> 0.003867085214 | M128: =L128*$G$3+M127 -> 0.06413854204 | N128: =(J128^2+L128^2)*$G$3+N127 -> 0.0001700802146
A129: =IF('DF raw data'!A134="","",'DF raw data'!A134) -> -266.5 | B129: =IF('DF raw data'!B134="","",'DF raw data'!B134) -> -3.08616e-05 | C129: =IF('DF raw data'!C134="","",'DF raw data'!C134) -> 0.000111035 | D129: =IF('DF raw data'!D134="","",'DF raw data'!D134) -> -3.6364e-05 | F129: -3.09850464e-05 | G129: 0.00011147914 | H129: -3.6509456e-05 | J129: -0.0007667500362 | K129: -0.01236078634 | L129: 0.003922824784 | M129: 0.06609995443 | N129: 0.0001780684446
A130: =IF('DF raw data'!A135="","",'DF raw data'!A135) -> -266 | B130: =IF('DF raw data'!B135="","",'DF raw data'!B135) -> -2.18355e-05 | C130: =IF('DF raw data'!C135="","",'DF raw data'!C135) -> 0.000121476 | D130: =IF('DF raw data'!D135="","",'DF raw data'!D135) -> -2.92398e-05 | F130: -2.1922842e-05 | G130: 0.000121961904 | H130: -2.93567592e-05 | J130: -0.0007777114572 | K130: -0.01274964207 | L130: 0.003983805736 | M130: 0.0680918573 | N130: 0.0001863062162
A131: =IF('DF raw data'!A136="","",'DF raw data'!A136) -> -265.5 | B131: =IF('DF raw data'!B136="","",'DF raw data'!B136) -> -2.68945e-05 | C131: =IF('DF raw data'!C136="","",'DF raw data'!C136) -> 0.000125338 | D131: =IF('DF raw data'!D136="","",'DF raw data'!D136) -> -3.02181e-05 | F131: -2.7002078e-05 | G131: 0.000125839352 | H131: -3.03389724e-05 | J131: -0.0007912124962 | K131: -0.01314524831 | L131: 0.004046725412 | M131: 0.07011522001 | N131: 0.0001948072181
A132: =IF('DF raw data'!A137="","",'DF raw data'!A137) -> -265 | B132: =IF('DF raw data'!B137="","",'DF raw data'!B137) -> -2.77246e-05 | C132: =IF('DF raw data'!C137="","",'DF raw data'!C137) -> 0.000128638 | D132: =IF('DF raw data'!D137="","",'DF raw data'!D137) -> -3.43288e-05 | F132: -2.78354984e-05 | G132: 0.000129152552 | H132: -3.44661152e-05 | J132: -0.0008051302454 | K132: -0.01354781344 | L132: 0.004111301688 | M132: 0.07217087085 | N132: 0.0002035827362
A133: =IF('DF raw data'!A138="","",'DF raw data'!A138) -> -264.5 | B133: =IF('DF raw data'!B138="","",'DF raw data'!B138) -> -4.15557e-05 | C133: =IF('DF raw data'!C138="","",'DF raw data'!C138) -> 0.000123791 | D133: =IF('DF raw data'!D138="","",'DF raw data'!D138) -> -3.93138e-05 | F133: -4.17219228e-05 | G133: 0.000124286164 | H133: -3.94710552e-05 | J133: -0.0008259912068 | K133: -0.01396080904 | L133: 0.00417344477 | M133: 0.07425759323 | N133: 0.0002126326876
A134: =IF('DF raw data'!A139="","",'DF raw data'!A139) -> -264 | B134: =IF('DF raw data'!B139="","",'DF raw data'!B139) -> -3.26622e-05 | C134: =IF('DF raw data'!C139="","",'DF raw data'!C139) -> 0.000123549 | D134: =IF('DF raw data'!D139="","",'DF raw data'!D139) -> -2.55108e-05 | F134: -3.27928488e-05 | G134: 0.000124043196 | H134: -2.56128432e-05 | J134: -0.0008423876312 | K134: -0.01438200286 | L134: 0.004235466368 | M134: 0.07637532642 | N134: 0.0002219570837
A135: =IF('DF raw data'!A140="","",'DF raw data'!A140) -> -263.5 | B135: =IF('DF raw data'!B140="","",'DF raw data'!B140) -> -2.82402e-05 | C135: =IF('DF raw data'!C140="","",'DF raw data'!C140) -> 0.00013218 | D135: =IF('DF raw data'!D140="","",'DF raw data'!D140) -> -2.90081e-05 | F135: -2.83531608e-05 | G135: 0.00013270872 | H135: -2.91241324e-05 | J135: -0.0008565642116 | K135: -0.01481028496 | L135: 0.004301820728 | M135: 0.07852623678 | N135: 0.0002315767656
A136: =IF('DF raw data'!A141="","",'DF raw data'!A141) -> -263 | B136: =IF('DF raw data'!B141="","",'DF raw data'!B141) -> -2.89415e-05 | C136: =IF('DF raw data'!C141="","",'DF raw data'!C141) -> 0.000130841 | D136: =IF('DF raw data'!D141="","",'DF raw data'!D141) -> -3.50492e-05 | F136: -2.9057266e-05 | G136: 0.000131364364 | H136: -3.51893968e-05 | J136: -0.0008710928446 | K136: -0.01524583138 | L136: 0.00436750291 | M136: 0.08070998824 | N136: 0.0002414937078
A137: =IF('DF raw data'!A142="","",'DF raw data'!A142) -> -262.5 | B137: =IF('DF raw data'!B142="","",'DF raw data'!B142) -> -4.22035e-05 | C137: =IF('DF raw data'!C142="","",'DF raw data'!C142) -> 0.00012052 | D137: =IF('DF raw data'!D142="","",'DF raw data'!D142) -> -2.71329e-05 | F137: -4.2372314e-05 | G137: 0.00012100208 | H137: -2.72414316e-05 | J137: -0.0008922790016 | K137: -0.01569197088 | L137: 0.00442800395 | M137: 0.08292399021 | N137: 0.0002516953982
A138: =IF('DF raw data'!A143="","",'DF raw data'!A143) -> -262 | B138: =IF('DF raw data'!B143="","",'DF raw data'!B143) -> -2.24122e-05 | C138: =IF('DF raw data'!C143="","",'DF raw data'!C143) -> 0.000120481 | D138: =IF('DF raw data'!D143="","",'DF raw data'!D143) -> -2.94798e-05 | F138: -2.25018488e-05 | G138: 0.000120962924 | H138: -2.95977192e-05 | J138: -0.000903529926 | K138: -0.01614373585 | L138: 0.004488485412 | M138: 0.08516823292 | N138: 0.0002621768321
A139: =IF('DF raw data'!A144="","",'DF raw data'!A144) -> -261.5 | B139: =IF('DF raw data'!B144="","",'DF raw data'!B144) -> -3.00367e-05 | C139: =IF('DF raw data'!C144="","",'DF raw data'!C144) -> 0.000121129 | D139: =IF('DF raw data'!D144="","",'DF raw data'!D144) -> -2.35633e-05 | F139: -3.01568468e-05 | G139: 0.000121613516 | H139: -2.36575532e-05 | J139: -0.0009186083494 | K139: -0.01660304002 | L139: 0.00454929217 | M139: 0.087442879 | N139: 0.0002729467823
A140: =IF('DF raw data'!A145="","",'DF raw data'!A145) -> -261 | B140: =IF('DF raw data'!B145="","",'DF raw data'!B145) -> -4.80472e-06 | C140: =IF('DF raw data'!C145="","",'DF raw data'!C145) -> 0.000116206 | D140: =IF('DF raw data'!D145="","",'DF raw data'!D145) -> -1.99439e-05 | F140: -4.82393888e-06 | G140: 0.000116670824 | H140: -2.00236756e-05 | J140: -0.0009210203188 | K140: -0.01706355018 | L140: 0.004607627582 | M140: 0.08974669279 | N140: 0.0002839860375
A141: =IF('DF raw data'!A146="","",'DF raw data'!A146) -> -260.5 | B141: =IF('DF raw data'!B146="","",'DF raw data'!B146) -> -2.18405e-05 | C141: =IF('DF raw data'!C146="","",'DF raw data'!C146) -> 0.00012169 | D141: =IF('DF raw data'!D146="","",'DF raw data'!D146) -> -2.0659e-05 | F141: -2.1927862e-05 | G141: 0.00012217676 | H141: -2.0741636e-05 | J141: -0.0009319842498 | K141: -0.01752954231 | L141: 0.004668715962 | M141: 0.09208105078 | N141: 0.0002953187892
A142: =IF('DF raw data'!A147="","",'DF raw data'!A147) -> -260 | B142: =IF('DF raw data'!B147="","",'DF raw data'!B147) -> -8.45816e-06 | C142: =IF('DF raw data'!C147="","",'DF raw data'!C147) -> 0.000122298 | D142: =IF('DF raw data'!D147="","",'DF raw data'!D147) -> -1.59358e-05 | F142: -8.49199264e-06 | G142: 0.000122787192 | H142: -1.59995432e-05 | J142: -0.0009362302462 | K142: -0.01799765743 | L142: 0.004730109558 | M142: 0.09444610555 | N142: 0.0003069440209
A143: =IF('DF raw data'!A148="","",'DF raw data'!A148) -> -259.5 | B143: =IF('DF raw data'!B148="","",'DF raw data'!B148) -> -2.7662e-05 | C143: =IF('DF raw data'!C148="","",'DF raw data'!C148) -> 0.000120155 | D143: =IF('DF raw data'!D148="","",'DF raw data'!D148) -> -3.07922e-05 | F143: -2.7772648e-05 | G143: 0.00012063562 | H143: -3.09153688e-05 | J143: -0.0009501165702 | K143: -0.01847271571 | L143: 0.004790427368 | M143: 0.09684131924 | N143: 0.0003188694789
A144: =IF('DF raw data'!A149="","",'DF raw data'!A149) -> -259 | B144: =IF('DF raw data'!B149="","",'DF raw data'!B149) -> -1.79909e-05 | C144: =IF('DF raw data'!C149="","",'DF raw data'!C149) -> 0.00012734 | D144: =IF('DF raw data'!D149="","",'DF raw data'!D149) -> -3.24709e-05 | F144: -1.80628636e-05 | G144: 0.00012784936 | H144: -3.26007836e-05 | J144: -0.000959148002 | K144: -0.01895228972 | L144: 0.004854352048 | M144: 0.09926849526 | N144: 0.0003311118282
A145: =IF('DF raw data'!A150="","",'DF raw data'!A150) -> -258.5 | B145: =IF('DF raw data'!B150="","",'DF raw data'!B150) -> -1.93353e-05 | C145: =IF('DF raw data'!C150="","",'DF raw data'!C150) -> 0.000130621 | D145: =IF('DF raw data'!D150="","",'DF raw data'!D150) -> -3.19922e-05 | F145: -1.94126412e-05 | G145: 0.000131143484 | H145: -3.21201688e-05 | J145: -0.0009688543226 | K145: -0.01943671688 | L145: 0.00491992379 | M145: 0.1017284572 | N145: 0.0003436839926
A146: =IF('DF raw data'!A151="","",'DF raw data'!A151) -> -258 | B146: =IF('DF raw data'!B151="","",'DF raw data'!B151) -> -1.4274e-05 | C146: =IF('DF raw data'!C151="","",'DF raw data'!C151) -> 0.000133759 | D146: =IF('DF raw data'!D151="","",'DF raw data'!D151) -> -3.5895e-05 | F146: -1.4331096e-05 | G146: 0.000134294036 | H146: -3.603858e-05 | J146: -0.0009760198706 | K146: -0.01992472681 | L146: 0.004987070808 | M146: 0.1042219926 | N146: 0.0003565957376
A147: =IF('DF raw data'!A152="","",'DF raw data'!A152) -> -257.5 | B147: =IF('DF raw data'!B152="","",'DF raw data'!B152) -> -2.95785e-05 | C147: =IF('DF raw data'!C152="","",'DF raw data'!C152) -> 0.000121495 | D147: =IF('DF raw data'!D152="","",'DF raw data'!D152) -> -3.84479e-05 | F147: -2.9696814e-05 | G147: 0.00012198098 | H147: -3.86016916e-05 | J147: -0.0009908682776 | K147: -0.02042016095 | L147: 0.005048061298 | M147: 0.1067460232 | N147: 0.000369828109
A148: =IF('DF raw data'!A153="","",'DF raw data'!A153) -> -257 | B148: =IF('DF raw data'!B153="","",'DF raw data'!B153) -> -2.91365e-05 | C148: =IF('DF raw data'!C153="","",'DF raw data'!C153) -> 0.000118081 | D148: =IF('DF raw data'!D153="","",'DF raw data'!D153) -> -3.13515e-05 | F148: -2.9253046e-05 | G148: 0.000118553324 | H148: -3.1476906e-05 | J148: -0.001005494801 | K148: -0.02092290835 | L148: 0.00510733796 | M148: 0.1092996922 | N148: 0.0003833760695
A149: =IF('DF raw data'!A154="","",'DF raw data'!A154) -> -256.5 | B149: =IF('DF raw data'!B154="","",'DF raw data'!B154) -> -1.97863e-05 | C149: =IF('DF raw data'!C154="","",'DF raw data'!C154) -> 0.000124167 | D149: =IF('DF raw data'!D154="","",'DF raw data'!D154) -> -2.78067e-05 | F149: -1.98654452e-05 | G149: 0.000124663668 | H149: -2.79179268e-05 | J149: -0.001015427523 | K149: -0.02143062211 | L149: 0.005169669794 | M149: 0.1118845271 | N149: 0.0003972543589
A150: =IF('DF raw data'!A155="","",'DF raw data'!A155) -> -256 | B150: =IF('DF raw data'!B155="","",'DF raw data'!B155) -> -1.15816e-05 | C150: =IF('DF raw data'!C155="","",'DF raw data'!C155) -> 0.000121454 | D150: =IF('DF raw data'!D155="","",'DF raw data'!D155) -> -3.92672e-05 | F150: -1.16279264e-05 | G150: 0.000121939816 | H150: -3.94242688e-05 | J150: -0.001021241486 | K150: -0.02194124286 | L150: 0.005230639702 | M150: 0.1144998469 | N150: 0.0004114556218
A151: =IF('DF raw data'!A156="","",'DF raw data'!A156) -> -255.5 | B151: =IF('DF raw data'!B156="","",'DF raw data'!B156) -> -2.93253e-05 | C151: =IF('DF raw data'!C156="","",'DF raw data'!C156) -> 0.000115135 | D151: =IF('DF raw data'!D156="","",'DF raw data'!D156) -> -3.38056e-05 | F151: -2.94426012e-05 | G151: 0.00011559554 | H151: -3.39408224e-05 | J151: -0.001035962787 | K151: -0.02245922425 | L151: 0.005288437472 | M151: 0.1171440657 | N151: 0.0004259760167
A152: =IF('DF raw data'!A157="","",'DF raw data'!A157) -> -255 | B152: =IF('DF raw data'!B157="","",'DF raw data'!B157) -> -1.20306e-05 | C152: =IF('DF raw data'!C157="","",'DF raw data'!C157) -> 0.000114829 | D152: =IF('DF raw data'!D157="","",'DF raw data'!D157) -> -3.8444e-05 | F152: -1.20787224e-05 | G152: 0.000115288316 | H152: -3.8597776e-05 | J152: -0.001042002148 | K152: -0.02298022532 | L152: 0.00534608163 | M152: 0.1198171065 | N152: 0.0004408091953
A153: =IF('DF raw data'!A158="","",'DF raw data'!A158) -> -254.5 | B153: =IF('DF raw data'!B158="","",'DF raw data'!B158) -> -1.77349e-05 | C153: =IF('DF raw data'!C158="","",'DF raw data'!C158) -> 0.000122794 | D153: =IF('DF raw data'!D158="","",'DF raw data'!D158) -> -3.04961e-05 | F153: -1.78058396e-05 | G153: 0.000123285176 | H153: -3.06180844e-05 | J153: -0.001050905068 | K153: -0.02350567786 | L153: 0.005407724218 | M153: 0.1225209686 | N153: 0.0004559831367
A154: =IF('DF raw data'!A159="","",'DF raw data'!A159) -> -254 | B154: =IF('DF raw data'!B159="","",'DF raw data'!B159) -> -1.69629e-05 | C154: =IF('DF raw data'!C159="","",'DF raw data'!C159) -> 0.000130575 | D154: =IF('DF raw data'!D159="","",'DF raw data'!D159) -> -3.76067e-05 | F154: -1.70307516e-05 | G154: 0.0001310973 | H154: -3.77571268e-05 | J154: -0.001059420444 | K154: -0.02403538808 | L154: 0.005473272868 | M154: 0.125257605 | N154: 0.0004715226805
A155: =IF('DF raw data'!A160="","",'DF raw data'!A160) -> -253.5 | B155: =IF('DF raw data'!B160="","",'DF raw data'!B160) -> -2.59391e-05 | C155: =IF('DF raw data'!C160="","",'DF raw data'!C160) -> 0.000125444 | D155: =IF('DF raw data'!D160="","",'DF raw data'!D160) -> -2.10162e-05 | F155: -2.60428564e-05 | G155: 0.000125945776 | H155: -2.11002648e-05 | J155: -0.001072441872 | K155: -0.02457160902 | L155: 0.005536245756 | M155: 0.1280257279 | N155: 0.0004874227548
A156: =IF('DF raw data'!A161="","",'DF raw data'!A161) -> -253 | B156: =IF('DF raw data'!B161="","",'DF raw data'!B161) -> -2.33717e-05 | C156: =IF('DF raw data'!C161="","",'DF raw data'!C161) -> 0.000127169 | D156: =IF('DF raw data'!D161="","",'DF raw data'!D161) -> -3.20148e-05 | F156: -2.34651868e-05 | G156: 0.000127677676 | H156: -3.21428592e-05 | J156: -0.001084174465 | K156: -0.02511369625 | L156: 0.005600084594 | M156: 0.1308257702 | N156: 0.0005036909457
A157: =IF('DF raw data'!A162="","",'DF raw data'!A162) -> -252.5 | B157: =IF('DF raw data'!B162="","",'DF raw data'!B162) -> -3.00386e-05 | C157: =IF('DF raw data'!C162="","",'DF raw data'!C162) -> 0.000130377 | D157: =IF('DF raw data'!D162="","",'DF raw data'!D162) -> -1.96622e-05 | F157: -3.01587544e-05 | G157: 0.000130898508 | H157: -1.97408488e-05 | J157: -0.001099253843 | K157: -0.02566332317 | L157: 0.005665533848 | M157: 0.1336585371 | N157: 0.000520344262
A158: =IF('DF raw data'!A163="","",'DF raw data'!A163) -> -252 | B158: =IF('DF raw data'!B163="","",'DF raw data'!B163) -> -6.52316e-06 | C158: =IF('DF raw data'!C163="","",'DF raw data'!C163) -> 0.000126914 | D158: =IF('DF raw data'!D163="","",'DF raw data'!D163) -> -3.70408e-05 | F158: -6.54925264e-06 | G158: 0.000127421656 | H158: -3.71889632e-05 | J158: -0.001102528469 | K158: -0.0262145874 | L158: 0.005729244676 | M158: 0.1365231595 | N158: 0.0005373641688
A159: =IF('DF raw data'!A164="","",'DF raw data'!A164) -> -251.5 | B159: =IF('DF raw data'!B164="","",'DF raw data'!B164) -> -1.6457e-05 | C159: =IF('DF raw data'!C164="","",'DF raw data'!C164) -> 0.000125833 | D159: =IF('DF raw data'!D164="","",'DF raw data'!D164) -> -2.57364e-05 | F159: -1.6522828e-05 | G159: 0.000126336332 | H159: -2.58393456e-05 | J159: -0.001110789883 | K159: -0.02676998234 | L159: 0.005792412842 | M159: 0.1394193659 | N159: 0.0005547571192
A160: =IF('DF raw data'!A165="","",'DF raw data'!A165) -> -251 | B160: =IF('DF raw data'!B165="","",'DF raw data'!B165) -> -1.44618e-05 | C160: =IF('DF raw data'!C165="","",'DF raw data'!C165) -> 0.000120734 | D160: =IF('DF raw data'!D165="","",'DF raw data'!D165) -> -4.27828e-05 | F160: -1.45196472e-05 | G160: 0.000121216936 | H160: -4.29539312e-05 | J160: -0.001118049706 | K160: -0.0273290072 | L160: 0.00585302131 | M160: 0.1423458765 | N160: 0.000572511066
A161: =IF('DF raw data'!A166="","",'DF raw data'!A166) -> -250.5 | B161: =IF('DF raw data'!B166="","",'DF raw data'!B166) -> -1.46014e-05 | C161: =IF('DF raw data'!C166="","",'DF raw data'!C166) -> 0.000121284 | D161: =IF('DF raw data'!D166="","",'DF raw data'!D166) -> -2.27816e-05 | F161: -1.46598056e-05 | G161: 0.000121769136 | H161: -2.28727264e-05 | J161: -0.001125379609 | K161: -0.027891697 | L161: 0.005913905878 | M161: 0.1453028295 | N161: 0.000590631447
A162: =IF('DF raw data'!A167="","",'DF raw data'!A167) -> -250 | B162: =IF('DF raw data'!B167="","",'DF raw data'!B167) -> -2.22208e-05 | C162: =IF('DF raw data'!C167="","",'DF raw data'!C167) -> 0.000121912 | D162: =IF('DF raw data'!D167="","",'DF raw data'!D167) -> -2.92829e-05 | F162: -2.23096832e-05 | G162: 0.000122399648 | H162: -2.94000316e-05 | J162: -0.001136534451 | K162: -0.02845996423 | L162: 0.005975105702 | M162: 0.1482903823 | N162: 0.0006091282463
A163: =IF('DF raw data'!A168="","",'DF raw data'!A168) -> -249.5 | B163: =IF('DF raw data'!B168="","",'DF raw data'!B168) -> -2.05574e-05 | C163: =IF('DF raw data'!C168="","",'DF raw data'!C168) -> 0.000125516 | D163: =IF('DF raw data'!D168="","",'DF raw data'!D168) -> -2.32929e-05 | F163: -2.06396296e-05 | G163: 0.000126018064 | H163: -2.33860716e-05 | J163: -0.001146854266 | K163: -0.02903339136 | L163: 0.006038114734 | M163: 0.1513094397 | N163: 0.0006280152985
A164: =IF('DF raw data'!A169="","",'DF raw data'!A169) -> -249 | B164: =IF('DF raw data'!B169="","",'DF raw data'!B169) -> -1.38989e-05 | C164: =IF('DF raw data'!C169="","",'DF raw data'!C169) -> 0.000124415 | D164: =IF('DF raw data'!D169="","",'DF raw data'!D169) -> -2.21509e-05 | F164: -1.39544956e-05 | G164: 0.00012491266 | H164: -2.22395036e-05 | J164: -0.001153831513 | K164: -0.02961030712 | L164: 0.006100571064 | M164: 0.1543597252 | N164: 0.0006472894457
A165: =IF('DF raw data'!A170="","",'DF raw data'!A170) -> -248.5 | B165: =IF('DF raw data'!B170="","",'DF raw data'!B170) -> -2.11889e-05 | C165: =IF('DF raw data'!C170="","",'DF raw data'!C170) -> 0.00012379 | D165: =IF('DF raw data'!D170="","",'DF raw data'!D170) -> -3.68628e-05 | F165: -2.12736556e-05 | G165: 0.00012428516 | H165: -3.70102512e-05 | J165: -0.001164468341 | K165: -0.03019254129 | L165: 0.006162713644 | M165: 0.1574410821 | N165: 0.0006669569587
A166: =IF('DF raw data'!A171="","",'DF raw data'!A171) -> -248 | B166: =IF('DF raw data'!B171="","",'DF raw data'!B171) -> -1.90696e-05 | C166: =IF('DF raw data'!C171="","",'DF raw data'!C171) -> 0.000125857 | D166: =IF('DF raw data'!D171="","",'DF raw data'!D171) -> -4.92171e-05 | F166: -1.91458784e-05 | G166: 0.000126360428 | H166: -4.94139684e-05 | J166: -0.00117404128 | K166: -0.03077956193 | L166: 0.006225893858 | M166: 0.160554029 | N166: 0.0006870270223
A167: =IF('DF raw data'!A172="","",'DF raw data'!A172) -> -247.5 | B167: =IF('DF raw data'!B172="","",'DF raw data'!B172) -> -2.0559e-05 | C167: =IF('DF raw data'!C172="","",'DF raw data'!C172) -> 0.000120782 | D167: =IF('DF raw data'!D172="","",'DF raw data'!D172) -> -2.05142e-05 | F167: -2.0641236e-05 | G167: 0.000121265128 | H167: -2.05962568e-05 | J167: -0.001184361898 | K167: -0.03137174288 | L167: 0.006286526422 | M167: 0.1636972922 | N167: 0.0007074885861
A168: =IF('DF raw data'!A173="","",'DF raw data'!A173) -> -247 | B168: =IF('DF raw data'!B173="","",'DF raw data'!B173) -> -1.82506e-05 | C168: =IF('DF raw data'!C173="","",'DF raw data'!C173) -> 0.000118522 | D168: =IF('DF raw data'!D173="","",'DF raw data'!D173) -> -2.78825e-05 | F168: -1.83236024e-05 | G168: 0.000118996088 | H168: -2.799403e-05 | J168: -0.0011935237 | K168: -0.03196850473 | L168: 0.006346024466 | M168: 0.1668703044 | N168: 0.0007283368488
A169: =IF('DF raw data'!A174="","",'DF raw data'!A174) -> -246.5 | B169: =IF('DF raw data'!B174="","",'DF raw data'!B174) -> -3.6632e-05 | C169: =IF('DF raw data'!C174="","",'DF raw data'!C174) -> 0.000118123 | D169: =IF('DF raw data'!D174="","",'DF raw data'!D174) -> -2.40017e-05 | F169: -3.6778528e-05 | G169: 0.000118595492 | H169: -2.40977068e-05 | J169: -0.001211912964 | K169: -0.03257446121 | L169: 0.006405322212 | M169: 0.1700729655 | N169: 0.0007495852916
A170: =IF('DF raw data'!A175="","",'DF raw data'!A175) -> -246 | B170: =IF('DF raw data'!B175="","",'DF raw data'!B175) -> -1.13964e-05 | C170: =IF('DF raw data'!C175="","",'DF raw data'!C175) -> 0.000126404 | D170: =IF('DF raw data'!D175="","",'DF raw data'!D175) -> -2.91445e-05 | F170: -1.14419856e-05 | G170: 0.000126909616 | H170: -2.9261078e-05 | J170: -0.001217633956 | K170: -0.03318327819 | L170: 0.00646877702 | M170: 0.173307354 | N170: 0.0007712491459
A171: =IF('DF raw data'!A176="","",'DF raw data'!A176) -> -245.5 | B171: =IF('DF raw data'!B176="","",'DF raw data'!B176) -> -2.00437e-05 | C171: =IF('DF raw data'!C176="","",'DF raw data'!C176) -> 0.000124561 | D171: =IF('DF raw data'!D176="","",'DF raw data'!D176) -> -2.52826e-05 | F171: -2.01238748e-05 | G171: 0.000125059244 | H171: -2.53837304e-05 | J171: -0.001227695894 | K171: -0.03379712613 | L171: 0.006531306642 | M171: 0.1765730074 | N171: 0.0007933317477
A172: =IF('DF raw data'!A177="","",'DF raw data'!A177) -> -245 | B172: =IF('DF raw data'!B177="","",'DF raw data'!B177) -> -1.36955e-05 | C172: =IF('DF raw data'!C177="","",'DF raw data'!C177) -> 0.000124994 | D172: =IF('DF raw data'!D177="","",'DF raw data'!D177) -> -3.93141e-05 | F172: -1.3750282e-05 | G172: 0.000125493976 | H172: -3.94713564e-05 | J172: -0.001234571035 | K172: -0.03441441165 | L172: 0.00659405363 | M172: 0.1798700342 | N172: 0.0008158346022
A173: =IF('DF raw data'!A178="","",'DF raw data'!A178) -> -244.5 | B173: =IF('DF raw data'!B178="","",'DF raw data'!B178) -> -3.86877e-05 | C173: =IF('DF raw data'!C178="","",'DF raw data'!C178) -> 0.000125493 | D173: =IF('DF raw data'!D178="","",'DF raw data'!D178) -> -1.46332e-05 | F173: -3.88424508e-05 | G173: 0.000125994972 | H173: -1.46917328e-05 | J173: -0.00125399226 | K173: -0.03504140778 | L173: 0.006657051116 | M173: 0.1831985597 | N173: 0.0008387790153
A174: =IF('DF raw data'!A179="","",'DF raw data'!A179) -> -244 | B174: =IF('DF raw data'!B179="","",'DF raw data'!B179) -> -4.11128e-05 | C174: =IF('DF raw data'!C179="","",'DF raw data'!C179) -> 0.000120642 | D174: =IF('DF raw data'!D179="","",'DF raw data'!D179) -> -3.38587e-05 | F174: -4.12772512e-05 | G174: 0.000121124568 | H174: -3.39941348e-05 | J174: -0.001274630886 | K174: -0.03567872323 | L174: 0.0067176134 | M174: 0.1865573664 | N174: 0.0008621545221
A175: =IF('DF raw data'!A180="","",'DF raw data'!A180) -> -243.5 | B175: =IF('DF raw data'!B180="","",'DF raw data'!B180) -> -4.35516e-05 | C175: =IF('DF raw data'!C180="","",'DF raw data'!C180) -> 0.000123872 | D175: =IF('DF raw data'!D180="","",'DF raw data'!D180) -> -2.0313e-05 | F175: -4.37258064e-05 | G175: 0.000124367488 | H175: -2.0394252e-05 | J175: -0.001296493789 | K175: -0.03632697012 | L175: 0.006779797144 | M175: 0.189947265 | N175: 0.0008859777948
A176: =IF('DF raw data'!A181="","",'DF raw data'!A181) -> -243 | B176: =IF('DF raw data'!B181="","",'DF raw data'!B181) -> -3.31772e-05 | C176: =IF('DF raw data'!C181="","",'DF raw data'!C181) -> 0.000120402 | D176: =IF('DF raw data'!D181="","",'DF raw data'!D181) -> -2.36188e-05 | F176: -3.33099088e-05 | G176: 0.000120883608 | H176: -2.37132752e-05 | J176: -0.001313148743 | K176: -0.03698354449 | L176: 0.006840238948 | M176: 0.1933673845 | N176: 0.0009102344091
A177: =IF('DF raw data'!A182="","",'DF raw data'!A182) -> -242.5 | B177: =IF('DF raw data'!B182="","",'DF raw data'!B182) -> -2.35142e-05 | C177: =IF('DF raw data'!C182="","",'DF raw data'!C182) -> 0.000120735 | D177: =IF('DF raw data'!D182="","",'DF raw data'!D182) -> -6.74217e-06 | F177: -2.36082568e-05 | G177: 0.00012121794 | H177: -6.76913868e-06 | J177: -0.001324952872 | K177: -0.03764602093 | L177: 0.006900847918 | M177: 0.1968178084 | N177: 0.0009349230101
A178: =IF('DF raw data'!A183="","",'DF raw data'!A183) -> -242 | B178: =IF('DF raw data'!B183="","",'DF raw data'!B183) -> -2.14562e-05 | C178: =IF('DF raw data'!C183="","",'DF raw data'!C183) -> 0.000123098 | D178: =IF('DF raw data'!D183="","",'DF raw data'!D183) -> -2.31546e-05 | F178: -2.15420248e-05 | G178: 0.000123590392 | H178: -2.32472184e-05 | J178: -0.001335723884 | K178: -0.03831388287 | L178: 0.006962643114 | M178: 0.20029913 | N178: 0.0009600542888
A179: =IF('DF raw data'!A184="","",'DF raw data'!A184) -> -241.5 | B179: =IF('DF raw data'!B184="","",'DF raw data'!B184) -> -2.24807e-05 | C179: =IF('DF raw data'!C184="","",'DF raw data'!C184) -> 0.000118403 | D179: =IF('DF raw data'!D184="","",'DF raw data'!D184) -> -2.03822e-05 | F179: -2.25706228e-05 | G179: 0.000118876612 | H179: -2.04637288e-05 | J179: -0.001347009196 | K179: -0.03898738747 | L179: 0.00702208142 | M179: 0.2038101707 | N179: 0.0009856163195
A180: =IF('DF raw data'!A185="","",'DF raw data'!A185) -> -241 | B180: =IF('DF raw data'!B185="","",'DF raw data'!B185) -> -1.99212e-05 | C180: =IF('DF raw data'!C185="","",'DF raw data'!C185) -> 0.000122226 | D180: =IF('DF raw data'!D185="","",'DF raw data'!D185) -> -1.96757e-05 | F180: -2.00008848e-05 | G180: 0.000122714904 | H180: -1.97544028e-05 | J180: -0.001357009638 | K180: -0.03966589229 | L180: 0.007083438872 | M180: 0.2073518901 | N180: 0.00101162461
A181: =IF('DF raw data'!A186="","",'DF raw data'!A186) -> -240.5 | B181: =IF('DF raw data'!B186="","",'DF raw data'!B186) -> -2.22255e-05 | C181: =IF('DF raw data'!C186="","",'DF raw data'!C186) -> 0.000118984 | D181: =IF('DF raw data'!D186="","",'DF raw data'!D186) -> -1.88991e-05 | F181: -2.2314402e-05 | G181: 0.000119459936 | H181: -1.89746964e-05 | J181: -0.001368166839 | K181: -0.04034997571 | L181: 0.00714316884 | M181: 0.2109234746 | N181: 0.001038072981
A182: =IF('DF raw data'!A187="","",'DF raw data'!A187) -> -240 | B182: =IF('DF raw data'!B187="","",'DF raw data'!B187) -> -2.44004e-05 | C182: =IF('DF raw data'!C187="","",'DF raw data'!C187) -> 0.000123438 | D182: =IF('DF raw data'!D187="","",'DF raw data'!D187) -> -2.61233e-05 | F182: -2.44980016e-05 | G182: 0.000123931752 | H182: -2.62277932e-05 | J182: -0.00138041584 | K182: -0.04104018363 | L182: 0.007205134716 | M182: 0.2145260419 | N182: 0.001064982738
A183: =IF('DF raw data'!A188="","",'DF raw data'!A188) -> -239.5 | B183: =IF('DF raw data'!B188="","",'DF raw data'!B188) -> -2.61923e-05 | C183: =IF('DF raw data'!C188="","",'DF raw data'!C188) -> 0.000123336 | D183: =IF('DF raw data'!D188="","",'DF raw data'!D188) -> -2.53806e-05 | F183: -2.62970692e-05 | G183: 0.000123829344 | H183: -2.54821224e-05 | J183: -0.001393564374 | K183: -0.04173696581 | L183: 0.007267049388 | M183: 0.2181595666 | N183: 0.001092358752
A184: =IF('DF raw data'!A189="","",'DF raw data'!A189) -> -239 | B184: =IF('DF raw data'!B189="","",'DF raw data'!B189) -> -2.48349e-05 | C184: =IF('DF raw data'!C189="","",'DF raw data'!C189) -> 0.000118093 | D184: =IF('DF raw data'!D189="","",'DF raw data'!D189) -> -4.75144e-05 | F184: -2.49342396e-05 | G184: 0.000118565372 | H184: -4.77044576e-05 | J184: -0.001406031494 | K184: -0.04243998156 | L184: 0.007326332074 | M184: 0.2218227327 | N184: 0.001120184785
A185: =IF('DF raw data'!A190="","",'DF raw data'!A190) -> -238.5 | B185: =IF('DF raw data'!B190="","",'DF raw data'!B190) -> -3.50948e-05 | C185: =IF('DF raw data'!C190="","",'DF raw data'!C190) -> 0.000125794 | D185: =IF('DF raw data'!D190="","",'DF raw data'!D190) -> -2.53962e-05 | F185: -3.52351792e-05 | G185: 0.000126297176 | H185: -2.54977848e-05 | J185: -0.001423649084 | K185: -0.0431518061 | L185: 0.007389480662 | M185: 0.225517473 | N185: 0.001148500386
A186: =IF('DF raw data'!A191="","",'DF raw data'!A191) -> -238 | B186: =IF('DF raw data'!B191="","",'DF raw data'!B191) -> -1.84382e-05 | C186: =IF('DF raw data'!C191="","",'DF raw data'!C191) -> 0.000126823 | D186: =IF('DF raw data'!D191="","",'DF raw data'!D191) -> -3.44782e-05 | F186: -1.85119528e-05 | G186: 0.000127330292 | H186: -3.46161128e-05 | J186: -0.00143290506 | K186: -0.04386825863 | L186: 0.007453145808 | M186: 0.2292440459 | N186: 0.001177301686
A187: =IF('DF raw data'!A192="","",'DF raw data'!A192) -> -237.5 | B187: =IF('DF raw data'!B192="","",'DF raw data'!B192) -> -2.72792e-05 | C187: =IF('DF raw data'!C192="","",'DF raw data'!C192) -> 0.00012398 | D187: =IF('DF raw data'!D192="","",'DF raw data'!D192) -> -2.82261e-05 | F187: -2.73883168e-05 | G187: 0.00012447592 | H187: -2.83390044e-05 | J187: -0.001446599219 | K187: -0.04459155824 | L187: 0.007515383768 | M187: 0.2330017378 | N187: 0.001206588507
A188: =IF('DF raw data'!A193="","",'DF raw data'!A193) -> -237 | B188: =IF('DF raw data'!B193="","",'DF raw data'!B193) -> -2.22197e-05 | C188: =IF('DF raw data'!C193="","",'DF raw data'!C193) -> 0.000126088 | D188: =IF('DF raw data'!D193="","",'DF raw data'!D193) -> -3.05721e-05 | F188: -2.23085788e-05 | G188: 0.000126592352 | H188: -3.06943884e-05 | J188: -0.001457753508 | K188: -0.045320435 | L188: 0.007578679944 | M188: 0.2367910777 | N188: 0.001236369224
A189: =IF('DF raw data'!A194="","",'DF raw data'!A194) -> -236.5 | B189: =IF('DF raw data'!B194="","",'DF raw data'!B194) -> -2.638e-05 | C189: =IF('DF raw data'!C194="","",'DF raw data'!C194) -> 0.000123414 | D189: =IF('DF raw data'!D194="","",'DF raw data'!D194) -> -3.24619e-05 | F189: -2.648552e-05 | G189: 0.000123907656 | H189: -3.25917476e-05 | J189: -0.001470996268 | K189: -0.04605593313 | L189: 0.007640633772 | M189: 0.2406113946 | N189: 0.001266640782
A190: =IF('DF raw data'!A195="","",'DF raw data'!A195) -> -236 | B190: =IF('DF raw data'!B195="","",'DF raw data'!B195) -> -1.91423e-05 | C190: =IF('DF raw data'!C195="","",'DF raw data'!C195) -> 0.00011911 | D190: =IF('DF raw data'!D195="","",'DF raw data'!D195) -> -3.5214e-05 | F190: -1.92188692e-05 | G190: 0.00011958644 | H190: -3.5354856e-05 | J190: -0.001480605703 | K190: -0.04679623598 | L190: 0.007700426992 | M190: 0.2444616081 | N190: 0.001297385166
A191: =IF('DF raw data'!A196="","",'DF raw data'!A196) -> -235.5 | B191: =IF('DF raw data'!B196="","",'DF raw data'!B196) -> -2.8751e-05 | C191: =IF('DF raw data'!C196="","",'DF raw data'!C196) -> 0.000118737 | D191: =IF('DF raw data'!D196="","",'DF raw data'!D196) -> -3.07359e-05 | F191: -2.8866004e-05 | G191: 0.000119211948 | H191: -3.08588436e-05 | J191: -0.001495038705 | K191: -0.04754375533 | L191: 0.007760032966 | M191: 0.2483416246 | N191: 0.001328611792
A192: =IF('DF raw data'!A197="","",'DF raw data'!A197) -> -235 | B192: =IF('DF raw data'!B197="","",'DF raw data'!B197) -> -1.69591e-05 | C192: =IF('DF raw data'!C197="","",'DF raw data'!C197) -> 0.000122776 | D192: =IF('DF raw data'!D197="","",'DF raw data'!D197) -> -4.32391e-05 | F192: =(1-$G$1*($B$49-$G$2))*B192 -> -1.70269364e-05 | G192: 0.000123267104 | H192: -4.34120564e-05 | J192: =F192*$G$3+J191 -> -0.001503552173 | K192: =J192*$G$3+K191 -> -0.04829553142 | L192: =G192*$G$3+L191 -> 0.007821666518 | M192: =L192*$G$3+M191 -> 0.2522524579 | N192: =(J192^2+L192^2)*$G$3+N191 -> 0.00136033136
A193: =IF('DF raw data'!A198="","",'DF raw data'!A198) -> -234.5 | B193: =IF('DF raw data'!B198="","",'DF raw data'!B198) -> -3.50862e-05 | C193: =IF('DF raw data'!C198="","",'DF raw data'!C198) -> 0.000126837 | D193: =IF('DF raw data'!D198="","",'DF raw data'!D198) -> -3.97053e-05 | F193: -3.52265448e-05 | G193: 0.000127344348 | H193: -3.98641212e-05 | J193: -0.001521165445 | K193: -0.04905611414 | L193: 0.007885338692 | M193: 0.2561951272 | N193: 0.001392577616
A194: =IF('DF raw data'!A199="","",'DF raw data'!A199) -> -234 | B194: =IF('DF raw data'!B199="","",'DF raw data'!B199) -> -2.54188e-05 | C194: =IF('DF raw data'!C199="","",'DF raw data'!C199) -> 0.000127768 | D194: =IF('DF raw data'!D199="","",'DF raw data'!D199) -> -3.5434e-05 | F194: -2.55204752e-05 | G194: 0.000128279072 | H194: -3.5575736e-05 | J194: -0.001533925683 | K194: -0.04982307698 | L194: 0.007949478228 | M194: 0.2601698663 | N194: 0.001425351182
A195: =IF('DF raw data'!A200="","",'DF raw data'!A200) -> -233.5 | B195: =IF('DF raw data'!B200="","",'DF raw data'!B200) -> -2.70868e-05 | C195: =IF('DF raw data'!C200="","",'DF raw data'!C200) -> 0.0001242 | D195: =IF('DF raw data'!D200="","",'DF raw data'!D200) -> -2.97743e-05 | F195: -2.71951472e-05 | G195: 0.0001246968 | H195: -2.98933972e-05 | J195: -0.001547523256 | K195: -0.05059683861 | L195: 0.008011826628 | M195: 0.2641757796 | N195: 0.001458643279
A196: =IF('DF raw data'!A201="","",'DF raw data'!A201) -> -233 | B196: =IF('DF raw data'!B201="","",'DF raw data'!B201) -> -3.44486e-05 | C196: =IF('DF raw data'!C201="","",'DF raw data'!C201) -> 0.000125767 | D196: =IF('DF raw data'!D201="","",'DF raw data'!D201) -> -3.68026e-05 | F196: -3.45863944e-05 | G196: 0.000126270068 | H196: -3.69498104e-05 | J196: -0.001564816454 | K196: -0.05137924684 | L196: 0.008074961662 | M196: 0.2682132605 | N196: 0.001492470107
A197: =IF('DF raw data'!A202="","",'DF raw data'!A202) -> -232.5 | B197: =IF('DF raw data'!B202="","",'DF raw data'!B202) -> -2.8046e-05 | C197: =IF('DF raw data'!C202="","",'DF raw data'!C202) -> 0.000135236 | D197: =IF('DF raw data'!D202="","",'DF raw data'!D202) -> -3.18292e-05 | F197: -2.8158184e-05 | G197: 0.000135776944 | H197: -3.19565168e-05 | J197: -0.001578895546 | K197: -0.05216869461 | L197: 0.008142850134 | M197: 0.2722846855 | N197: 0.001526869567
A198: =IF('DF raw data'!A203="","",'DF raw data'!A203) -> -232 | B198: =IF('DF raw data'!B203="","",'DF raw data'!B203) -> -2.70857e-05 | C198: =IF('DF raw data'!C203="","",'DF raw data'!C203) -> 0.000140689 | D198: =IF('DF raw data'!D203="","",'DF raw data'!D203) -> -3.265e-05 | F198: -2.71940428e-05 | G198: 0.000141251756 | H198: -3.27806e-05 | J198: -0.001592492567 | K198: -0.0529649409 | L198: 0.008213476012 | M198: 0.2763914236 | N198: 0.001561868177
A199: =IF('DF raw data'!A204="","",'DF raw data'!A204) -> -231.5 | B199: =IF('DF raw data'!B204="","",'DF raw data'!B204) -> -2.18373e-05 | C199: =IF('DF raw data'!C204="","",'DF raw data'!C204) -> 0.00014501 | D199: =IF('DF raw data'!D204="","",'DF raw data'!D204) -> -2.62144e-05 | F199: -2.19246492e-05 | G199: 0.00014559004 | H199: -2.63192576e-05 | J199: -0.001603454892 | K199: -0.05376666834 | L199: 0.008286271032 | M199: 0.2805345591 | N199: 0.001597484855
A200: =IF('DF raw data'!A205="","",'DF raw data'!A205) -> -231 | B200: =IF('DF raw data'!B205="","",'DF raw data'!B205) -> -3.7914e-05 | C200: =IF('DF raw data'!C205="","",'DF raw data'!C205) -> 0.000142574 | D200: =IF('DF raw data'!D205="","",'DF raw data'!D205) -> -2.6362e-05 | F200: -3.8065656e-05 | G200: 0.000143144296 | H200: -2.6467448e-05 | J200: -0.00162248772 | K200: -0.0545779122 | L200: 0.00835784318 | M200: 0.2847134807 | N200: 0.001633727859
A201: =IF('DF raw data'!A206="","",'DF raw data'!A206) -> -230.5 | B201: =IF('DF raw data'!B206="","",'DF raw data'!B206) -> -2.74712e-05 | C201: =IF('DF raw data'!C206="","",'DF raw data'!C206) -> 0.00014161 | D201: =IF('DF raw data'!D206="","",'DF raw data'!D206) -> -2.96568e-05 | F201: -2.75810848e-05 | G201: 0.00014217644 | H201: -2.97754272e-05 | J201: -0.001636278262 | K201: -0.05539605133 | L201: 0.0084289314 | M201: 0.2889279464 | N201: 0.001670590005
... 1061 more rows

Sheet 10 x=-1
A1: =IF('DF raw data'!E1="","",'DF raw data'!E1) -> Number of header lines | B1: =IF('DF raw data'!F1="","",'DF raw data'!F1) -> 54 | C1: =IF('DF raw data'!G1="","",'DF raw data'!G1) ->  | D1: =IF('DF raw data'!H1="","",'DF raw data'!H1) ->  | F1: T_coeff | G1: -0.001 | H1: /degC | J1: IBy total | K1: =J1262*1000 -> 7.247980957 | L1: muTm | M1: =L1262*1000 -> 71.6441162 | R1: DF ref | S1: ='10 x=-2'!S1 -> 1
A2: =IF('DF raw data'!E2="","",'DF raw data'!E2) -> Measured by | B2: =IF('DF raw data'!F2="","",'DF raw data'!F2) -> Danfysik | C2: =IF('DF raw data'!G2="","",'DF raw data'!G2) ->  | D2: =IF('DF raw data'!H2="","",'DF raw data'!H2) ->  | F2: Tcorr | G2: 20 | H2: degC | J2: JBy total | K2: =K1262 -> -1.719097441 | L2: muTm^2 | M2: =M1262 -> 25.22427481
A3: =IF('DF raw data'!E3="","",'DF raw data'!E3) -> Operator | B3: =IF('DF raw data'!F3="","",'DF raw data'!F3) -> PMHA | C3: =IF('DF raw data'!G3="","",'DF raw data'!G3) ->  | D3: =IF('DF raw data'!H3="","",'DF raw data'!H3) ->  | F3: Step | G3: =A63-A62 -> 0.5 | H3: mm | J3: PI total | K3: =N1262 -> 10600.08474 | L3: T^2mm^3
A4: =IF('DF raw data'!E4="","",'DF raw data'!E4) -> Data-time | B4: =IF('DF raw data'!F4="","",'DF raw data'!F4) -> 26-09-2024, 09:13:31 | C4: =IF('DF raw data'!G4="","",'DF raw data'!G4) ->  | D4: =IF('DF raw data'!H4="","",'DF raw data'!H4) -> 
A5: =IF('DF raw data'!E5="","",'DF raw data'!E5) -> Project | B5: =IF('DF raw data'!F5="","",'DF raw data'!F5) -> 504314 | C5: =IF('DF raw data'!G5="","",'DF raw data'!G5) ->  | D5: =IF('DF raw data'!H5="","",'DF raw data'!H5) -> 
A6: =IF('DF raw data'!E6="","",'DF raw data'!E6) -> Magnet type | B6: =IF('DF raw data'!F6="","",'DF raw data'!F6) -> Dipole | C6: =IF('DF raw data'!G6="","",'DF raw data'!G6) ->  | D6: =IF('DF raw data'!H6="","",'DF raw data'!H6) -> 
A7: =IF('DF raw data'!E7="","",'DF raw data'!E7) -> Magnet nr. | B7: =IF('DF raw data'!F7="","",'DF raw data'!F7) -> 2410102 | C7: =IF('DF raw data'!G7="","",'DF raw data'!G7) ->  | D7: =IF('DF raw data'!H7="","",'DF raw data'!H7) -> 
A8: =IF('DF raw data'!E8="","",'DF raw data'!E8) -> Meas. number | B8: =IF('DF raw data'!F8="","",'DF raw data'!F8) -> 689 | C8: =IF('DF raw data'!G8="","",'DF raw data'!G8) ->  | D8: =IF('DF raw data'!H8="","",'DF raw data'!H8) -> 
A9: =IF('DF raw data'!E9="","",'DF raw data'!E9) -> Add. info | B9: =IF('DF raw data'!F9="","",'DF raw data'!F9) -> X-alignment scan 2) | C9: =IF('DF raw data'!G9="","",'DF raw data'!G9) ->  | D9: =IF('DF raw data'!H9="","",'DF raw data'!H9) -> 
A10: =IF('DF raw data'!E10="","",'DF raw data'!E10) -> Device | B10: =IF('DF raw data'!F10="","",'DF raw data'!F10) -> (HAL) HALL-PROBE | C10: =IF('DF raw data'!G10="","",'DF raw data'!G10) ->  | D10: =IF('DF raw data'!H10="","",'DF raw data'!H10) -> 
A11: =IF('DF raw data'!E11="","",'DF raw data'!E11) -> Goal | B11: =IF('DF raw data'!F11="","",'DF raw data'!F11) -> (AXI) AXis Integral (Line, EFB) | C11: =IF('DF raw data'!G11="","",'DF raw data'!G11) ->  | D11: =IF('DF raw data'!H11="","",'DF raw data'!H11) -> 
A12: =IF('DF raw data'!E12="","",'DF raw data'!E12) -> Power supply mode | B12: =IF('DF raw data'!F12="","",'DF raw data'!F12) -> (PM) Permanent Magnet (no MPS in use) | C12: =IF('DF raw data'!G12="","",'DF raw data'!G12) ->  | D12: =IF('DF raw data'!H12="","",'DF raw data'!H12) -> 
A13: =IF('DF raw data'!E13="","",'DF raw data'!E13) -> Data format | B13: =IF('DF raw data'!F13="","",'DF raw data'!F13) -> Raw data text file | C13: =IF('DF raw data'!G13="","",'DF raw data'!G13) ->  | D13: =IF('DF raw data'!H13="","",'DF raw data'!H13) -> 
A14: =IF('DF raw data'!E14="","",'DF raw data'!E14) -> Direction of the pos. x-axis | B14: =IF('DF raw data'!F14="","",'DF raw data'!F14) -> See test program | C14: =IF('DF raw data'!G14="","",'DF raw data'!G14) ->  | D14: =IF('DF raw data'!H14="","",'DF raw data'!H14) -> 
A15: =IF('DF raw data'!E15="","",'DF raw data'!E15) -> Direction of the pos. y-axis | B15: =IF('DF raw data'!F15="","",'DF raw data'!F15) -> Vertical up | C15: =IF('DF raw data'!G15="","",'DF raw data'!G15) ->  | D15: =IF('DF raw data'!H15="","",'DF raw data'!H15) -> 
A16: =IF('DF raw data'!E16="","",'DF raw data'!E16) -> Direction of the pos. z-axis | B16: =IF('DF raw data'!F16="","",'DF raw data'!F16) -> See test program | C16: =IF('DF raw data'!G16="","",'DF raw data'!G16) ->  | D16: =IF('DF raw data'!H16="","",'DF raw data'!H16) -> 
A17: =IF('DF raw data'!E17="","",'DF raw data'!E17) -> Mapper type | B17: =IF('DF raw data'!F17="","",'DF raw data'!F17) -> Precision Hall Mapper | C17: =IF('DF raw data'!G17="","",'DF raw data'!G17) ->  | D17: =IF('DF raw data'!H17="","",'DF raw data'!H17) -> 
A18: =IF('DF raw data'!E18="","",'DF raw data'!E18) -> Mapper Danfysik Reg. Number | B18: =IF('DF raw data'!F18="","",'DF raw data'!F18) -> 2033-D (mapper 1) | C18: =IF('DF raw data'!G18="","",'DF raw data'!G18) ->  | D18: =IF('DF raw data'!H18="","",'DF raw data'!H18) -> 
A19: =IF('DF raw data'!E19="","",'DF raw data'!E19) -> Measurement consept | B19: =IF('DF raw data'!F19="","",'DF raw data'!F19) -> Square line grid | C19: =IF('DF raw data'!G19="","",'DF raw data'!G19) ->  | D19: =IF('DF raw data'!H19="","",'DF raw data'!H19) -> 
A20: =IF('DF raw data'!E20="","",'DF raw data'!E20) -> Mode | B20: =IF('DF raw data'!F20="","",'DF raw data'!F20) -> On-the-fly measurement | C20: =IF('DF raw data'!G20="","",'DF raw data'!G20) ->  | D20: =IF('DF raw data'!H20="","",'DF raw data'!H20) -> 
A21: =IF('DF raw data'!E21="","",'DF raw data'!E21) ->  | B21: =IF('DF raw data'!F21="","",'DF raw data'!F21) ->  | C21: =IF('DF raw data'!G21="","",'DF raw data'!G21) ->  | D21: =IF('DF raw data'!H21="","",'DF raw data'!H21) -> 
A22: =IF('DF raw data'!E22="","",'DF raw data'!E22) -> Probe Name | B22: =IF('DF raw data'!F22="","",'DF raw data'!F22) -> ID12_By | C22: =IF('DF raw data'!G22="","",'DF raw data'!G22) ->  | D22: =IF('DF raw data'!H22="","",'DF raw data'!H22) -> 
A23: =IF('DF raw data'!E23="","",'DF raw data'!E23) -> Probe Type | B23: =IF('DF raw data'!F23="","",'DF raw data'!F23) -> DF_ID_3D_Bxyz | C23: =IF('DF raw data'!G23="","",'DF raw data'!G23) ->  | D23: =IF('DF raw data'!H23="","",'DF raw data'!H23) -> 
A24: =IF('DF raw data'!E24="","",'DF raw data'!E24) -> Probe Danfysik Reg. Number | B24: =IF('DF raw data'!F24="","",'DF raw data'!F24) -> 2277 | C24: =IF('DF raw data'!G24="","",'DF raw data'!G24) ->  | D24: =IF('DF raw data'!H24="","",'DF raw data'!H24) -> 
A25: =IF('DF raw data'!E25="","",'DF raw data'!E25) -> Probe Axis | B25: =IF('DF raw data'!F25="","",'DF raw data'!F25) -> By | C25: =IF('DF raw data'!G25="","",'DF raw data'!G25) ->  | D25: =IF('DF raw data'!H25="","",'DF raw data'!H25) -> 
A26: =IF('DF raw data'!E26="","",'DF raw data'!E26) -> Probe Current Supply | B26: =IF('DF raw data'!F26="","",'DF raw data'!F26) -> 1825-D | C26: =IF('DF raw data'!G26="","",'DF raw data'!G26) ->  | D26: =IF('DF raw data'!H26="","",'DF raw data'!H26) -> 
A27: =IF('DF raw data'!E27="","",'DF raw data'!E27) -> Probe Gain Correction | B27: =IF('DF raw data'!F27="","",'DF raw data'!F27) -> 0.99599 | C27: =IF('DF raw data'!G27="","",'DF raw data'!G27) ->  | D27: =IF('DF raw data'!H27="","",'DF raw data'!H27) -> 
A28: =IF('DF raw data'!E28="","",'DF raw data'!E28) -> Probe Offset Correction | B28: =IF('DF raw data'!F28="","",'DF raw data'!F28) -> 0.0027595 | C28: =IF('DF raw data'!G28="","",'DF raw data'!G28) ->  | D28: =IF('DF raw data'!H28="","",'DF raw data'!H28) -> 
A29: =IF('DF raw data'!E29="","",'DF raw data'!E29) -> DVM Number | B29: =IF('DF raw data'!F29="","",'DF raw data'!F29) -> 2 | C29: =IF('DF raw data'!G29="","",'DF raw data'!G29) ->  | D29: =IF('DF raw data'!H29="","",'DF raw data'!H29) -> 
A30: =IF('DF raw data'!E30="","",'DF raw data'!E30) -> DVM Type | B30: =IF('DF raw data'!F30="","",'DF raw data'!F30) -> K2701 | C30: =IF('DF raw data'!G30="","",'DF raw data'!G30) ->  | D30: =IF('DF raw data'!H30="","",'DF raw data'!H30) -> 
A31: =IF('DF raw data'!E31="","",'DF raw data'!E31) -> DVM Danfysik Reg. Number | B31: =IF('DF raw data'!F31="","",'DF raw data'!F31) -> 1743-D | C31: =IF('DF raw data'!G31="","",'DF raw data'!G31) ->  | D31: =IF('DF raw data'!H31="","",'DF raw data'!H31) -> 
A32: =IF('DF raw data'!E32="","",'DF raw data'!E32) -> Probe Name | B32: =IF('DF raw data'!F32="","",'DF raw data'!F32) -> ID12_Bx | C32: =IF('DF raw data'!G32="","",'DF raw data'!G32) ->  | D32: =IF('DF raw data'!H32="","",'DF raw data'!H32) -> 
A33: =IF('DF raw data'!E33="","",'DF raw data'!E33) -> Probe Type | B33: =IF('DF raw data'!F33="","",'DF raw data'!F33) -> DF_ID_3D_Bxyz | C33: =IF('DF raw data'!G33="","",'DF raw data'!G33) ->  | D33: =IF('DF raw data'!H33="","",'DF raw data'!H33) -> 
A34: =IF('DF raw data'!E34="","",'DF raw data'!E34) -> Probe Danfysik Reg. Number | B34: =IF('DF raw data'!F34="","",'DF raw data'!F34) -> 2277 | C34: =IF('DF raw data'!G34="","",'DF raw data'!G34) ->  | D34: =IF('DF raw data'!H34="","",'DF raw data'!H34) -> 
A35: =IF('DF raw data'!E35="","",'DF raw data'!E35) -> Probe Axis | B35: =IF('DF raw data'!F35="","",'DF raw data'!F35) -> Bx | C35: =IF('DF raw data'!G35="","",'DF raw data'!G35) ->  | D35: =IF('DF raw data'!H35="","",'DF raw data'!H35) -> 
A36: =IF('DF raw data'!E36="","",'DF raw data'!E36) -> Probe Current Supply | B36: =IF('DF raw data'!F36="","",'DF raw data'!F36) -> 1825-D | C36: =IF('DF raw data'!G36="","",'DF raw data'!G36) ->  | D36: =IF('DF raw data'!H36="","",'DF raw data'!H36) -> 
A37: =IF('DF raw data'!E37="","",'DF raw data'!E37) -> Probe Gain Correction | B37: =IF('DF raw data'!F37="","",'DF raw data'!F37) -> 1 | C37: =IF('DF raw data'!G37="","",'DF raw data'!G37) ->  | D37: =IF('DF raw data'!H37="","",'DF raw data'!H37) -> 
A38: =IF('DF raw data'!E38="","",'DF raw data'!E38) -> Probe Offset Correction | B38: =IF('DF raw data'!F38="","",'DF raw data'!F38) -> -0.17537 | C38: =IF('DF raw data'!G38="","",'DF raw data'!G38) ->  | D38: =IF('DF raw data'!H38="","",'DF raw data'!H38) -> 
A39: =IF('DF raw data'!E39="","",'DF raw data'!E39) -> DVM Number | B39: =IF('DF raw data'!F39="","",'DF raw data'!F39) -> 3 | C39: =IF('DF raw data'!G39="","",'DF raw data'!G39) ->  | D39: =IF('DF raw data'!H39="","",'DF raw data'!H39) -> 
A40: =IF('DF raw data'!E40="","",'DF raw data'!E40) -> DVM Type | B40: =IF('DF raw data'!F40="","",'DF raw data'!F40) -> K2701 | C40: =IF('DF raw data'!G40="","",'DF raw data'!G40) ->  | D40: =IF('DF raw data'!H40="","",'DF raw data'!H40) -> 
A41: =IF('DF raw data'!E41="","",'DF raw data'!E41) -> DVM Danfysik Reg. Number | B41: =IF('DF raw data'!F41="","",'DF raw data'!F41) -> 1744-D | C41: =IF('DF raw data'!G41="","",'DF raw data'!G41) ->  | D41: =IF('DF raw data'!H41="","",'DF raw data'!H41) -> 
A42: =IF('DF raw data'!E42="","",'DF raw data'!E42) -> Probe Name | B42: =IF('DF raw data'!F42="","",'DF raw data'!F42) -> ID12_Bz | C42: =IF('DF raw data'!G42="","",'DF raw data'!G42) ->  | D42: =IF('DF raw data'!H42="","",'DF raw data'!H42) -> 
A43: =IF('DF raw data'!E43="","",'DF raw data'!E43) -> Probe Type | B43: =IF('DF raw data'!F43="","",'DF raw data'!F43) -> DF_ID_3D_Bxyz | C43: =IF('DF raw data'!G43="","",'DF raw data'!G43) ->  | D43: =IF('DF raw data'!H43="","",'DF raw data'!H43) -> 
A44: =IF('DF raw data'!E44="","",'DF raw data'!E44) -> Probe Danfysik Reg. Number | B44: =IF('DF raw data'!F44="","",'DF raw data'!F44) -> 2277 | C44: =IF('DF raw data'!G44="","",'DF raw data'!G44) ->  | D44: =IF('DF raw data'!H44="","",'DF raw data'!H44) -> 
A45: =IF('DF raw data'!E45="","",'DF raw data'!E45) -> Probe Axis | B45: =IF('DF raw data'!F45="","",'DF raw data'!F45) -> Bz | C45: =IF('DF raw data'!G45="","",'DF raw data'!G45) ->  | D45: =IF('DF raw data'!H45="","",'DF raw data'!H45) -> 
A46: =IF('DF raw data'!E46="","",'DF raw data'!E46) -> Probe Current Supply | B46: =IF('DF raw data'!F46="","",'DF raw data'!F46) -> 1825-D | C46: =IF('DF raw data'!G46="","",'DF raw data'!G46) ->  | D46: =IF('DF raw data'!H46="","",'DF raw data'!H46) -> 
A47: =IF('DF raw data'!E47="","",'DF raw data'!E47) -> Probe Gain Correction | B47: =IF('DF raw data'!F47="","",'DF raw data'!F47) -> 1 | C47: =IF('DF raw data'!G47="","",'DF raw data'!G47) ->  | D47: =IF('DF raw data'!H47="","",'DF raw data'!H47) -> 
A48: =IF('DF raw data'!E53="","",'DF raw data'!E53) -> PS-Gap: | B48: =IF('DF raw data'!F53="","",'DF raw data'!F53) -> 10 | C48: =IF('DF raw data'!G53="","",'DF raw data'!G53) ->  | D48: =IF('DF raw data'!H53="","",'DF raw data'!H53) -> 
A49: =IF('DF raw data'!E54="","",'DF raw data'!E54) -> PS-Temperature: | B49: =IF('DF raw data'!F54="","",'DF raw data'!F54) -> 24 | C49: =IF('DF raw data'!G54="","",'DF raw data'!G54) ->  | D49: =IF('DF raw data'!H54="","",'DF raw data'!H54) -> 
A50: =IF('DF raw data'!E55="","",'DF raw data'!E55) -> PS-Encoder: | B50: =IF('DF raw data'!F55="","",'DF raw data'!F55) -> 19.7631 | C50: =IF('DF raw data'!G55="","",'DF raw data'!G55) ->  | D50: =IF('DF raw data'!H55="","",'DF raw data'!H55) -> 
A51: =IF('DF raw data'!E56="","",'DF raw data'!E56) ->  | B51: =IF('DF raw data'!F56="","",'DF raw data'!F56) ->  | C51: =IF('DF raw data'!G56="","",'DF raw data'!G56) ->  | D51: =IF('DF raw data'!H56="","",'DF raw data'!H56) -> 
A52: =IF('DF raw data'!E57="","",'DF raw data'!E57) -> Monitor-Index | B52: =IF('DF raw data'!F57="","",'DF raw data'!F57) -> [1,1,4] | C52: =IF('DF raw data'!G57="","",'DF raw data'!G57) ->  | D52: =IF('DF raw data'!H57="","",'DF raw data'!H57) -> 
A53: =IF('DF raw data'!E58="","",'DF raw data'!E58) ->  | B53: =IF('DF raw data'!F58="","",'DF raw data'!F58) ->  | C53: =IF('DF raw data'!G58="","",'DF raw data'!G58) ->  | D53: =IF('DF raw data'!H58="","",'DF raw data'!H58) -> 
A54: =IF('DF raw data'!E59="","",'DF raw data'!E59) -> Time [s] | B54: =IF('DF raw data'!F59="","",'DF raw data'!F59) -> Y [mm] | C54: =IF('DF raw data'!G59="","",'DF raw data'!G59) -> X [mm] | D54: =IF('DF raw data'!H59="","",'DF raw data'!H59) -> Nominal current [A]
A55: =IF('DF raw data'!E60="","",'DF raw data'!E60) ->  | B55: =IF('DF raw data'!F60="","",'DF raw data'!F60) ->  | C55: =IF('DF raw data'!G60="","",'DF raw data'!G60) ->  | D55: =IF('DF raw data'!H60="","",'DF raw data'!H60) -> 
A56: =IF('DF raw data'!E61="","",'DF raw data'!E61) -> 208.4 | B56: =IF('DF raw data'!F61="","",'DF raw data'!F61) -> 31.55 | C56: =IF('DF raw data'!G61="","",'DF raw data'!G61) -> 301.55 | D56: =IF('DF raw data'!H61="","",'DF raw data'!H61) -> 0
A57: =IF('DF raw data'!E62="","",'DF raw data'!E62) ->  | B57: =IF('DF raw data'!F62="","",'DF raw data'!F62) ->  | C57: =IF('DF raw data'!G62="","",'DF raw data'!G62) ->  | D57: =IF('DF raw data'!H62="","",'DF raw data'!H62) -> 
A58: =IF('DF raw data'!E63="","",'DF raw data'!E63) -> Measurement-Index | B58: =IF('DF raw data'!F63="","",'DF raw data'!F63) -> [1,1,1201,2] | C58: =IF('DF raw data'!G63="","",'DF raw data'!G63) ->  | D58: =IF('DF raw data'!H63="","",'DF raw data'!H63) -> 
A59: =IF('DF raw data'!E64="","",'DF raw data'!E64) ->  | B59: =IF('DF raw data'!F64="","",'DF raw data'!F64) ->  | C59: =IF('DF raw data'!G64="","",'DF raw data'!G64) ->  | D59: =IF('DF raw data'!H64="","",'DF raw data'!H64) -> 
A60: =IF('DF raw data'!E65="","",'DF raw data'!E65) -> Z [mm] | B60: By [T] | C60: Bx [T] | D60: Bz [T] | F60: By_corr | G60: Bx_corr | H60: Bz_corr | J60: Iy | K60: Jy | L60: Ix | M60: Jx | N60: PI
A62: =IF('DF raw data'!E67="","",'DF raw data'!E67) -> -300 | B62: =IF('DF raw data'!F67="","",'DF raw data'!F67) -> -1.31438e-05 | C62: =IF('DF raw data'!G67="","",'DF raw data'!G67) -> 0.000194002 | D62: =IF('DF raw data'!H67="","",'DF raw data'!H67) -> -3.04582e-05 | F62: =(1-$G$1*($B$49))*B62 -> -1.34592512e-05 | G62: =(1-$G$1*($B$49-$G$2))*C62 -> 0.000194778008 | H62: =(1-$G$1*($B$49-$G$2))*D62 -> -3.05800328e-05 | J62: =F62*$G$3 -> -6.7296256e-06 | K62: =J62*$G$3 -> -3.3648128e-06 | L62: =G62*$G$3 -> 9.7389004e-05 | M62: =L62*$G$3 -> 4.8694502e-05 | N62: =(J62^2+L62^2)*$G$3 -> 4.76495298e-09
A63: =IF('DF raw data'!E68="","",'DF raw data'!E68) -> -299.5 | B63: =IF('DF raw data'!F68="","",'DF raw data'!F68) -> -1.76263e-05 | C63: =IF('DF raw data'!G68="","",'DF raw data'!G68) -> 0.000194374 | D63: =IF('DF raw data'!H68="","",'DF raw data'!H68) -> -2.97349e-05 | F63: =(1-$G$1*($B$49-$G$2))*B63 -> -1.76968052e-05 | G63: =(1-$G$1*($B$49-$G$2))*C63 -> 0.000195151496 | H63: -2.98538396e-05 | J63: =F63*$G$3+J62 -> -1.55780282e-05 | K63: =J63*$G$3+K62 -> -1.11538269e-05 | L63: =G63*$G$3+L62 -> 0.000194964752 | M63: =L63*$G$3+M62 -> 0.000146176878 | N63: =(J63^2+L63^2)*$G$3+N62 -> 2.389191772e-08
A64: =IF('DF raw data'!E69="","",'DF raw data'!E69) -> -299 | B64: =IF('DF raw data'!F69="","",'DF raw data'!F69) -> -1.37203e-05 | C64: =IF('DF raw data'!G69="","",'DF raw data'!G69) -> 0.00019866 | D64: =IF('DF raw data'!H69="","",'DF raw data'!H69) -> -2.87066e-05 | F64: =(1-$G$1*($B$49-$G$2))*B64 -> -1.37751812e-05 | G64: 0.00019945464 | H64: -2.88214264e-05 | J64: =F64*$G$3+J63 -> -2.24656188e-05 | K64: =J64*$G$3+K63 -> -2.23866363e-05 | L64: =G64*$G$3+L63 -> 0.000294692072 | M64: =L64*$G$3+M63 -> 0.000293522914 | N64: =(J64^2+L64^2)*$G$3+N63 -> 6.756597839e-08
A65: =IF('DF raw data'!E70="","",'DF raw data'!E70) -> -298.5 | B65: =IF('DF raw data'!F70="","",'DF raw data'!F70) -> 8.81695e-07 | C65: =IF('DF raw data'!G70="","",'DF raw data'!G70) -> 0.00018994 | D65: =IF('DF raw data'!H70="","",'DF raw data'!H70) -> -2.9075e-05 | F65: 8.8522178e-07 | G65: 0.00019069976 | H65: -2.91913e-05 | J65: -2.202300791e-05 | K65: -3.339814025e-05 | L65: 0.000390041952 | M65: 0.00048854389 | N65: 1.43874847e-07
A66: =IF('DF raw data'!E71="","",'DF raw data'!E71) -> -298 | B66: =IF('DF raw data'!F71="","",'DF raw data'!F71) -> 1.26675e-06 | C66: =IF('DF raw data'!G71="","",'DF raw data'!G71) -> 0.00018766 | D66: =IF('DF raw data'!H71="","",'DF raw data'!H71) -> -3.04873e-05 | F66: 1.271817e-06 | G66: 0.00018841064 | H66: -3.06092492e-05 | J66: -2.138709941e-05 | K66: -4.409168996e-05 | L66: 0.000484247272 | M66: 0.000730667526 | N66: 2.613512612e-07
A67: =IF('DF raw data'!E72="","",'DF raw data'!E72) -> -297.5 | B67: =IF('DF raw data'!F72="","",'DF raw data'!F72) -> -6.29054e-06 | C67: =IF('DF raw data'!G72="","",'DF raw data'!G72) -> 0.000192368 | D67: =IF('DF raw data'!H72="","",'DF raw data'!H72) -> -3.12194e-05 | F67: -6.31570216e-06 | G67: 0.000193137472 | H67: -3.13442776e-05 | J67: -2.454495049e-05 | K67: -5.63641652e-05 | L67: 0.000580816008 | M67: 0.00102107553 | N67: 4.303261061e-07
A68: =IF('DF raw data'!E73="","",'DF raw data'!E73) -> -297 | B68: =IF('DF raw data'!F73="","",'DF raw data'!F73) -> -1.29504e-05 | C68: =IF('DF raw data'!G73="","",'DF raw data'!G73) -> 0.00019315 | D68: =IF('DF raw data'!H73="","",'DF raw data'!H73) -> -3.09267e-05 | F68: -1.30022016e-05 | G68: 0.0001939226 | H68: -3.10504068e-05 | J68: -3.104605129e-05 | K68: -7.188719085e-05 | L68: 0.000677777308 | M68: 0.001359964184 | N68: 6.604990744e-07
A69: =IF('DF raw data'!E74="","",'DF raw data'!E74) -> -296.5 | B69: =IF('DF raw data'!F74="","",'DF raw data'!F74) -> -4.62546e-06 | C69: =IF('DF raw data'!G74="","",'DF raw data'!G74) -> 0.000193914 | D69: =IF('DF raw data'!H74="","",'DF raw data'!H74) -> -3.06686e-05 | F69: -4.64396184e-06 | G69: 0.000194689656 | H69: -3.07912744e-05 | J69: -3.336803221e-05 | K69: -8.857120696e-05 | L69: 0.000775122136 | M69: 0.001747525252 | N69: 9.6146295e-07
A70: =IF('DF raw data'!E75="","",'DF raw data'!E75) -> -296 | B70: =IF('DF raw data'!F75="","",'DF raw data'!F75) -> -1.55124e-05 | C70: =IF('DF raw data'!G75="","",'DF raw data'!G75) -> 0.000194476 | D70: =IF('DF raw data'!H75="","",'DF raw data'!H75) -> -3.06798e-05 | F70: -1.55744496e-05 | G70: 0.000195253904 | H70: -3.08025192e-05 | J70: -4.115525701e-05 | K70: -0.0001091488355 | L70: 0.000872749088 | M70: 0.002183899796 | N70: 1.343155313e-06
A71: =IF('DF raw data'!E76="","",'DF raw data'!E76) -> -295.5 | B71: =IF('DF raw data'!F76="","",'DF raw data'!F76) -> -8.21231e-06 | C71: =IF('DF raw data'!G76="","",'DF raw data'!G76) -> 0.000186523 | D71: =IF('DF raw data'!H76="","",'DF raw data'!H76) -> -3.06085e-05 | F71: -8.24515924e-06 | G71: 0.000187269092 | H71: -3.0730934e-05 | J71: -4.527783663e-05 | K71: -0.0001317877538 | L71: 0.000966383634 | M71: 0.002667091613 | N71: 1.811129018e-06
A72: =IF('DF raw data'!E77="","",'DF raw data'!E77) -> -295 | B72: =IF('DF raw data'!F77="","",'DF raw data'!F77) -> -1.78824e-05 | C72: =IF('DF raw data'!G77="","",'DF raw data'!G77) -> 0.0001914 | D72: =IF('DF raw data'!H77="","",'DF raw data'!H77) -> -2.99746e-05 | F72: -1.79539296e-05 | G72: 0.0001921656 | H72: -3.00944984e-05 | J72: -5.425480143e-05 | K72: -0.0001589151545 | L72: 0.001062466434 | M72: 0.00319832483 | N72: 2.377018272e-06
A73: =IF('DF raw data'!E78="","",'DF raw data'!E78) -> -294.5 | B73: =IF('DF raw data'!F78="","",'DF raw data'!F78) -> -1.27605e-05 | C73: =IF('DF raw data'!G78="","",'DF raw data'!G78) -> 0.000192569 | D73: =IF('DF raw data'!H78="","",'DF raw data'!H78) -> -2.93256e-05 | F73: -1.2811542e-05 | G73: 0.000193339276 | H73: -2.94429024e-05 | J73: -6.066057243e-05 | K73: -0.0001892454407 | L73: 0.001159136072 | M73: 0.003777892866 | N73: 3.050656341e-06
A74: =IF('DF raw data'!E79="","",'DF raw data'!E79) -> -294 | B74: =IF('DF raw data'!F79="","",'DF raw data'!F79) -> -3.34499e-06 | C74: =IF('DF raw data'!G79="","",'DF raw data'!G79) -> 0.000190895 | D74: =IF('DF raw data'!H79="","",'DF raw data'!H79) -> -2.94709e-05 | F74: -3.35836996e-06 | G74: 0.00019165858 | H74: -2.95887836e-05 | J74: -6.233975741e-05 | K74: -0.0002204153194 | L74: 0.001254965362 | M74: 0.004405375547 | N74: 3.840068493e-06
A75: =IF('DF raw data'!E80="","",'DF raw data'!E80) -> -293.5 | B75: =IF('DF raw data'!F80="","",'DF raw data'!F80) -> -5.33055e-06 | C75: =IF('DF raw data'!G80="","",'DF raw data'!G80) -> 0.00019513 | D75: =IF('DF raw data'!H80="","",'DF raw data'!H80) -> -2.9899e-05 | F75: -5.3518722e-06 | G75: 0.00019591052 | H75: -3.0018596e-05 | J75: -6.501569351e-05 | K75: -0.0002529231662 | L75: 0.001352920622 | M75: 0.005081835858 | N75: 4.757379118e-06
A76: =IF('DF raw data'!E81="","",'DF raw data'!E81) -> -293 | B76: =IF('DF raw data'!F81="","",'DF raw data'!F81) -> -8.40447e-06 | C76: =IF('DF raw data'!G81="","",'DF raw data'!G81) -> 0.000194654 | D76: =IF('DF raw data'!H81="","",'DF raw data'!H81) -> -2.95782e-05 | F76: -8.43808788e-06 | G76: 0.000195432616 | H76: -2.96965128e-05 | J76: -6.923473745e-05 | K76: -0.0002875405349 | L76: 0.00145063693 | M76: 0.005807154323 | N76: 5.811949594e-06
A77: =IF('DF raw data'!E82="","",'DF raw data'!E82) -> -292.5 | B77: =IF('DF raw data'!F82="","",'DF raw data'!F82) -> -3.47358e-06 | C77: =IF('DF raw data'!G82="","",'DF raw data'!G82) -> 0.000192965 | D77: =IF('DF raw data'!H82="","",'DF raw data'!H82) -> -2.91323e-05 | F77: -3.48747432e-06 | G77: 0.00019373686 | H77: -2.92488292e-05 | J77: -7.097847461e-05 | K77: -0.0003230297722 | L77: 0.00154750536 | M77: 0.006580907003 | N77: 7.011854986e-06
A78: =IF('DF raw data'!E83="","",'DF raw data'!E83) -> -292 | B78: =IF('DF raw data'!F83="","",'DF raw data'!F83) -> 6.90215e-06 | C78: =IF('DF raw data'!G83="","",'DF raw data'!G83) -> 0.000192428 | D78: =IF('DF raw data'!H83="","",'DF raw data'!H83) -> -2.98289e-05 | F78: 6.9297586e-06 | G78: 0.000193197712 | H78: -2.99482156e-05 | J78: -6.751359531e-05 | K78: -0.0003567865699 | L78: 0.001644104216 | M78: 0.007402959111 | N78: 8.365673365e-06
A79: =IF('DF raw data'!E84="","",'DF raw data'!E84) -> -291.5 | B79: =IF('DF raw data'!F84="","",'DF raw data'!F84) -> 4.5262e-06 | C79: =IF('DF raw data'!G84="","",'DF raw data'!G84) -> 0.000191633 | D79: =IF('DF raw data'!H84="","",'DF raw data'!H84) -> -1.95939e-05 | F79: 4.5443048e-06 | G79: 0.000192399532 | H79: -1.96722756e-05 | J79: -6.524144291e-05 | K79: -0.0003894072913 | L79: 0.001740303982 | M79: 0.008273111102 | N79: 9.882130563e-06
A80: =IF('DF raw data'!E85="","",'DF raw data'!E85) -> -291 | B80: =IF('DF raw data'!F85="","",'DF raw data'!F85) -> -5.9171e-06 | C80: =IF('DF raw data'!G85="","",'DF raw data'!G85) -> 0.000189979 | D80: =IF('DF raw data'!H85="","",'DF raw data'!H85) -> -1.37633e-05 | F80: -5.9407684e-06 | G80: 0.000190738916 | H80: -1.38183532e-05 | J80: -6.821182711e-05 | K80: -0.0004235132049 | L80: 0.00183567344 | M80: 0.009190947822 | N80: 1.156930548e-05
A81: =IF('DF raw data'!E86="","",'DF raw data'!E86) -> -290.5 | B81: =IF('DF raw data'!F86="","",'DF raw data'!F86) -> -7.95968e-06 | C81: =IF('DF raw data'!G86="","",'DF raw data'!G86) -> 0.000192101 | D81: =IF('DF raw data'!H86="","",'DF raw data'!H86) -> -2.48287e-05 | F81: -7.99151872e-06 | G81: 0.000192869404 | H81: -2.49280148e-05 | J81: -7.220758647e-05 | K81: -0.0004596169981 | L81: 0.001932108142 | M81: 0.01015700189 | N81: 1.343843338e-05
A82: =IF('DF raw data'!E87="","",'DF raw data'!E87) -> -290 | B82: =IF('DF raw data'!F87="","",'DF raw data'!F87) -> -1.14842e-05 | C82: =IF('DF raw data'!G87="","",'DF raw data'!G87) -> 0.000189513 | D82: =IF('DF raw data'!H87="","",'DF raw data'!H87) -> -2.07538e-05 | F82: -1.15301368e-05 | G82: 0.000190271052 | H82: -2.08368152e-05 | J82: -7.797265487e-05 | K82: -0.0004986033255 | L82: 0.002027243668 | M82: 0.01117062373 | N82: 1.549633169e-05
A83: =IF('DF raw data'!E88="","",'DF raw data'!E88) -> -289.5 | B83: =IF('DF raw data'!F88="","",'DF raw data'!F88) -> -1.18031e-05 | C83: =IF('DF raw data'!G88="","",'DF raw data'!G88) -> 0.000193468 | D83: =IF('DF raw data'!H88="","",'DF raw data'!H88) -> -2.40044e-05 | F83: -1.18503124e-05 | G83: 0.000194241872 | H83: -2.41004176e-05 | J83: -8.389781107e-05 | K83: -0.0005405522311 | L83: 0.002124364604 | M83: 0.01223280603 | N83: 1.77563136e-05
A84: =IF('DF raw data'!E89="","",'DF raw data'!E89) -> -289 | B84: =IF('DF raw data'!F89="","",'DF raw data'!F89) -> -2.21237e-05 | C84: =IF('DF raw data'!G89="","",'DF raw data'!G89) -> 0.000190656 | D84: =IF('DF raw data'!H89="","",'DF raw data'!H89) -> -8.31442e-06 | F84: -2.22121948e-05 | G84: 0.000191418624 | H84: -8.34767768e-06 | J84: -9.500390847e-05 | K84: -0.0005880541853 | L84: 0.002220073916 | M84: 0.01334284299 | N84: 2.022519057e-05
A85: =IF('DF raw data'!E90="","",'DF raw data'!E90) -> -288.5 | B85: =IF('DF raw data'!F90="","",'DF raw data'!F90) -> -3.15564e-06 | C85: =IF('DF raw data'!G90="","",'DF raw data'!G90) -> 0.000187588 | D85: =IF('DF raw data'!H90="","",'DF raw data'!H90) -> -2.57425e-05 | F85: -3.16826256e-06 | G85: 0.000188338352 | H85: -2.584547e-05 | J85: -9.658803975e-05 | K85: -0.0006363482052 | L85: 0.002314243092 | M85: 0.01449996453 | N85: 2.290771574e-05
A86: =IF('DF raw data'!E91="","",'DF raw data'!E91) -> -288 | B86: =IF('DF raw data'!F91="","",'DF raw data'!F91) -> -1.72466e-05 | C86: =IF('DF raw data'!G91="","",'DF raw data'!G91) -> 0.000193177 | D86: =IF('DF raw data'!H91="","",'DF raw data'!H91) -> -2.31851e-05 | F86: -1.73155864e-05 | G86: 0.000193949708 | H86: -2.32778404e-05 | J86: -0.000105245833 | K86: -0.0006889711216 | L86: 0.002411217946 | M86: 0.01570557351 | N86: 2.582024007e-05
A87: =IF('DF raw data'!E92="","",'DF raw data'!E92) -> -287.5 | B87: =IF('DF raw data'!F92="","",'DF raw data'!F92) -> -4.31641e-06 | C87: =IF('DF raw data'!G92="","",'DF raw data'!G92) -> 0.000194668 | D87: =IF('DF raw data'!H92="","",'DF raw data'!H92) -> -1.34319e-05 | F87: -4.33367564e-06 | G87: 0.000195446672 | H87: -1.34856276e-05 | J87: -0.0001074126708 | K87: -0.000742677457 | L87: 0.002508941282 | M87: 0.01696004415 | N87: 2.897340199e-05
A88: =IF('DF raw data'!E93="","",'DF raw data'!E93) -> -287 | B88: =IF('DF raw data'!F93="","",'DF raw data'!F93) -> -9.17726e-06 | C88: =IF('DF raw data'!G93="","",'DF raw data'!G93) -> 0.000189877 | D88: =IF('DF raw data'!H93="","",'DF raw data'!H93) -> -2.3246e-05 | F88: -9.21396904e-06 | G88: 0.000190636508 | H88: -2.3338984e-05 | J88: -0.0001120196553 | K88: -0.0007986872847 | L88: 0.002604259536 | M88: 0.01826217392 | N88: 3.237076006e-05
A89: =IF('DF raw data'!E94="","",'DF raw data'!E94) -> -286.5 | B89: =IF('DF raw data'!F94="","",'DF raw data'!F94) -> -7.18857e-06 | C89: =IF('DF raw data'!G94="","",'DF raw data'!G94) -> 0.000194556 | D89: =IF('DF raw data'!H94="","",'DF raw data'!H94) -> -2.87063e-05 | F89: -7.21732428e-06 | G89: 0.000195334224 | H89: -2.88211252e-05 | J89: -0.0001156283174 | K89: -0.0008565014434 | L89: 0.002701926648 | M89: 0.01961313724 | N89: 3.602764882e-05
A90: =IF('DF raw data'!E95="","",'DF raw data'!E95) -> -286 | B90: =IF('DF raw data'!F95="","",'DF raw data'!F95) -> -5.7248e-06 | C90: =IF('DF raw data'!G95="","",'DF raw data'!G95) -> 0.000187064 | D90: =IF('DF raw data'!H95="","",'DF raw data'!H95) -> -1.39642e-05 | F90: -5.7476992e-06 | G90: 0.000187812256 | H90: -1.40200568e-05 | J90: -0.000118502167 | K90: -0.0009157525269 | L90: 0.002795832776 | M90: 0.02101105363 | N90: 3.994301066e-05
A91: =IF('DF raw data'!E96="","",'DF raw data'!E96) -> -285.5 | B91: =IF('DF raw data'!F96="","",'DF raw data'!F96) -> -9.82341e-06 | C91: =IF('DF raw data'!G96="","",'DF raw data'!G96) -> 0.000184078 | D91: =IF('DF raw data'!H96="","",'DF raw data'!H96) -> -1.49145e-05 | F91: -9.86270364e-06 | G91: 0.000184814312 | H91: -1.4974158e-05 | J91: -0.0001234335189 | K91: -0.0009774692863 | L91: 0.002888239932 | M91: 0.02245517359 | N91: 4.412159352e-05
A92: =IF('DF raw data'!E97="","",'DF raw data'!E97) -> -285 | B92: =IF('DF raw data'!F97="","",'DF raw data'!F97) -> -7.19795e-07 | C92: =IF('DF raw data'!G97="","",'DF raw data'!G97) -> 0.000187961 | D92: =IF('DF raw data'!H97="","",'DF raw data'!H97) -> -2.86681e-05 | F92: -7.2267418e-07 | G92: 0.000188712844 | H92: -2.87827724e-05 | J92: -0.0001237948559 | K92: -0.001039366714 | L92: 0.002982596354 | M92: 0.02394647177 | N92: 4.857719661e-05
A93: =IF('DF raw data'!E98="","",'DF raw data'!E98) -> -284.5 | B93: =IF('DF raw data'!F98="","",'DF raw data'!F98) -> -1.33399e-05 | C93: =IF('DF raw data'!G98="","",'DF raw data'!G98) -> 0.000185953 | D93: =IF('DF raw data'!H98="","",'DF raw data'!H98) -> -2.40851e-05 | F93: -1.33932596e-05 | G93: 0.000186696812 | H93: -2.41814404e-05 | J93: -0.0001304914857 | K93: -0.001104612457 | L93: 0.00307594476 | M93: 0.02548444415 | N93: 5.331642871e-05
A94: =IF('DF raw data'!E99="","",'DF raw data'!E99) -> -284 | B94: =IF('DF raw data'!F99="","",'DF raw data'!F99) -> -1.02084e-05 | C94: =IF('DF raw data'!G99="","",'DF raw data'!G99) -> 0.000185332 | D94: =IF('DF raw data'!H99="","",'DF raw data'!H99) -> -1.33362e-05 | F94: -1.02492336e-05 | G94: 0.000186073328 | H94: -1.33895448e-05 | J94: -0.0001356161025 | K94: -0.001172420508 | L94: 0.003168981424 | M94: 0.02706893486 | N94: 5.834684621e-05
A95: =IF('DF raw data'!E100="","",'DF raw data'!E100) -> -283.5 | B95: =IF('DF raw data'!F100="","",'DF raw data'!F100) -> -6.81655e-06 | C95: =IF('DF raw data'!G100="","",'DF raw data'!G100) -> 0.000196342 | D95: =IF('DF raw data'!H100="","",'DF raw data'!H100) -> -9.7507e-06 | F95: -6.8438162e-06 | G95: 0.000197127368 | H95: -9.7897028e-06 | J95: -0.0001390380106 | K95: -0.001241939514 | L95: 0.003267545108 | M95: 0.02870270742 | N95: 6.369493751e-05
A96: =IF('DF raw data'!E101="","",'DF raw data'!E101) -> -283 | B96: =IF('DF raw data'!F101="","",'DF raw data'!F101) -> -1.49518e-05 | C96: =IF('DF raw data'!G101="","",'DF raw data'!G101) -> 0.000196462 | D96: =IF('DF raw data'!H101="","",'DF raw data'!H101) -> -7.20662e-06 | F96: -1.50116072e-05 | G96: 0.000197247848 | H96: -7.23544648e-06 | J96: -0.0001465438142 | K96: -0.001315211421 | L96: 0.003366169032 | M96: 0.03038579193 | N96: 6.937122203e-05
A97: =IF('DF raw data'!E102="","",'DF raw data'!E102) -> -282.5 | B97: =IF('DF raw data'!F102="","",'DF raw data'!F102) -> -8.22041e-06 | C97: =IF('DF raw data'!G102="","",'DF raw data'!G102) -> 0.000196176 | D97: =IF('DF raw data'!H102="","",'DF raw data'!H102) -> -1.7571e-05 | F97: -8.25329164e-06 | G97: 0.000196960704 | H97: -1.7641284e-05 | J97: -0.0001506704601 | K97: -0.001390546651 | L97: 0.003464649384 | M97: 0.03211811662 | N97: 7.53844705e-05
A98: =IF('DF raw data'!E103="","",'DF raw data'!E103) -> -282 | B98: =IF('DF raw data'!F103="","",'DF raw data'!F103) -> -4.37138e-06 | C98: =IF('DF raw data'!G103="","",'DF raw data'!G103) -> 0.00018977 | D98: =IF('DF raw data'!H103="","",'DF raw data'!H103) -> -2.70585e-05 | F98: -4.38886552e-06 | G98: 0.00019052908 | H98: -2.7166734e-05 | J98: -0.0001528648928 | K98: -0.001466979097 | L98: 0.003559913924 | M98: 0.03389807359 | N98: 8.173264791e-05
A99: =IF('DF raw data'!E104="","",'DF raw data'!E104) -> -281.5 | B99: =IF('DF raw data'!F104="","",'DF raw data'!F104) -> -7.89435e-06 | C99: =IF('DF raw data'!G104="","",'DF raw data'!G104) -> 0.000186927 | D99: =IF('DF raw data'!H104="","",'DF raw data'!H104) -> -2.63429e-05 | F99: -7.9259274e-06 | G99: 0.000187674708 | H99: -2.64482716e-05 | J99: -0.0001568278565 | K99: -0.001545393026 | L99: 0.003653751278 | M99: 0.03572494923 | N99: 8.84198946e-05
A100: =IF('DF raw data'!E105="","",'DF raw data'!E105) -> -281 | B100: =IF('DF raw data'!F105="","",'DF raw data'!F105) -> -5.46396e-06 | C100: =IF('DF raw data'!G105="","",'DF raw data'!G105) -> 0.000188947 | D100: =IF('DF raw data'!H105="","",'DF raw data'!H105) -> -2.13039e-05 | F100: -5.48581584e-06 | G100: 0.000189702788 | H100: -2.13891156e-05 | J100: -0.0001595707644 | K100: -0.001625178408 | L100: 0.003748602672 | M100: 0.03759925056 | N100: 9.545863701e-05
A101: =IF('DF raw data'!E106="","",'DF raw data'!E106) -> -280.5 | B101: =IF('DF raw data'!F106="","",'DF raw data'!F106) -> -8.66727e-06 | C101: =IF('DF raw data'!G106="","",'DF raw data'!G106) -> 0.000189422 | D101: =IF('DF raw data'!H106="","",'DF raw data'!H106) -> -1.99096e-05 | F101: -8.70193908e-06 | G101: 0.000190179688 | H101: -1.99892384e-05 | J101: -0.000163921734 | K101: -0.001707139275 | L101: 0.003843692516 | M101: 0.03952109682 | N101: 0.0001028590583
A102: =IF('DF raw data'!E107="","",'DF raw data'!E107) -> -280 | B102: =IF('DF raw data'!F107="","",'DF raw data'!F107) -> -3.99138e-06 | C102: =IF('DF raw data'!G107="","",'DF raw data'!G107) -> 0.000190407 | D102: =IF('DF raw data'!H107="","",'DF raw data'!H107) -> -2.0511e-05 | F102: -4.00734552e-06 | G102: 0.000191168628 | H102: -2.0593044e-05 | J102: -0.0001659254067 | K102: -0.001790101978 | L102: 0.00393927683 | M102: 0.04149073523 | N102: 0.0001106317748
A103: =IF('DF raw data'!E108="","",'DF raw data'!E108) -> -279.5 | B103: =IF('DF raw data'!F108="","",'DF raw data'!F108) -> 7.46094e-07 | C103: =IF('DF raw data'!G108="","",'DF raw data'!G108) -> 0.000186277 | D103: =IF('DF raw data'!H108="","",'DF raw data'!H108) -> -1.7556e-05 | F103: 7.49078376e-07 | G103: 0.000187022108 | H103: -1.7626224e-05 | J103: -0.0001655508676 | K103: -0.001872877412 | L103: 0.004032787884 | M103: 0.04350712918 | N103: 0.0001187771675
A104: =IF('DF raw data'!E109="","",'DF raw data'!E109) -> -279 | B104: =IF('DF raw data'!F109="","",'DF raw data'!F109) -> -1.65464e-05 | C104: =IF('DF raw data'!G109="","",'DF raw data'!G109) -> 0.000191281 | D104: =IF('DF raw data'!H109="","",'DF raw data'!H109) -> -1.76053e-05 | F104: -1.66125856e-05 | G104: 0.000192046124 | H104: -1.76757212e-05 | J104: -0.0001738571604 | K104: -0.001959805992 | L104: 0.004128810946 | M104: 0.04557153465 | N104: 0.0001273158205
A105: =IF('DF raw data'!E110="","",'DF raw data'!E110) -> -278.5 | B105: =IF('DF raw data'!F110="","",'DF raw data'!F110) -> 1.57846e-06 | C105: =IF('DF raw data'!G110="","",'DF raw data'!G110) -> 0.000198389 | D105: =IF('DF raw data'!H110="","",'DF raw data'!H110) -> -1.74718e-05 | F105: 1.58477384e-06 | G105: 0.000199182556 | H105: -1.75416872e-05 | J105: -0.0001730647734 | K105: -0.002046338379 | L105: 0.004228402224 | M105: 0.04768573576 | N105: 0.0001362704889
A106: =IF('DF raw data'!E111="","",'DF raw data'!E111) -> -278 | B106: =IF('DF raw data'!F111="","",'DF raw data'!F111) -> 7.86338e-06 | C106: =IF('DF raw data'!G111="","",'DF raw data'!G111) -> 0.000199965 | D106: =IF('DF raw data'!H111="","",'DF raw data'!H111) -> -3.01836e-05 | F106: 7.89483352e-06 | G106: 0.00020076486 | H106: -3.03043344e-05 | J106: -0.0001691173567 | K106: -0.002130897057 | L106: 0.004328784654 | M106: 0.04985012809 | N106: 0.0001456539775
A107: =IF('DF raw data'!E112="","",'DF raw data'!E112) -> -277.5 | B107: =IF('DF raw data'!F112="","",'DF raw data'!F112) -> -1.37887e-05 | C107: =IF('DF raw data'!G112="","",'DF raw data'!G112) -> 0.000198535 | D107: =IF('DF raw data'!H112="","",'DF raw data'!H112) -> -2.32829e-05 | F107: -1.38438548e-05 | G107: 0.00019932914 | H107: -2.33760316e-05 | J107: -0.0001760392841 | K107: -0.002218916699 | L107: 0.004428449224 | M107: 0.0520643527 | N107: 0.0001554750537
A108: =IF('DF raw data'!E113="","",'DF raw data'!E113) -> -277 | B108: =IF('DF raw data'!F113="","",'DF raw data'!F113) -> -2.3118e-06 | C108: =IF('DF raw data'!G113="","",'DF raw data'!G113) -> 0.000193883 | D108: =IF('DF raw data'!H113="","",'DF raw data'!H113) -> -4.28567e-05 | F108: -2.3210472e-06 | G108: 0.000194658532 | H108: -4.30281268e-05 | J108: -0.0001771998077 | K108: -0.002307516603 | L108: 0.00452577849 | M108: 0.05432724195 | N108: 0.0001657320891
A109: =IF('DF raw data'!E114="","",'DF raw data'!E114) -> -276.5 | B109: =IF('DF raw data'!F114="","",'DF raw data'!F114) -> -9.44119e-06 | C109: =IF('DF raw data'!G114="","",'DF raw data'!G114) -> 0.000199488 | D109: =IF('DF raw data'!H114="","",'DF raw data'!H114) -> -1.15398e-05 | F109: -9.47895476e-06 | G109: 0.000200285952 | H109: -1.15859592e-05 | J109: -0.0001819392851 | K109: -0.002398486246 | L109: 0.004625921466 | M109: 0.05664020268 | N109: 0.0001764482147
A110: =IF('DF raw data'!E115="","",'DF raw data'!E115) -> -276 | B110: =IF('DF raw data'!F115="","",'DF raw data'!F115) -> -5.07168e-06 | C110: =IF('DF raw data'!G115="","",'DF raw data'!G115) -> 0.000194169 | D110: =IF('DF raw data'!H115="","",'DF raw data'!H115) -> -3.37198e-05 | F110: -5.09196672e-06 | G110: 0.000194945676 | H110: -3.38546792e-05 | J110: -0.0001844852684 | K110: -0.00249072888 | L110: 0.004723394304 | M110: 0.05900189983 | N110: 0.000187620459
A111: =IF('DF raw data'!E116="","",'DF raw data'!E116) -> -275.5 | B111: =IF('DF raw data'!F116="","",'DF raw data'!F116) -> -1.87246e-05 | C111: =IF('DF raw data'!G116="","",'DF raw data'!G116) -> 0.000184922 | D111: =IF('DF raw data'!H116="","",'DF raw data'!H116) -> -1.64087e-05 | F111: -1.87994984e-05 | G111: 0.000185661688 | H111: -1.64743348e-05 | J111: -0.0001938850176 | K111: -0.002587671389 | L111: 0.004816225148 | M111: 0.0614100124 | N111: 0.0001992372671
A112: =IF('DF raw data'!E117="","",'DF raw data'!E117) -> -275 | B112: =IF('DF raw data'!F117="","",'DF raw data'!F117) -> -8.85699e-06 | C112: =IF('DF raw data'!G117="","",'DF raw data'!G117) -> 0.000189508 | D112: =IF('DF raw data'!H117="","",'DF raw data'!H117) -> -2.34271e-05 | F112: -8.89241796e-06 | G112: 0.000190266032 | H112: -2.35208084e-05 | J112: -0.0001983312266 | K112: -0.002686837002 | L112: 0.004911358164 | M112: 0.06386569149 | N112: 0.0002113176542
A113: =IF('DF raw data'!E118="","",'DF raw data'!E118) -> -274.5 | B113: =IF('DF raw data'!F118="","",'DF raw data'!F118) -> -8.85545e-06 | C113: =IF('DF raw data'!G118="","",'DF raw data'!G118) -> 0.000198575 | D113: =IF('DF raw data'!H118="","",'DF raw data'!H118) -> -2.57674e-05 | F113: -8.8908718e-06 | G113: 0.0001993693 | H113: -2.58704696e-05 | J113: -0.0002027766625 | K113: -0.002788225333 | L113: 0.005011042814 | M113: 0.06637121289 | N113: 0.0002238934884
A114: =IF('DF raw data'!E119="","",'DF raw data'!E119) -> -274 | B114: =IF('DF raw data'!F119="","",'DF raw data'!F119) -> -1.74364e-05 | C114: =IF('DF raw data'!G119="","",'DF raw data'!G119) -> 0.000193061 | D114: =IF('DF raw data'!H119="","",'DF raw data'!H119) -> -2.77701e-05 | F114: -1.75061456e-05 | G114: 0.000193833244 | H114: -2.78811804e-05 | J114: -0.0002115297353 | K114: -0.002893990201 | L114: 0.005107959436 | M114: 0.06892519261 | N114: 0.0002369614856
A115: =IF('DF raw data'!E120="","",'DF raw data'!E120) -> -273.5 | B115: =IF('DF raw data'!F120="","",'DF raw data'!F120) -> -1.45665e-05 | C115: =IF('DF raw data'!G120="","",'DF raw data'!G120) -> 0.000178416 | D115: =IF('DF raw data'!H120="","",'DF raw data'!H120) -> -8.96325e-06 | F115: -1.4624766e-05 | G115: 0.000179129664 | H115: -8.999103e-06 | J115: -0.0002188421183 | K115: -0.00300341126 | L115: 0.005197524268 | M115: 0.07152395474 | N115: 0.0002504925608
A116: =IF('DF raw data'!E121="","",'DF raw data'!E121) -> -273 | B116: =IF('DF raw data'!F121="","",'DF raw data'!F121) -> -7.90428e-06 | C116: =IF('DF raw data'!G121="","",'DF raw data'!G121) -> 0.000184722 | D116: =IF('DF raw data'!H121="","",'DF raw data'!H121) -> -1.09903e-05 | F116: -7.93589712e-06 | G116: 0.000185460888 | H116: -1.10342612e-05 | J116: -0.0002228100669 | K116: -0.003114816293 | L116: 0.005290254712 | M116: 0.0741690821 | N116: 0.0002645107805
A117: =IF('DF raw data'!E122="","",'DF raw data'!E122) -> -272.5 | B117: =IF('DF raw data'!F122="","",'DF raw data'!F122) -> -1.14939e-05 | C117: =IF('DF raw data'!G122="","",'DF raw data'!G122) -> 0.000176788 | D117: =IF('DF raw data'!H122="","",'DF raw data'!H122) -> -6.42572e-06 | F117: -1.15398756e-05 | G117: 0.000177495152 | H117: -6.45142288e-06 | J117: -0.0002285800047 | K117: -0.003229106296 | L117: 0.005379002288 | M117: 0.07685858325 | N117: 0.0002790037377
A118: =IF('DF raw data'!E123="","",'DF raw data'!E123) -> -272 | B118: =IF('DF raw data'!F123="","",'DF raw data'!F123) -> -1.29603e-05 | C118: =IF('DF raw data'!G123="","",'DF raw data'!G123) -> 0.000187403 | D118: =IF('DF raw data'!H123="","",'DF raw data'!H123) -> -1.66843e-05 | F118: -1.30121412e-05 | G118: 0.000188152612 | H118: -1.67510372e-05 | J118: -0.0002350860753 | K118: -0.003346649333 | L118: 0.005473078594 | M118: 0.07959512254 | N118: 0.0002940086651
A119: =IF('DF raw data'!E124="","",'DF raw data'!E124) -> -271.5 | B119: =IF('DF raw data'!F124="","",'DF raw data'!F124) -> -8.92557e-06 | C119: =IF('DF raw data'!G124="","",'DF raw data'!G124) -> 0.000187053 | D119: =IF('DF raw data'!H124="","",'DF raw data'!H124) -> -1.66085e-05 | F119: -8.96127228e-06 | G119: 0.000187801212 | H119: -1.6674934e-05 | J119: -0.0002395667114 | K119: -0.003466432689 | L119: 0.0055669792 | M119: 0.08237861214 | N119: 0.0003095329899
A120: =IF('DF raw data'!E125="","",'DF raw data'!E125) -> -271 | B120: =IF('DF raw data'!F125="","",'DF raw data'!F125) -> -1.7246e-05 | C120: =IF('DF raw data'!G125="","",'DF raw data'!G125) -> 0.000188208 | D120: =IF('DF raw data'!H125="","",'DF raw data'!H125) -> -2.49222e-05 | F120: -1.7314984e-05 | G120: 0.000188960832 | H120: -2.50218888e-05 | J120: -0.0002482242034 | K120: -0.003590544791 | L120: 0.005661459616 | M120: 0.08520934195 | N120: 0.00032558986
A121: =IF('DF raw data'!E126="","",'DF raw data'!E126) -> -270.5 | B121: =IF('DF raw data'!F126="","",'DF raw data'!F126) -> -3.10052e-06 | C121: =IF('DF raw data'!G126="","",'DF raw data'!G126) -> 0.00018258 | D121: =IF('DF raw data'!H126="","",'DF raw data'!H126) -> -1.1687e-05 | F121: -3.11292208e-06 | G121: 0.00018331032 | H121: -1.1733748e-05 | J121: -0.0002497806644 | K121: -0.003715435123 | L121: 0.005753114776 | M121: 0.08808589934 | N121: 0.00034217022
A122: =IF('DF raw data'!E127="","",'DF raw data'!E127) -> -270 | B122: =IF('DF raw data'!F127="","",'DF raw data'!F127) -> -1.67397e-05 | C122: =IF('DF raw data'!G127="","",'DF raw data'!G127) -> 0.000185802 | D122: =IF('DF raw data'!H127="","",'DF raw data'!H127) -> -1.56138e-05 | F122: -1.68066588e-05 | G122: 0.000186545208 | H122: -1.56762552e-05 | J122: -0.0002581839938 | K122: -0.00384452712 | L122: 0.00584638738 | M122: 0.09100909303 | N122: 0.0003592936722
A123: =IF('DF raw data'!E128="","",'DF raw data'!E128) -> -269.5 | B123: =IF('DF raw data'!F128="","",'DF raw data'!F128) -> -8.40846e-06 | C123: =IF('DF raw data'!G128="","",'DF raw data'!G128) -> 0.000176272 | D123: =IF('DF raw data'!H128="","",'DF raw data'!H128) -> -2.3966e-05 | F123: -8.44209384e-06 | G123: 0.000176977088 | H123: -2.4061864e-05 | J123: -0.0002624050408 | K123: -0.00397572964 | L123: 0.005934875924 | M123: 0.09397653099 | N123: 0.0003769394765
A124: =IF('DF raw data'!E129="","",'DF raw data'!E129) -> -269 | B124: =IF('DF raw data'!F129="","",'DF raw data'!F129) -> -2.10299e-05 | C124: =IF('DF raw data'!G129="","",'DF raw data'!G129) -> 0.000181379 | D124: =IF('DF raw data'!H129="","",'DF raw data'!H129) -> -1.71581e-05 | F124: -2.11140196e-05 | G124: 0.000182104516 | H124: -1.72267324e-05 | J124: -0.0002729620506 | K124: -0.004112210665 | L124: 0.006025928182 | M124: 0.09698949508 | N124: 0.0003951326359
A125: =IF('DF raw data'!E130="","",'DF raw data'!E130) -> -268.5 | B125: =IF('DF raw data'!F130="","",'DF raw data'!F130) -> -1.40476e-05 | C125: =IF('DF raw data'!G130="","",'DF raw data'!G130) -> 0.000182672 | D125: =IF('DF raw data'!H130="","",'DF raw data'!H130) -> -1.91695e-05 | F125: -1.41037904e-05 | G125: 0.000183402688 | H125: -1.9246178e-05 | J125: -0.0002800139458 | K125: -0.004252217638 | L125: 0.006117629526 | M125: 0.1000483098 | N125: 0.0004138845353
A126: =IF('DF raw data'!E131="","",'DF raw data'!E131) -> -268 | B126: =IF('DF raw data'!F131="","",'DF raw data'!F131) -> -6.68379e-06 | C126: =IF('DF raw data'!G131="","",'DF raw data'!G131) -> 0.000183377 | D126: =IF('DF raw data'!H131="","",'DF raw data'!H131) -> -1.69155e-05 | F126: -6.71052516e-06 | G126: 0.000184110508 | H126: -1.6983162e-05 | J126: -0.0002833692083 | K126: -0.004393902243 | L126: 0.00620968478 | M126: 0.1031531522 | N126: 0.0004332047769
A127: =IF('DF raw data'!E132="","",'DF raw data'!E132) -> -267.5 | B127: =IF('DF raw data'!F132="","",'DF raw data'!F132) -> -1.03855e-05 | C127: =IF('DF raw data'!G132="","",'DF raw data'!G132) -> 0.0001859 | D127: =IF('DF raw data'!H132="","",'DF raw data'!H132) -> -3.68173e-05 | F127: -1.0427042e-05 | G127: 0.0001866436 | H127: -3.69645692e-05 | J127: -0.0002885827293 | K127: -0.004538193607 | L127: 0.00630300658 | M127: 0.1063046555 | N127: 0.0004531103628
A128: =IF('DF raw data'!E133="","",'DF raw data'!E133) -> -267 | B128: =IF('DF raw data'!F133="","",'DF raw data'!F133) -> 5.74676e-06 | C128: =IF('DF raw data'!G133="","",'DF raw data'!G133) -> 0.000185141 | D128: =IF('DF raw data'!H133="","",'DF raw data'!H133) -> -2.53264e-05 | F128: =(1-$G$1*($B$49-$G$2))*B128 -> 5.76974704e-06 | G128: 0.000185881564 | H128: -2.54277056e-05 | J128: =F128*$G$3+J127 -> -0.0002856978558 | K128: =J128*$G$3+K127 -> -0.004681042535 | L128: =G128*$G$3+L127 -> 0.006395947362 | M128: =L128*$G$3+M127 -> 0.1095026292 | N128: =(J128^2+L128^2)*$G$3+N127 -> 0.0004736052458
A129: =IF('DF raw data'!E134="","",'DF raw data'!E134) -> -266.5 | B129: =IF('DF raw data'!F134="","",'DF raw data'!F134) -> -1.94309e-05 | C129: =IF('DF raw data'!G134="","",'DF raw data'!G134) -> 0.000180206 | D129: =IF('DF raw data'!H134="","",'DF raw data'!H134) -> -1.32295e-05 | F129: -1.95086236e-05 | G129: 0.000180926824 | H129: -1.3282418e-05 | J129: -0.0002954521676 | K129: -0.004828768619 | L129: 0.006486410774 | M129: 0.1127458346 | N129: 0.0004946856542
A130: =IF('DF raw data'!E135="","",'DF raw data'!E135) -> -266 | B130: =IF('DF raw data'!F135="","",'DF raw data'!F135) -> 2.153e-06 | C130: =IF('DF raw data'!G135="","",'DF raw data'!G135) -> 0.000183913 | D130: =IF('DF raw data'!H135="","",'DF raw data'!H135) -> -1.43601e-05 | F130: 2.161612e-06 | G130: 0.000184648652 | H130: -1.44175404e-05 | J130: -0.0002943713616 | K130: -0.0049759543 | L130: 0.0065787351 | M130: 0.1160352021 | N130: 0.0005163688592
A131: =IF('DF raw data'!E136="","",'DF raw data'!E136) -> -265.5 | B131: =IF('DF raw data'!F136="","",'DF raw data'!F136) -> -1.23807e-05 | C131: =IF('DF raw data'!G136="","",'DF raw data'!G136) -> 0.000185337 | D131: =IF('DF raw data'!H136="","",'DF raw data'!H136) -> -2.11408e-05 | F131: -1.24302228e-05 | G131: 0.000186078348 | H131: -2.12253632e-05 | J131: -0.000300586473 | K131: -0.005126247536 | L131: 0.006671774274 | M131: 0.1193710893 | N131: 0.0005386703213
A132: =IF('DF raw data'!E137="","",'DF raw data'!E137) -> -265 | B132: =IF('DF raw data'!F137="","",'DF raw data'!F137) -> 4.90602e-06 | C132: =IF('DF raw data'!G137="","",'DF raw data'!G137) -> 0.000187227 | D132: =IF('DF raw data'!H137="","",'DF raw data'!H137) -> -1.27995e-05 | F132: 4.92564408e-06 | G132: 0.000187975908 | H132: -1.2850698e-05 | J132: -0.000298123651 | K132: -0.005275309362 | L132: 0.006765762228 | M132: 0.1227539704 | N132: 0.0005616025294
A133: =IF('DF raw data'!E138="","",'DF raw data'!E138) -> -264.5 | B133: =IF('DF raw data'!F138="","",'DF raw data'!F138) -> -1.17476e-05 | C133: =IF('DF raw data'!G138="","",'DF raw data'!G138) -> 0.000187884 | D133: =IF('DF raw data'!H138="","",'DF raw data'!H138) -> -9.79146e-06 | F133: -1.17945904e-05 | G133: 0.000188635536 | H133: -9.83062584e-06 | J133: -0.0003040209462 | K133: -0.005427319835 | L133: 0.006860079996 | M133: 0.1261840104 | N133: 0.0005851790925
A134: =IF('DF raw data'!E139="","",'DF raw data'!E139) -> -264 | B134: =IF('DF raw data'!F139="","",'DF raw data'!F139) -> 7.66341e-06 | C134: =IF('DF raw data'!G139="","",'DF raw data'!G139) -> 0.000197159 | D134: =IF('DF raw data'!H139="","",'DF raw data'!H139) -> -1.7919e-05 | F134: 7.69406364e-06 | G134: 0.000197947636 | H134: -1.7990676e-05 | J134: -0.0003001739144 | K134: -0.005577406792 | L134: 0.006959053814 | M134: 0.1296635373 | N134: 0.0006094383597
A135: =IF('DF raw data'!E140="","",'DF raw data'!E140) -> -263.5 | B135: =IF('DF raw data'!F140="","",'DF raw data'!F140) -> -1.67343e-05 | C135: =IF('DF raw data'!G140="","",'DF raw data'!G140) -> 0.000196546 | D135: =IF('DF raw data'!H140="","",'DF raw data'!H140) -> -2.30124e-05 | F135: -1.68012372e-05 | G135: 0.000197332184 | H135: -2.31044496e-05 | J135: -0.000308574533 | K135: -0.005731694058 | L135: 0.007057719906 | M135: 0.1331923973 | N135: 0.000634391674
A136: =IF('DF raw data'!E141="","",'DF raw data'!E141) -> -263 | B136: =IF('DF raw data'!F141="","",'DF raw data'!F141) -> -8.55729e-07 | C136: =IF('DF raw data'!G141="","",'DF raw data'!G141) -> 0.000195434 | D136: =IF('DF raw data'!H141="","",'DF raw data'!H141) -> -1.66308e-05 | F136: -8.59151916e-07 | G136: 0.000196215736 | H136: -1.66973232e-05 | J136: -0.0003090041089 | K136: -0.005886196113 | L136: 0.007155827774 | M136: 0.1367703111 | N136: 0.0006600423513
A137: =IF('DF raw data'!E142="","",'DF raw data'!E142) -> -262.5 | B137: =IF('DF raw data'!F142="","",'DF raw data'!F142) -> -7.77261e-06 | C137: =IF('DF raw data'!G142="","",'DF raw data'!G142) -> 0.000197275 | D137: =IF('DF raw data'!H142="","",'DF raw data'!H142) -> -1.60648e-05 | F137: -7.80370044e-06 | G137: 0.0001980641 | H137: -1.61290592e-05 | J137: -0.0003129059591 | K137: -0.006042649092 | L137: 0.007254859824 | M137: 0.140397741 | N137: 0.0006864078019
A138: =IF('DF raw data'!E143="","",'DF raw data'!E143) -> -262 | B138: =IF('DF raw data'!F143="","",'DF raw data'!F143) -> -2.07107e-06 | C138: =IF('DF raw data'!G143="","",'DF raw data'!G143) -> 0.00019183 | D138: =IF('DF raw data'!H143="","",'DF raw data'!H143) -> -1.9168e-05 | F138: -2.07935428e-06 | G138: 0.00019259732 | H138: -1.9244672e-05 | J138: -0.0003139456363 | K138: -0.006199621911 | L138: 0.007351158484 | M138: 0.1440733203 | N138: 0.0007134768484
A139: =IF('DF raw data'!E144="","",'DF raw data'!E144) -> -261.5 | B139: =IF('DF raw data'!F144="","",'DF raw data'!F144) -> -2.40349e-05 | C139: =IF('DF raw data'!G144="","",'DF raw data'!G144) -> 0.000192226 | D139: =IF('DF raw data'!H144="","",'DF raw data'!H144) -> -2.33739e-05 | F139: -2.41310396e-05 | G139: 0.000192994904 | H139: -2.34673956e-05 | J139: -0.0003260111561 | K139: -0.006362627489 | L139: 0.007447655936 | M139: 0.1477971483 | N139: 0.0007412637795
A140: =IF('DF raw data'!E145="","",'DF raw data'!E145) -> -261 | B140: =IF('DF raw data'!F145="","",'DF raw data'!F145) -> -5.59156e-06 | C140: =IF('DF raw data'!G145="","",'DF raw data'!G145) -> 0.000204144 | D140: =IF('DF raw data'!H145="","",'DF raw data'!H145) -> -2.25034e-05 | F140: -5.61392624e-06 | G140: 0.000204960576 | H140: -2.25934136e-05 | J140: -0.0003288181192 | K140: -0.006527036548 | L140: 0.007550136224 | M140: 0.1515722164 | N140: 0.0007698201186
A141: =IF('DF raw data'!E146="","",'DF raw data'!E146) -> -260.5 | B141: =IF('DF raw data'!F146="","",'DF raw data'!F146) -> -1.99386e-05 | C141: =IF('DF raw data'!G146="","",'DF raw data'!G146) -> 0.00018804 | D141: =IF('DF raw data'!H146="","",'DF raw data'!H146) -> -1.95413e-05 | F141: -2.00183544e-05 | G141: 0.00018879216 | H141: -1.96194652e-05 | J141: -0.0003388272964 | K141: -0.006696450196 | L141: 0.007644532304 | M141: 0.1553944825 | N141: 0.0007990969577
A142: =IF('DF raw data'!E147="","",'DF raw data'!E147) -> -260 | B142: =IF('DF raw data'!F147="","",'DF raw data'!F147) -> -1.02637e-05 | C142: =IF('DF raw data'!G147="","",'DF raw data'!G147) -> 0.00018784 | D142: =IF('DF raw data'!H147="","",'DF raw data'!H147) -> -2.76912e-05 | F142: -1.03047548e-05 | G142: 0.00018859136 | H142: -2.78019648e-05 | J142: -0.0003439796738 | K142: -0.006868440033 | L142: 0.007738827984 | M142: 0.1592638965 | N142: 0.000829100848
A143: =IF('DF raw data'!E148="","",'DF raw data'!E148) -> -259.5 | B143: =IF('DF raw data'!F148="","",'DF raw data'!F148) -> -1.87899e-05 | C143: =IF('DF raw data'!G148="","",'DF raw data'!G148) -> 0.00017802 | D143: =IF('DF raw data'!H148="","",'DF raw data'!H148) -> -1.32341e-05 | F143: -1.88650596e-05 | G143: 0.00017873208 | H143: -1.32870364e-05 | J143: -0.0003534122036 | K143: -0.007045146135 | L143: 0.007828194024 | M143: 0.1631779935 | N143: 0.0008598036089
A144: =IF('DF raw data'!E149="","",'DF raw data'!E149) -> -259 | B144: =IF('DF raw data'!F149="","",'DF raw data'!F149) -> -2.2113e-05 | C144: =IF('DF raw data'!G149="","",'DF raw data'!G149) -> 0.000174302 | D144: =IF('DF raw data'!H149="","",'DF raw data'!H149) -> -2.74263e-05 | F144: -2.2201452e-05 | G144: 0.000174999208 | H144: -2.75360052e-05 | J144: -0.0003645129296 | K144: -0.0072274026 | L144: 0.007915693628 | M144: 0.1671358403 | N144: 0.0008911991465
A145: =IF('DF raw data'!E150="","",'DF raw data'!E150) -> -258.5 | B145: =IF('DF raw data'!F150="","",'DF raw data'!F150) -> -1.76987e-05 | C145: =IF('DF raw data'!G150="","",'DF raw data'!G150) -> 0.00017951 | D145: =IF('DF raw data'!H150="","",'DF raw data'!H150) -> -1.68815e-05 | F145: -1.77694948e-05 | G145: 0.00018022804 | H145: -1.6949026e-05 | J145: -0.000373397677 | K145: -0.007414101438 | L145: 0.008005807648 | M145: 0.1711387442 | N145: 0.0009233153375
A146: =IF('DF raw data'!E151="","",'DF raw data'!E151) -> -258 | B146: =IF('DF raw data'!F151="","",'DF raw data'!F151) -> -1.76973e-05 | C146: =IF('DF raw data'!G151="","",'DF raw data'!G151) -> 0.000177809 | D146: =IF('DF raw data'!H151="","",'DF raw data'!H151) -> -2.19604e-05 | F146: -1.77680892e-05 | G146: 0.000178520236 | H146: -2.20482416e-05 | J146: -0.0003822817216 | K146: -0.007605242299 | L146: 0.008095067766 | M146: 0.175186278 | N146: 0.0009561534682
A147: =IF('DF raw data'!E152="","",'DF raw data'!E152) -> -257.5 | B147: =IF('DF raw data'!F152="","",'DF raw data'!F152) -> -2.85828e-05 | C147: =IF('DF raw data'!G152="","",'DF raw data'!G152) -> 0.00018244 | D147: =IF('DF raw data'!H152="","",'DF raw data'!H152) -> -2.14937e-05 | F147: -2.86971312e-05 | G147: 0.00018316976 | H147: -2.15796748e-05 | J147: -0.0003966302872 | K147: -0.007803557443 | L147: 0.008186652646 | M147: 0.1792796044 | N147: 0.0009897427668
A148: =IF('DF raw data'!E153="","",'DF raw data'!E153) -> -257 | B148: =IF('DF raw data'!F153="","",'DF raw data'!F153) -> -8.40252e-06 | C148: =IF('DF raw data'!G153="","",'DF raw data'!G153) -> 0.000190832 | D148: =IF('DF raw data'!H153="","",'DF raw data'!H153) -> -3.38654e-05 | F148: -8.43613008e-06 | G148: 0.000191595328 | H148: -3.40008616e-05 | J148: -0.0004008483522 | K148: -0.008003981619 | L148: 0.00828245031 | M148: 0.1834208295 | N148: 0.001024122598
A149: =IF('DF raw data'!E154="","",'DF raw data'!E154) -> -256.5 | B149: =IF('DF raw data'!F154="","",'DF raw data'!F154) -> -1.34677e-05 | C149: =IF('DF raw data'!G154="","",'DF raw data'!G154) -> 0.000188052 | D149: =IF('DF raw data'!H154="","",'DF raw data'!H154) -> -2.31858e-05 | F149: -1.35215708e-05 | G149: 0.000188804208 | H149: -2.32785432e-05 | J149: -0.0004076091376 | K149: -0.008207786188 | L149: 0.008376852414 | M149: 0.1876092557 | N149: 0.001059291499
A150: =IF('DF raw data'!E155="","",'DF raw data'!E155) -> -256 | B150: =IF('DF raw data'!F155="","",'DF raw data'!F155) -> -1.29583e-05 | C150: =IF('DF raw data'!G155="","",'DF raw data'!G155) -> 0.000183883 | D150: =IF('DF raw data'!H155="","",'DF raw data'!H155) -> -2.0912e-05 | F150: -1.30101332e-05 | G150: 0.000184618532 | H150: -2.0995648e-05 | J150: -0.0004141142042 | K150: -0.00841484329 | L150: 0.00846916168 | M150: 0.1918438366 | N150: 0.001095240594
A151: =IF('DF raw data'!E156="","",'DF raw data'!E156) -> -255.5 | B151: =IF('DF raw data'!F156="","",'DF raw data'!F156) -> -1.66778e-05 | C151: =IF('DF raw data'!G156="","",'DF raw data'!G156) -> 0.000184442 | D151: =IF('DF raw data'!H156="","",'DF raw data'!H156) -> -1.09215e-05 | F151: -1.67445112e-05 | G151: 0.000185179768 | H151: -1.0965186e-05 | J151: -0.0004224864598 | K151: -0.00862608652 | L151: 0.008561751564 | M151: 0.1961247124 | N151: 0.001131981636
A152: =IF('DF raw data'!E157="","",'DF raw data'!E157) -> -255 | B152: =IF('DF raw data'!F157="","",'DF raw data'!F157) -> -3.09318e-06 | C152: =IF('DF raw data'!G157="","",'DF raw data'!G157) -> 0.000194171 | D152: =IF('DF raw data'!H157="","",'DF raw data'!H157) -> -2.32918e-05 | F152: -3.10555272e-06 | G152: 0.000194947684 | H152: -2.33849672e-05 | J152: -0.0004240392362 | K152: -0.008838106138 | L152: 0.008659225406 | M152: 0.2004543251 | N152: 0.001169562633
A153: =IF('DF raw data'!E158="","",'DF raw data'!E158) -> -254.5 | B153: =IF('DF raw data'!F158="","",'DF raw data'!F158) -> -1.8468e-05 | C153: =IF('DF raw data'!G158="","",'DF raw data'!G158) -> 0.000200641 | D153: =IF('DF raw data'!H158="","",'DF raw data'!H158) -> -1.553e-05 | F153: -1.8541872e-05 | G153: 0.000201443564 | H153: -1.559212e-05 | J153: -0.0004333101722 | K153: -0.009054761224 | L153: 0.008759947188 | M153: 0.2048342987 | N153: 0.001208024849
A154: =IF('DF raw data'!E159="","",'DF raw data'!E159) -> -254 | B154: =IF('DF raw data'!F159="","",'DF raw data'!F159) -> 4.9806e-07 | C154: =IF('DF raw data'!G159="","",'DF raw data'!G159) -> 0.000197186 | D154: =IF('DF raw data'!H159="","",'DF raw data'!H159) -> -3.00589e-05 | F154: 5.0005224e-07 | G154: 0.000197974744 | H154: -3.01791356e-05 | J154: -0.0004330601461 | K154: -0.009271291297 | L154: 0.00885893456 | M154: 0.2092637659 | N154: 0.001247358981
A155: =IF('DF raw data'!E160="","",'DF raw data'!E160) -> -253.5 | B155: =IF('DF raw data'!F160="","",'DF raw data'!F160) -> -1.68047e-05 | C155: =IF('DF raw data'!G160="","",'DF raw data'!G160) -> 0.000193999 | D155: =IF('DF raw data'!H160="","",'DF raw data'!H160) -> -1.28561e-05 | F155: -1.68719188e-05 | G155: 0.000194774996 | H155: -1.29075244e-05 | J155: -0.0004414961055 | K155: -0.00949203935 | L155: 0.008956322058 | M155: 0.213741927 | N155: 0.001287564293
A156: =IF('DF raw data'!E161="","",'DF raw data'!E161) -> -253 | B156: =IF('DF raw data'!F161="","",'DF raw data'!F161) -> -1.5776e-05 | C156: =IF('DF raw data'!G161="","",'DF raw data'!G161) -> 0.000196445 | D156: =IF('DF raw data'!H161="","",'DF raw data'!H161) -> -2.17366e-05 | F156: -1.5839104e-05 | G156: 0.00019723078 | H156: -2.18235464e-05 | J156: -0.0004494156575 | K156: -0.009716747178 | L156: 0.009054937448 | M156: 0.2182693957 | N156: 0.001328661226
A157: =IF('DF raw data'!E162="","",'DF raw data'!E162) -> -252.5 | B157: =IF('DF raw data'!F162="","",'DF raw data'!F162) -> -1.32169e-05 | C157: =IF('DF raw data'!G162="","",'DF raw data'!G162) -> 0.000194392 | D157: =IF('DF raw data'!H162="","",'DF raw data'!H162) -> -1.51554e-05 | F157: -1.32697676e-05 | G157: 0.000195169568 | H157: -1.52160216e-05 | J157: -0.0004560505413 | K157: -0.009944772449 | L157: 0.009152522232 | M157: 0.2228456568 | N157: 0.001370649549
A158: =IF('DF raw data'!E163="","",'DF raw data'!E163) -> -252 | B158: =IF('DF raw data'!F163="","",'DF raw data'!F163) -> -1.79501e-05 | C158: =IF('DF raw data'!G163="","",'DF raw data'!G163) -> 0.000192463 | D158: =IF('DF raw data'!H163="","",'DF raw data'!H163) -> -2.70221e-05 | F158: -1.80219004e-05 | G158: 0.000193232852 | H158: -2.71301884e-05 | J158: -0.0004650614915 | K158: -0.01017730319 | L158: 0.009249138658 | M158: 0.2274702261 | N158: 0.001413530973
A159: =IF('DF raw data'!E164="","",'DF raw data'!E164) -> -251.5 | B159: =IF('DF raw data'!F164="","",'DF raw data'!F164) -> -1.29612e-05 | C159: =IF('DF raw data'!G164="","",'DF raw data'!G164) -> 0.000192283 | D159: =IF('DF raw data'!H164="","",'DF raw data'!H164) -> -1.44992e-05 | F159: -1.30130448e-05 | G159: 0.000193052132 | H159: -1.45571968e-05 | J159: -0.0004715680139 | K159: -0.0104130872 | L159: 0.009345664724 | M159: 0.2321430585 | N159: 0.001457312885
A160: =IF('DF raw data'!E165="","",'DF raw data'!E165) -> -251 | B160: =IF('DF raw data'!F165="","",'DF raw data'!F165) -> -1.99877e-06 | C160: =IF('DF raw data'!G165="","",'DF raw data'!G165) -> 0.000190476 | D160: =IF('DF raw data'!H165="","",'DF raw data'!H165) -> -3.16965e-05 | F160: -2.00676508e-06 | G160: 0.000191237904 | H160: -3.1823286e-05 | J160: -0.0004725713964 | K160: -0.0106493729 | L160: 0.009441283676 | M160: 0.2368637003 | N160: 0.001501993466
A161: =IF('DF raw data'!E166="","",'DF raw data'!E166) -> -250.5 | B161: =IF('DF raw data'!F166="","",'DF raw data'!F166) -> -9.8216e-06 | C161: =IF('DF raw data'!G166="","",'DF raw data'!G166) -> 0.000190444 | D161: =IF('DF raw data'!H166="","",'DF raw data'!H166) -> -1.69655e-05 | F161: -9.8608864e-06 | G161: 0.000191205776 | H161: -1.7033362e-05 | J161: -0.0004775018396 | K161: -0.01088812382 | L161: 0.009536886564 | M161: 0.2416321436 | N161: 0.001547583573
A162: =IF('DF raw data'!E167="","",'DF raw data'!E167) -> -250 | B162: =IF('DF raw data'!F167="","",'DF raw data'!F167) -> -1.13524e-05 | C162: =IF('DF raw data'!G167="","",'DF raw data'!G167) -> 0.000204689 | D162: =IF('DF raw data'!H167="","",'DF raw data'!H167) -> -2.77692e-05 | F162: -1.13978096e-05 | G162: 0.000205507756 | H162: -2.78802768e-05 | J162: -0.0004832007444 | K162: -0.01112972419 | L162: 0.009639640442 | M162: 0.2464519638 | N162: 0.001594161648
A163: =IF('DF raw data'!E168="","",'DF raw data'!E168) -> -249.5 | B163: =IF('DF raw data'!F168="","",'DF raw data'!F168) -> -5.58994e-06 | C163: =IF('DF raw data'!G168="","",'DF raw data'!G168) -> 0.000212689 | D163: =IF('DF raw data'!H168="","",'DF raw data'!H168) -> -2.43247e-05 | F163: -5.61229976e-06 | G163: 0.000213539756 | H163: -2.44219988e-05 | J163: -0.0004860068943 | K163: -0.01137272764 | L163: 0.00974641032 | M163: 0.251325169 | N163: 0.001641776006
A164: =IF('DF raw data'!E169="","",'DF raw data'!E169) -> -249 | B164: =IF('DF raw data'!F169="","",'DF raw data'!F169) -> -1.21249e-05 | C164: =IF('DF raw data'!G169="","",'DF raw data'!G169) -> 0.000197898 | D164: =IF('DF raw data'!H169="","",'DF raw data'!H169) -> -2.14557e-05 | F164: -1.21733996e-05 | G164: 0.000198689592 | H164: -2.15415228e-05 | J164: -0.0004920935941 | K164: -0.01161877444 | L164: 0.009845755116 | M164: 0.2562480466 | N164: 0.001690366531
A165: =IF('DF raw data'!E170="","",'DF raw data'!E170) -> -248.5 | B165: =IF('DF raw data'!F170="","",'DF raw data'!F170) -> -1.35334e-05 | C165: =IF('DF raw data'!G170="","",'DF raw data'!G170) -> 0.000193944 | D165: =IF('DF raw data'!H170="","",'DF raw data'!H170) -> -2.14863e-05 | F165: -1.35875336e-05 | G165: 0.000194719776 | H165: -2.15722452e-05 | J165: -0.0004988873609 | K165: -0.01186821812 | L165: 0.009943115004 | M165: 0.2612196041 | N165: 0.001739923744
A166: =IF('DF raw data'!E171="","",'DF raw data'!E171) -> -248 | B166: =IF('DF raw data'!F171="","",'DF raw data'!F171) -> -8.14501e-06 | C166: =IF('DF raw data'!G171="","",'DF raw data'!G171) -> 0.000202514 | D166: =IF('DF raw data'!H171="","",'DF raw data'!H171) -> -3.55286e-05 | F166: -8.17759004e-06 | G166: 0.000203324056 | H166: -3.56707144e-05 | J166: -0.0005029761559 | K166: -0.01211970619 | L166: 0.01004477703 | M166: 0.2662419926 | N166: 0.001790499009
A167: =IF('DF raw data'!E172="","",'DF raw data'!E172) -> -247.5 | B167: =IF('DF raw data'!F172="","",'DF raw data'!F172) -> -1.49437e-05 | C167: =IF('DF raw data'!G172="","",'DF raw data'!G172) -> 0.000208066 | D167: =IF('DF raw data'!H172="","",'DF raw data'!H172) -> -1.95006e-05 | F167: -1.50034748e-05 | G167: 0.000208898264 | H167: -1.95786024e-05 | J167: -0.0005104778933 | K167: -0.01237494514 | L167: 0.01014922616 | M167: 0.2713166057 | N167: 0.001842132699
A168: =IF('DF raw data'!E173="","",'DF raw data'!E173) -> -247 | B168: =IF('DF raw data'!F173="","",'DF raw data'!F173) -> -1.25077e-05 | C168: =IF('DF raw data'!G173="","",'DF raw data'!G173) -> 0.000209292 | D168: =IF('DF raw data'!H173="","",'DF raw data'!H173) -> -2.35376e-05 | F168: -1.25577308e-05 | G168: 0.000210129168 | H168: -2.36317504e-05 | J168: -0.0005167567587 | K168: -0.01263332352 | L168: 0.01025429075 | M168: 0.276443751 | N168: 0.001894841457
A169: =IF('DF raw data'!E174="","",'DF raw data'!E174) -> -246.5 | B169: =IF('DF raw data'!F174="","",'DF raw data'!F174) -> -8.73157e-06 | C169: =IF('DF raw data'!G174="","",'DF raw data'!G174) -> 0.000200313 | D169: =IF('DF raw data'!H174="","",'DF raw data'!H174) -> -1.9108e-05 | F169: -8.76649628e-06 | G169: 0.000201114252 | H169: -1.9184432e-05 | J169: -0.0005211400069 | K169: -0.01289389352 | L169: 0.01035484787 | M169: 0.281621175 | N169: 0.001948588688
A170: =IF('DF raw data'!E175="","",'DF raw data'!E175) -> -246 | B170: =IF('DF raw data'!F175="","",'DF raw data'!F175) -> -1.18675e-05 | C170: =IF('DF raw data'!G175="","",'DF raw data'!G175) -> 0.00020559 | D170: =IF('DF raw data'!H175="","",'DF raw data'!H175) -> -2.31019e-05 | F170: -1.191497e-05 | G170: 0.00020641236 | H170: -2.31943076e-05 | J170: -0.0005270974919 | K170: -0.01315744227 | L170: 0.01045805405 | M170: 0.286850202 | N170: 0.002003413051
A171: =IF('DF raw data'!E176="","",'DF raw data'!E176) -> -245.5 | B171: =IF('DF raw data'!F176="","",'DF raw data'!F176) -> -1.31563e-05 | C171: =IF('DF raw data'!G176="","",'DF raw data'!G176) -> 0.000200075 | D171: =IF('DF raw data'!H176="","",'DF raw data'!H176) -> -1.07169e-05 | F171: -1.32089252e-05 | G171: 0.0002008753 | H171: -1.07597676e-05 | J171: -0.0005337019545 | K171: -0.01342429325 | L171: 0.0105584917 | M171: 0.2921294478 | N171: 0.002059296343
A172: =IF('DF raw data'!E177="","",'DF raw data'!E177) -> -245 | B172: =IF('DF raw data'!F177="","",'DF raw data'!F177) -> -5.78707e-06 | C172: =IF('DF raw data'!G177="","",'DF raw data'!G177) -> 0.000201345 | D172: =IF('DF raw data'!H177="","",'DF raw data'!H177) -> -1.71884e-05 | F172: -5.81021828e-06 | G172: 0.00020215038 | H172: -1.72571536e-05 | J172: -0.0005366070636 | K172: -0.01369259678 | L172: 0.01065956689 | M172: 0.2974592313 | N172: 0.0021162535
A173: =IF('DF raw data'!E178="","",'DF raw data'!E178) -> -244.5 | B173: =IF('DF raw data'!F178="","",'DF raw data'!F178) -> -8.34352e-06 | C173: =IF('DF raw data'!G178="","",'DF raw data'!G178) -> 0.000194445 | D173: =IF('DF raw data'!H178="","",'DF raw data'!H178) -> -2.50389e-05 | F173: -8.37689408e-06 | G173: 0.00019522278 | H173: -2.51390556e-05 | J173: -0.0005407955106 | K173: -0.01396299453 | L173: 0.01075717828 | M173: 0.3028378204 | N173: 0.002174258172
A174: =IF('DF raw data'!E179="","",'DF raw data'!E179) -> -244 | B174: =IF('DF raw data'!F179="","",'DF raw data'!F179) -> -3.35582e-06 | C174: =IF('DF raw data'!G179="","",'DF raw data'!G179) -> 0.000198604 | D174: =IF('DF raw data'!H179="","",'DF raw data'!H179) -> -1.309e-05 | F174: -3.36924328e-06 | G174: 0.000199398416 | H174: -1.314236e-05 | J174: -0.0005424801323 | K174: -0.0142342346 | L174: 0.01085687749 | M174: 0.3082662592 | N174: 0.002233341209
A175: =IF('DF raw data'!E180="","",'DF raw data'!E180) -> -243.5 | B175: =IF('DF raw data'!F180="","",'DF raw data'!F180) -> -2.13138e-06 | C175: =IF('DF raw data'!G180="","",'DF raw data'!G180) -> 0.000196098 | D175: =IF('DF raw data'!H180="","",'DF raw data'!H180) -> -2.45726e-05 | F175: -2.13990552e-06 | G175: 0.000196882392 | H175: -2.46708904e-05 | J175: -0.000543550085 | K175: -0.01450600964 | L175: 0.01095531869 | M175: 0.3137439185 | N175: 0.002293498436
A176: =IF('DF raw data'!E181="","",'DF raw data'!E181) -> -243 | B176: =IF('DF raw data'!F181="","",'DF raw data'!F181) -> -1.39782e-05 | C176: =IF('DF raw data'!G181="","",'DF raw data'!G181) -> 0.000180246 | D176: =IF('DF raw data'!H181="","",'DF raw data'!H181) -> -2.74175e-05 | F176: -1.40341128e-05 | G176: 0.000180966984 | H176: -2.752717e-05 | J176: -0.0005505671414 | K176: -0.01478129321 | L176: 0.01104580218 | M176: 0.3192668196 | N176: 0.002354654871
A177: =IF('DF raw data'!E182="","",'DF raw data'!E182) -> -242.5 | B177: =IF('DF raw data'!F182="","",'DF raw data'!F182) -> -1.26946e-05 | C177: =IF('DF raw data'!G182="","",'DF raw data'!G182) -> 0.000188801 | D177: =IF('DF raw data'!H182="","",'DF raw data'!H182) -> -3.12894e-05 | F177: -1.27453784e-05 | G177: 0.000189556204 | H177: -3.14145576e-05 | J177: -0.0005569398306 | K177: -0.01505976313 | L177: 0.01114058028 | M177: 0.3248371098 | N177: 0.002416866226
A178: =IF('DF raw data'!E183="","",'DF raw data'!E183) -> -242 | B178: =IF('DF raw data'!F183="","",'DF raw data'!F183) -> -1.13513e-05 | C178: =IF('DF raw data'!G183="","",'DF raw data'!G183) -> 0.000203619 | D178: =IF('DF raw data'!H183="","",'DF raw data'!H183) -> -2.88748e-05 | F178: -1.13967052e-05 | G178: 0.000204433476 | H178: -2.89902992e-05 | J178: -0.0005626381832 | K178: -0.01534108222 | L178: 0.01124279702 | M178: 0.3304585083 | N178: 0.00248022475
A179: =IF('DF raw data'!E184="","",'DF raw data'!E184) -> -241.5 | B179: =IF('DF raw data'!F184="","",'DF raw data'!F184) -> -1.54629e-05 | C179: =IF('DF raw data'!G184="","",'DF raw data'!G184) -> 0.000210288 | D179: =IF('DF raw data'!H184="","",'DF raw data'!H184) -> -9.20969e-06 | F179: -1.55247516e-05 | G179: 0.000211129152 | H179: -9.24652876e-06 | J179: -0.000570400559 | K179: -0.0156262825 | L179: 0.0113483616 | M179: 0.3361326891 | N179: 0.002544780084
A180: =IF('DF raw data'!E185="","",'DF raw data'!E185) -> -241 | B180: =IF('DF raw data'!F185="","",'DF raw data'!F185) -> -2.05166e-05 | C180: =IF('DF raw data'!G185="","",'DF raw data'!G185) -> 0.000206643 | D180: =IF('DF raw data'!H185="","",'DF raw data'!H185) -> -1.89319e-05 | F180: -2.05986664e-05 | G180: 0.000207469572 | H180: -1.90076276e-05 | J180: -0.0005806998922 | K180: -0.01591663245 | L180: 0.01145209638 | M180: 0.3418587373 | N180: 0.002610523946
A181: =IF('DF raw data'!E186="","",'DF raw data'!E186) -> -240.5 | B181: =IF('DF raw data'!F186="","",'DF raw data'!F186) -> -1.81501e-05 | C181: =IF('DF raw data'!G186="","",'DF raw data'!G186) -> 0.000194583 | D181: =IF('DF raw data'!H186="","",'DF raw data'!H186) -> -1.36558e-05 | F181: -1.82227004e-05 | G181: 0.000195361332 | H181: -1.37104232e-05 | J181: -0.0005898112424 | K181: -0.01621153807 | L181: 0.01154977705 | M181: 0.3476336258 | N181: 0.002677396559
A182: =IF('DF raw data'!E187="","",'DF raw data'!E187) -> -240 | B182: =IF('DF raw data'!F187="","",'DF raw data'!F187) -> -1.69348e-05 | C182: =IF('DF raw data'!G187="","",'DF raw data'!G187) -> 0.000201209 | D182: =IF('DF raw data'!H187="","",'DF raw data'!H187) -> -1.13478e-05 | F182: -1.70025392e-05 | G182: 0.000202013836 | H182: -1.13931912e-05 | J182: -0.000598312512 | K182: -0.01651069432 | L182: 0.01165078397 | M182: 0.3534590178 | N182: 0.002745445932
A183: =IF('DF raw data'!E188="","",'DF raw data'!E188) -> -239.5 | B183: =IF('DF raw data'!F188="","",'DF raw data'!F188) -> -2.29491e-05 | C183: =IF('DF raw data'!G188="","",'DF raw data'!G188) -> 0.000208952 | D183: =IF('DF raw data'!H188="","",'DF raw data'!H188) -> -2.0244e-05 | F183: -2.30408964e-05 | G183: 0.000209787808 | H183: -2.0324976e-05 | J183: -0.0006098329602 | K183: -0.0168156108 | L183: 0.01175567787 | M183: 0.3593368567 | N183: 0.002814729861
A184: =IF('DF raw data'!E189="","",'DF raw data'!E189) -> -239 | B184: =IF('DF raw data'!F189="","",'DF raw data'!F189) -> -2.35299e-05 | C184: =IF('DF raw data'!G189="","",'DF raw data'!G189) -> 0.000207383 | D184: =IF('DF raw data'!H189="","",'DF raw data'!H189) -> -1.38254e-05 | F184: -2.36240196e-05 | G184: 0.000208212532 | H184: -1.38807016e-05 | J184: -0.00062164497 | K184: -0.01712643329 | L184: 0.01185978414 | M184: 0.3652667488 | N184: 0.002885250322
A185: =IF('DF raw data'!E190="","",'DF raw data'!E190) -> -238.5 | B185: =IF('DF raw data'!F190="","",'DF raw data'!F190) -> -1.65489e-05 | C185: =IF('DF raw data'!G190="","",'DF raw data'!G190) -> 0.000200665 | D185: =IF('DF raw data'!H190="","",'DF raw data'!H190) -> -1.37292e-05 | F185: -1.66150956e-05 | G185: 0.00020146766 | H185: -1.37841168e-05 | J185: -0.0006299525178 | K185: -0.01744140955 | L185: 0.01196051797 | M185: 0.3712470077 | N185: 0.002956975737
A186: =IF('DF raw data'!E191="","",'DF raw data'!E191) -> -238 | B186: =IF('DF raw data'!F191="","",'DF raw data'!F191) -> -8.54486e-06 | C186: =IF('DF raw data'!G191="","",'DF raw data'!G191) -> 0.000188786 | D186: =IF('DF raw data'!H191="","",'DF raw data'!H191) -> -1.1197e-05 | F186: -8.57903944e-06 | G186: 0.000189541144 | H186: -1.1241788e-05 | J186: -0.0006342420376 | K186: -0.01775853057 | L186: 0.01205528854 | M186: 0.377274652 | N186: 0.003029841859
A187: =IF('DF raw data'!E192="","",'DF raw data'!E192) -> -237.5 | B187: =IF('DF raw data'!F192="","",'DF raw data'!F192) -> -6.62243e-06 | C187: =IF('DF raw data'!G192="","",'DF raw data'!G192) -> 0.000194217 | D187: =IF('DF raw data'!H192="","",'DF raw data'!H192) -> -1.25458e-05 | F187: -6.64891972e-06 | G187: 0.000194993868 | H187: -1.25959832e-05 | J187: -0.0006375664974 | K187: -0.01807731381 | L187: 0.01215278547 | M187: 0.3833510447 | N187: 0.003103890202
A188: =IF('DF raw data'!E193="","",'DF raw data'!E193) -> -237 | B188: =IF('DF raw data'!F193="","",'DF raw data'!F193) -> -1.14228e-05 | C188: =IF('DF raw data'!G193="","",'DF raw data'!G193) -> 0.000198927 | D188: =IF('DF raw data'!H193="","",'DF raw data'!H193) -> -1.74516e-05 | F188: -1.14684912e-05 | G188: 0.000199722708 | H188: -1.75214064e-05 | J188: -0.000643300743 | K188: -0.01839896419 | L188: 0.01225264683 | M188: 0.3894773682 | N188: 0.003179160797
A189: =IF('DF raw data'!E194="","",'DF raw data'!E194) -> -236.5 | B189: =IF('DF raw data'!F194="","",'DF raw data'!F194) -> -1.02018e-05 | C189: =IF('DF raw data'!G194="","",'DF raw data'!G194) -> 0.00019102 | D189: =IF('DF raw data'!H194="","",'DF raw data'!H194) -> -2.37957e-05 | F189: -1.02426072e-05 | G189: 0.00019178408 | H189: -2.38908828e-05 | J189: -0.0006484220466 | K189: -0.01872317521 | L189: 0.01234853887 | M189: 0.3956516376 | N189: 0.003255614229
A190: =IF('DF raw data'!E195="","",'DF raw data'!E195) -> -236 | B190: =IF('DF raw data'!F195="","",'DF raw data'!F195) -> -1.35964e-05 | C190: =IF('DF raw data'!G195="","",'DF raw data'!G195) -> 0.000190481 | D190: =IF('DF raw data'!H195="","",'DF raw data'!H195) -> -2.34111e-05 | F190: -1.36507856e-05 | G190: 0.000191242924 | H190: -2.35047444e-05 | J190: -0.0006552474394 | K190: -0.01905079893 | L190: 0.01244416033 | M190: 0.4018737178 | N190: 0.003333257467
A191: =IF('DF raw data'!E196="","",'DF raw data'!E196) -> -235.5 | B191: =IF('DF raw data'!F196="","",'DF raw data'!F196) -> -2.44236e-05 | C191: =IF('DF raw data'!G196="","",'DF raw data'!G196) -> 0.000195202 | D191: =IF('DF raw data'!H196="","",'DF raw data'!H196) -> -1.81843e-05 | F191: -2.45212944e-05 | G191: 0.000195982808 | H191: -1.82570372e-05 | J191: -0.0006675080866 | K191: -0.01938455297 | L191: 0.01254215173 | M191: 0.4081447936 | N191: 0.003412133035
A192: =IF('DF raw data'!E197="","",'DF raw data'!E197) -> -235 | B192: =IF('DF raw data'!F197="","",'DF raw data'!F197) -> -5.53332e-06 | C192: =IF('DF raw data'!G197="","",'DF raw data'!G197) -> 0.000207199 | D192: =IF('DF raw data'!H197="","",'DF raw data'!H197) -> -1.29458e-05 | F192: =(1-$G$1*($B$49-$G$2))*B192 -> -5.55545328e-06 | G192: 0.000208027796 | H192: -1.29975832e-05 | J192: =F192*$G$3+J191 -> -0.0006702858133 | K192: =J192*$G$3+K191 -> -0.01971969588 | L192: =G192*$G$3+L191 -> 0.01264616563 | M192: =L192*$G$3+M191 -> 0.4144678764 | N192: =(J192^2+L192^2)*$G$3+N191 -> 0.003492320429
A193: =IF('DF raw data'!E198="","",'DF raw data'!E198) -> -234.5 | B193: =IF('DF raw data'!F198="","",'DF raw data'!F198) -> -1.43055e-05 | C193: =IF('DF raw data'!G198="","",'DF raw data'!G198) -> 0.000205562 | D193: =IF('DF raw data'!H198="","",'DF raw data'!H198) -> -1.65757e-05 | F193: -1.4362722e-05 | G193: 0.000206384248 | H193: -1.66420028e-05 | J193: -0.0006774671743 | K193: -0.02005842947 | L193: 0.01274935775 | M193: 0.4208425553 | N193: 0.003573822972
A194: =IF('DF raw data'!E199="","",'DF raw data'!E199) -> -234 | B194: =IF('DF raw data'!F199="","",'DF raw data'!F199) -> -1.32147e-05 | C194: =IF('DF raw data'!G199="","",'DF raw data'!G199) -> 0.000191457 | D194: =IF('DF raw data'!H199="","",'DF raw data'!H199) -> -1.954e-05 | F194: -1.32675588e-05 | G194: 0.000192222828 | H194: -1.961816e-05 | J194: -0.0006841009537 | K194: -0.02040047994 | L194: 0.01284546917 | M194: 0.4272652899 | N194: 0.003656560008
A195: =IF('DF raw data'!E200="","",'DF raw data'!E200) -> -233.5 | B195: =IF('DF raw data'!F200="","",'DF raw data'!F200) -> -1.9174e-05 | C195: =IF('DF raw data'!G200="","",'DF raw data'!G200) -> 0.000194025 | D195: =IF('DF raw data'!H200="","",'DF raw data'!H200) -> -1.49938e-05 | F195: -1.9250696e-05 | G195: 0.0001948011 | H195: -1.50537752e-05 | J195: -0.0006937263017 | K195: -0.02074734309 | L195: 0.01294286972 | M195: 0.4337367248 | N195: 0.003740559574
A196: =IF('DF raw data'!E201="","",'DF raw data'!E201) -> -233 | B196: =IF('DF raw data'!F201="","",'DF raw data'!F201) -> -1.25143e-05 | C196: =IF('DF raw data'!G201="","",'DF raw data'!G201) -> 0.00019506 | D196: =IF('DF raw data'!H201="","",'DF raw data'!H201) -> -1.29382e-05 | F196: -1.25643572e-05 | G196: 0.00019584024 | H196: -1.29899528e-05 | J196: -0.0007000084803 | K196: -0.02109734733 | L196: 0.01304078984 | M196: 0.4402571197 | N196: 0.00382583568
A197: =IF('DF raw data'!E202="","",'DF raw data'!E202) -> -232.5 | B197: =IF('DF raw data'!F202="","",'DF raw data'!F202) -> -2.18596e-05 | C197: =IF('DF raw data'!G202="","",'DF raw data'!G202) -> 0.000196865 | D197: =IF('DF raw data'!H202="","",'DF raw data'!H202) -> -2.13993e-05 | F197: -2.19470384e-05 | G197: 0.00019765246 | H197: -2.14848972e-05 | J197: -0.0007109819995 | K197: -0.02145283833 | L197: 0.01313961607 | M197: 0.4468269277 | N197: 0.003912413183
A198: =IF('DF raw data'!E203="","",'DF raw data'!E203) -> -232 | B198: =IF('DF raw data'!F203="","",'DF raw data'!F203) -> -2.06471e-05 | C198: =IF('DF raw data'!G203="","",'DF raw data'!G203) -> 0.000193267 | D198: =IF('DF raw data'!H203="","",'DF raw data'!H203) -> -1.48821e-05 | F198: -2.07296884e-05 | G198: 0.000194040068 | H198: -1.49416284e-05 | J198: -0.0007213468436 | K198: -0.02181351176 | L198: 0.0132366361 | M198: 0.4534452458 | N198: 0.004000277621
A199: =IF('DF raw data'!E204="","",'DF raw data'!E204) -> -231.5 | B199: =IF('DF raw data'!F204="","",'DF raw data'!F204) -> -2.35938e-05 | C199: =IF('DF raw data'!G204="","",'DF raw data'!G204) -> 0.000199993 | D199: =IF('DF raw data'!H204="","",'DF raw data'!H204) -> -1.38361e-05 | F199: -2.36881752e-05 | G199: 0.000200792972 | H199: -1.38914444e-05 | J199: -0.0007331909312 | K199: -0.02218010722 | L199: 0.01333703259 | M199: 0.4601137621 | N199: 0.004089484625
A200: =IF('DF raw data'!E205="","",'DF raw data'!E205) -> -231 | B200: =IF('DF raw data'!F205="","",'DF raw data'!F205) -> -5.14928e-06 | C200: =IF('DF raw data'!G205="","",'DF raw data'!G205) -> 0.000203168 | D200: =IF('DF raw data'!H205="","",'DF raw data'!H205) -> -1.26134e-05 | F200: -5.16987712e-06 | G200: 0.000203980672 | H200: -1.26638536e-05 | J200: -0.0007357758698 | K200: -0.02254799516 | L200: 0.01343902292 | M200: 0.4668332735 | N200: 0.004180058976
A201: =IF('DF raw data'!E206="","",'DF raw data'!E206) -> -230.5 | B201: =IF('DF raw data'!F206="","",'DF raw data'!F206) -> -4.246e-06 | C201: =IF('DF raw data'!G206="","",'DF raw data'!G206) -> 0.000195474 | D201: =IF('DF raw data'!H206="","",'DF raw data'!H206) -> -2.29273e-05 | F201: -4.262984e-06 | G201: 0.000196255896 | H201: -2.30190092e-05 | J201: -0.0007379073618 | K201: -0.02291694884 | L201: 0.01353715087 | M201: 0.473601849 | N201: 0.004271958457
... 1061 more rows

Sheet 10 x=0
A1: =IF('DF raw data'!I1="","",'DF raw data'!I1) -> Number of header lines | B1: =IF('DF raw data'!J1="","",'DF raw data'!J1) -> 54 | C1: =IF('DF raw data'!K1="","",'DF raw data'!K1) ->  | D1: =IF('DF raw data'!L1="","",'DF raw data'!L1) ->  | F1: T_coeff | G1: -0.001 | H1: /degC | J1: IBy total | K1: =J1262*1000 -> 6.91795118 | L1: muTm | M1: =L1262*1000 -> 66.44726633 | R1: DF ref | S1: ='10 x=-2'!S1 -> 1
A2: =IF('DF raw data'!I2="","",'DF raw data'!I2) -> Measured by | B2: =IF('DF raw data'!J2="","",'DF raw data'!J2) -> Danfysik | C2: =IF('DF raw data'!K2="","",'DF raw data'!K2) ->  | D2: =IF('DF raw data'!L2="","",'DF raw data'!L2) ->  | F2: Tcorr | G2: 20 | H2: degC | J2: JBy total | K2: =K1262 -> -2.054201992 | L2: muTm^2 | M2: =M1262 -> 22.5618477
A3: =IF('DF raw data'!I3="","",'DF raw data'!I3) -> Operator | B3: =IF('DF raw data'!J3="","",'DF raw data'!J3) -> PMHA | C3: =IF('DF raw data'!K3="","",'DF raw data'!K3) ->  | D3: =IF('DF raw data'!L3="","",'DF raw data'!L3) ->  | F3: Step | G3: =A63-A62 -> 0.5 | H3: mm | J3: PI total | K3: =N1262 -> 10600.59887 | L3: T^2mm^3
A4: =IF('DF raw data'!I4="","",'DF raw data'!I4) -> Data-time | B4: =IF('DF raw data'!J4="","",'DF raw data'!J4) -> 26-09-2024, 09:16:59 | C4: =IF('DF raw data'!K4="","",'DF raw data'!K4) ->  | D4: =IF('DF raw data'!L4="","",'DF raw data'!L4) -> 
A5: =IF('DF raw data'!I5="","",'DF raw data'!I5) -> Project | B5: =IF('DF raw data'!J5="","",'DF raw data'!J5) -> 504314 | C5: =IF('DF raw data'!K5="","",'DF raw data'!K5) ->  | D5: =IF('DF raw data'!L5="","",'DF raw data'!L5) -> 
A6: =IF('DF raw data'!I6="","",'DF raw data'!I6) -> Magnet type | B6: =IF('DF raw data'!J6="","",'DF raw data'!J6) -> Dipole | C6: =IF('DF raw data'!K6="","",'DF raw data'!K6) ->  | D6: =IF('DF raw data'!L6="","",'DF raw data'!L6) -> 
A7: =IF('DF raw data'!I7="","",'DF raw data'!I7) -> Magnet nr. | B7: =IF('DF raw data'!J7="","",'DF raw data'!J7) -> 2410102 | C7: =IF('DF raw data'!K7="","",'DF raw data'!K7) ->  | D7: =IF('DF raw data'!L7="","",'DF raw data'!L7) -> 
A8: =IF('DF raw data'!I8="","",'DF raw data'!I8) -> Meas. number | B8: =IF('DF raw data'!J8="","",'DF raw data'!J8) -> 690 | C8: =IF('DF raw data'!K8="","",'DF raw data'!K8) ->  | D8: =IF('DF raw data'!L8="","",'DF raw data'!L8) -> 
A9: =IF('DF raw data'!I9="","",'DF raw data'!I9) -> Add. info | B9: =IF('DF raw data'!J9="","",'DF raw data'!J9) -> X-alignment scan 3) | C9: =IF('DF raw data'!K9="","",'DF raw data'!K9) ->  | D9: =IF('DF raw data'!L9="","",'DF raw data'!L9) -> 
A10: =IF('DF raw data'!I10="","",'DF raw data'!I10) -> Device | B10: =IF('DF raw data'!J10="","",'DF raw data'!J10) -> (HAL) HALL-PROBE | C10: =IF('DF raw data'!K10="","",'DF raw data'!K10) ->  | D10: =IF('DF raw data'!L10="","",'DF raw data'!L10) -> 
A11: =IF('DF raw data'!I11="","",'DF raw data'!I11) -> Goal | B11: =IF('DF raw data'!J11="","",'DF raw data'!J11) -> (AXI) AXis Integral (Line, EFB) | C11: =IF('DF raw data'!K11="","",'DF raw data'!K11) ->  | D11: =IF('DF raw data'!L11="","",'DF raw data'!L11) -> 
A12: =IF('DF raw data'!I12="","",'DF raw data'!I12) -> Power supply mode | B12: =IF('DF raw data'!J12="","",'DF raw data'!J12) -> (PM) Permanent Magnet (no MPS in use) | C12: =IF('DF raw data'!K12="","",'DF raw data'!K12) ->  | D12: =IF('DF raw data'!L12="","",'DF raw data'!L12) -> 
A13: =IF('DF raw data'!I13="","",'DF raw data'!I13) -> Data format | B13: =IF('DF raw data'!J13="","",'DF raw data'!J13) -> Raw data text file | C13: =IF('DF raw data'!K13="","",'DF raw data'!K13) ->  | D13: =IF('DF raw data'!L13="","",'DF raw data'!L13) -> 
A14: =IF('DF raw data'!I14="","",'DF raw data'!I14) -> Direction of the pos. x-axis | B14: =IF('DF raw data'!J14="","",'DF raw data'!J14) -> See test program | C14: =IF('DF raw data'!K14="","",'DF raw data'!K14) ->  | D14: =IF('DF raw data'!L14="","",'DF raw data'!L14) -> 
A15: =IF('DF raw data'!I15="","",'DF raw data'!I15) -> Direction of the pos. y-axis | B15: =IF('DF raw data'!J15="","",'DF raw data'!J15) -> Vertical up | C15: =IF('DF raw data'!K15="","",'DF raw data'!K15) ->  | D15: =IF('DF raw data'!L15="","",'DF raw data'!L15) -> 
A16: =IF('DF raw data'!I16="","",'DF raw data'!I16) -> Direction of the pos. z-axis | B16: =IF('DF raw data'!J16="","",'DF raw data'!J16) -> See test program | C16: =IF('DF raw data'!K16="","",'DF raw data'!K16) ->  | D16: =IF('DF raw data'!L16="","",'DF raw data'!L16) -> 
A17: =IF('DF raw data'!I17="","",'DF raw data'!I17) -> Mapper type | B17: =IF('DF raw data'!J17="","",'DF raw data'!J17) -> Precision Hall Mapper | C17: =IF('DF raw data'!K17="","",'DF raw data'!K17) ->  | D17: =IF('DF raw data'!L17="","",'DF raw data'!L17) -> 
A18: =IF('DF raw data'!I18="","",'DF raw data'!I18) -> Mapper Danfysik Reg. Number | B18: =IF('DF raw data'!J18="","",'DF raw data'!J18) -> 2033-D (mapper 1) | C18: =IF('DF raw data'!K18="","",'DF raw data'!K18) ->  | D18: =IF('DF raw data'!L18="","",'DF raw data'!L18) -> 
A19: =IF('DF raw data'!I19="","",'DF raw data'!I19) -> Measurement consept | B19: =IF('DF raw data'!J19="","",'DF raw data'!J19) -> Square line grid | C19: =IF('DF raw data'!K19="","",'DF raw data'!K19) ->  | D19: =IF('DF raw data'!L19="","",'DF raw data'!L19) -> 
A20: =IF('DF raw data'!I20="","",'DF raw data'!I20) -> Mode | B20: =IF('DF raw data'!J20="","",'DF raw data'!J20) -> On-the-fly measurement | C20: =IF('DF raw data'!K20="","",'DF raw data'!K20) ->  | D20: =IF('DF raw data'!L20="","",'DF raw data'!L20) -> 
A21: =IF('DF raw data'!I21="","",'DF raw data'!I21) ->  | B21: =IF('DF raw data'!J21="","",'DF raw data'!J21) ->  | C21: =IF('DF raw data'!K21="","",'DF raw data'!K21) ->  | D21: =IF('DF raw data'!L21="","",'DF raw data'!L21) -> 
A22: =IF('DF raw data'!I22="","",'DF raw data'!I22) -> Probe Name | B22: =IF('DF raw data'!J22="","",'DF raw data'!J22) -> ID12_By | C22: =IF('DF raw data'!K22="","",'DF raw data'!K22) ->  | D22: =IF('DF raw data'!L22="","",'DF raw data'!L22) -> 
A23: =IF('DF raw data'!I23="","",'DF raw data'!I23) -> Probe Type | B23: =IF('DF raw data'!J23="","",'DF raw data'!J23) -> DF_ID_3D_Bxyz | C23: =IF('DF raw data'!K23="","",'DF raw data'!K23) ->  | D23: =IF('DF raw data'!L23="","",'DF raw data'!L23) -> 
A24: =IF('DF raw data'!I24="","",'DF raw data'!I24) -> Probe Danfysik Reg. Number | B24: =IF('DF raw data'!J24="","",'DF raw data'!J24) -> 2277 | C24: =IF('DF raw data'!K24="","",'DF raw data'!K24) ->  | D24: =IF('DF raw data'!L24="","",'DF raw data'!L24) -> 
A25: =IF('DF raw data'!I25="","",'DF raw data'!I25) -> Probe Axis | B25: =IF('DF raw data'!J25="","",'DF raw data'!J25) -> By | C25: =IF('DF raw data'!K25="","",'DF raw data'!K25) ->  | D25: =IF('DF raw data'!L25="","",'DF raw data'!L25) -> 
A26: =IF('DF raw data'!I26="","",'DF raw data'!I26) -> Probe Current Supply | B26: =IF('DF raw data'!J26="","",'DF raw data'!J26) -> 1825-D | C26: =IF('DF raw data'!K26="","",'DF raw data'!K26) ->  | D26: =IF('DF raw data'!L26="","",'DF raw data'!L26) -> 
A27: =IF('DF raw data'!I27="","",'DF raw data'!I27) -> Probe Gain Correction | B27: =IF('DF raw data'!J27="","",'DF raw data'!J27) -> 0.99599 | C27: =IF('DF raw data'!K27="","",'DF raw data'!K27) ->  | D27: =IF('DF raw data'!L27="","",'DF raw data'!L27) -> 
A28: =IF('DF raw data'!I28="","",'DF raw data'!I28) -> Probe Offset Correction | B28: =IF('DF raw data'!J28="","",'DF raw data'!J28) -> 0.0027595 | C28: =IF('DF raw data'!K28="","",'DF raw data'!K28) ->  | D28: =IF('DF raw data'!L28="","",'DF raw data'!L28) -> 
A29: =IF('DF raw data'!I29="","",'DF raw data'!I29) -> DVM Number | B29: =IF('DF raw data'!J29="","",'DF raw data'!J29) -> 2 | C29: =IF('DF raw data'!K29="","",'DF raw data'!K29) ->  | D29: =IF('DF raw data'!L29="","",'DF raw data'!L29) -> 
A30: =IF('DF raw data'!I30="","",'DF raw data'!I30) -> DVM Type | B30: =IF('DF raw data'!J30="","",'DF raw data'!J30) -> K2701 | C30: =IF('DF raw data'!K30="","",'DF raw data'!K30) ->  | D30: =IF('DF raw data'!L30="","",'DF raw data'!L30) -> 
A31: =IF('DF raw data'!I31="","",'DF raw data'!I31) -> DVM Danfysik Reg. Number | B31: =IF('DF raw data'!J31="","",'DF raw data'!J31) -> 1743-D | C31: =IF('DF raw data'!K31="","",'DF raw data'!K31) ->  | D31: =IF('DF raw data'!L31="","",'DF raw data'!L31) -> 
A32: =IF('DF raw data'!I32="","",'DF raw data'!I32) -> Probe Name | B32: =IF('DF raw data'!J32="","",'DF raw data'!J32) -> ID12_Bx | C32: =IF('DF raw data'!K32="","",'DF raw data'!K32) ->  | D32: =IF('DF raw data'!L32="","",'DF raw data'!L32) -> 
A33: =IF('DF raw data'!I33="","",'DF raw data'!I33) -> Probe Type | B33: =IF('DF raw data'!J33="","",'DF raw data'!J33) -> DF_ID_3D_Bxyz | C33: =IF('DF raw data'!K33="","",'DF raw data'!K33) ->  | D33: =IF('DF raw data'!L33="","",'DF raw data'!L33) -> 
A34: =IF('DF raw data'!I34="","",'DF raw data'!I34) -> Probe Danfysik Reg. Number | B34: =IF('DF raw data'!J34="","",'DF raw data'!J34) -> 2277 | C34: =IF('DF raw data'!K34="","",'DF raw data'!K34) ->  | D34: =IF('DF raw data'!L34="","",'DF raw data'!L34) -> 
A35: =IF('DF raw data'!I35="","",'DF raw data'!I35) -> Probe Axis | B35: =IF('DF raw data'!J35="","",'DF raw data'!J35) -> Bx | C35: =IF('DF raw data'!K35="","",'DF raw data'!K35) ->  | D35: =IF('DF raw data'!L35="","",'DF raw data'!L35) -> 
A36: =IF('DF raw data'!I36="","",'DF raw data'!I36) -> Probe Current Supply | B36: =IF('DF raw data'!J36="","",'DF raw data'!J36) -> 1825-D | C36: =IF('DF raw data'!K36="","",'DF raw data'!K36) ->  | D36: =IF('DF raw data'!L36="","",'DF raw data'!L36) -> 
A37: =IF('DF raw data'!I37="","",'DF raw data'!I37) -> Probe Gain Correction | B37: =IF('DF raw data'!J37="","",'DF raw data'!J37) -> 1 | C37: =IF('DF raw data'!K37="","",'DF raw data'!K37) ->  | D37: =IF('DF raw data'!L37="","",'DF raw data'!L37) -> 
A38: =IF('DF raw data'!I38="","",'DF raw data'!I38) -> Probe Offset Correction | B38: =IF('DF raw data'!J38="","",'DF raw data'!J38) -> -0.17537 | C38: =IF('DF raw data'!K38="","",'DF raw data'!K38) ->  | D38: =IF('DF raw data'!L38="","",'DF raw data'!L38) -> 
A39: =IF('DF raw data'!I39="","",'DF raw data'!I39) -> DVM Number | B39: =IF('DF raw data'!J39="","",'DF raw data'!J39) -> 3 | C39: =IF('DF raw data'!K39="","",'DF raw data'!K39) ->  | D39: =IF('DF raw data'!L39="","",'DF raw data'!L39) -> 
A40: =IF('DF raw data'!I40="","",'DF raw data'!I40) -> DVM Type | B40: =IF('DF raw data'!J40="","",'DF raw data'!J40) -> K2701 | C40: =IF('DF raw data'!K40="","",'DF raw data'!K40) ->  | D40: =IF('DF raw data'!L40="","",'DF raw data'!L40) -> 
A41: =IF('DF raw data'!I41="","",'DF raw data'!I41) -> DVM Danfysik Reg. Number | B41: =IF('DF raw data'!J41="","",'DF raw data'!J41) -> 1744-D | C41: =IF('DF raw data'!K41="","",'DF raw data'!K41) ->  | D41: =IF('DF raw data'!L41="","",'DF raw data'!L41) -> 
A42: =IF('DF raw data'!I42="","",'DF raw data'!I42) -> Probe Name | B42: =IF('DF raw data'!J42="","",'DF raw data'!J42) -> ID12_Bz | C42: =IF('DF raw data'!K42="","",'DF raw data'!K42) ->  | D42: =IF('DF raw data'!L42="","",'DF raw data'!L42) -> 
A43: =IF('DF raw data'!I43="","",'DF raw data'!I43) -> Probe Type | B43: =IF('DF raw data'!J43="","",'DF raw data'!J43) -> DF_ID_3D_Bxyz | C43: =IF('DF raw data'!K43="","",'DF raw data'!K43) ->  | D43: =IF('DF raw data'!L43="","",'DF raw data'!L43) -> 
A44: =IF('DF raw data'!I44="","",'DF raw data'!I44) -> Probe Danfysik Reg. Number | B44: =IF('DF raw data'!J44="","",'DF raw data'!J44) -> 2277 | C44: =IF('DF raw data'!K44="","",'DF raw data'!K44) ->  | D44: =IF('DF raw data'!L44="","",'DF raw data'!L44) -> 
A45: =IF('DF raw data'!I45="","",'DF raw data'!I45) -> Probe Axis | B45: =IF('DF raw data'!J45="","",'DF raw data'!J45) -> Bz | C45: =IF('DF raw data'!K45="","",'DF raw data'!K45) ->  | D45: =IF('DF raw data'!L45="","",'DF raw data'!L45) -> 
A46: =IF('DF raw data'!I46="","",'DF raw data'!I46) -> Probe Current Supply | B46: =IF('DF raw data'!J46="","",'DF raw data'!J46) -> 1825-D | C46: =IF('DF raw data'!K46="","",'DF raw data'!K46) ->  | D46: =IF('DF raw data'!L46="","",'DF raw data'!L46) -> 
A47: =IF('DF raw data'!I47="","",'DF raw data'!I47) -> Probe Gain Correction | B47: =IF('DF raw data'!J47="","",'DF raw data'!J47) -> 1 | C47: =IF('DF raw data'!K47="","",'DF raw data'!K47) ->  | D47: =IF('DF raw data'!L47="","",'DF raw data'!L47) -> 
A48: =IF('DF raw data'!I53="","",'DF raw data'!I53) -> PS-Gap: | B48: =IF('DF raw data'!J53="","",'DF raw data'!J53) -> 10 | C48: =IF('DF raw data'!K53="","",'DF raw data'!K53) ->  | D48: =IF('DF raw data'!L53="","",'DF raw data'!L53) -> 
A49: =IF('DF raw data'!I54="","",'DF raw data'!I54) -> PS-Temperature: | B49: =IF('DF raw data'!J54="","",'DF raw data'!J54) -> 24 | C49: =IF('DF raw data'!K54="","",'DF raw data'!K54) ->  | D49: =IF('DF raw data'!L54="","",'DF raw data'!L54) -> 
A50: =IF('DF raw data'!I55="","",'DF raw data'!I55) -> PS-Encoder: | B50: =IF('DF raw data'!J55="","",'DF raw data'!J55) -> 19.7631 | C50: =IF('DF raw data'!K55="","",'DF raw data'!K55) ->  | D50: =IF('DF raw data'!L55="","",'DF raw data'!L55) -> 
A51: =IF('DF raw data'!I56="","",'DF raw data'!I56) ->  | B51: =IF('DF raw data'!J56="","",'DF raw data'!J56) ->  | C51: =IF('DF raw data'!K56="","",'DF raw data'!K56) ->  | D51: =IF('DF raw data'!L56="","",'DF raw data'!L56) -> 
A52: =IF('DF raw data'!I57="","",'DF raw data'!I57) -> Monitor-Index | B52: =IF('DF raw data'!J57="","",'DF raw data'!J57) -> [1,1,4] | C52: =IF('DF raw data'!K57="","",'DF raw data'!K57) ->  | D52: =IF('DF raw data'!L57="","",'DF raw data'!L57) -> 
A53: =IF('DF raw data'!I58="","",'DF raw data'!I58) ->  | B53: =IF('DF raw data'!J58="","",'DF raw data'!J58) ->  | C53: =IF('DF raw data'!K58="","",'DF raw data'!K58) ->  | D53: =IF('DF raw data'!L58="","",'DF raw data'!L58) -> 
A54: =IF('DF raw data'!I59="","",'DF raw data'!I59) -> Time [s] | B54: =IF('DF raw data'!J59="","",'DF raw data'!J59) -> Y [mm] | C54: =IF('DF raw data'!K59="","",'DF raw data'!K59) -> X [mm] | D54: =IF('DF raw data'!L59="","",'DF raw data'!L59) -> Nominal current [A]
A55: =IF('DF raw data'!I60="","",'DF raw data'!I60) ->  | B55: =IF('DF raw data'!J60="","",'DF raw data'!J60) ->  | C55: =IF('DF raw data'!K60="","",'DF raw data'!K60) ->  | D55: =IF('DF raw data'!L60="","",'DF raw data'!L60) -> 
A56: =IF('DF raw data'!I61="","",'DF raw data'!I61) -> 207.1 | B56: =IF('DF raw data'!J61="","",'DF raw data'!J61) -> 31.55 | C56: =IF('DF raw data'!K61="","",'DF raw data'!K61) -> 302.55 | D56: =IF('DF raw data'!L61="","",'DF raw data'!L61) -> 0
A57: =IF('DF raw data'!I62="","",'DF raw data'!I62) ->  | B57: =IF('DF raw data'!J62="","",'DF raw data'!J62) ->  | C57: =IF('DF raw data'!K62="","",'DF raw data'!K62) ->  | D57: =IF('DF raw data'!L62="","",'DF raw data'!L62) -> 
A58: =IF('DF raw data'!I63="","",'DF raw data'!I63) -> Measurement-Index | B58: =IF('DF raw data'!J63="","",'DF raw data'!J63) -> [1,1,1201,2] | C58: =IF('DF raw data'!K63="","",'DF raw data'!K63) ->  | D58: =IF('DF raw data'!L63="","",'DF raw data'!L63) -> 
A59: =IF('DF raw data'!I64="","",'DF raw data'!I64) ->  | B59: =IF('DF raw data'!J64="","",'DF raw data'!J64) ->  | C59: =IF('DF raw data'!K64="","",'DF raw data'!K64) ->  | D59: =IF('DF raw data'!L64="","",'DF raw data'!L64) -> 
A60: =IF('DF raw data'!I65="","",'DF raw data'!I65) -> Z [mm] | B60: By [T] | C60: Bx [T] | D60: Bz [T] | F60: By_corr | G60: Bx_corr | H60: Bz_corr | J60: Iy | K60: Jy | L60: Ix | M60: Jx | N60: PI
A62: =IF('DF raw data'!I67="","",'DF raw data'!I67) -> -300 | B62: =IF('DF raw data'!J67="","",'DF raw data'!J67) -> -1.25009e-05 | C62: =IF('DF raw data'!K67="","",'DF raw data'!K67) -> 0.000155377 | D62: =IF('DF raw data'!L67="","",'DF raw data'!L67) -> -2.38891e-05 | F62: =(1-$G$1*($B$49))*B62 -> -1.28009216e-05 | G62: =(1-$G$1*($B$49-$G$2))*C62 -> 0.000155998508 | H62: =(1-$G$1*($B$49-$G$2))*D62 -> -2.39846564e-05 | J62: =F62*$G$3 -> -6.4004608e-06 | K62: =J62*$G$3 -> -3.2002304e-06 | L62: =G62*$G$3 -> 7.7999254e-05 | M62: =L62*$G$3 -> 3.8999627e-05 | N62: =(J62^2+L62^2)*$G$3 -> 3.062424762e-09
A63: =IF('DF raw data'!I68="","",'DF raw data'!I68) -> -299.5 | B63: =IF('DF raw data'!J68="","",'DF raw data'!J68) -> -9.74683e-06 | C63: =IF('DF raw data'!K68="","",'DF raw data'!K68) -> 0.0001601 | D63: =IF('DF raw data'!L68="","",'DF raw data'!L68) -> -2.41541e-05 | F63: =(1-$G$1*($B$49-$G$2))*B63 -> -9.78581732e-06 | G63: =(1-$G$1*($B$49-$G$2))*C63 -> 0.0001607404 | H63: -2.42507164e-05 | J63: =F63*$G$3+J62 -> -1.129336946e-05 | K63: =J63*$G$3+K62 -> -8.84691513e-06 | L63: =G63*$G$3+L62 -> 0.000158369454 | M63: =L63*$G$3+M62 -> 0.000118184354 | N63: =(J63^2+L63^2)*$G$3+N62 -> 1.566663684e-08
A64: =IF('DF raw data'!I69="","",'DF raw data'!I69) -> -299 | B64: =IF('DF raw data'!J69="","",'DF raw data'!J69) -> 2.55137e-06 | C64: =IF('DF raw data'!K69="","",'DF raw data'!K69) -> 0.000169556 | D64: =IF('DF raw data'!L69="","",'DF raw data'!L69) -> -2.50088e-05 | F64: =(1-$G$1*($B$49-$G$2))*B64 -> 2.56157548e-06 | G64: 0.000170234224 | H64: -2.51088352e-05 | J64: =F64*$G$3+J63 -> -1.001258172e-05 | K64: =J64*$G$3+K63 -> -1.385320599e-05 | L64: =G64*$G$3+L63 -> 0.000243486566 | M64: =L64*$G$3+M63 -> 0.000239927637 | N64: =(J64^2+L64^2)*$G$3+N63 -> 4.535961665e-08
A65: =IF('DF raw data'!I70="","",'DF raw data'!I70) -> -298.5 | B65: =IF('DF raw data'!J70="","",'DF raw data'!J70) -> -4.42945e-06 | C65: =IF('DF raw data'!K70="","",'DF raw data'!K70) -> 0.000171531 | D65: =IF('DF raw data'!L70="","",'DF raw data'!L70) -> -2.57391e-05 | F65: -4.4471678e-06 | G65: 0.000172217124 | H65: -2.58420564e-05 | J65: -1.223616562e-05 | K65: -1.99712888e-05 | L65: 0.000329595128 | M65: 0.000404725201 | N65: 9.975095272e-08
A66: =IF('DF raw data'!I71="","",'DF raw data'!I71) -> -298 | B66: =IF('DF raw data'!J71="","",'DF raw data'!J71) -> -7.50401e-06 | C66: =IF('DF raw data'!K71="","",'DF raw data'!K71) -> 0.000164213 | D66: =IF('DF raw data'!L71="","",'DF raw data'!L71) -> -2.57031e-05 | F66: -7.53402604e-06 | G66: 0.000164869852 | H66: -2.58059124e-05 | J66: -1.600317864e-05 | K66: -2.797287812e-05 | L66: 0.000412030054 | M66: 0.000610740228 | N66: 1.847633863e-07
A67: =IF('DF raw data'!I72="","",'DF raw data'!I72) -> -297.5 | B67: =IF('DF raw data'!J72="","",'DF raw data'!J72) -> -4.36568e-06 | C67: =IF('DF raw data'!K72="","",'DF raw data'!K72) -> 0.000154591 | D67: =IF('DF raw data'!L72="","",'DF raw data'!L72) -> -2.55169e-05 | F67: -4.38314272e-06 | G67: 0.000155209364 | H67: -2.56189676e-05 | J67: -1.819475e-05 | K67: -3.707025312e-05 | L67: 0.000489634736 | M67: 0.000855557596 | N67: 3.047999981e-07
A68: =IF('DF raw data'!I73="","",'DF raw data'!I73) -> -297 | B68: =IF('DF raw data'!J73="","",'DF raw data'!J73) -> -1.03505e-06 | C68: =IF('DF raw data'!K73="","",'DF raw data'!K73) -> 0.000152837 | D68: =IF('DF raw data'!L73="","",'DF raw data'!L73) -> -2.5615e-05 | F68: -1.0391902e-06 | G68: 0.000153448348 | H68: -2.571746e-05 | J68: -1.87143451e-05 | K68: -4.642742567e-05 | L68: 0.00056635891 | M68: 0.001138737051 | N68: 4.653563189e-07
A69: =IF('DF raw data'!I74="","",'DF raw data'!I74) -> -296.5 | B69: =IF('DF raw data'!J74="","",'DF raw data'!J74) -> -1.03861e-05 | C69: =IF('DF raw data'!K74="","",'DF raw data'!K74) -> 0.000155949 | D69: =IF('DF raw data'!L74="","",'DF raw data'!L74) -> -2.55742e-05 | F69: -1.04276444e-05 | G69: 0.000156572796 | H69: -2.56764968e-05 | J69: -2.39281673e-05 | K69: -5.839150932e-05 | L69: 0.000644645308 | M69: 0.001461059705 | N69: 6.734263841e-07
A70: =IF('DF raw data'!I75="","",'DF raw data'!I75) -> -296 | B70: =IF('DF raw data'!J75="","",'DF raw data'!J75) -> -1.1631e-06 | C70: =IF('DF raw data'!K75="","",'DF raw data'!K75) -> 0.000154108 | D70: =IF('DF raw data'!L75="","",'DF raw data'!L75) -> -2.56829e-05 | F70: -1.1677524e-06 | G70: 0.000154724432 | H70: -2.57856316e-05 | J70: -2.45120435e-05 | K70: -7.064753107e-05 | L70: 0.000722007524 | M70: 0.001822063467 | N70: 9.343742366e-07
A71: =IF('DF raw data'!I76="","",'DF raw data'!I76) -> -295.5 | B71: =IF('DF raw data'!J76="","",'DF raw data'!J76) -> -3.59662e-06 | C71: =IF('DF raw data'!K76="","",'DF raw data'!K76) -> 0.000155986 | D71: =IF('DF raw data'!L76="","",'DF raw data'!L76) -> -2.58989e-05 | F71: -3.61100648e-06 | G71: 0.000156609944 | H71: -2.60024956e-05 | J71: -2.631754674e-05 | K71: -8.380630444e-05 | L71: 0.000800312496 | M71: 0.002222219715 | N71: 1.254970589e-06
A72: =IF('DF raw data'!I77="","",'DF raw data'!I77) -> -295 | B72: =IF('DF raw data'!J77="","",'DF raw data'!J77) -> -1.26919e-05 | C72: =IF('DF raw data'!K77="","",'DF raw data'!K77) -> 0.000160541 | D72: =IF('DF raw data'!L77="","",'DF raw data'!L77) -> -2.573e-05 | F72: -1.27426676e-05 | G72: 0.000161183164 | H72: -2.583292e-05 | J72: -3.268888054e-05 | K72: -0.0001001507447 | L72: 0.000880904078 | M72: 0.002662671754 | N72: 1.643500868e-06
A73: =IF('DF raw data'!I78="","",'DF raw data'!I78) -> -294.5 | B73: =IF('DF raw data'!J78="","",'DF raw data'!J78) -> -2.38005e-06 | C73: =IF('DF raw data'!K78="","",'DF raw data'!K78) -> 0.000161195 | D73: =IF('DF raw data'!L78="","",'DF raw data'!L78) -> -2.56694e-05 | F73: -2.3895702e-06 | G73: 0.00016183978 | H73: -2.57720776e-05 | J73: -3.388366564e-05 | K73: -0.0001170925775 | L73: 0.000961823968 | M73: 0.003143583738 | N73: 2.106627592e-06
A74: =IF('DF raw data'!I79="","",'DF raw data'!I79) -> -294 | B74: =IF('DF raw data'!J79="","",'DF raw data'!J79) -> -8.33626e-06 | C74: =IF('DF raw data'!K79="","",'DF raw data'!K79) -> 0.000162659 | D74: =IF('DF raw data'!L79="","",'DF raw data'!L79) -> -2.60684e-05 | F74: -8.36960504e-06 | G74: 0.000163309636 | H74: -2.61726736e-05 | J74: -3.806846816e-05 | K74: -0.0001361268116 | L74: 0.001043478786 | M74: 0.003665323131 | N74: 2.651776184e-06
A75: =IF('DF raw data'!I80="","",'DF raw data'!I80) -> -293.5 | B75: =IF('DF raw data'!J80="","",'DF raw data'!J80) -> -6.7351e-06 | C75: =IF('DF raw data'!K80="","",'DF raw data'!K80) -> 0.000162369 | D75: =IF('DF raw data'!L80="","",'DF raw data'!L80) -> -2.60296e-05 | F75: -6.7620404e-06 | G75: 0.000163018476 | H75: -2.61337184e-05 | J75: -4.144948836e-05 | K75: -0.0001568515558 | L75: 0.001124988024 | M75: 0.004227817143 | N75: 3.285434241e-06
A76: =IF('DF raw data'!I81="","",'DF raw data'!I81) -> -293 | B76: =IF('DF raw data'!J81="","",'DF raw data'!J81) -> -2.01223e-05 | C76: =IF('DF raw data'!K81="","",'DF raw data'!K81) -> 0.00016162 | D76: =IF('DF raw data'!L81="","",'DF raw data'!L81) -> -2.48859e-05 | F76: -2.02027892e-05 | G76: 0.00016226648 | H76: -2.49854436e-05 | J76: -5.155088296e-05 | K76: -0.0001826269973 | L76: 0.001206121264 | M76: 0.004830877775 | N76: 4.01412724e-06
A77: =IF('DF raw data'!I82="","",'DF raw data'!I82) -> -292.5 | B77: =IF('DF raw data'!J82="","",'DF raw data'!J82) -> -3.34151e-06 | C77: =IF('DF raw data'!K82="","",'DF raw data'!K82) -> 0.000154538 | D77: =IF('DF raw data'!L82="","",'DF raw data'!L82) -> -2.42694e-05 | F77: -3.35487604e-06 | G77: 0.000155156152 | H77: -2.43664776e-05 | J77: -5.322832098e-05 | K77: -0.0002092411578 | L77: 0.00128369934 | M77: 0.005472727445 | N77: 4.839485865e-06
A78: =IF('DF raw data'!I83="","",'DF raw data'!I83) -> -292 | B78: =IF('DF raw data'!J83="","",'DF raw data'!J83) -> 3.19195e-06 | C78: =IF('DF raw data'!K83="","",'DF raw data'!K83) -> 0.000149145 | D78: =IF('DF raw data'!L83="","",'DF raw data'!L83) -> -2.52029e-05 | F78: 3.2047178e-06 | G78: 0.00014974158 | H78: -2.53037116e-05 | J78: -5.162596208e-05 | K78: -0.0002350541388 | L78: 0.00135857013 | M78: 0.00615201251 | N78: 5.763674884e-06
A79: =IF('DF raw data'!I84="","",'DF raw data'!I84) -> -291.5 | B79: =IF('DF raw data'!J84="","",'DF raw data'!J84) -> -2.8295e-06 | C79: =IF('DF raw data'!K84="","",'DF raw data'!K84) -> 0.000146209 | D79: =IF('DF raw data'!L84="","",'DF raw data'!L84) -> -2.37327e-05 | F79: -2.840818e-06 | G79: 0.000146793836 | H79: -2.38276308e-05 | J79: -5.304637108e-05 | K79: -0.0002615773243 | L79: 0.001431967048 | M79: 0.006867996034 | N79: 6.790346656e-06
A80: =IF('DF raw data'!I85="","",'DF raw data'!I85) -> -291 | B80: =IF('DF raw data'!J85="","",'DF raw data'!J85) -> -1.14187e-05 | C80: =IF('DF raw data'!K85="","",'DF raw data'!K85) -> 0.000147252 | D80: =IF('DF raw data'!L85="","",'DF raw data'!L85) -> -1.37094e-05 | F80: -1.14643748e-05 | G80: 0.000147841008 | H80: -1.37642376e-05 | J80: -5.877855848e-05 | K80: -0.0002909666036 | L80: 0.001505887552 | M80: 0.00762093981 | N80: 7.925922775e-06
A81: =IF('DF raw data'!I86="","",'DF raw data'!I86) -> -290.5 | B81: =IF('DF raw data'!J86="","",'DF raw data'!J86) -> -5.7801e-06 | C81: =IF('DF raw data'!K86="","",'DF raw data'!K86) -> 0.000155437 | D81: =IF('DF raw data'!L86="","",'DF raw data'!L86) -> -1.71406e-05 | F81: -5.8032204e-06 | G81: 0.000156058748 | H81: -1.72091624e-05 | J81: -6.168016868e-05 | K81: -0.0003218066879 | L81: 0.001583916926 | M81: 0.008412898273 | N81: 9.182221411e-06
A82: =IF('DF raw data'!I87="","",'DF raw data'!I87) -> -290 | B82: =IF('DF raw data'!J87="","",'DF raw data'!J87) -> -1.58396e-05 | C82: =IF('DF raw data'!K87="","",'DF raw data'!K87) -> 0.000156828 | D82: =IF('DF raw data'!L87="","",'DF raw data'!L87) -> -1.11751e-05 | F82: -1.59029584e-05 | G82: 0.000157455312 | H82: -1.12198004e-05 | J82: -6.963164788e-05 | K82: -0.0003566225119 | L82: 0.001662644582 | M82: 0.009244220564 | N82: 1.05668392e-05
A83: =IF('DF raw data'!I88="","",'DF raw data'!I88) -> -289.5 | B83: =IF('DF raw data'!J88="","",'DF raw data'!J88) -> -7.51053e-06 | C83: =IF('DF raw data'!K88="","",'DF raw data'!K88) -> 0.000162518 | D83: =IF('DF raw data'!L88="","",'DF raw data'!L88) -> -1.54505e-05 | F83: -7.54057212e-06 | G83: 0.000163168072 | H83: -1.5512302e-05 | J83: -7.340193394e-05 | K83: -0.0003933234788 | L83: 0.001744228618 | M83: 0.01011633487 | N83: 1.209069985e-05
A84: =IF('DF raw data'!I89="","",'DF raw data'!I89) -> -289 | B84: =IF('DF raw data'!J89="","",'DF raw data'!J89) -> -1.13496e-05 | C84: =IF('DF raw data'!K89="","",'DF raw data'!K89) -> 0.000166649 | D84: =IF('DF raw data'!L89="","",'DF raw data'!L89) -> -2.16985e-05 | F84: -1.13949984e-05 | G84: 0.000167315596 | H84: -2.1785294e-05 | J84: -7.909943314e-05 | K84: -0.0004328731954 | L84: 0.001827886416 | M84: 0.01103027808 | N84: 1.376441259e-05
A85: =IF('DF raw data'!I90="","",'DF raw data'!I90) -> -288.5 | B85: =IF('DF raw data'!J90="","",'DF raw data'!J90) -> -2.12788e-05 | C85: =IF('DF raw data'!K90="","",'DF raw data'!K90) -> 0.000159284 | D85: =IF('DF raw data'!L90="","",'DF raw data'!L90) -> -1.86054e-05 | F85: -2.13639152e-05 | G85: 0.000159921136 | H85: -1.86798216e-05 | J85: -8.978139074e-05 | K85: -0.0004777638908 | L85: 0.001907846984 | M85: 0.01198420157 | N85: 1.5588383e-05
A86: =IF('DF raw data'!I91="","",'DF raw data'!I91) -> -288 | B86: =IF('DF raw data'!J91="","",'DF raw data'!J91) -> -8.92212e-06 | C86: =IF('DF raw data'!K91="","",'DF raw data'!K91) -> 0.00015485 | D86: =IF('DF raw data'!L91="","",'DF raw data'!L91) -> -1.16084e-05 | F86: -8.95780848e-06 | G86: 0.0001554694 | H86: -1.16548336e-05 | J86: -9.426029498e-05 | K86: -0.0005248940383 | L86: 0.001985581684 | M86: 0.01297699241 | N86: 1.756409281e-05
A87: =IF('DF raw data'!I92="","",'DF raw data'!I92) -> -287.5 | B87: =IF('DF raw data'!J92="","",'DF raw data'!J92) -> -1.26299e-05 | C87: =IF('DF raw data'!K92="","",'DF raw data'!K92) -> 0.000155627 | D87: =IF('DF raw data'!L92="","",'DF raw data'!L92) -> -2.24232e-05 | F87: -1.26804196e-05 | G87: 0.000156249508 | H87: -2.25128928e-05 | J87: -0.0001006005048 | K87: -0.0005751942906 | L87: 0.002063706438 | M87: 0.01400884563 | N87: 1.969859517e-05
A88: =IF('DF raw data'!I93="","",'DF raw data'!I93) -> -287 | B88: =IF('DF raw data'!J93="","",'DF raw data'!J93) -> -7.50204e-06 | C88: =IF('DF raw data'!K93="","",'DF raw data'!K93) -> 0.000162152 | D88: =IF('DF raw data'!L93="","",'DF raw data'!L93) -> -2.87136e-05 | F88: -7.53204816e-06 | G88: 0.000162800608 | H88: -2.88284544e-05 | J88: -0.0001043665289 | K88: -0.0006273775551 | L88: 0.002145106742 | M88: 0.015081399 | N88: 2.200478283e-05
A89: =IF('DF raw data'!I94="","",'DF raw data'!I94) -> -286.5 | B89: =IF('DF raw data'!J94="","",'DF raw data'!J94) -> -1.37238e-05 | C89: =IF('DF raw data'!K94="","",'DF raw data'!K94) -> 0.00016726 | D89: =IF('DF raw data'!L94="","",'DF raw data'!L94) -> -1.46359e-05 | F89: -1.37786952e-05 | G89: 0.00016792904 | H89: -1.46944436e-05 | J89: -0.0001112558765 | K89: -0.0006830054933 | L89: 0.002229071262 | M89: 0.01619593464 | N89: 2.449535111e-05
A90: =IF('DF raw data'!I95="","",'DF raw data'!I95) -> -286 | B90: =IF('DF raw data'!J95="","",'DF raw data'!J95) -> -1.27019e-05 | C90: =IF('DF raw data'!K95="","",'DF raw data'!K95) -> 0.00016434 | D90: =IF('DF raw data'!L95="","",'DF raw data'!L95) -> -1.00936e-05 | F90: -1.27527076e-05 | G90: 0.00016499736 | H90: -1.01339744e-05 | J90: -0.0001176322303 | K90: -0.0007418216084 | L90: 0.002311569942 | M90: 0.01735171961 | N90: 2.717394757e-05
A91: =IF('DF raw data'!I96="","",'DF raw data'!I96) -> -285.5 | B91: =IF('DF raw data'!J96="","",'DF raw data'!J96) -> -1.39164e-05 | C91: =IF('DF raw data'!K96="","",'DF raw data'!K96) -> 0.000158163 | D91: =IF('DF raw data'!L96="","",'DF raw data'!L96) -> -1.36108e-05 | F91: -1.39720656e-05 | G91: 0.000158795652 | H91: -1.36652432e-05 | J91: -0.0001246182631 | K91: -0.00080413074 | L91: 0.002390967768 | M91: 0.01854720349 | N91: 3.004007586e-05
A92: =IF('DF raw data'!I97="","",'DF raw data'!I97) -> -285 | B92: =IF('DF raw data'!J97="","",'DF raw data'!J97) -> -1.61567e-05 | C92: =IF('DF raw data'!K97="","",'DF raw data'!K97) -> 0.000163751 | D92: =IF('DF raw data'!L97="","",'DF raw data'!L97) -> -1.6264e-05 | F92: -1.62213268e-05 | G92: 0.000164406004 | H92: -1.6329056e-05 | J92: -0.0001327289265 | K92: -0.0008704952032 | L92: 0.00247317077 | M92: 0.01978378888 | N92: 3.310717118e-05
A93: =IF('DF raw data'!I98="","",'DF raw data'!I98) -> -284.5 | B93: =IF('DF raw data'!J98="","",'DF raw data'!J98) -> -1.12921e-05 | C93: =IF('DF raw data'!K98="","",'DF raw data'!K98) -> 0.000170945 | D93: =IF('DF raw data'!L98="","",'DF raw data'!L98) -> -1.11141e-05 | F93: -1.13372684e-05 | G93: 0.00017162878 | H93: -1.11585564e-05 | J93: -0.0001383975607 | K93: -0.0009396939835 | L93: 0.00255898516 | M93: 0.02106328146 | N93: 3.639095064e-05
A94: =IF('DF raw data'!I99="","",'DF raw data'!I99) -> -284 | B94: =IF('DF raw data'!J99="","",'DF raw data'!J99) -> -1.34095e-05 | C94: =IF('DF raw data'!K99="","",'DF raw data'!K99) -> 0.000164213 | D94: =IF('DF raw data'!L99="","",'DF raw data'!L99) -> -5.51429e-06 | F94: -1.3463138e-05 | G94: 0.000164869852 | H94: -5.53634716e-06 | J94: -0.0001451291297 | K94: -0.001012258548 | L94: 0.002641420086 | M94: 0.0223839915 | N94: 3.989003191e-05
A95: =IF('DF raw data'!I100="","",'DF raw data'!I100) -> -283.5 | B95: =IF('DF raw data'!J100="","",'DF raw data'!J100) -> -1.37278e-05 | C95: =IF('DF raw data'!K100="","",'DF raw data'!K100) -> 0.0001601 | D95: =IF('DF raw data'!L100="","",'DF raw data'!L100) -> -8.51283e-06 | F95: -1.37827112e-05 | G95: 0.0001607404 | H95: -8.54688132e-06 | J95: -0.0001520204853 | K95: -0.001088268791 | L95: 0.002721790286 | M95: 0.02374488664 | N95: 4.360565821e-05
A96: =IF('DF raw data'!I101="","",'DF raw data'!I101) -> -283 | B96: =IF('DF raw data'!J101="","",'DF raw data'!J101) -> -1.37846e-05 | C96: =IF('DF raw data'!K101="","",'DF raw data'!K101) -> 0.000155538 | D96: =IF('DF raw data'!L101="","",'DF raw data'!L101) -> -1.97502e-05 | F96: -1.38397384e-05 | G96: 0.000156160152 | H96: -1.98292008e-05 | J96: -0.0001589403545 | K96: -0.001167738968 | L96: 0.002799870362 | M96: 0.02514482182 | N96: 4.753792625e-05
A97: =IF('DF raw data'!I102="","",'DF raw data'!I102) -> -282.5 | B97: =IF('DF raw data'!J102="","",'DF raw data'!J102) -> -1.75633e-05 | C97: =IF('DF raw data'!K102="","",'DF raw data'!K102) -> 0.000150785 | D97: =IF('DF raw data'!L102="","",'DF raw data'!L102) -> -1.96083e-05 | F97: -1.76335532e-05 | G97: 0.00015138814 | H97: -1.96867332e-05 | J97: -0.0001677571311 | K97: -0.001251617534 | L97: 0.002875564432 | M97: 0.02658260404 | N97: 5.168643287e-05
A98: =IF('DF raw data'!I103="","",'DF raw data'!I103) -> -282 | B98: =IF('DF raw data'!J103="","",'DF raw data'!J103) -> -5.58377e-06 | C98: =IF('DF raw data'!K103="","",'DF raw data'!K103) -> 0.000151729 | D98: =IF('DF raw data'!L103="","",'DF raw data'!L103) -> -2.35061e-05 | F98: -5.60610508e-06 | G98: 0.000152335916 | H98: -2.36001244e-05 | J98: -0.0001705601836 | K98: -0.001336897626 | L98: 0.00295173239 | M98: 0.02805847023 | N98: 5.605734031e-05
A99: =IF('DF raw data'!I104="","",'DF raw data'!I104) -> -281.5 | B99: =IF('DF raw data'!J104="","",'DF raw data'!J104) -> -8.794e-06 | C99: =IF('DF raw data'!K104="","",'DF raw data'!K104) -> 0.000161409 | D99: =IF('DF raw data'!L104="","",'DF raw data'!L104) -> -1.1529e-05 | F99: -8.829176e-06 | G99: 0.000162054636 | H99: -1.1575116e-05 | J99: -0.0001749747716 | K99: -0.001424385011 | L99: 0.003032759708 | M99: 0.02957485009 | N99: 6.067146412e-05
A100: =IF('DF raw data'!I105="","",'DF raw data'!I105) -> -281 | B100: =IF('DF raw data'!J105="","",'DF raw data'!J105) -> -4.49655e-06 | C100: =IF('DF raw data'!K105="","",'DF raw data'!K105) -> 0.000164271 | D100: =IF('DF raw data'!L105="","",'DF raw data'!L105) -> -2.13193e-05 | F100: -4.5145362e-06 | G100: 0.000164928084 | H100: -2.14045772e-05 | J100: -0.0001772320397 | K100: -0.001513001031 | L100: 0.00311522375 | M100: 0.03113246196 | N100: 6.553947923e-05
A101: =IF('DF raw data'!I106="","",'DF raw data'!I106) -> -280.5 | B101: =IF('DF raw data'!J106="","",'DF raw data'!J106) -> 8.23421e-07 | C101: =IF('DF raw data'!K106="","",'DF raw data'!K106) -> 0.000154482 | D101: =IF('DF raw data'!L106="","",'DF raw data'!L106) -> -2.71986e-05 | F101: 8.26714684e-07 | G101: 0.000155099928 | H101: -2.73073944e-05 | J101: -0.0001768186824 | K101: -0.001601410372 | L101: 0.003192773714 | M101: 0.03272884882 | N101: 7.065201364e-05
A102: =IF('DF raw data'!I107="","",'DF raw data'!I107) -> -280 | B102: =IF('DF raw data'!J107="","",'DF raw data'!J107) -> -1.55773e-05 | C102: =IF('DF raw data'!K107="","",'DF raw data'!K107) -> 0.00015328 | D102: =IF('DF raw data'!L107="","",'DF raw data'!L107) -> -2.05197e-05 | F102: -1.56396092e-05 | G102: 0.00015389312 | H102: -2.06017788e-05 | J102: -0.000184638487 | K102: -0.001693729616 | L102: 0.003269720274 | M102: 0.03436370896 | N102: 7.601459467e-05
A103: =IF('DF raw data'!I108="","",'DF raw data'!I108) -> -279.5 | B103: =IF('DF raw data'!J108="","",'DF raw data'!J108) -> -1.2439e-05 | C103: =IF('DF raw data'!K108="","",'DF raw data'!K108) -> 0.00015842 | D103: =IF('DF raw data'!L108="","",'DF raw data'!L108) -> -2.04198e-05 | F103: -1.2488756e-05 | G103: 0.00015905368 | H103: -2.05014792e-05 | J103: -0.000190882865 | K103: -0.001789171048 | L103: 0.003349247114 | M103: 0.03603833251 | N103: 8.164154091e-05
A104: =IF('DF raw data'!I109="","",'DF raw data'!I109) -> -279 | B104: =IF('DF raw data'!J109="","",'DF raw data'!J109) -> -7.89358e-06 | C104: =IF('DF raw data'!K109="","",'DF raw data'!K109) -> 0.000161862 | D104: =IF('DF raw data'!L109="","",'DF raw data'!L109) -> -1.74524e-05 | F104: -7.92515432e-06 | G104: 0.000162509448 | H104: -1.75222096e-05 | J104: -0.0001948454421 | K104: -0.001886593769 | L104: 0.003430501838 | M104: 0.03775358343 | N104: 8.754469472e-05
A105: =IF('DF raw data'!I110="","",'DF raw data'!I110) -> -278.5 | B105: =IF('DF raw data'!J110="","",'DF raw data'!J110) -> -1.52053e-05 | C105: =IF('DF raw data'!K110="","",'DF raw data'!K110) -> 0.000155041 | D105: =IF('DF raw data'!L110="","",'DF raw data'!L110) -> -1.56111e-06 | F105: -1.52661212e-05 | G105: 0.000155661164 | H105: -1.56735444e-06 | J105: -0.0002024785027 | K105: -0.001987833021 | L105: 0.00350833242 | M105: 0.03950774964 | N105: 9.371939167e-05
A106: =IF('DF raw data'!I111="","",'DF raw data'!I111) -> -278 | B106: =IF('DF raw data'!J111="","",'DF raw data'!J111) -> -1.52598e-05 | C106: =IF('DF raw data'!K111="","",'DF raw data'!K111) -> 0.000151039 | D106: =IF('DF raw data'!L111="","",'DF raw data'!L111) -> -1.64067e-05 | F106: -1.53208392e-05 | G106: 0.000151643156 | H106: -1.64723268e-05 | J106: -0.0002101389223 | K106: -0.002092902482 | L106: 0.003584153998 | M106: 0.04129982664 | N106: 0.0001001645508
A107: =IF('DF raw data'!I112="","",'DF raw data'!I112) -> -277.5 | B107: =IF('DF raw data'!J112="","",'DF raw data'!J112) -> -1.66718e-05 | C107: =IF('DF raw data'!K112="","",'DF raw data'!K112) -> 0.000159844 | D107: =IF('DF raw data'!L112="","",'DF raw data'!L112) -> -1.17723e-05 | F107: -1.67384872e-05 | G107: 0.000160483376 | H107: -1.18193892e-05 | J107: -0.0002185081659 | K107: -0.002202156565 | L107: 0.003664395686 | M107: 0.04313202448 | N107: 0.0001069023216
A108: =IF('DF raw data'!I113="","",'DF raw data'!I113) -> -277 | B108: =IF('DF raw data'!J113="","",'DF raw data'!J113) -> -1.31439e-05 | C108: =IF('DF raw data'!K113="","",'DF raw data'!K113) -> 0.000156778 | D108: =IF('DF raw data'!L113="","",'DF raw data'!L113) -> -1.9936e-05 | F108: -1.31964756e-05 | G108: 0.000157405112 | H108: -2.0015744e-05 | J108: -0.0002251064037 | K108: -0.002314709767 | L108: 0.003743098242 | M108: 0.04500357361 | N108: 0.0001139330503
A109: =IF('DF raw data'!I114="","",'DF raw data'!I114) -> -276.5 | B109: =IF('DF raw data'!J114="","",'DF raw data'!J114) -> -2.31265e-05 | C109: =IF('DF raw data'!K114="","",'DF raw data'!K114) -> 0.000155477 | D109: =IF('DF raw data'!L114="","",'DF raw data'!L114) -> -3.37611e-05 | F109: -2.3219006e-05 | G109: 0.000156098908 | H109: -3.38961444e-05 | J109: -0.0002367159067 | K109: -0.00243306772 | L109: 0.003821147696 | M109: 0.04691414745 | N109: 0.0001212616523
A110: =IF('DF raw data'!I115="","",'DF raw data'!I115) -> -276 | B110: =IF('DF raw data'!J115="","",'DF raw data'!J115) -> -1.93545e-05 | C110: =IF('DF raw data'!K115="","",'DF raw data'!K115) -> 0.000158261 | D110: =IF('DF raw data'!L115="","",'DF raw data'!L115) -> -2.32795e-05 | F110: -1.9431918e-05 | G110: 0.000158894044 | H110: -2.3372618e-05 | J110: -0.0002464318657 | K110: -0.002556283653 | L110: 0.003900594718 | M110: 0.04886444481 | N110: 0.0001288993362
A111: =IF('DF raw data'!I116="","",'DF raw data'!I116) -> -275.5 | B111: =IF('DF raw data'!J116="","",'DF raw data'!J116) -> -7.23102e-07 | C111: =IF('DF raw data'!K116="","",'DF raw data'!K116) -> 0.000148489 | D111: =IF('DF raw data'!L116="","",'DF raw data'!L116) -> -1.26408e-05 | F111: -7.25994408e-07 | G111: 0.000149082956 | H111: -1.26913632e-05 | J111: -0.0002467948629 | K111: -0.002679681084 | L111: 0.003975136196 | M111: 0.05085201291 | N111: 0.000136830644
A112: =IF('DF raw data'!I117="","",'DF raw data'!I117) -> -275 | B112: =IF('DF raw data'!J117="","",'DF raw data'!J117) -> -3.15658e-06 | C112: =IF('DF raw data'!K117="","",'DF raw data'!K117) -> 0.000144538 | D112: =IF('DF raw data'!L117="","",'DF raw data'!L117) -> -1.3414e-05 | F112: -3.16920632e-06 | G112: 0.000145116152 | H112: -1.3467656e-05 | J112: -0.0002483794661 | K112: -0.002803870817 | L112: 0.004047694272 | M112: 0.05287586005 | N112: 0.0001450534046
A113: =IF('DF raw data'!I118="","",'DF raw data'!I118) -> -274.5 | B113: =IF('DF raw data'!J118="","",'DF raw data'!J118) -> -6.47743e-06 | C113: =IF('DF raw data'!K118="","",'DF raw data'!K118) -> 0.000153219 | D113: =IF('DF raw data'!L118="","",'DF raw data'!L118) -> -2.8068e-05 | F113: -6.50333972e-06 | G113: 0.000153831876 | H113: -2.8180272e-05 | J113: -0.0002516311359 | K113: -0.002929686385 | L113: 0.00412461021 | M113: 0.05493816515 | N113: 0.0001535912684
A114: =IF('DF raw data'!I119="","",'DF raw data'!I119) -> -274 | B114: =IF('DF raw data'!J119="","",'DF raw data'!J119) -> -3.27777e-06 | C114: =IF('DF raw data'!K119="","",'DF raw data'!K119) -> 0.000153824 | D114: =IF('DF raw data'!L119="","",'DF raw data'!L119) -> -2.40474e-05 | F114: -3.29088108e-06 | G114: 0.000154439296 | H114: -2.41435896e-05 | J114: -0.0002532765765 | K114: -0.003056324674 | L114: 0.004201829858 | M114: 0.05703908008 | N114: 0.00016245103
A115: =IF('DF raw data'!I120="","",'DF raw data'!I120) -> -273.5 | B115: =IF('DF raw data'!J120="","",'DF raw data'!J120) -> -6.3461e-06 | C115: =IF('DF raw data'!K120="","",'DF raw data'!K120) -> 0.000160962 | D115: =IF('DF raw data'!L120="","",'DF raw data'!L120) -> -3.30588e-05 | F115: -6.3714844e-06 | G115: 0.000161605848 | H115: -3.31910352e-05 | J115: -0.0002564623187 | K115: -0.003184555833 | L115: 0.004282632782 | M115: 0.05918039647 | N115: 0.0001716543882
A116: =IF('DF raw data'!I121="","",'DF raw data'!I121) -> -273 | B116: =IF('DF raw data'!J121="","",'DF raw data'!J121) -> -6.02888e-06 | C116: =IF('DF raw data'!K121="","",'DF raw data'!K121) -> 0.000152267 | D116: =IF('DF raw data'!L121="","",'DF raw data'!L121) -> -2.86255e-05 | F116: -6.05299552e-06 | G116: 0.000152876068 | H116: -2.8740002e-05 | J116: -0.0002594888164 | K116: -0.003314300241 | L116: 0.004359070816 | M116: 0.06135993188 | N116: 0.0001811888046
A117: =IF('DF raw data'!I122="","",'DF raw data'!I122) -> -272.5 | B117: =IF('DF raw data'!J122="","",'DF raw data'!J122) -> -1.44886e-05 | C117: =IF('DF raw data'!K122="","",'DF raw data'!K122) -> 0.000153712 | D117: =IF('DF raw data'!L122="","",'DF raw data'!L122) -> -2.06219e-05 | F117: -1.45465544e-05 | G117: 0.000154326848 | H117: -2.07043876e-05 | J117: -0.0002667620936 | K117: -0.003447681288 | L117: 0.00443623424 | M117: 0.063578049 | N117: 0.0001910644728
A118: =IF('DF raw data'!I123="","",'DF raw data'!I123) -> -272 | B118: =IF('DF raw data'!J123="","",'DF raw data'!J123) -> -2.56997e-06 | C118: =IF('DF raw data'!K123="","",'DF raw data'!K123) -> 0.000152799 | D118: =IF('DF raw data'!L123="","",'DF raw data'!L123) -> -2.89395e-05 | F118: -2.58024988e-06 | G118: 0.000153410196 | H118: -2.9055258e-05 | J118: -0.0002680522186 | K118: -0.003581707397 | L118: 0.004512939338 | M118: 0.06583451867 | N118: 0.0002012837095
A119: =IF('DF raw data'!I124="","",'DF raw data'!I124) -> -271.5 | B119: =IF('DF raw data'!J124="","",'DF raw data'!J124) -> -9.80633e-06 | C119: =IF('DF raw data'!K124="","",'DF raw data'!K124) -> 0.000152536 | D119: =IF('DF raw data'!L124="","",'DF raw data'!L124) -> -3.07183e-05 | F119: -9.84555532e-06 | G119: 0.000153146144 | H119: -3.08411732e-05 | J119: -0.0002729749962 | K119: -0.003718194895 | L119: 0.00458951241 | M119: 0.06812927487 | N119: 0.0002118527793
A120: =IF('DF raw data'!I125="","",'DF raw data'!I125) -> -271 | B120: =IF('DF raw data'!J125="","",'DF raw data'!J125) -> -1.44905e-05 | C120: =IF('DF raw data'!K125="","",'DF raw data'!K125) -> 0.000153421 | D120: =IF('DF raw data'!L125="","",'DF raw data'!L125) -> -1.7684e-05 | F120: -1.4548462e-05 | G120: 0.000154034684 | H120: -1.7754736e-05 | J120: -0.0002802492272 | K120: -0.003858319509 | L120: 0.004666529752 | M120: 0.07046253975 | N120: 0.000222780299
A121: =IF('DF raw data'!I126="","",'DF raw data'!I126) -> -270.5 | B121: =IF('DF raw data'!J126="","",'DF raw data'!J126) -> -1.16663e-05 | C121: =IF('DF raw data'!K126="","",'DF raw data'!K126) -> 0.000153434 | D121: =IF('DF raw data'!L126="","",'DF raw data'!L126) -> -2.68237e-05 | F121: -1.17129652e-05 | G121: 0.000154047736 | H121: -2.69309948e-05 | J121: -0.0002861057098 | K121: -0.004001372364 | L121: 0.00474355362 | M121: 0.07283431656 | N121: 0.0002340718777
A122: =IF('DF raw data'!I127="","",'DF raw data'!I127) -> -270 | B122: =IF('DF raw data'!J127="","",'DF raw data'!J127) -> -6.4166e-06 | C122: =IF('DF raw data'!K127="","",'DF raw data'!K127) -> 0.000157566 | D122: =IF('DF raw data'!L127="","",'DF raw data'!L127) -> -2.33076e-05 | F122: -6.4422664e-06 | G122: 0.000158196264 | H122: -2.34008304e-05 | J122: -0.000289326843 | K122: -0.004146035786 | L122: 0.004822651752 | M122: 0.07524564244 | N122: 0.0002457427177
A123: =IF('DF raw data'!I128="","",'DF raw data'!I128) -> -269.5 | B123: =IF('DF raw data'!J128="","",'DF raw data'!J128) -> -3.4126e-06 | C123: =IF('DF raw data'!K128="","",'DF raw data'!K128) -> 0.000155159 | D123: =IF('DF raw data'!L128="","",'DF raw data'!L128) -> -1.36634e-05 | F123: -3.4262504e-06 | G123: 0.000155779636 | H123: -1.37180536e-05 | J123: -0.0002910399682 | K123: -0.00429155577 | L123: 0.00490054157 | M123: 0.07769591322 | N123: 0.0002577927237
A124: =IF('DF raw data'!I129="","",'DF raw data'!I129) -> -269 | B124: =IF('DF raw data'!J129="","",'DF raw data'!J129) -> -2.01289e-05 | C124: =IF('DF raw data'!K129="","",'DF raw data'!K129) -> 0.000158441 | D124: =IF('DF raw data'!L129="","",'DF raw data'!L129) -> -1.43961e-05 | F124: -2.02094156e-05 | G124: 0.000159074764 | H124: -1.44536844e-05 | J124: -0.000301144676 | K124: -0.004442128108 | L124: 0.004980078952 | M124: 0.0801859527 | N124: 0.0002702386609
A125: =IF('DF raw data'!I130="","",'DF raw data'!I130) -> -268.5 | B125: =IF('DF raw data'!J130="","",'DF raw data'!J130) -> -1.52596e-05 | C125: =IF('DF raw data'!K130="","",'DF raw data'!K130) -> 0.000171422 | D125: =IF('DF raw data'!L130="","",'DF raw data'!L130) -> -1.67899e-05 | F125: -1.53206384e-05 | G125: 0.000172107688 | H125: -1.68570596e-05 | J125: -0.0003088049952 | K125: -0.004596530605 | L125: 0.005066132796 | M125: 0.08271901909 | N125: 0.0002831191919
A126: =IF('DF raw data'!I131="","",'DF raw data'!I131) -> -268 | B126: =IF('DF raw data'!J131="","",'DF raw data'!J131) -> 2.41166e-07 | C126: =IF('DF raw data'!K131="","",'DF raw data'!K131) -> 0.000171557 | D126: =IF('DF raw data'!L131="","",'DF raw data'!L131) -> -1.83799e-05 | F126: 2.42130664e-07 | G126: 0.000172243228 | H126: -1.84534196e-05 | J126: -0.0003086839299 | K126: -0.00475087257 | L126: 0.00515225441 | M126: 0.0852951463 | N126: 0.0002964396976
A127: =IF('DF raw data'!I132="","",'DF raw data'!I132) -> -267.5 | B127: =IF('DF raw data'!J132="","",'DF raw data'!J132) -> -2.60111e-05 | C127: =IF('DF raw data'!K132="","",'DF raw data'!K132) -> 0.000163819 | D127: =IF('DF raw data'!L132="","",'DF raw data'!L132) -> -3.01595e-05 | F127: -2.61151444e-05 | G127: 0.000164474276 | H127: -3.0280138e-05 | J127: -0.0003217415021 | K127: -0.004911743321 | L127: 0.005234491548 | M127: 0.08791239207 | N127: 0.0003101914073
A128: =IF('DF raw data'!I133="","",'DF raw data'!I133) -> -267 | B128: =IF('DF raw data'!J133="","",'DF raw data'!J133) -> -1.69285e-05 | C128: =IF('DF raw data'!K133="","",'DF raw data'!K133) -> 0.000148147 | D128: =IF('DF raw data'!L133="","",'DF raw data'!L133) -> -1.09932e-05 | F128: =(1-$G$1*($B$49-$G$2))*B128 -> -1.6996214e-05 | G128: 0.000148739588 | H128: -1.10371728e-05 | J128: =F128*$G$3+J127 -> -0.0003302396091 | K128: =J128*$G$3+K127 -> -0.005076863126 | L128: =G128*$G$3+L127 -> 0.005308861342 | M128: =L128*$G$3+M127 -> 0.09056682274 | N128: =(J128^2+L128^2)*$G$3+N127 -> 0.0003243379407
A129: =IF('DF raw data'!I134="","",'DF raw data'!I134) -> -266.5 | B129: =IF('DF raw data'!J134="","",'DF raw data'!J134) -> -3.27606e-06 | C129: =IF('DF raw data'!K134="","",'DF raw data'!K134) -> 0.000145297 | D129: =IF('DF raw data'!L134="","",'DF raw data'!L134) -> -2.66975e-05 | F129: -3.28916424e-06 | G129: 0.000145878188 | H129: -2.680429e-05 | J129: -0.0003318841912 | K129: -0.005242805221 | L129: 0.005381800436 | M129: 0.09325772296 | N129: 0.0003388749023
A130: =IF('DF raw data'!I135="","",'DF raw data'!I135) -> -266 | B130: =IF('DF raw data'!J135="","",'DF raw data'!J135) -> -1.77514e-05 | C130: =IF('DF raw data'!K135="","",'DF raw data'!K135) -> 0.000150914 | D130: =IF('DF raw data'!L135="","",'DF raw data'!L135) -> -2.62023e-05 | F130: -1.78224056e-05 | G130: 0.000151517656 | H130: -2.63071092e-05 | J130: -0.000340795394 | K130: -0.005413202918 | L130: 0.005457559264 | M130: 0.09598650259 | N130: 0.0003538254496
A131: =IF('DF raw data'!I136="","",'DF raw data'!I136) -> -265.5 | B131: =IF('DF raw data'!J136="","",'DF raw data'!J136) -> -1.89747e-05 | C131: =IF('DF raw data'!K136="","",'DF raw data'!K136) -> 0.000155052 | D131: =IF('DF raw data'!L136="","",'DF raw data'!L136) -> -1.64964e-05 | F131: -1.90505988e-05 | G131: 0.000155672208 | H131: -1.65623856e-05 | J131: -0.0003503206934 | K131: -0.005588363265 | L131: 0.005535395368 | M131: 0.09875420028 | N131: 0.0003692071128
A132: =IF('DF raw data'!I137="","",'DF raw data'!I137) -> -265 | B132: =IF('DF raw data'!J137="","",'DF raw data'!J137) -> -1.96806e-05 | C132: =IF('DF raw data'!K137="","",'DF raw data'!K137) -> 0.000156491 | D132: =IF('DF raw data'!L137="","",'DF raw data'!L137) -> -1.40349e-05 | F132: -1.97593224e-05 | G132: 0.000157116964 | H132: -1.40910396e-05 | J132: -0.0003602003546 | K132: -0.005768463443 | L132: 0.00561395385 | M132: 0.1015611772 | N132: 0.0003850302239
A133: =IF('DF raw data'!I138="","",'DF raw data'!I138) -> -264.5 | B133: =IF('DF raw data'!J138="","",'DF raw data'!J138) -> -6.75367e-06 | C133: =IF('DF raw data'!K138="","",'DF raw data'!K138) -> 0.000171568 | D133: =IF('DF raw data'!L138="","",'DF raw data'!L138) -> 2.43889e-06 | F133: -6.78068468e-06 | G133: 0.000172254272 | H133: 2.44864556e-06 | J133: -0.000363590697 | K133: -0.005950258791 | L133: 0.005700080986 | M133: 0.1044112177 | N133: 0.0004013417846
A134: =IF('DF raw data'!I139="","",'DF raw data'!I139) -> -264 | B134: =IF('DF raw data'!J139="","",'DF raw data'!J139) -> -3.02633e-06 | C134: =IF('DF raw data'!K139="","",'DF raw data'!K139) -> 0.000168721 | D134: =IF('DF raw data'!L139="","",'DF raw data'!L139) -> -1.67503e-05 | F134: -3.03843532e-06 | G134: 0.000169395884 | H134: -1.68173012e-05 | J134: -0.0003651099146 | K134: -0.006132813748 | L134: 0.005784778928 | M134: 0.1073036072 | N134: 0.0004181402708
A135: =IF('DF raw data'!I140="","",'DF raw data'!I140) -> -263.5 | B135: =IF('DF raw data'!J140="","",'DF raw data'!J140) -> -7.19147e-06 | C135: =IF('DF raw data'!K140="","",'DF raw data'!K140) -> 0.00016023 | D135: =IF('DF raw data'!L140="","",'DF raw data'!L140) -> -1.35779e-05 | F135: -7.22023588e-06 | G135: 0.00016087092 | H135: -1.36322116e-05 | J135: -0.0003687200326 | K135: -0.006317173765 | L135: 0.005865214388 | M135: 0.1102362144 | N135: 0.000435408618
A136: =IF('DF raw data'!I141="","",'DF raw data'!I141) -> -263 | B136: =IF('DF raw data'!J141="","",'DF raw data'!J141) -> -1.34686e-05 | C136: =IF('DF raw data'!K141="","",'DF raw data'!K141) -> 0.000158667 | D136: =IF('DF raw data'!L141="","",'DF raw data'!L141) -> -1.29088e-05 | F136: -1.35224744e-05 | G136: 0.000159301668 | H136: -1.29604352e-05 | J136: -0.0003754812698 | K136: -0.006504914399 | L136: 0.005944865222 | M136: 0.113208647 | N136: 0.0004531498223
A137: =IF('DF raw data'!I142="","",'DF raw data'!I142) -> -262.5 | B137: =IF('DF raw data'!J142="","",'DF raw data'!J142) -> -1.46847e-05 | C137: =IF('DF raw data'!K142="","",'DF raw data'!K142) -> 0.000156206 | D137: =IF('DF raw data'!L142="","",'DF raw data'!L142) -> -1.43447e-05 | F137: -1.47434388e-05 | G137: 0.000156830824 | H137: -1.44020788e-05 | J137: -0.0003828529892 | K137: -0.006696340894 | L137: 0.006023280634 | M137: 0.1162202873 | N137: 0.0004713630653
A138: =IF('DF raw data'!I143="","",'DF raw data'!I143) -> -262 | B138: =IF('DF raw data'!J143="","",'DF raw data'!J143) -> -9.6902e-06 | C138: =IF('DF raw data'!K143="","",'DF raw data'!K143) -> 0.00015482 | D138: =IF('DF raw data'!L143="","",'DF raw data'!L143) -> -1.22721e-05 | F138: -9.7289608e-06 | G138: 0.00015543928 | H138: -1.23211884e-05 | J138: -0.0003877174696 | K138: -0.006890199629 | L138: 0.006101000274 | M138: 0.1192707874 | N138: 0.0004900493299
A139: =IF('DF raw data'!I144="","",'DF raw data'!I144) -> -261.5 | B139: =IF('DF raw data'!J144="","",'DF raw data'!J144) -> -6.73324e-06 | C139: =IF('DF raw data'!K144="","",'DF raw data'!K144) -> 0.00015708 | D139: =IF('DF raw data'!L144="","",'DF raw data'!L144) -> -2.90736e-05 | F139: -6.76017296e-06 | G139: 0.00015770832 | H139: -2.91898944e-05 | J139: -0.0003910975561 | K139: -0.007085748407 | L139: 0.006179854434 | M139: 0.1223607146 | N139: 0.000509221109
A140: =IF('DF raw data'!I145="","",'DF raw data'!I145) -> -261 | B140: =IF('DF raw data'!J145="","",'DF raw data'!J145) -> -2.31901e-05 | C140: =IF('DF raw data'!K145="","",'DF raw data'!K145) -> 0.000157164 | D140: =IF('DF raw data'!L145="","",'DF raw data'!L145) -> -3.47565e-05 | F140: -2.32828604e-05 | G140: 0.000157792656 | H140: -3.4895526e-05 | J140: -0.0004027389862 | K140: -0.0072871179 | L140: 0.006258750762 | M140: 0.12549009 | N140: 0.0005288881889
A141: =IF('DF raw data'!I146="","",'DF raw data'!I146) -> -260.5 | B141: =IF('DF raw data'!J146="","",'DF raw data'!J146) -> -2.35164e-05 | C141: =IF('DF raw data'!K146="","",'DF raw data'!K146) -> 0.000160944 | D141: =IF('DF raw data'!L146="","",'DF raw data'!L146) -> -2.52905e-05 | F141: -2.36104656e-05 | G141: 0.000161587776 | H141: -2.5391662e-05 | J141: -0.0004145442191 | K141: -0.00749439001 | L141: 0.00633954465 | M141: 0.1286598623 | N141: 0.0005490690255
A142: =IF('DF raw data'!I147="","",'DF raw data'!I147) -> -260 | B142: =IF('DF raw data'!J147="","",'DF raw data'!J147) -> -1.57055e-05 | C142: =IF('DF raw data'!K147="","",'DF raw data'!K147) -> 0.000157698 | D142: =IF('DF raw data'!L147="","",'DF raw data'!L147) -> -2.02722e-05 | F142: -1.5768322e-05 | G142: 0.000158328792 | H142: -2.03532888e-05 | J142: -0.0004224283801 | K142: -0.0077056042 | L142: 0.006418709046 | M142: 0.1318692169 | N142: 0.0005697581613
A143: =IF('DF raw data'!I148="","",'DF raw data'!I148) -> -259.5 | B143: =IF('DF raw data'!J148="","",'DF raw data'!J148) -> -1.42997e-05 | C143: =IF('DF raw data'!K148="","",'DF raw data'!K148) -> 0.000160319 | D143: =IF('DF raw data'!L148="","",'DF raw data'!L148) -> -1.55054e-05 | F143: -1.43568988e-05 | G143: 0.000160960276 | H143: -1.55674216e-05 | J143: -0.0004296068295 | K143: -0.007920407614 | L143: 0.006499189184 | M143: 0.1351188115 | N143: 0.0005909701723
A144: =IF('DF raw data'!I149="","",'DF raw data'!I149) -> -259 | B144: =IF('DF raw data'!J149="","",'DF raw data'!J149) -> -2.28167e-05 | C144: =IF('DF raw data'!K149="","",'DF raw data'!K149) -> 0.000150413 | D144: =IF('DF raw data'!L149="","",'DF raw data'!L149) -> -1.75223e-05 | F144: -2.29079668e-05 | G144: 0.000151014652 | H144: -1.75923892e-05 | J144: -0.0004410608129 | K144: -0.008140938021 | L144: 0.00657469651 | M144: 0.1384061597 | N144: 0.0006126807568
A145: =IF('DF raw data'!I150="","",'DF raw data'!I150) -> -258.5 | B145: =IF('DF raw data'!J150="","",'DF raw data'!J150) -> -1.89699e-05 | C145: =IF('DF raw data'!K150="","",'DF raw data'!K150) -> 0.000148121 | D145: =IF('DF raw data'!L150="","",'DF raw data'!L150) -> -2.39908e-05 | F145: -1.90457796e-05 | G145: 0.000148713484 | H145: -2.40867632e-05 | J145: -0.0004505837027 | K145: -0.008366229872 | L145: 0.006649053252 | M145: 0.1417306863 | N145: 0.0006348872242
A146: =IF('DF raw data'!I151="","",'DF raw data'!I151) -> -258 | B146: =IF('DF raw data'!J151="","",'DF raw data'!J151) -> -1.67915e-05 | C146: =IF('DF raw data'!K151="","",'DF raw data'!K151) -> 0.000154721 | D146: =IF('DF raw data'!L151="","",'DF raw data'!L151) -> -2.4727e-05 | F146: -1.6858666e-05 | G146: 0.000155339884 | H146: -2.4825908e-05 | J146: -0.0004590130357 | K146: -0.00859573639 | L146: 0.006726723194 | M146: 0.1450940479 | N146: 0.0006576169731
A147: =IF('DF raw data'!I152="","",'DF raw data'!I152) -> -257.5 | B147: =IF('DF raw data'!J152="","",'DF raw data'!J152) -> -2.30768e-05 | C147: =IF('DF raw data'!K152="","",'DF raw data'!K152) -> 0.000160304 | D147: =IF('DF raw data'!L152="","",'DF raw data'!L152) -> -1.19946e-05 | F147: -2.31691072e-05 | G147: 0.000160945216 | H147: -1.20425784e-05 | J147: -0.0004705975893 | K147: -0.008831035184 | L147: 0.006807195802 | M147: 0.1484976458 | N147: 0.0006808966615
A148: =IF('DF raw data'!I153="","",'DF raw data'!I153) -> -257 | B148: =IF('DF raw data'!J153="","",'DF raw data'!J153) -> -1.47383e-05 | C148: =IF('DF raw data'!K153="","",'DF raw data'!K153) -> 0.000148486 | D148: =IF('DF raw data'!L153="","",'DF raw data'!L153) -> -3.05529e-05 | F148: -1.47972532e-05 | G148: 0.000149079944 | H148: -3.06751116e-05 | J148: -0.0004779962159 | K148: -0.009070033292 | L148: 0.006881735774 | M148: 0.1519385137 | N148: 0.0007046900453
A149: =IF('DF raw data'!I154="","",'DF raw data'!I154) -> -256.5 | B149: =IF('DF raw data'!J154="","",'DF raw data'!J154) -> -5.97249e-06 | C149: =IF('DF raw data'!K154="","",'DF raw data'!K154) -> 0.000152644 | D149: =IF('DF raw data'!L154="","",'DF raw data'!L154) -> -1.66487e-05 | F149: -5.99637996e-06 | G149: 0.000153254576 | H149: -1.67152948e-05 | J149: -0.0004809944058 | K149: -0.009310530495 | L149: 0.006958363062 | M149: 0.1554176953 | N149: 0.0007290151314
A150: =IF('DF raw data'!I155="","",'DF raw data'!I155) -> -256 | B150: =IF('DF raw data'!J155="","",'DF raw data'!J155) -> -1.63467e-05 | C150: =IF('DF raw data'!K155="","",'DF raw data'!K155) -> 0.000155808 | D150: =IF('DF raw data'!L155="","",'DF raw data'!L155) -> -1.95174e-05 | F150: -1.64120868e-05 | G150: 0.000156431232 | H150: -1.95954696e-05 | J150: -0.0004892004492 | K150: -0.00955513072 | L150: 0.007036578678 | M150: 0.1589359846 | N150: 0.0007538915097
A151: =IF('DF raw data'!I156="","",'DF raw data'!I156) -> -255.5 | B151: =IF('DF raw data'!J156="","",'DF raw data'!J156) -> -1.32057e-05 | C151: =IF('DF raw data'!K156="","",'DF raw data'!K156) -> 0.000153284 | D151: =IF('DF raw data'!L156="","",'DF raw data'!L156) -> -2.32384e-05 | F151: -1.32585228e-05 | G151: 0.000153897136 | H151: -2.33313536e-05 | J151: -0.0004958297106 | K151: -0.009803045575 | L151: 0.007113527246 | M151: 0.1624927482 | N151: 0.0007793155682
A152: =IF('DF raw data'!I157="","",'DF raw data'!I157) -> -255 | B152: =IF('DF raw data'!J157="","",'DF raw data'!J157) -> -2.12814e-05 | C152: =IF('DF raw data'!K157="","",'DF raw data'!K157) -> 0.000156694 | D152: =IF('DF raw data'!L157="","",'DF raw data'!L157) -> -1.48645e-05 | F152: -2.13665256e-05 | G152: 0.000157320776 | H152: -1.4923958e-05 | J152: -0.0005065129734 | K152: -0.01005630206 | L152: 0.007192187634 | M152: 0.166088842 | N152: 0.0008053076273
A153: =IF('DF raw data'!I158="","",'DF raw data'!I158) -> -254.5 | B153: =IF('DF raw data'!J158="","",'DF raw data'!J158) -> -1.12937e-05 | C153: =IF('DF raw data'!K158="","",'DF raw data'!K158) -> 0.000153588 | D153: =IF('DF raw data'!L158="","",'DF raw data'!L158) -> -8.79507e-06 | F153: -1.13388748e-05 | G153: 0.000154202352 | H153: -8.83025028e-06 | J153: -0.0005121824108 | K153: -0.01031239327 | L153: 0.00726928881 | M153: 0.1697234864 | N153: 0.0008318600726
A154: =IF('DF raw data'!I159="","",'DF raw data'!I159) -> -254 | B154: =IF('DF raw data'!J159="","",'DF raw data'!J159) -> -1.82711e-05 | C154: =IF('DF raw data'!K159="","",'DF raw data'!K159) -> 0.000144079 | D154: =IF('DF raw data'!L159="","",'DF raw data'!L159) -> -1.48307e-05 | F154: -1.83441844e-05 | G154: 0.000144655316 | H154: -1.48900228e-05 | J154: -0.000521354503 | K154: -0.01057307052 | L154: 0.007341616468 | M154: 0.1733942947 | N154: 0.0008589456441
A155: =IF('DF raw data'!I160="","",'DF raw data'!I160) -> -253.5 | B155: =IF('DF raw data'!J160="","",'DF raw data'!J160) -> -1.02561e-05 | C155: =IF('DF raw data'!K160="","",'DF raw data'!K160) -> 0.000152791 | D155: =IF('DF raw data'!L160="","",'DF raw data'!L160) -> -2.87471e-05 | F155: -1.02971244e-05 | G155: 0.000153402164 | H155: -2.88620884e-05 | J155: -0.0005265030652 | K155: -0.01083632205 | L155: 0.00741831755 | M155: 0.1771034534 | N155: 0.0008865999645
A156: =IF('DF raw data'!I161="","",'DF raw data'!I161) -> -253 | B156: =IF('DF raw data'!J161="","",'DF raw data'!J161) -> -1.65972e-05 | C156: =IF('DF raw data'!K161="","",'DF raw data'!K161) -> 0.000155294 | D156: =IF('DF raw data'!L161="","",'DF raw data'!L161) -> -2.83172e-05 | F156: -1.66635888e-05 | G156: 0.000155915176 | H156: -2.84304688e-05 | J156: -0.0005348348596 | K156: -0.01110373948 | L156: 0.007496275138 | M156: 0.180851591 | N156: 0.0009148400591
A157: =IF('DF raw data'!I162="","",'DF raw data'!I162) -> -252.5 | B157: =IF('DF raw data'!J162="","",'DF raw data'!J162) -> -2.15442e-05 | C157: =IF('DF raw data'!K162="","",'DF raw data'!K162) -> 0.000158976 | D157: =IF('DF raw data'!L162="","",'DF raw data'!L162) -> -4.68759e-06 | F157: -2.16303768e-05 | G157: 0.000159611904 | H157: -4.70634036e-06 | J157: -0.000545650048 | K157: -0.01137656451 | L157: 0.00757608109 | M157: 0.1846396316 | N157: 0.0009436874284
A158: =IF('DF raw data'!I163="","",'DF raw data'!I163) -> -252 | B158: =IF('DF raw data'!J163="","",'DF raw data'!J163) -> -1.6995e-05 | C158: =IF('DF raw data'!K163="","",'DF raw data'!K163) -> 0.000152038 | D158: =IF('DF raw data'!L163="","",'DF raw data'!L163) -> -7.46542e-06 | F158: -1.706298e-05 | G158: 0.000152646152 | H158: -7.49528168e-06 | J158: -0.000554181538 | K158: -0.01165365527 | L158: 0.007652404166 | M158: 0.1884658336 | N158: 0.0009731206318
A159: =IF('DF raw data'!I164="","",'DF raw data'!I164) -> -251.5 | B159: =IF('DF raw data'!J164="","",'DF raw data'!J164) -> -1.00797e-05 | C159: =IF('DF raw data'!K164="","",'DF raw data'!K164) -> 0.000157098 | D159: =IF('DF raw data'!L164="","",'DF raw data'!L164) -> -4.20358e-06 | F159: -1.01200188e-05 | G159: 0.000157726392 | H159: -4.22039432e-06 | J159: -0.0005592415474 | K159: -0.01193327605 | L159: 0.007731267362 | M159: 0.1923314673 | N159: 0.001003163255
A160: =IF('DF raw data'!I165="","",'DF raw data'!I165) -> -251 | B160: =IF('DF raw data'!J165="","",'DF raw data'!J165) -> -1.07756e-05 | C160: =IF('DF raw data'!K165="","",'DF raw data'!K165) -> 0.000146063 | D160: =IF('DF raw data'!L165="","",'DF raw data'!L165) -> -1.76347e-05 | F160: -1.08187024e-05 | G160: 0.000146647252 | H160: -1.77052388e-05 | J160: -0.0005646508986 | K160: -0.0122156015 | L160: 0.007804590988 | M160: 0.1962337628 | N160: 0.00103377849
A161: =IF('DF raw data'!I166="","",'DF raw data'!I166) -> -250.5 | B161: =IF('DF raw data'!J166="","",'DF raw data'!J166) -> -1.61441e-05 | C161: =IF('DF raw data'!K166="","",'DF raw data'!K166) -> 0.000147232 | D161: =IF('DF raw data'!L166="","",'DF raw data'!L166) -> -3.54901e-05 | F161: -1.62086764e-05 | G161: 0.000147820928 | H161: -3.56320604e-05 | J161: -0.0005727552368 | K161: -0.01250197912 | L161: 0.007878501452 | M161: 0.2001730135 | N161: 0.001064977907
A162: =IF('DF raw data'!I167="","",'DF raw data'!I167) -> -250 | B162: =IF('DF raw data'!J167="","",'DF raw data'!J167) -> -1.11674e-05 | C162: =IF('DF raw data'!K167="","",'DF raw data'!K167) -> 0.000151493 | D162: =IF('DF raw data'!L167="","",'DF raw data'!L167) -> -6.02427e-06 | F162: -1.12120696e-05 | G162: 0.000152098972 | H162: -6.04836708e-06 | J162: -0.0005783612716 | K162: -0.01279115975 | L162: 0.007954550938 | M162: 0.204150289 | N162: 0.001096782598
A163: =IF('DF raw data'!I168="","",'DF raw data'!I168) -> -249.5 | B163: =IF('DF raw data'!J168="","",'DF raw data'!J168) -> -5.97506e-06 | C163: =IF('DF raw data'!K168="","",'DF raw data'!K168) -> 0.000153863 | D163: =IF('DF raw data'!L168="","",'DF raw data'!L168) -> -1.26878e-05 | F163: -5.99896024e-06 | G163: 0.000154478452 | H163: -1.27385512e-05 | J163: -0.0005813607518 | K163: -0.01308184013 | L163: 0.008031790164 | M163: 0.2081661841 | N163: 0.001129206415
A164: =IF('DF raw data'!I169="","",'DF raw data'!I169) -> -249 | B164: =IF('DF raw data'!J169="","",'DF raw data'!J169) -> -1.53231e-05 | C164: =IF('DF raw data'!K169="","",'DF raw data'!K169) -> 0.000150197 | D164: =IF('DF raw data'!L169="","",'DF raw data'!L169) -> -1.74926e-05 | F164: -1.53843924e-05 | G164: 0.000150797788 | H164: -1.75625704e-05 | J164: -0.000589052948 | K164: -0.0133763666 | L164: 0.008107189058 | M164: 0.2122197786 | N164: 0.001162243164
A165: =IF('DF raw data'!I170="","",'DF raw data'!I170) -> -248.5 | B165: =IF('DF raw data'!J170="","",'DF raw data'!J170) -> -2.11509e-05 | C165: =IF('DF raw data'!K170="","",'DF raw data'!K170) -> 0.000165475 | D165: =IF('DF raw data'!L170="","",'DF raw data'!L170) -> -1.86562e-05 | F165: -2.12355036e-05 | G165: 0.0001661369 | H165: -1.87308248e-05 | J165: -0.0005996706998 | K165: -0.01367620195 | L165: 0.008190257508 | M165: 0.2163149074 | N165: 0.001195963126
A166: =IF('DF raw data'!I171="","",'DF raw data'!I171) -> -248 | B166: =IF('DF raw data'!J171="","",'DF raw data'!J171) -> -1.61493e-05 | C166: =IF('DF raw data'!K171="","",'DF raw data'!K171) -> 0.000160784 | D166: =IF('DF raw data'!L171="","",'DF raw data'!L171) -> -2.74364e-05 | F166: -1.62138972e-05 | G166: 0.000161427136 | H166: -2.75461456e-05 | J166: -0.0006077776484 | K166: -0.01398009078 | L166: 0.008270971076 | M166: 0.2204503929 | N166: 0.001230352304
A167: =IF('DF raw data'!I172="","",'DF raw data'!I172) -> -247.5 | B167: =IF('DF raw data'!J172="","",'DF raw data'!J172) -> -9.16601e-06 | C167: =IF('DF raw data'!K172="","",'DF raw data'!K172) -> 0.000161209 | D167: =IF('DF raw data'!L172="","",'DF raw data'!L172) -> -3.06037e-05 | F167: -9.20267404e-06 | G167: 0.000161853836 | H167: -3.07261148e-05 | J167: -0.0006123789854 | K167: -0.01428628027 | L167: 0.008351897994 | M167: 0.2246263419 | N167: 0.001265416908
A168: =IF('DF raw data'!I173="","",'DF raw data'!I173) -> -247 | B168: =IF('DF raw data'!J173="","",'DF raw data'!J173) -> -2.35252e-05 | C168: =IF('DF raw data'!K173="","",'DF raw data'!K173) -> 0.00016557 | D168: =IF('DF raw data'!L173="","",'DF raw data'!L173) -> -1.14252e-05 | F168: -2.36193008e-05 | G168: 0.00016623228 | H168: -1.14709008e-05 | J168: -0.0006241886358 | K168: -0.01459837459 | L168: 0.008435014134 | M168: 0.228843849 | N168: 0.001301186445
A169: =IF('DF raw data'!I174="","",'DF raw data'!I174) -> -246.5 | B169: =IF('DF raw data'!J174="","",'DF raw data'!J174) -> -6.41775e-06 | C169: =IF('DF raw data'!K174="","",'DF raw data'!K174) -> 0.000168772 | D169: =IF('DF raw data'!L174="","",'DF raw data'!L174) -> -2.16217e-05 | F169: -6.443421e-06 | G169: 0.000169447088 | H169: -2.17081868e-05 | J169: -0.0006274103463 | K169: -0.01491207976 | L169: 0.008519737678 | M169: 0.2331037178 | N169: 0.001337676232
A170: =IF('DF raw data'!I175="","",'DF raw data'!I175) -> -246 | B170: =IF('DF raw data'!J175="","",'DF raw data'!J175) -> -2.85817e-05 | C170: =IF('DF raw data'!K175="","",'DF raw data'!K175) -> 0.000165208 | D170: =IF('DF raw data'!L175="","",'DF raw data'!L175) -> -1.67003e-05 | F170: -2.86960268e-05 | G170: 0.000165868832 | H170: -1.67671012e-05 | J170: -0.0006417583597 | K170: -0.01523295894 | L170: 0.008602672094 | M170: 0.2374050539 | N170: 0.001374885143
A171: =IF('DF raw data'!I176="","",'DF raw data'!I176) -> -245.5 | B171: =IF('DF raw data'!J176="","",'DF raw data'!J176) -> -1.42403e-05 | C171: =IF('DF raw data'!K176="","",'DF raw data'!K176) -> 0.000167926 | D171: =IF('DF raw data'!L176="","",'DF raw data'!L176) -> -8.64551e-06 | F171: -1.42972612e-05 | G171: 0.000168597704 | H171: -8.68009204e-06 | J171: -0.0006489069903 | K171: -0.01555741243 | L171: 0.008686970946 | M171: 0.2417485393 | N171: 0.001412827415
A172: =IF('DF raw data'!I177="","",'DF raw data'!I177) -> -245 | B172: =IF('DF raw data'!J177="","",'DF raw data'!J177) -> -2.16003e-05 | C172: =IF('DF raw data'!K177="","",'DF raw data'!K177) -> 0.000153826 | D172: =IF('DF raw data'!L177="","",'DF raw data'!L177) -> -1.67578e-05 | F172: -2.16867012e-05 | G172: 0.000154441304 | H172: -1.68248312e-05 | J172: -0.0006597503409 | K172: -0.0158872876 | L172: 0.008764191598 | M172: 0.2461306351 | N172: 0.001451450577
A173: =IF('DF raw data'!I178="","",'DF raw data'!I178) -> -244.5 | B173: =IF('DF raw data'!J178="","",'DF raw data'!J178) -> -1.53952e-05 | C173: =IF('DF raw data'!K178="","",'DF raw data'!K178) -> 0.000160708 | D173: =IF('DF raw data'!L178="","",'DF raw data'!L178) -> -5.48853e-06 | F173: -1.54567808e-05 | G173: 0.000161350832 | H173: -5.51048412e-06 | J173: -0.0006674787313 | K173: -0.01622102697 | L173: 0.008844867014 | M173: 0.2505530686 | N173: 0.001490789177
A174: =IF('DF raw data'!I179="","",'DF raw data'!I179) -> -244 | B174: =IF('DF raw data'!J179="","",'DF raw data'!J179) -> -1.19274e-05 | C174: =IF('DF raw data'!K179="","",'DF raw data'!K179) -> 0.000167483 | D174: =IF('DF raw data'!L179="","",'DF raw data'!L179) -> -1.90943e-05 | F174: -1.19751096e-05 | G174: 0.000168152932 | H174: -1.91706772e-05 | J174: -0.0006734662861 | K174: -0.01655776011 | L174: 0.00892894348 | M174: 0.2550175404 | N174: 0.001530878972
A175: =IF('DF raw data'!I180="","",'DF raw data'!I180) -> -243.5 | B175: =IF('DF raw data'!J180="","",'DF raw data'!J180) -> -3.40261e-06 | C175: =IF('DF raw data'!K180="","",'DF raw data'!K180) -> 0.000164649 | D175: =IF('DF raw data'!L180="","",'DF raw data'!L180) -> -2.91438e-05 | F175: -3.41622044e-06 | G175: 0.000165307596 | H175: -2.92603752e-05 | J175: -0.0006751743963 | K175: -0.01689534731 | L175: 0.009011597278 | M175: 0.259523339 | N175: 0.001571711345
A176: =IF('DF raw data'!I181="","",'DF raw data'!I181) -> -243 | B176: =IF('DF raw data'!J181="","",'DF raw data'!J181) -> -2.67793e-05 | C176: =IF('DF raw data'!K181="","",'DF raw data'!K181) -> 0.00016922 | D176: =IF('DF raw data'!L181="","",'DF raw data'!L181) -> -3.01634e-05 | F176: -2.68864172e-05 | G176: 0.00016989688 | H176: -3.02840536e-05 | J176: -0.0006886176049 | K176: -0.01723965611 | L176: 0.009096545718 | M176: 0.2640716119 | N176: 0.001613322014
A177: =IF('DF raw data'!I182="","",'DF raw data'!I182) -> -242.5 | B177: =IF('DF raw data'!J182="","",'DF raw data'!J182) -> -9.10771e-06 | C177: =IF('DF raw data'!K182="","",'DF raw data'!K182) -> 0.000173316 | D177: =IF('DF raw data'!L182="","",'DF raw data'!L182) -> -2.2034e-05 | F177: -9.14414084e-06 | G177: 0.000174009264 | H177: -2.2122136e-05 | J177: -0.0006931896753 | K177: -0.01758625095 | L177: 0.00918355035 | M177: 0.2686633871 | N177: 0.001655731068
A178: =IF('DF raw data'!I183="","",'DF raw data'!I183) -> -242 | B178: =IF('DF raw data'!J183="","",'DF raw data'!J183) -> -2.91535e-05 | C178: =IF('DF raw data'!K183="","",'DF raw data'!K183) -> 0.000169226 | D178: =IF('DF raw data'!L183="","",'DF raw data'!L183) -> -2.3374e-05 | F178: -2.9270114e-05 | G178: 0.000169902904 | H178: -2.3467496e-05 | J178: -0.0007078247323 | K178: -0.01794016332 | L178: 0.009268501802 | M178: 0.273297638 | N178: 0.001698934139
A179: =IF('DF raw data'!I184="","",'DF raw data'!I184) -> -241.5 | B179: =IF('DF raw data'!J184="","",'DF raw data'!J184) -> -2.27496e-05 | C179: =IF('DF raw data'!K184="","",'DF raw data'!K184) -> 0.000172703 | D179: =IF('DF raw data'!L184="","",'DF raw data'!L184) -> -2.27938e-05 | F179: -2.28405984e-05 | G179: 0.000173393812 | H179: -2.28849752e-05 | J179: -0.0007192450315 | K179: -0.01829978583 | L179: 0.009355198708 | M179: 0.2779752373 | N179: 0.001742952667
A180: =IF('DF raw data'!I185="","",'DF raw data'!I185) -> -241 | B180: =IF('DF raw data'!J185="","",'DF raw data'!J185) -> -2.01929e-05 | C180: =IF('DF raw data'!K185="","",'DF raw data'!K185) -> 0.000177424 | D180: =IF('DF raw data'!L185="","",'DF raw data'!L185) -> -1.3992e-05 | F180: -2.02736716e-05 | G180: 0.000178133696 | H180: -1.4047968e-05 | J180: -0.0007293818673 | K180: -0.01866447677 | L180: 0.009444265556 | M180: 0.2826973701 | N180: 0.001787815742
A181: =IF('DF raw data'!I186="","",'DF raw data'!I186) -> -240.5 | B181: =IF('DF raw data'!J186="","",'DF raw data'!J186) -> -4.11608e-06 | C181: =IF('DF raw data'!K186="","",'DF raw data'!K186) -> 0.000179596 | D181: =IF('DF raw data'!L186="","",'DF raw data'!L186) -> -1.51025e-05 | F181: -4.13254432e-06 | G181: 0.000180314384 | H181: -1.516291e-05 | J181: -0.0007314481395 | K181: -0.01903020084 | L181: 0.009534422748 | M181: 0.2874645815 | N181: 0.001833535859
A182: =IF('DF raw data'!I187="","",'DF raw data'!I187) -> -240 | B182: =IF('DF raw data'!J187="","",'DF raw data'!J187) -> -1.67933e-05 | C182: =IF('DF raw data'!K187="","",'DF raw data'!K187) -> 0.000174451 | D182: =IF('DF raw data'!L187="","",'DF raw data'!L187) -> -2.17093e-05 | F182: -1.68604732e-05 | G182: 0.000175148804 | H182: -2.17961372e-05 | J182: -0.0007398783761 | K182: -0.01940014002 | L182: 0.00962199715 | M182: 0.29227558 | N182: 0.001880100983
A183: =IF('DF raw data'!I188="","",'DF raw data'!I188) -> -239.5 | B183: =IF('DF raw data'!J188="","",'DF raw data'!J188) -> -1.66699e-05 | C183: =IF('DF raw data'!K188="","",'DF raw data'!K188) -> 0.000182494 | D183: =IF('DF raw data'!L188="","",'DF raw data'!L188) -> -1.51489e-05 | F183: -1.67365796e-05 | G183: 0.000183223976 | H183: -1.52094956e-05 | J183: -0.0007482466659 | K183: -0.01977426336 | L183: 0.009713609138 | M183: 0.2971323846 | N183: 0.001927558021
A184: =IF('DF raw data'!I189="","",'DF raw data'!I189) -> -239 | B184: =IF('DF raw data'!J189="","",'DF raw data'!J189) -> -2.71122e-05 | C184: =IF('DF raw data'!K189="","",'DF raw data'!K189) -> 0.000183799 | D184: =IF('DF raw data'!L189="","",'DF raw data'!L189) -> -1.08878e-05 | F184: -2.72206488e-05 | G184: 0.000184534196 | H184: -1.09313512e-05 | J184: -0.0007618569903 | K184: -0.02015519185 | L184: 0.009805876236 | M184: 0.3020353227 | N184: 0.001975925839
A185: =IF('DF raw data'!I190="","",'DF raw data'!I190) -> -238.5 | B185: =IF('DF raw data'!J190="","",'DF raw data'!J190) -> -1.67918e-05 | C185: =IF('DF raw data'!K190="","",'DF raw data'!K190) -> 0.000173275 | D185: =IF('DF raw data'!L190="","",'DF raw data'!L190) -> -2.47718e-05 | F185: -1.68589672e-05 | G185: 0.0001739681 | H185: -2.48708872e-05 | J185: -0.0007702864739 | K185: -0.02054033509 | L185: 0.009892860286 | M185: 0.3069817529 | N185: 0.002025156852
A186: =IF('DF raw data'!I191="","",'DF raw data'!I191) -> -238 | B186: =IF('DF raw data'!J191="","",'DF raw data'!J191) -> -2.78818e-05 | C186: =IF('DF raw data'!K191="","",'DF raw data'!K191) -> 0.000164552 | D186: =IF('DF raw data'!L191="","",'DF raw data'!L191) -> -9.0941e-06 | F186: -2.79933272e-05 | G186: 0.000165210208 | H186: -9.1304764e-06 | J186: -0.0007842831375 | K186: -0.02093247666 | L186: 0.00997546539 | M186: 0.3119694856 | N186: 0.002075219356
A187: =IF('DF raw data'!I192="","",'DF raw data'!I192) -> -237.5 | B187: =IF('DF raw data'!J192="","",'DF raw data'!J192) -> -1.09703e-05 | C187: =IF('DF raw data'!K192="","",'DF raw data'!K192) -> 0.000169703 | D187: =IF('DF raw data'!L192="","",'DF raw data'!L192) -> -1.38674e-05 | F187: -1.10141812e-05 | G187: 0.000170381812 | H187: -1.39228696e-05 | J187: -0.0007897902281 | K187: -0.02132737177 | L187: 0.0100606563 | M187: 0.3169998137 | N187: 0.002126139643
A188: =IF('DF raw data'!I193="","",'DF raw data'!I193) -> -237 | B188: =IF('DF raw data'!J193="","",'DF raw data'!J193) -> -2.35263e-05 | C188: =IF('DF raw data'!K193="","",'DF raw data'!K193) -> 0.000177719 | D188: =IF('DF raw data'!L193="","",'DF raw data'!L193) -> -9.32197e-06 | F188: -2.36204052e-05 | G188: 0.000178429876 | H188: -9.35925788e-06 | J188: -0.0008016004307 | K188: -0.02172817199 | L188: 0.01014987123 | M188: 0.3220747493 | N188: 0.002177970868
A189: =IF('DF raw data'!I194="","",'DF raw data'!I194) -> -236.5 | B189: =IF('DF raw data'!J194="","",'DF raw data'!J194) -> -1.20527e-05 | C189: =IF('DF raw data'!K194="","",'DF raw data'!K194) -> 0.000179058 | D189: =IF('DF raw data'!L194="","",'DF raw data'!L194) -> -2.38468e-05 | F189: -1.21009108e-05 | G189: 0.000179774232 | H189: -2.39421872e-05 | J189: -0.0008076508861 | K189: -0.02213199743 | L189: 0.01023975835 | M189: 0.3271946285 | N189: 0.002230723344
A190: =IF('DF raw data'!I195="","",'DF raw data'!I195) -> -236 | B190: =IF('DF raw data'!J195="","",'DF raw data'!J195) -> -1.35338e-05 | C190: =IF('DF raw data'!K195="","",'DF raw data'!K195) -> 0.000184711 | D190: =IF('DF raw data'!L195="","",'DF raw data'!L195) -> -1.09775e-05 | F190: -1.35879352e-05 | G190: 0.000185449844 | H190: -1.102141e-05 | J190: -0.0008144448537 | K190: -0.02253921986 | L190: 0.01033248327 | M190: 0.3323608701 | N190: 0.002284435109
A191: =IF('DF raw data'!I196="","",'DF raw data'!I196) -> -235.5 | B191: =IF('DF raw data'!J196="","",'DF raw data'!J196) -> -8.07991e-06 | C191: =IF('DF raw data'!K196="","",'DF raw data'!K196) -> 0.00017939 | D191: =IF('DF raw data'!L196="","",'DF raw data'!L196) -> -2.65177e-05 | F191: -8.11222964e-06 | G191: 0.00018010756 | H191: -2.66237708e-05 | J191: -0.0008185009685 | K191: -0.02294847034 | L191: 0.01042253705 | M191: 0.3375721387 | N191: 0.00233908472
A192: =IF('DF raw data'!I197="","",'DF raw data'!I197) -> -235 | B192: =IF('DF raw data'!J197="","",'DF raw data'!J197) -> -1.62767e-05 | C192: =IF('DF raw data'!K197="","",'DF raw data'!K197) -> 0.000178907 | D192: =IF('DF raw data'!L197="","",'DF raw data'!L197) -> -2.80005e-05 | F192: =(1-$G$1*($B$49-$G$2))*B192 -> -1.63418068e-05 | G192: 0.000179622628 | H192: -2.8112502e-05 | J192: =F192*$G$3+J191 -> -0.0008266718719 | K192: =J192*$G$3+K191 -> -0.02336180628 | L192: =G192*$G$3+L191 -> 0.01051234837 | M192: =L192*$G$3+M191 -> 0.3428283129 | N192: =(J192^2+L192^2)*$G$3+N191 -> 0.002394681147
A193: =IF('DF raw data'!I198="","",'DF raw data'!I198) -> -234.5 | B193: =IF('DF raw data'!J198="","",'DF raw data'!J198) -> -1.07085e-05 | C193: =IF('DF raw data'!K198="","",'DF raw data'!K198) -> 0.000183011 | D193: =IF('DF raw data'!L198="","",'DF raw data'!L198) -> -2.2663e-05 | F193: -1.0751334e-05 | G193: 0.000183743044 | H193: -2.2753652e-05 | J193: -0.0008320475389 | K193: -0.02377783005 | L193: 0.01060421989 | M193: 0.3481304228 | N193: 0.002451252039
A194: =IF('DF raw data'!I199="","",'DF raw data'!I199) -> -234 | B194: =IF('DF raw data'!J199="","",'DF raw data'!J199) -> -9.23268e-06 | C194: =IF('DF raw data'!K199="","",'DF raw data'!K199) -> 0.000180048 | D194: =IF('DF raw data'!L199="","",'DF raw data'!L199) -> -2.63014e-05 | F194: -9.26961072e-06 | G194: 0.000180768192 | H194: -2.64066056e-05 | J194: -0.0008366823443 | K194: -0.02419617122 | L194: 0.01069460398 | M194: 0.3534777248 | N194: 0.002508789335
A195: =IF('DF raw data'!I200="","",'DF raw data'!I200) -> -233.5 | B195: =IF('DF raw data'!J200="","",'DF raw data'!J200) -> -1.04537e-05 | C195: =IF('DF raw data'!K200="","",'DF raw data'!K200) -> 0.000179372 | D195: =IF('DF raw data'!L200="","",'DF raw data'!L200) -> -2.05877e-05 | F195: -1.04955148e-05 | G195: 0.000180089488 | H195: -2.06700508e-05 | J195: -0.0008419301017 | K195: -0.02461713627 | L195: 0.01078464873 | M195: 0.3588700492 | N195: 0.002567298082
A196: =IF('DF raw data'!I201="","",'DF raw data'!I201) -> -233 | B196: =IF('DF raw data'!J201="","",'DF raw data'!J201) -> -1.50141e-05 | C196: =IF('DF raw data'!K201="","",'DF raw data'!K201) -> 0.000177849 | D196: =IF('DF raw data'!L201="","",'DF raw data'!L201) -> 4.33253e-07 | F196: -1.50741564e-05 | G196: 0.000178560396 | H196: 4.34986012e-07 | J196: -0.0008494671799 | K196: -0.02504186986 | L196: 0.01087392893 | M196: 0.3643070136 | N196: 0.002626780044
A197: =IF('DF raw data'!I202="","",'DF raw data'!I202) -> -232.5 | B197: =IF('DF raw data'!J202="","",'DF raw data'!J202) -> -9.557e-06 | C197: =IF('DF raw data'!K202="","",'DF raw data'!K202) -> 0.000175907 | D197: =IF('DF raw data'!L202="","",'DF raw data'!L202) -> -2.06717e-05 | F197: -9.595228e-06 | G197: 0.000176610628 | H197: -2.07543868e-05 | J197: -0.0008542647939 | K197: -0.02546900226 | L197: 0.01096223424 | M197: 0.3697881307 | N197: 0.002687230218
A198: =IF('DF raw data'!I203="","",'DF raw data'!I203) -> -232 | B198: =IF('DF raw data'!J203="","",'DF raw data'!J203) -> -1.46861e-05 | C198: =IF('DF raw data'!K203="","",'DF raw data'!K203) -> 0.000179577 | D198: =IF('DF raw data'!L203="","",'DF raw data'!L203) -> -1.12724e-05 | F198: -1.47448444e-05 | G198: 0.000180295308 | H198: -1.13174896e-05 | J198: -0.0008616372161 | K198: -0.02589982087 | L198: 0.01105238189 | M198: 0.3753143217 | N198: 0.002748679
A199: =IF('DF raw data'!I204="","",'DF raw data'!I204) -> -231.5 | B199: =IF('DF raw data'!J204="","",'DF raw data'!J204) -> -1.3077e-05 | C199: =IF('DF raw data'!K204="","",'DF raw data'!K204) -> 0.000179356 | D199: =IF('DF raw data'!L204="","",'DF raw data'!L204) -> -2.48752e-05 | F199: -1.3129308e-05 | G199: 0.000180073424 | H199: -2.49747008e-05 | J199: -0.0008682018701 | K199: -0.0263339218 | L199: 0.01114241861 | M199: 0.380885531 | N199: 0.002811132634
A200: =IF('DF raw data'!I205="","",'DF raw data'!I205) -> -231 | B200: =IF('DF raw data'!J205="","",'DF raw data'!J205) -> -2.74277e-05 | C200: =IF('DF raw data'!K205="","",'DF raw data'!K205) -> 0.000183264 | D200: =IF('DF raw data'!L205="","",'DF raw data'!L205) -> -1.70073e-05 | F200: -2.75374108e-05 | G200: 0.000183997056 | H200: -1.70753292e-05 | J200: -0.0008819705755 | K200: -0.02677490709 | L200: 0.01123441713 | M200: 0.3865027396 | N200: 0.002874627634
A201: =IF('DF raw data'!I206="","",'DF raw data'!I206) -> -230.5 | B201: =IF('DF raw data'!J206="","",'DF raw data'!J206) -> -2.83869e-05 | C201: =IF('DF raw data'!K206="","",'DF raw data'!K206) -> 0.000193142 | D201: =IF('DF raw data'!L206="","",'DF raw data'!L206) -> -2.2482e-05 | F201: -2.85004476e-05 | G201: 0.000193914568 | H201: -2.2571928e-05 | J201: -0.0008962207993 | K201: -0.02722301749 | L201: 0.01133137442 | M201: 0.3921684268 | N201: 0.002939229263
... 1061 more rows

Sheet 10 x=1
A1: =IF('DF raw data'!M1="","",'DF raw data'!M1) -> Number of header lines | B1: =IF('DF raw data'!N1="","",'DF raw data'!N1) -> 54 | C1: =IF('DF raw data'!O1="","",'DF raw data'!O1) ->  | D1: =IF('DF raw data'!P1="","",'DF raw data'!P1) ->  | F1: T_coeff | G1: -0.001 | H1: /degC | J1: ='10 x=-2'!J1 -> IBy total | K1: ='10 x=-2'!K1 -> 5.30191253 | L1: ='10 x=-2'!L1 -> muTm | R1: ='10 x=-2'!R1 -> DF ref | S1: ='10 x=-2'!S1 -> 1
A2: =IF('DF raw data'!M2="","",'DF raw data'!M2) -> Measured by | B2: =IF('DF raw data'!N2="","",'DF raw data'!N2) -> Danfysik | C2: =IF('DF raw data'!O2="","",'DF raw data'!O2) ->  | D2: =IF('DF raw data'!P2="","",'DF raw data'!P2) ->  | F2: Tcorr | G2: 20 | H2: degC | J2: JBy total | K2: =K1262 -> -1.868376603 | L2: muTm^2 | M2: =M1262 -> 22.482003
A3: =IF('DF raw data'!M3="","",'DF raw data'!M3) -> Operator | B3: =IF('DF raw data'!N3="","",'DF raw data'!N3) -> PMHA | C3: =IF('DF raw data'!O3="","",'DF raw data'!O3) ->  | D3: =IF('DF raw data'!P3="","",'DF raw data'!P3) ->  | F3: Step | G3: =A63-A62 -> 0.5 | H3: mm | J3: PI total | K3: =N1262 -> 10596.95538 | L3: T^2mm^3
A4: =IF('DF raw data'!M4="","",'DF raw data'!M4) -> Data-time | B4: =IF('DF raw data'!N4="","",'DF raw data'!N4) -> 26-09-2024, 09:20:26 | C4: =IF('DF raw data'!O4="","",'DF raw data'!O4) ->  | D4: =IF('DF raw data'!P4="","",'DF raw data'!P4) -> 
A5: =IF('DF raw data'!M5="","",'DF raw data'!M5) -> Project | B5: =IF('DF raw data'!N5="","",'DF raw data'!N5) -> 504314 | C5: =IF('DF raw data'!O5="","",'DF raw data'!O5) ->  | D5: =IF('DF raw data'!P5="","",'DF raw data'!P5) -> 
A6: =IF('DF raw data'!M6="","",'DF raw data'!M6) -> Magnet type | B6: =IF('DF raw data'!N6="","",'DF raw data'!N6) -> Dipole | C6: =IF('DF raw data'!O6="","",'DF raw data'!O6) ->  | D6: =IF('DF raw data'!P6="","",'DF raw data'!P6) -> 
A7: =IF('DF raw data'!M7="","",'DF raw data'!M7) -> Magnet nr. | B7: =IF('DF raw data'!N7="","",'DF raw data'!N7) -> 2410102 | C7: =IF('DF raw data'!O7="","",'DF raw data'!O7) ->  | D7: =IF('DF raw data'!P7="","",'DF raw data'!P7) -> 
A8: =IF('DF raw data'!M8="","",'DF raw data'!M8) -> Meas. number | B8: =IF('DF raw data'!N8="","",'DF raw data'!N8) -> 691 | C8: =IF('DF raw data'!O8="","",'DF raw data'!O8) ->  | D8: =IF('DF raw data'!P8="","",'DF raw data'!P8) -> 
A9: =IF('DF raw data'!M9="","",'DF raw data'!M9) -> Add. info | B9: =IF('DF raw data'!N9="","",'DF raw data'!N9) -> X-alignment scan 4) | C9: =IF('DF raw data'!O9="","",'DF raw data'!O9) ->  | D9: =IF('DF raw data'!P9="","",'DF raw data'!P9) -> 
A10: =IF('DF raw data'!M10="","",'DF raw data'!M10) -> Device | B10: =IF('DF raw data'!N10="","",'DF raw data'!N10) -> (HAL) HALL-PROBE | C10: =IF('DF raw data'!O10="","",'DF raw data'!O10) ->  | D10: =IF('DF raw data'!P10="","",'DF raw data'!P10) -> 
A11: =IF('DF raw data'!M11="","",'DF raw data'!M11) -> Goal | B11: =IF('DF raw data'!N11="","",'DF raw data'!N11) -> (AXI) AXis Integral (Line, EFB) | C11: =IF('DF raw data'!O11="","",'DF raw data'!O11) ->  | D11: =IF('DF raw data'!P11="","",'DF raw data'!P11) -> 
A12: =IF('DF raw data'!M12="","",'DF raw data'!M12) -> Power supply mode | B12: =IF('DF raw data'!N12="","",'DF raw data'!N12) -> (PM) Permanent Magnet (no MPS in use) | C12: =IF('DF raw data'!O12="","",'DF raw data'!O12) ->  | D12: =IF('DF raw data'!P12="","",'DF raw data'!P12) -> 
A13: =IF('DF raw data'!M13="","",'DF raw data'!M13) -> Data format | B13: =IF('DF raw data'!N13="","",'DF raw data'!N13) -> Raw data text file | C13: =IF('DF raw data'!O13="","",'DF raw data'!O13) ->  | D13: =IF('DF raw data'!P13="","",'DF raw data'!P13) -> 
A14: =IF('DF raw data'!M14="","",'DF raw data'!M14) -> Direction of the pos. x-axis | B14: =IF('DF raw data'!N14="","",'DF raw data'!N14) -> See test program | C14: =IF('DF raw data'!O14="","",'DF raw data'!O14) ->  | D14: =IF('DF raw data'!P14="","",'DF raw data'!P14) -> 
A15: =IF('DF raw data'!M15="","",'DF raw data'!M15) -> Direction of the pos. y-axis | B15: =IF('DF raw data'!N15="","",'DF raw data'!N15) -> Vertical up | C15: =IF('DF raw data'!O15="","",'DF raw data'!O15) ->  | D15: =IF('DF raw data'!P15="","",'DF raw data'!P15) -> 
A16: =IF('DF raw data'!M16="","",'DF raw data'!M16) -> Direction of the pos. z-axis | B16: =IF('DF raw data'!N16="","",'DF raw data'!N16) -> See test program | C16: =IF('DF raw data'!O16="","",'DF raw data'!O16) ->  | D16: =IF('DF raw data'!P16="","",'DF raw data'!P16) -> 
A17: =IF('DF raw data'!M17="","",'DF raw data'!M17) -> Mapper type | B17: =IF('DF raw data'!N17="","",'DF raw data'!N17) -> Precision Hall Mapper | C17: =IF('DF raw data'!O17="","",'DF raw data'!O17) ->  | D17: =IF('DF raw data'!P17="","",'DF raw data'!P17) -> 
A18: =IF('DF raw data'!M18="","",'DF raw data'!M18) -> Mapper Danfysik Reg. Number | B18: =IF('DF raw data'!N18="","",'DF raw data'!N18) -> 2033-D (mapper 1) | C18: =IF('DF raw data'!O18="","",'DF raw data'!O18) ->  | D18: =IF('DF raw data'!P18="","",'DF raw data'!P18) -> 
A19: =IF('DF raw data'!M19="","",'DF raw data'!M19) -> Measurement consept | B19: =IF('DF raw data'!N19="","",'DF raw data'!N19) -> Square line grid | C19: =IF('DF raw data'!O19="","",'DF raw data'!O19) ->  | D19: =IF('DF raw data'!P19="","",'DF raw data'!P19) -> 
A20: =IF('DF raw data'!M20="","",'DF raw data'!M20) -> Mode | B20: =IF('DF raw data'!N20="","",'DF raw data'!N20) -> On-the-fly measurement | C20: =IF('DF raw data'!O20="","",'DF raw data'!O20) ->  | D20: =IF('DF raw data'!P20="","",'DF raw data'!P20) -> 
A21: =IF('DF raw data'!M21="","",'DF raw data'!M21) ->  | B21: =IF('DF raw data'!N21="","",'DF raw data'!N21) ->  | C21: =IF('DF raw data'!O21="","",'DF raw data'!O21) ->  | D21: =IF('DF raw data'!P21="","",'DF raw data'!P21) -> 
A22: =IF('DF raw data'!M22="","",'DF raw data'!M22) -> Probe Name | B22: =IF('DF raw data'!N22="","",'DF raw data'!N22) -> ID12_By | C22: =IF('DF raw data'!O22="","",'DF raw data'!O22) ->  | D22: =IF('DF raw data'!P22="","",'DF raw data'!P22) -> 
A23: =IF('DF raw data'!M23="","",'DF raw data'!M23) -> Probe Type | B23: =IF('DF raw data'!N23="","",'DF raw data'!N23) -> DF_ID_3D_Bxyz | C23: =IF('DF raw data'!O23="","",'DF raw data'!O23) ->  | D23: =IF('DF raw data'!P23="","",'DF raw data'!P23) -> 
A24: =IF('DF raw data'!M24="","",'DF raw data'!M24) -> Probe Danfysik Reg. Number | B24: =IF('DF raw data'!N24="","",'DF raw data'!N24) -> 2277 | C24: =IF('DF raw data'!O24="","",'DF raw data'!O24) ->  | D24: =IF('DF raw data'!P24="","",'DF raw data'!P24) -> 
A25: =IF('DF raw data'!M25="","",'DF raw data'!M25) -> Probe Axis | B25: =IF('DF raw data'!N25="","",'DF raw data'!N25) -> By | C25: =IF('DF raw data'!O25="","",'DF raw data'!O25) ->  | D25: =IF('DF raw data'!P25="","",'DF raw data'!P25) -> 
A26: =IF('DF raw data'!M26="","",'DF raw data'!M26) -> Probe Current Supply | B26: =IF('DF raw data'!N26="","",'DF raw data'!N26) -> 1825-D | C26: =IF('DF raw data'!O26="","",'DF raw data'!O26) ->  | D26: =IF('DF raw data'!P26="","",'DF raw data'!P26) -> 
A27: =IF('DF raw data'!M27="","",'DF raw data'!M27) -> Probe Gain Correction | B27: =IF('DF raw data'!N27="","",'DF raw data'!N27) -> 0.99599 | C27: =IF('DF raw data'!O27="","",'DF raw data'!O27) ->  | D27: =IF('DF raw data'!P27="","",'DF raw data'!P27) -> 
A28: =IF('DF raw data'!M28="","",'DF raw data'!M28) -> Probe Offset Correction | B28: =IF('DF raw data'!N28="","",'DF raw data'!N28) -> 0.0027595 | C28: =IF('DF raw data'!O28="","",'DF raw data'!O28) ->  | D28: =IF('DF raw data'!P28="","",'DF raw data'!P28) -> 
A29: =IF('DF raw data'!M29="","",'DF raw data'!M29) -> DVM Number | B29: =IF('DF raw data'!N29="","",'DF raw data'!N29) -> 2 | C29: =IF('DF raw data'!O29="","",'DF raw data'!O29) ->  | D29: =IF('DF raw data'!P29="","",'DF raw data'!P29) -> 
A30: =IF('DF raw data'!M30="","",'DF raw data'!M30) -> DVM Type | B30: =IF('DF raw data'!N30="","",'DF raw data'!N30) -> K2701 | C30: =IF('DF raw data'!O30="","",'DF raw data'!O30) ->  | D30: =IF('DF raw data'!P30="","",'DF raw data'!P30) -> 
A31: =IF('DF raw data'!M31="","",'DF raw data'!M31) -> DVM Danfysik Reg. Number | B31: =IF('DF raw data'!N31="","",'DF raw data'!N31) -> 1743-D | C31: =IF('DF raw data'!O31="","",'DF raw data'!O31) ->  | D31: =IF('DF raw data'!P31="","",'DF raw data'!P31) -> 
A32: =IF('DF raw data'!M32="","",'DF raw data'!M32) -> Probe Name | B32: =IF('DF raw data'!N32="","",'DF raw data'!N32) -> ID12_Bx | C32: =IF('DF raw data'!O32="","",'DF raw data'!O32) ->  | D32: =IF('DF raw data'!P32="","",'DF raw data'!P32) -> 
A33: =IF('DF raw data'!M33="","",'DF raw data'!M33) -> Probe Type | B33: =IF('DF raw data'!N33="","",'DF raw data'!N33) -> DF_ID_3D_Bxyz | C33: =IF('DF raw data'!O33="","",'DF raw data'!O33) ->  | D33: =IF('DF raw data'!P33="","",'DF raw data'!P33) -> 
A34: =IF('DF raw data'!M34="","",'DF raw data'!M34) -> Probe Danfysik Reg. Number | B34: =IF('DF raw data'!N34="","",'DF raw data'!N34) -> 2277 | C34: =IF('DF raw data'!O34="","",'DF raw data'!O34) ->  | D34: =IF('DF raw data'!P34="","",'DF raw data'!P34) -> 
A35: =IF('DF raw data'!M35="","",'DF raw data'!M35) -> Probe Axis | B35: =IF('DF raw data'!N35="","",'DF raw data'!N35) -> Bx | C35: =IF('DF raw data'!O35="","",'DF raw data'!O35) ->  | D35: =IF('DF raw data'!P35="","",'DF raw data'!P35) -> 
A36: =IF('DF raw data'!M36="","",'DF raw data'!M36) -> Probe Current Supply | B36: =IF('DF raw data'!N36="","",'DF raw data'!N36) -> 1825-D | C36: =IF('DF raw data'!O36="","",'DF raw data'!O36) ->  | D36: =IF('DF raw data'!P36="","",'DF raw data'!P36) -> 
A37: =IF('DF raw data'!M37="","",'DF raw data'!M37) -> Probe Gain Correction | B37: =IF('DF raw data'!N37="","",'DF raw data'!N37) -> 1 | C37: =IF('DF raw data'!O37="","",'DF raw data'!O37) ->  | D37: =IF('DF raw data'!P37="","",'DF raw data'!P37) -> 
A38: =IF('DF raw data'!M38="","",'DF raw data'!M38) -> Probe Offset Correction | B38: =IF('DF raw data'!N38="","",'DF raw data'!N38) -> -0.17537 | C38: =IF('DF raw data'!O38="","",'DF raw data'!O38) ->  | D38: =IF('DF raw data'!P38="","",'DF raw data'!P38) -> 
A39: =IF('DF raw data'!M39="","",'DF raw data'!M39) -> DVM Number | B39: =IF('DF raw data'!N39="","",'DF raw data'!N39) -> 3 | C39: =IF('DF raw data'!O39="","",'DF raw data'!O39) ->  | D39: =IF('DF raw data'!P39="","",'DF raw data'!P39) -> 
A40: =IF('DF raw data'!M40="","",'DF raw data'!M40) -> DVM Type | B40: =IF('DF raw data'!N40="","",'DF raw data'!N40) -> K2701 | C40: =IF('DF raw data'!O40="","",'DF raw data'!O40) ->  | D40: =IF('DF raw data'!P40="","",'DF raw data'!P40) -> 
A41: =IF('DF raw data'!M41="","",'DF raw data'!M41) -> DVM Danfysik Reg. Number | B41: =IF('DF raw data'!N41="","",'DF raw data'!N41) -> 1744-D | C41: =IF('DF raw data'!O41="","",'DF raw data'!O41) ->  | D41: =IF('DF raw data'!P41="","",'DF raw data'!P41) -> 
A42: =IF('DF raw data'!M42="","",'DF raw data'!M42) -> Probe Name | B42: =IF('DF raw data'!N42="","",'DF raw data'!N42) -> ID12_Bz | C42: =IF('DF raw data'!O42="","",'DF raw data'!O42) ->  | D42: =IF('DF raw data'!P42="","",'DF raw data'!P42) -> 
A43: =IF('DF raw data'!M43="","",'DF raw data'!M43) -> Probe Type | B43: =IF('DF raw data'!N43="","",'DF raw data'!N43) -> DF_ID_3D_Bxyz | C43: =IF('DF raw data'!O43="","",'DF raw data'!O43) ->  | D43: =IF('DF raw data'!P43="","",'DF raw data'!P43) -> 
A44: =IF('DF raw data'!M44="","",'DF raw data'!M44) -> Probe Danfysik Reg. Number | B44: =IF('DF raw data'!N44="","",'DF raw data'!N44) -> 2277 | C44: =IF('DF raw data'!O44="","",'DF raw data'!O44) ->  | D44: =IF('DF raw data'!P44="","",'DF raw data'!P44) -> 
A45: =IF('DF raw data'!M45="","",'DF raw data'!M45) -> Probe Axis | B45: =IF('DF raw data'!N45="","",'DF raw data'!N45) -> Bz | C45: =IF('DF raw data'!O45="","",'DF raw data'!O45) ->  | D45: =IF('DF raw data'!P45="","",'DF raw data'!P45) -> 
A46: =IF('DF raw data'!M46="","",'DF raw data'!M46) -> Probe Current Supply | B46: =IF('DF raw data'!N46="","",'DF raw data'!N46) -> 1825-D | C46: =IF('DF raw data'!O46="","",'DF raw data'!O46) ->  | D46: =IF('DF raw data'!P46="","",'DF raw data'!P46) -> 
A47: =IF('DF raw data'!M47="","",'DF raw data'!M47) -> Probe Gain Correction | B47: =IF('DF raw data'!N47="","",'DF raw data'!N47) -> 1 | C47: =IF('DF raw data'!O47="","",'DF raw data'!O47) ->  | D47: =IF('DF raw data'!P47="","",'DF raw data'!P47) -> 
A48: =IF('DF raw data'!M53="","",'DF raw data'!M53) -> PS-Gap: | B48: =IF('DF raw data'!N53="","",'DF raw data'!N53) -> 10 | C48: =IF('DF raw data'!O53="","",'DF raw data'!O53) ->  | D48: =IF('DF raw data'!P53="","",'DF raw data'!P53) -> 
A49: =IF('DF raw data'!M54="","",'DF raw data'!M54) -> PS-Temperature: | B49: =IF('DF raw data'!N54="","",'DF raw data'!N54) -> 24 | C49: =IF('DF raw data'!O54="","",'DF raw data'!O54) ->  | D49: =IF('DF raw data'!P54="","",'DF raw data'!P54) -> 
A50: =IF('DF raw data'!M55="","",'DF raw data'!M55) -> PS-Encoder: | B50: =IF('DF raw data'!N55="","",'DF raw data'!N55) -> 19.7631 | C50: =IF('DF raw data'!O55="","",'DF raw data'!O55) ->  | D50: =IF('DF raw data'!P55="","",'DF raw data'!P55) -> 
A51: =IF('DF raw data'!M56="","",'DF raw data'!M56) ->  | B51: =IF('DF raw data'!N56="","",'DF raw data'!N56) ->  | C51: =IF('DF raw data'!O56="","",'DF raw data'!O56) ->  | D51: =IF('DF raw data'!P56="","",'DF raw data'!P56) -> 
A52: =IF('DF raw data'!M57="","",'DF raw data'!M57) -> Monitor-Index | B52: =IF('DF raw data'!N57="","",'DF raw data'!N57) -> [1,1,4] | C52: =IF('DF raw data'!O57="","",'DF raw data'!O57) ->  | D52: =IF('DF raw data'!P57="","",'DF raw data'!P57) -> 
A53: =IF('DF raw data'!M58="","",'DF raw data'!M58) ->  | B53: =IF('DF raw data'!N58="","",'DF raw data'!N58) ->  | C53: =IF('DF raw data'!O58="","",'DF raw data'!O58) ->  | D53: =IF('DF raw data'!P58="","",'DF raw data'!P58) -> 
A54: =IF('DF raw data'!M59="","",'DF raw data'!M59) -> Time [s] | B54: =IF('DF raw data'!N59="","",'DF raw data'!N59) -> Y [mm] | C54: =IF('DF raw data'!O59="","",'DF raw data'!O59) -> X [mm] | D54: =IF('DF raw data'!P59="","",'DF raw data'!P59) -> Nominal current [A]
A55: =IF('DF raw data'!M60="","",'DF raw data'!M60) ->  | B55: =IF('DF raw data'!N60="","",'DF raw data'!N60) ->  | C55: =IF('DF raw data'!O60="","",'DF raw data'!O60) ->  | D55: =IF('DF raw data'!P60="","",'DF raw data'!P60) -> 
A56: =IF('DF raw data'!M61="","",'DF raw data'!M61) -> 207.6 | B56: =IF('DF raw data'!N61="","",'DF raw data'!N61) -> 31.55 | C56: =IF('DF raw data'!O61="","",'DF raw data'!O61) -> 303.55 | D56: =IF('DF raw data'!P61="","",'DF raw data'!P61) -> 0
A57: =IF('DF raw data'!M62="","",'DF raw data'!M62) ->  | B57: =IF('DF raw data'!N62="","",'DF raw data'!N62) ->  | C57: =IF('DF raw data'!O62="","",'DF raw data'!O62) ->  | D57: =IF('DF raw data'!P62="","",'DF raw data'!P62) -> 
A58: =IF('DF raw data'!M63="","",'DF raw data'!M63) -> Measurement-Index | B58: =IF('DF raw data'!N63="","",'DF raw data'!N63) -> [1,1,1201,2] | C58: =IF('DF raw data'!O63="","",'DF raw data'!O63) ->  | D58: =IF('DF raw data'!P63="","",'DF raw data'!P63) -> 
A59: =IF('DF raw data'!M64="","",'DF raw data'!M64) ->  | B59: =IF('DF raw data'!N64="","",'DF raw data'!N64) ->  | C59: =IF('DF raw data'!O64="","",'DF raw data'!O64) ->  | D59: =IF('DF raw data'!P64="","",'DF raw data'!P64) -> 
A60: =IF('DF raw data'!M65="","",'DF raw data'!M65) -> Z [mm] | B60: By [T] | C60: Bx [T] | D60: Bz [T] | F60: By_corr | G60: Bx_corr | H60: Bz_corr | J60: Iy | K60: Jy | L60: Ix | M60: Jx | N60: PI
A62: =IF('DF raw data'!M67="","",'DF raw data'!M67) -> -300 | B62: =IF('DF raw data'!N67="","",'DF raw data'!N67) -> -7.47163e-06 | C62: =IF('DF raw data'!O67="","",'DF raw data'!O67) -> 0.000148721 | D62: =IF('DF raw data'!P67="","",'DF raw data'!P67) -> -2.24376e-05 | F62: =(1-$G$1*($B$49))*B62 -> -7.65094912e-06 | G62: =(1-$G$1*($B$49-$G$2))*C62 -> 0.000149315884 | H62: =(1-$G$1*($B$49-$G$2))*D62 -> -2.25273504e-05 | J62: =F62*$G$3 -> -3.82547456e-06 | K62: =J62*$G$3 -> -1.91273728e-06 | L62: =G62*$G$3 -> 7.4657942e-05 | M62: =L62*$G$3 -> 3.7328971e-05 | N62: =(J62^2+L62^2)*$G$3 -> 2.79422128e-09
A63: =IF('DF raw data'!M68="","",'DF raw data'!M68) -> -299.5 | B63: =IF('DF raw data'!N68="","",'DF raw data'!N68) -> -1.10578e-05 | C63: =IF('DF raw data'!O68="","",'DF raw data'!O68) -> 0.000150731 | D63: =IF('DF raw data'!P68="","",'DF raw data'!P68) -> -2.26378e-05 | F63: =(1-$G$1*($B$49-$G$2))*B63 -> -1.11020312e-05 | G63: =(1-$G$1*($B$49-$G$2))*C63 -> 0.000151333924 | H63: -2.27283512e-05 | J63: =F63*$G$3+J62 -> -9.37649016e-06 | K63: =J63*$G$3+K62 -> -6.60098236e-06 | L63: =G63*$G$3+L62 -> 0.000150324904 | M63: =L63*$G$3+M62 -> 0.000112491423 | N63: =(J63^2+L63^2)*$G$3+N62 -> 1.413696894e-08
A64: =IF('DF raw data'!M69="","",'DF raw data'!M69) -> -299 | B64: =IF('DF raw data'!N69="","",'DF raw data'!N69) -> -5.29346e-06 | C64: =IF('DF raw data'!O69="","",'DF raw data'!O69) -> 0.000149203 | D64: =IF('DF raw data'!P69="","",'DF raw data'!P69) -> -2.29606e-05 | F64: =(1-$G$1*($B$49-$G$2))*B64 -> -5.31463384e-06 | G64: 0.000149799812 | H64: -2.30524424e-05 | J64: =F64*$G$3+J63 -> -1.203380708e-05 | K64: =J64*$G$3+K63 -> -1.26178859e-05 | L64: =G64*$G$3+L63 -> 0.00022522481 | M64: =L64*$G$3+M63 -> 0.000225103828 | N64: =(J64^2+L64^2)*$G$3+N63 -> 3.957248272e-08
A65: =IF('DF raw data'!M70="","",'DF raw data'!M70) -> -298.5 | B65: =IF('DF raw data'!N70="","",'DF raw data'!N70) -> -2.15623e-05 | C65: =IF('DF raw data'!O70="","",'DF raw data'!O70) -> 0.00015285 | D65: =IF('DF raw data'!P70="","",'DF raw data'!P70) -> -2.26225e-05 | F65: -2.16485492e-05 | G65: 0.0001534614 | H65: -2.271299e-05 | J65: -2.285808168e-05 | K65: -2.404692674e-05 | L65: 0.00030195551 | M65: 0.000376081583 | N65: 8.542229368e-08
A66: =IF('DF raw data'!M71="","",'DF raw data'!M71) -> -298 | B66: =IF('DF raw data'!N71="","",'DF raw data'!N71) -> -1.74628e-05 | C66: =IF('DF raw data'!O71="","",'DF raw data'!O71) -> 0.000155147 | D66: =IF('DF raw data'!P71="","",'DF raw data'!P71) -> -2.20173e-05 | F66: -1.75326512e-05 | G66: 0.000155767588 | H66: -2.21053692e-05 | J66: -3.162440728e-05 | K66: -3.985913038e-05 | L66: 0.000379839304 | M66: 0.000566001235 | N66: 1.580612937e-07
A67: =IF('DF raw data'!M72="","",'DF raw data'!M72) -> -297.5 | B67: =IF('DF raw data'!N72="","",'DF raw data'!N72) -> -9.32944e-06 | C67: =IF('DF raw data'!O72="","",'DF raw data'!O72) -> 0.000153962 | D67: =IF('DF raw data'!P72="","",'DF raw data'!P72) -> -2.17469e-05 | F67: -9.36675776e-06 | G67: 0.000154577848 | H67: -2.18338876e-05 | J67: -3.630778616e-05 | K67: -5.801302346e-05 | L67: 0.000457128228 | M67: 0.000794565349 | N67: 2.632035298e-07
A68: =IF('DF raw data'!M73="","",'DF raw data'!M73) -> -297 | B68: =IF('DF raw data'!N73="","",'DF raw data'!N73) -> -2.29071e-05 | C68: =IF('DF raw data'!O73="","",'DF raw data'!O73) -> 0.000154216 | D68: =IF('DF raw data'!P73="","",'DF raw data'!P73) -> -2.13592e-05 | F68: -2.29987284e-05 | G68: 0.000154832864 | H68: -2.14446368e-05 | J68: -4.780715036e-05 | K68: -8.191659864e-05 | L68: 0.00053454466 | M68: 0.001061837679 | N68: 4.072152883e-07
A69: =IF('DF raw data'!M74="","",'DF raw data'!M74) -> -296.5 | B69: =IF('DF raw data'!N74="","",'DF raw data'!N74) -> -9.7141e-06 | C69: =IF('DF raw data'!O74="","",'DF raw data'!O74) -> 0.000148878 | D69: =IF('DF raw data'!P74="","",'DF raw data'!P74) -> -2.12722e-05 | F69: -9.7529564e-06 | G69: 0.000149473512 | H69: -2.13572888e-05 | J69: -5.268362856e-05 | K69: -0.0001082584129 | L69: 0.000609281416 | M69: 0.001366478387 | N69: 5.942149926e-07
A70: =IF('DF raw data'!M75="","",'DF raw data'!M75) -> -296 | B70: =IF('DF raw data'!N75="","",'DF raw data'!N75) -> -4.01326e-06 | C70: =IF('DF raw data'!O75="","",'DF raw data'!O75) -> 0.000147563 | D70: =IF('DF raw data'!P75="","",'DF raw data'!P75) -> -2.18428e-05 | F70: -4.02931304e-06 | G70: 0.000148153252 | H70: -2.19301712e-05 | J70: -5.469828508e-05 | K70: -0.0001356075555 | L70: 0.000683358042 | M70: 0.001708157408 | N70: 8.292000506e-07
A71: =IF('DF raw data'!M76="","",'DF raw data'!M76) -> -295.5 | B71: =IF('DF raw data'!N76="","",'DF raw data'!N76) -> -1.76559e-05 | C71: =IF('DF raw data'!O76="","",'DF raw data'!O76) -> 0.000157521 | D71: =IF('DF raw data'!P76="","",'DF raw data'!P76) -> -2.20676e-05 | F71: -1.77265236e-05 | G71: 0.000158151084 | H71: -2.21558704e-05 | J71: -6.356154688e-05 | K71: -0.0001673883289 | L71: 0.000762433584 | M71: 0.0020893742 | N71: 1.121872571e-06
A72: =IF('DF raw data'!M77="","",'DF raw data'!M77) -> -295 | B72: =IF('DF raw data'!N77="","",'DF raw data'!N77) -> -1.00974e-05 | C72: =IF('DF raw data'!O77="","",'DF raw data'!O77) -> 0.000163451 | D72: =IF('DF raw data'!P77="","",'DF raw data'!P77) -> -2.19578e-05 | F72: -1.01377896e-05 | G72: 0.000164104804 | H72: -2.20456312e-05 | J72: -6.863044168e-05 | K72: -0.0002017035497 | L72: 0.000844485986 | M72: 0.002511617193 | N72: 1.48080593e-06
A73: =IF('DF raw data'!M78="","",'DF raw data'!M78) -> -294.5 | B73: =IF('DF raw data'!N78="","",'DF raw data'!N78) -> -7.27987e-06 | C73: =IF('DF raw data'!O78="","",'DF raw data'!O78) -> 0.000159778 | D73: =IF('DF raw data'!P78="","",'DF raw data'!P78) -> -2.21219e-05 | F73: -7.30898948e-06 | G73: 0.000160417112 | H73: -2.22103876e-05 | J73: -7.228493642e-05 | K73: -0.000237846018 | L73: 0.000924694542 | M73: 0.002973964464 | N73: 1.910948484e-06
A74: =IF('DF raw data'!M79="","",'DF raw data'!M79) -> -294 | B74: =IF('DF raw data'!N79="","",'DF raw data'!N79) -> -1.52211e-05 | C74: =IF('DF raw data'!O79="","",'DF raw data'!O79) -> 0.000158084 | D74: =IF('DF raw data'!P79="","",'DF raw data'!P79) -> -2.18678e-05 | F74: -1.52819844e-05 | G74: 0.000158716336 | H74: -2.19552712e-05 | J74: -7.992592862e-05 | K74: -0.0002778089823 | L74: 0.00100405271 | M74: 0.003475990819 | N74: 2.418203483e-06
A75: =IF('DF raw data'!M80="","",'DF raw data'!M80) -> -293.5 | B75: =IF('DF raw data'!N80="","",'DF raw data'!N80) -> -1.65033e-05 | C75: =IF('DF raw data'!O80="","",'DF raw data'!O80) -> 0.000155765 | D75: =IF('DF raw data'!P80="","",'DF raw data'!P80) -> -2.13006e-05 | F75: -1.65693132e-05 | G75: 0.00015638806 | H75: -2.13858024e-05 | J75: -8.821058522e-05 | K75: -0.0003219142749 | L75: 0.00108224674 | M75: 0.004017114189 | N75: 3.00772304e-06
A76: =IF('DF raw data'!M81="","",'DF raw data'!M81) -> -293 | B76: =IF('DF raw data'!N81="","",'DF raw data'!N81) -> 1.815e-06 | C76: =IF('DF raw data'!O81="","",'DF raw data'!O81) -> 0.000162446 | D76: =IF('DF raw data'!P81="","",'DF raw data'!P81) -> -2.18081e-05 | F76: 1.82226e-06 | G76: 0.000163095784 | H76: -2.18953324e-05 | J76: -8.729945522e-05 | K76: -0.0003655640025 | L76: 0.001163794632 | M76: 0.004599011505 | N76: 3.68874261e-06
A77: =IF('DF raw data'!M82="","",'DF raw data'!M82) -> -292.5 | B77: =IF('DF raw data'!N82="","",'DF raw data'!N82) -> -1.15708e-05 | C77: =IF('DF raw data'!O82="","",'DF raw data'!O82) -> 0.000160352 | D77: =IF('DF raw data'!P82="","",'DF raw data'!P82) -> -2.26633e-05 | F77: -1.16170832e-05 | G77: 0.000160993408 | H77: -2.27539532e-05 | J77: -9.310799682e-05 | K77: -0.0004121180009 | L77: 0.001244291336 | M77: 0.005221157173 | N77: 4.467207624e-06
A78: =IF('DF raw data'!M83="","",'DF raw data'!M83) -> -292 | B78: =IF('DF raw data'!N83="","",'DF raw data'!N83) -> -1.45162e-05 | C78: =IF('DF raw data'!O83="","",'DF raw data'!O83) -> 0.000162804 | D78: =IF('DF raw data'!P83="","",'DF raw data'!P83) -> -2.23706e-05 | F78: -1.45742648e-05 | G78: 0.000163455216 | H78: -2.24600824e-05 | J78: -0.0001003951292 | K78: -0.0004623155655 | L78: 0.001326018944 | M78: 0.005884166645 | N78: 5.351410335e-06
A79: =IF('DF raw data'!M84="","",'DF raw data'!M84) -> -291.5 | B79: =IF('DF raw data'!N84="","",'DF raw data'!N84) -> -1.59244e-05 | C79: =IF('DF raw data'!O84="","",'DF raw data'!O84) -> 0.000159415 | D79: =IF('DF raw data'!P84="","",'DF raw data'!P84) -> -2.53339e-05 | F79: -1.59880976e-05 | G79: 0.00016005266 | H79: -2.54352356e-05 | J79: -0.000108389178 | K79: -0.0005165101545 | L79: 0.001406045274 | M79: 0.006587189282 | N79: 6.345766098e-06
A80: =IF('DF raw data'!M85="","",'DF raw data'!M85) -> -291 | B80: =IF('DF raw data'!N85="","",'DF raw data'!N85) -> -6.18844e-06 | C80: =IF('DF raw data'!O85="","",'DF raw data'!O85) -> 0.000150927 | D80: =IF('DF raw data'!P85="","",'DF raw data'!P85) -> -2.53131e-05 | F80: -6.21319376e-06 | G80: 0.000151530708 | H80: -2.54143524e-05 | J80: -0.0001114957749 | K80: -0.000572258042 | L80: 0.001481810628 | M80: 0.007328094596 | N80: 7.449863121e-06
A81: =IF('DF raw data'!M86="","",'DF raw data'!M86) -> -290.5 | B81: =IF('DF raw data'!N86="","",'DF raw data'!N86) -> -4.84402e-06 | C81: =IF('DF raw data'!O86="","",'DF raw data'!O86) -> 0.000146364 | D81: =IF('DF raw data'!P86="","",'DF raw data'!P86) -> -2.4858e-05 | F81: -4.86339608e-06 | G81: 0.000146949456 | H81: -2.4957432e-05 | J81: -0.0001139274729 | K81: -0.0006292217784 | L81: 0.001555285356 | M81: 0.008105737274 | N81: 8.665809125e-06
A82: =IF('DF raw data'!M87="","",'DF raw data'!M87) -> -290 | B82: =IF('DF raw data'!N87="","",'DF raw data'!N87) -> -9.38572e-06 | C82: =IF('DF raw data'!O87="","",'DF raw data'!O87) -> 0.000148751 | D82: =IF('DF raw data'!P87="","",'DF raw data'!P87) -> -3.32171e-05 | F82: -9.42326288e-06 | G82: 0.000149346004 | H82: -3.33499684e-05 | J82: -0.0001186391044 | K82: -0.0006885413306 | L82: 0.001629958358 | M82: 0.008920716453 | N82: 1.000122887e-05
A83: =IF('DF raw data'!M88="","",'DF raw data'!M88) -> -289.5 | B83: =IF('DF raw data'!N88="","",'DF raw data'!N88) -> -3.88609e-06 | C83: =IF('DF raw data'!O88="","",'DF raw data'!O88) -> 0.000147122 | D83: =IF('DF raw data'!P88="","",'DF raw data'!P88) -> -2.08265e-05 | F83: -3.90163436e-06 | G83: 0.000147710488 | H83: -2.0909806e-05 | J83: -0.0001205899216 | K83: -0.0007488362914 | L83: 0.001703813602 | M83: 0.009772623254 | N83: 1.145999023e-05
A84: =IF('DF raw data'!M89="","",'DF raw data'!M89) -> -289 | B84: =IF('DF raw data'!N89="","",'DF raw data'!N89) -> -1.63721e-05 | C84: =IF('DF raw data'!O89="","",'DF raw data'!O89) -> 0.000146892 | D84: =IF('DF raw data'!P89="","",'DF raw data'!P89) -> -2.44976e-05 | F84: -1.64375884e-05 | G84: 0.000147479568 | H84: -2.45955904e-05 | J84: -0.0001288087158 | K84: -0.0008132406493 | L84: 0.001777553386 | M84: 0.01066139995 | N84: 1.304813409e-05
A85: =IF('DF raw data'!M90="","",'DF raw data'!M90) -> -288.5 | B85: =IF('DF raw data'!N90="","",'DF raw data'!N90) -> -1.7077e-05 | C85: =IF('DF raw data'!O90="","",'DF raw data'!O90) -> 0.000149033 | D85: =IF('DF raw data'!P90="","",'DF raw data'!P90) -> -2.58865e-05 | F85: -1.7145308e-05 | G85: 0.000149629132 | H85: -2.5990046e-05 | J85: -0.0001373813698 | K85: -0.0008819313342 | L85: 0.001852367952 | M85: 0.01158758392 | N85: 1.477320443e-05
A86: =IF('DF raw data'!M91="","",'DF raw data'!M91) -> -288 | B86: =IF('DF raw data'!N91="","",'DF raw data'!N91) -> -7.91843e-06 | C86: =IF('DF raw data'!O91="","",'DF raw data'!O91) -> 0.000151566 | D86: =IF('DF raw data'!P91="","",'DF raw data'!P91) -> -2.41865e-05 | F86: -7.95010372e-06 | G86: 0.000152172264 | H86: -2.4283246e-05 | J86: -0.0001413564216 | K86: -0.000952609545 | L86: 0.001928454084 | M86: 0.01255181097 | N86: 1.664266282e-05
A87: =IF('DF raw data'!M92="","",'DF raw data'!M92) -> -287.5 | B87: =IF('DF raw data'!N92="","",'DF raw data'!N92) -> -2.04108e-05 | C87: =IF('DF raw data'!O92="","",'DF raw data'!O92) -> 0.000163315 | D87: =IF('DF raw data'!P92="","",'DF raw data'!P92) -> -2.11419e-05 | F87: -2.04924432e-05 | G87: 0.00016396826 | H87: -2.12264676e-05 | J87: -0.0001516026432 | K87: -0.001028410867 | L87: 0.002010438214 | M87: 0.01355703007 | N87: 1.867508541e-05
A88: =IF('DF raw data'!M93="","",'DF raw data'!M93) -> -287 | B88: =IF('DF raw data'!N93="","",'DF raw data'!N93) -> -1.05415e-05 | C88: =IF('DF raw data'!O93="","",'DF raw data'!O93) -> 0.00016382 | D88: =IF('DF raw data'!P93="","",'DF raw data'!P93) -> -2.84705e-05 | F88: -1.0583666e-05 | G88: 0.00016447528 | H88: -2.8584382e-05 | J88: -0.0001568944762 | K88: -0.001106858105 | L88: 0.002092675854 | M88: 0.014603368 | N88: 2.087703946e-05
A89: =IF('DF raw data'!M94="","",'DF raw data'!M94) -> -286.5 | B89: =IF('DF raw data'!N94="","",'DF raw data'!N94) -> -1.55979e-05 | C89: =IF('DF raw data'!O94="","",'DF raw data'!O94) -> 0.000155658 | D89: =IF('DF raw data'!P94="","",'DF raw data'!P94) -> -3.51509e-05 | F89: -1.56602916e-05 | G89: 0.000156280632 | H89: -3.52915036e-05 | J89: -0.000164724622 | K89: -0.001189220416 | L89: 0.00217081617 | M89: 0.01568877608 | N89: 2.324682798e-05
A90: =IF('DF raw data'!M95="","",'DF raw data'!M95) -> -286 | B90: =IF('DF raw data'!N95="","",'DF raw data'!N95) -> -4.96738e-06 | C90: =IF('DF raw data'!O95="","",'DF raw data'!O95) -> 0.00015393 | D90: =IF('DF raw data'!P95="","",'DF raw data'!P95) -> -3.16087e-05 | F90: -4.98724952e-06 | G90: 0.00015454572 | H90: -3.17351348e-05 | J90: -0.0001672182468 | K90: -0.001272829539 | L90: 0.00224808903 | M90: 0.0168128206 | N90: 2.57877611e-05
A91: =IF('DF raw data'!M96="","",'DF raw data'!M96) -> -285.5 | B91: =IF('DF raw data'!N96="","",'DF raw data'!N96) -> -1.56583e-05 | C91: =IF('DF raw data'!O96="","",'DF raw data'!O96) -> 0.000151922 | D91: =IF('DF raw data'!P96="","",'DF raw data'!P96) -> -4.10751e-05 | F91: -1.57209332e-05 | G91: 0.000152529688 | H91: -4.12394004e-05 | J91: -0.0001750787134 | K91: -0.001360368896 | L91: 0.002324353874 | M91: 0.01797499754 | N91: 2.850439784e-05
A92: =IF('DF raw data'!M97="","",'DF raw data'!M97) -> -285 | B92: =IF('DF raw data'!N97="","",'DF raw data'!N97) -> -2.62948e-05 | C92: =IF('DF raw data'!O97="","",'DF raw data'!O97) -> 0.000147259 | D92: =IF('DF raw data'!P97="","",'DF raw data'!P97) -> -3.12292e-05 | F92: -2.63999792e-05 | G92: 0.000147848036 | H92: -3.13541168e-05 | J92: -0.000188278703 | K92: -0.001454508247 | L92: 0.002398277892 | M92: 0.01917413648 | N92: 3.13979907e-05
A93: =IF('DF raw data'!M98="","",'DF raw data'!M98) -> -284.5 | B93: =IF('DF raw data'!N98="","",'DF raw data'!N98) -> -2.54043e-05 | C93: =IF('DF raw data'!O98="","",'DF raw data'!O98) -> 0.000160874 | D93: =IF('DF raw data'!P98="","",'DF raw data'!P98) -> -2.48388e-05 | F93: -2.55059172e-05 | G93: 0.000161517496 | H93: -2.49381552e-05 | J93: -0.0002010316616 | K93: -0.001555024078 | L93: 0.00247903664 | M93: 0.0204136548 | N93: 3.44910089e-05
A94: =IF('DF raw data'!M99="","",'DF raw data'!M99) -> -284 | B94: =IF('DF raw data'!N99="","",'DF raw data'!N99) -> -1.72023e-05 | C94: =IF('DF raw data'!O99="","",'DF raw data'!O99) -> 0.00016785 | D94: =IF('DF raw data'!P99="","",'DF raw data'!P99) -> -2.79724e-05 | F94: -1.72711092e-05 | G94: 0.0001685214 | H94: -2.80842896e-05 | J94: -0.0002096672162 | K94: -0.001659857686 | L94: 0.00256329734 | M94: 0.02169530347 | N94: 3.779823569e-05
A95: =IF('DF raw data'!M100="","",'DF raw data'!M100) -> -283.5 | B95: =IF('DF raw data'!N100="","",'DF raw data'!N100) -> -9.06647e-06 | C95: =IF('DF raw data'!O100="","",'DF raw data'!O100) -> 0.000167196 | D95: =IF('DF raw data'!P100="","",'DF raw data'!P100) -> -3.26674e-05 | F95: -9.10273588e-06 | G95: 0.000167864784 | H95: -3.27980696e-05 | J95: -0.0002142185841 | K95: -0.001766966978 | L95: 0.002647229732 | M95: 0.02301891834 | N95: 4.132509312e-05
A96: =IF('DF raw data'!M101="","",'DF raw data'!M101) -> -283 | B96: =IF('DF raw data'!N101="","",'DF raw data'!N101) -> -2.83409e-05 | C96: =IF('DF raw data'!O101="","",'DF raw data'!O101) -> 0.000156093 | D96: =IF('DF raw data'!P101="","",'DF raw data'!P101) -> -3.59265e-05 | F96: -2.84542636e-05 | G96: 0.000156717372 | H96: -3.6070206e-05 | J96: -0.0002284457159 | K96: -0.001881189836 | L96: 0.002725588418 | M96: 0.02438171255 | N96: 4.506560296e-05
A97: =IF('DF raw data'!M102="","",'DF raw data'!M102) -> -282.5 | B97: =IF('DF raw data'!N102="","",'DF raw data'!N102) -> -2.51473e-05 | C97: =IF('DF raw data'!O102="","",'DF raw data'!O102) -> 0.000143262 | D97: =IF('DF raw data'!P102="","",'DF raw data'!P102) -> -2.62449e-05 | F97: -2.52478892e-05 | G97: 0.000143835048 | H97: -2.63498796e-05 | J97: -0.0002410696605 | K97: -0.002001724666 | L97: 0.002797505942 | M97: 0.02578046552 | N97: 4.900767999e-05
A98: =IF('DF raw data'!M103="","",'DF raw data'!M103) -> -282 | B98: =IF('DF raw data'!N103="","",'DF raw data'!N103) -> -1.66241e-05 | C98: =IF('DF raw data'!O103="","",'DF raw data'!O103) -> 0.000144009 | D98: =IF('DF raw data'!P103="","",'DF raw data'!P103) -> -3.04912e-05 | F98: -1.66905964e-05 | G98: 0.000144585036 | H98: -3.06131648e-05 | J98: -0.0002494149587 | K98: -0.002126432146 | L98: 0.00286979846 | M98: 0.02721536475 | N98: 5.315665551e-05
A99: =IF('DF raw data'!M104="","",'DF raw data'!M104) -> -281.5 | B99: =IF('DF raw data'!N104="","",'DF raw data'!N104) -> -9.71309e-06 | C99: =IF('DF raw data'!O104="","",'DF raw data'!O104) -> 0.000146113 | D99: =IF('DF raw data'!P104="","",'DF raw data'!P104) -> -2.31997e-05 | F99: -9.75194236e-06 | G99: 0.000146697452 | H99: -2.32924988e-05 | J99: -0.0002542909299 | K99: -0.002253577611 | L99: 0.002943147186 | M99: 0.02868693834 | N99: 5.752004512e-05
A100: =IF('DF raw data'!M105="","",'DF raw data'!M105) -> -281 | B100: =IF('DF raw data'!N105="","",'DF raw data'!N105) -> -1.11251e-05 | C100: =IF('DF raw data'!O105="","",'DF raw data'!O105) -> 0.000152495 | D100: =IF('DF raw data'!P105="","",'DF raw data'!P105) -> -1.70427e-05 | F100: -1.11696004e-05 | G100: 0.00015310498 | H100: -1.71108708e-05 | J100: -0.0002598757301 | K100: -0.002383515476 | L100: 0.003019699676 | M100: 0.03019678818 | N100: 6.211310589e-05
A101: =IF('DF raw data'!M106="","",'DF raw data'!M106) -> -280.5 | B101: =IF('DF raw data'!N106="","",'DF raw data'!N106) -> -1.42589e-05 | C101: =IF('DF raw data'!O106="","",'DF raw data'!O106) -> 0.000151148 | D101: =IF('DF raw data'!P106="","",'DF raw data'!P106) -> -2.57652e-05 | F101: -1.43159356e-05 | G101: 0.000151752592 | H101: -2.58682608e-05 | J101: -0.0002670336979 | K101: -0.002517032325 | L101: 0.003095575972 | M101: 0.03174457616 | N101: 6.694005469e-05
A102: =IF('DF raw data'!M107="","",'DF raw data'!M107) -> -280 | B102: =IF('DF raw data'!N107="","",'DF raw data'!N107) -> -1.73948e-05 | C102: =IF('DF raw data'!O107="","",'DF raw data'!O107) -> 0.000150023 | D102: =IF('DF raw data'!P107="","",'DF raw data'!P107) -> -2.71587e-05 | F102: -1.74643792e-05 | G102: 0.000150623092 | H102: -2.72673348e-05 | J102: -0.0002757658875 | K102: -0.002654915268 | L102: 0.003170887518 | M102: 0.03333001992 | N102: 7.200534192e-05
A103: =IF('DF raw data'!M108="","",'DF raw data'!M108) -> -279.5 | B103: =IF('DF raw data'!N108="","",'DF raw data'!N108) -> -6.31423e-06 | C103: =IF('DF raw data'!O108="","",'DF raw data'!O108) -> 0.000159376 | D103: =IF('DF raw data'!P108="","",'DF raw data'!P108) -> -2.96453e-05 | F103: -6.33948692e-06 | G103: 0.000160013504 | H103: -2.97638812e-05 | J103: -0.000278935631 | K103: -0.002794383084 | L103: 0.00325089427 | M103: 0.03495546706 | N103: 7.732840124e-05
A104: =IF('DF raw data'!M109="","",'DF raw data'!M109) -> -279 | B104: =IF('DF raw data'!N109="","",'DF raw data'!N109) -> -2.40564e-05 | C104: =IF('DF raw data'!O109="","",'DF raw data'!O109) -> 0.00015951 | D104: =IF('DF raw data'!P109="","",'DF raw data'!P109) -> -2.60487e-05 | F104: -2.41526256e-05 | G104: 0.00016014804 | H104: -2.61528948e-05 | J104: -0.0002910119438 | K104: -0.002939889056 | L104: 0.00333096829 | M104: 0.0366209512 | N104: 8.291842009e-05
A105: =IF('DF raw data'!M110="","",'DF raw data'!M110) -> -278.5 | B105: =IF('DF raw data'!N110="","",'DF raw data'!N110) -> -2.59889e-05 | C105: =IF('DF raw data'!O110="","",'DF raw data'!O110) -> 0.000160096 | D105: =IF('DF raw data'!P110="","",'DF raw data'!P110) -> -1.24484e-05 | F105: -2.60928556e-05 | G105: 0.000160736384 | H105: -1.24981936e-05 | J105: -0.0003040583716 | K105: -0.003091918242 | L105: 0.003411336482 | M105: 0.03832661944 | N105: 8.878325414e-05
A106: =IF('DF raw data'!M111="","",'DF raw data'!M111) -> -278 | B106: =IF('DF raw data'!N111="","",'DF raw data'!N111) -> -1.77822e-05 | C106: =IF('DF raw data'!O111="","",'DF raw data'!O111) -> 0.000155605 | D106: =IF('DF raw data'!P111="","",'DF raw data'!P111) -> -2.29027e-05 | F106: -1.78533288e-05 | G106: 0.00015622742 | H106: -2.29943108e-05 | J106: -0.000312985036 | K106: -0.00324841076 | L106: 0.003489450192 | M106: 0.04007134454 | N106: 9.492036527e-05
A107: =IF('DF raw data'!M112="","",'DF raw data'!M112) -> -277.5 | B107: =IF('DF raw data'!N112="","",'DF raw data'!N112) -> -2.00882e-05 | C107: =IF('DF raw data'!O112="","",'DF raw data'!O112) -> 0.000158758 | D107: =IF('DF raw data'!P112="","",'DF raw data'!P112) -> -2.48008e-05 | F107: -2.01685528e-05 | G107: 0.000159393032 | H107: -2.49000032e-05 | J107: -0.0003230693124 | K107: -0.003409945416 | L107: 0.003569146708 | M107: 0.04185591789 | N107: 0.0001013419563
A108: =IF('DF raw data'!M113="","",'DF raw data'!M113) -> -277 | B108: =IF('DF raw data'!N113="","",'DF raw data'!N113) -> -1.0225e-05 | C108: =IF('DF raw data'!O113="","",'DF raw data'!O113) -> 0.000156075 | D108: =IF('DF raw data'!P113="","",'DF raw data'!P113) -> -2.24612e-05 | F108: -1.02659e-05 | G108: 0.0001566993 | H108: -2.25510448e-05 | J108: -0.0003282022624 | K108: -0.003574046547 | L108: 0.003647496358 | M108: 0.04367966607 | N108: 0.0001080479295
A109: =IF('DF raw data'!M114="","",'DF raw data'!M114) -> -276.5 | B109: =IF('DF raw data'!N114="","",'DF raw data'!N114) -> -4.46528e-06 | C109: =IF('DF raw data'!O114="","",'DF raw data'!O114) -> 0.000156593 | D109: =IF('DF raw data'!P114="","",'DF raw data'!P114) -> -1.64031e-05 | F109: -4.48314112e-06 | G109: 0.000157219372 | H109: -1.64687124e-05 | J109: -0.0003304438329 | K109: -0.003739268463 | L109: 0.003726106044 | M109: 0.0455427191 | N109: 0.0001150444592
A110: =IF('DF raw data'!M115="","",'DF raw data'!M115) -> -276 | B110: =IF('DF raw data'!N115="","",'DF raw data'!N115) -> -1.00985e-05 | C110: =IF('DF raw data'!O115="","",'DF raw data'!O115) -> 0.0001533 | D110: =IF('DF raw data'!P115="","",'DF raw data'!P115) -> -2.00088e-05 | F110: -1.0138894e-05 | G110: 0.0001539132 | H110: -2.00888352e-05 | J110: -0.0003355132799 | K110: -0.003907025103 | L110: 0.003803062644 | M110: 0.04744425042 | N110: 0.0001223323865
A111: =IF('DF raw data'!M116="","",'DF raw data'!M116) -> -275.5 | B111: =IF('DF raw data'!N116="","",'DF raw data'!N116) -> -1.20242e-05 | C111: =IF('DF raw data'!O116="","",'DF raw data'!O116) -> 0.00014947 | D111: =IF('DF raw data'!P116="","",'DF raw data'!P116) -> -1.52391e-05 | F111: -1.20722968e-05 | G111: 0.00015006788 | H111: -1.53000564e-05 | J111: -0.0003415494283 | K111: -0.004077799818 | L111: 0.003878096584 | M111: 0.04938329871 | N111: 0.0001299105311
A112: =IF('DF raw data'!M117="","",'DF raw data'!M117) -> -275 | B112: =IF('DF raw data'!N117="","",'DF raw data'!N117) -> -8.94656e-06 | C112: =IF('DF raw data'!O117="","",'DF raw data'!O117) -> 0.00015651 | D112: =IF('DF raw data'!P117="","",'DF raw data'!P117) -> -1.87626e-05 | F112: -8.98234624e-06 | G112: 0.00015713604 | H112: -1.88376504e-05 | J112: -0.0003460406014 | K112: -0.004250820118 | L112: 0.003956664604 | M112: 0.05136163101 | N112: 0.0001377980005
A113: =IF('DF raw data'!M118="","",'DF raw data'!M118) -> -274.5 | B113: =IF('DF raw data'!N118="","",'DF raw data'!N118) -> -2.07961e-05 | C113: =IF('DF raw data'!O118="","",'DF raw data'!O118) -> 0.000156527 | D113: =IF('DF raw data'!P118="","",'DF raw data'!P118) -> -1.99297e-05 | F113: -2.08792844e-05 | G113: 0.000157153108 | H113: -2.00094188e-05 | J113: -0.0003564802436 | K113: -0.00442906024 | L113: 0.004035241158 | M113: 0.05337925159 | N113: 0.0001460031252
A114: =IF('DF raw data'!M119="","",'DF raw data'!M119) -> -274 | B114: =IF('DF raw data'!N119="","",'DF raw data'!N119) -> -1.58642e-05 | C114: =IF('DF raw data'!O119="","",'DF raw data'!O119) -> 0.000160267 | D114: =IF('DF raw data'!P119="","",'DF raw data'!P119) -> -1.74138e-05 | F114: -1.59276568e-05 | G114: 0.000160908068 | H114: -1.74834552e-05 | J114: -0.000364444072 | K114: -0.004611282276 | L114: 0.004115695192 | M114: 0.05543709919 | N114: 0.0001545390084
A115: =IF('DF raw data'!M120="","",'DF raw data'!M120) -> -273.5 | B115: =IF('DF raw data'!N120="","",'DF raw data'!N120) -> -2.26467e-05 | C115: =IF('DF raw data'!O120="","",'DF raw data'!O120) -> 0.000159815 | D115: =IF('DF raw data'!P120="","",'DF raw data'!P120) -> -3.02016e-05 | F115: -2.27372868e-05 | G115: 0.00016045426 | H115: -3.03224064e-05 | J115: -0.0003758127154 | K115: -0.004799188634 | L115: 0.004195922322 | M115: 0.05753506035 | N115: 0.000163412508
A116: =IF('DF raw data'!M121="","",'DF raw data'!M121) -> -273 | B116: =IF('DF raw data'!N121="","",'DF raw data'!N121) -> -1.40025e-05 | C116: =IF('DF raw data'!O121="","",'DF raw data'!O121) -> 0.000154778 | D116: =IF('DF raw data'!P121="","",'DF raw data'!P121) -> -2.39713e-05 | F116: -1.405851e-05 | G116: 0.000155397112 | H116: -2.40671852e-05 | J116: -0.0003828419704 | K116: -0.004990609619 | L116: 0.004273620878 | M116: 0.05967187079 | N116: 0.0001726177097
A117: =IF('DF raw data'!M122="","",'DF raw data'!M122) -> -272.5 | B117: =IF('DF raw data'!N122="","",'DF raw data'!N122) -> -2.00175e-05 | C117: =IF('DF raw data'!O122="","",'DF raw data'!O122) -> 0.000152361 | D117: =IF('DF raw data'!P122="","",'DF raw data'!P122) -> -3.51569e-05 | F117: -2.009757e-05 | G117: 0.000152970444 | H117: -3.52975276e-05 | J117: -0.0003928907554 | K117: -0.005187054997 | L117: 0.0043501061 | M117: 0.06184692384 | N117: 0.0001821566028
A118: =IF('DF raw data'!M123="","",'DF raw data'!M123) -> -272 | B118: =IF('DF raw data'!N123="","",'DF raw data'!N123) -> -5.99904e-06 | C118: =IF('DF raw data'!O123="","",'DF raw data'!O123) -> 0.000148615 | D118: =IF('DF raw data'!P123="","",'DF raw data'!P123) -> -2.07369e-05 | F118: -6.02303616e-06 | G118: 0.00014920946 | H118: -2.08198476e-05 | J118: -0.0003959022735 | K118: -0.005385006134 | L118: 0.00442471083 | M118: 0.06405927925 | N118: 0.0001920240051
A119: =IF('DF raw data'!M124="","",'DF raw data'!M124) -> -271.5 | B119: =IF('DF raw data'!N124="","",'DF raw data'!N124) -> -1.78436e-05 | C119: =IF('DF raw data'!O124="","",'DF raw data'!O124) -> 0.000151891 | D119: =IF('DF raw data'!P124="","",'DF raw data'!P124) -> -2.94848e-05 | F119: -1.79149744e-05 | G119: 0.000152498564 | H119: -2.96027392e-05 | J119: -0.0004048597607 | K119: -0.005587436014 | L119: 0.004500960112 | M119: 0.06630975931 | N119: 0.0002022352818
A120: =IF('DF raw data'!M125="","",'DF raw data'!M125) -> -271 | B120: =IF('DF raw data'!N125="","",'DF raw data'!N125) -> -2.42459e-05 | C120: =IF('DF raw data'!O125="","",'DF raw data'!O125) -> 0.000159175 | D120: =IF('DF raw data'!P125="","",'DF raw data'!P125) -> -2.96069e-05 | F120: -2.43428836e-05 | G120: 0.0001598117 | H120: -2.97253276e-05 | J120: -0.0004170312025 | K120: -0.005795951615 | L120: 0.004580865962 | M120: 0.06860019229 | N120: 0.0002128144058
A121: =IF('DF raw data'!M126="","",'DF raw data'!M126) -> -270.5 | B121: =IF('DF raw data'!N126="","",'DF raw data'!N126) -> -2.11084e-05 | C121: =IF('DF raw data'!O126="","",'DF raw data'!O126) -> 0.000157584 | D121: =IF('DF raw data'!P126="","",'DF raw data'!P126) -> -3.23445e-05 | F121: -2.11928336e-05 | G121: 0.000158214336 | H121: -3.2473878e-05 | J121: -0.0004276276193 | K121: -0.006009765425 | L121: 0.00465997313 | M121: 0.07093017885 | N121: 0.0002237635133
A122: =IF('DF raw data'!M127="","",'DF raw data'!M127) -> -270 | B122: =IF('DF raw data'!N127="","",'DF raw data'!N127) -> -6.37404e-06 | C122: =IF('DF raw data'!O127="","",'DF raw data'!O127) -> 0.000152201 | D122: =IF('DF raw data'!P127="","",'DF raw data'!P127) -> -3.49528e-05 | F122: -6.39953616e-06 | G122: 0.000152809804 | H122: -3.50926112e-05 | J122: -0.0004308273874 | K122: -0.006225179119 | L122: 0.004736378032 | M122: 0.07329836787 | N122: 0.0002350729578
A123: =IF('DF raw data'!M128="","",'DF raw data'!M128) -> -269.5 | B123: =IF('DF raw data'!N128="","",'DF raw data'!N128) -> -1.24004e-05 | C123: =IF('DF raw data'!O128="","",'DF raw data'!O128) -> 0.000154062 | D123: =IF('DF raw data'!P128="","",'DF raw data'!P128) -> -2.79791e-05 | F123: -1.24500016e-05 | G123: 0.000154678248 | H123: -2.80910164e-05 | J123: -0.0004370523882 | K123: -0.006443705313 | L123: 0.004813717156 | M123: 0.07570522645 | N123: 0.0002467544016
A124: =IF('DF raw data'!M129="","",'DF raw data'!M129) -> -269 | B124: =IF('DF raw data'!N129="","",'DF raw data'!N129) -> -1.91298e-05 | C124: =IF('DF raw data'!O129="","",'DF raw data'!O129) -> 0.000160126 | D124: =IF('DF raw data'!P129="","",'DF raw data'!P129) -> -1.80655e-05 | F124: -1.92063192e-05 | G124: 0.000160766504 | H124: -1.8137762e-05 | J124: -0.0004466555478 | K124: -0.006667033087 | L124: 0.004894100408 | M124: 0.07815227665 | N124: 0.0002588302616
A125: =IF('DF raw data'!M130="","",'DF raw data'!M130) -> -268.5 | B125: =IF('DF raw data'!N130="","",'DF raw data'!N130) -> -9.97301e-06 | C125: =IF('DF raw data'!O130="","",'DF raw data'!O130) -> 0.00015584 | D125: =IF('DF raw data'!P130="","",'DF raw data'!P130) -> -1.76121e-05 | F125: -1.001290204e-05 | G125: 0.00015646336 | H125: -1.76825484e-05 | J125: -0.0004516619988 | K125: -0.006892864086 | L125: 0.004972332088 | M125: 0.0806384427 | N125: 0.0002712943041
A126: =IF('DF raw data'!M131="","",'DF raw data'!M131) -> -268 | B126: =IF('DF raw data'!N131="","",'DF raw data'!N131) -> -1.11173e-05 | C126: =IF('DF raw data'!O131="","",'DF raw data'!O131) -> 0.000155293 | D126: =IF('DF raw data'!P131="","",'DF raw data'!P131) -> -2.88387e-05 | F126: -1.11617692e-05 | G126: 0.000155914172 | H126: -2.89540548e-05 | J126: -0.0004572428834 | K126: -0.007121485528 | L126: 0.005050289174 | M126: 0.08316358728 | N126: 0.00028415155
A127: =IF('DF raw data'!M132="","",'DF raw data'!M132) -> -267.5 | B127: =IF('DF raw data'!N132="","",'DF raw data'!N132) -> -7.59257e-06 | C127: =IF('DF raw data'!O132="","",'DF raw data'!O132) -> 0.000156952 | D127: =IF('DF raw data'!P132="","",'DF raw data'!P132) -> -3.38294e-05 | F127: -7.62294028e-06 | G127: 0.000157579808 | H127: -3.39647176e-05 | J127: -0.0004610543536 | K127: -0.007352012704 | L127: 0.005129079078 | M127: 0.08572812682 | N127: 0.0002974115617
A128: =IF('DF raw data'!M133="","",'DF raw data'!M133) -> -267 | B128: =IF('DF raw data'!N133="","",'DF raw data'!N133) -> -1.5535e-05 | C128: =IF('DF raw data'!O133="","",'DF raw data'!O133) -> 0.000154508 | D128: =IF('DF raw data'!P133="","",'DF raw data'!P133) -> -3.11972e-05 | F128: =(1-$G$1*($B$49-$G$2))*B128 -> -1.559714e-05 | G128: 0.000155126032 | H128: -3.13219888e-05 | J128: =F128*$G$3+J127 -> -0.0004688529236 | K128: =J128*$G$3+K127 -> -0.007586439166 | L128: =G128*$G$3+L127 -> 0.005206642094 | M128: =L128*$G$3+M127 -> 0.08833144787 | N128: =(J128^2+L128^2)*$G$3+N127 -> 0.0003110760341
A129: =IF('DF raw data'!M134="","",'DF raw data'!M134) -> -266.5 | B129: =IF('DF raw data'!N134="","",'DF raw data'!N134) -> -1.00327e-05 | C129: =IF('DF raw data'!O134="","",'DF raw data'!O134) -> 0.000156088 | D129: =IF('DF raw data'!P134="","",'DF raw data'!P134) -> -2.45335e-05 | F129: -1.00728308e-05 | G129: 0.000156712352 | H129: -2.4631634e-05 | J129: -0.000473889339 | K129: -0.007823383836 | L129: 0.00528499827 | M129: 0.090973947 | N129: 0.000325153923
A130: =IF('DF raw data'!M135="","",'DF raw data'!M135) -> -266 | B130: =IF('DF raw data'!N135="","",'DF raw data'!N135) -> -1.69492e-05 | C130: =IF('DF raw data'!O135="","",'DF raw data'!O135) -> 0.000157521 | D130: =IF('DF raw data'!P135="","",'DF raw data'!P135) -> -2.30631e-05 | F130: -1.70169968e-05 | G130: 0.000158151084 | H130: -2.31553524e-05 | J130: -0.0004823978374 | K130: -0.008064582754 | L130: 0.005364073812 | M130: 0.09365598391 | N130: 0.0003396569208
A131: =IF('DF raw data'!M136="","",'DF raw data'!M136) -> -265.5 | B131: =IF('DF raw data'!N136="","",'DF raw data'!N136) -> -6.31175e-06 | C131: =IF('DF raw data'!O136="","",'DF raw data'!O136) -> 0.000163831 | D131: =IF('DF raw data'!P136="","",'DF raw data'!P136) -> -3.35828e-05 | F131: -6.336997e-06 | G131: 0.000164486324 | H131: -3.37171312e-05 | J131: -0.0004855663359 | K131: -0.008307365922 | L131: 0.005446316974 | M131: 0.0963791424 | N131: 0.0003546059924
A132: =IF('DF raw data'!M137="","",'DF raw data'!M137) -> -265 | B132: =IF('DF raw data'!N137="","",'DF raw data'!N137) -> -1.79106e-05 | C132: =IF('DF raw data'!O137="","",'DF raw data'!O137) -> 0.00017359 | D132: =IF('DF raw data'!P137="","",'DF raw data'!P137) -> -2.19649e-05 | F132: -1.79822424e-05 | G132: 0.00017428436 | H132: -2.20527596e-05 | J132: -0.0004945574571 | K132: -0.008554644651 | L132: 0.005533459154 | M132: 0.09914587197 | N132: 0.0003700378711
A133: =IF('DF raw data'!M138="","",'DF raw data'!M138) -> -264.5 | B133: =IF('DF raw data'!N138="","",'DF raw data'!N138) -> -1.10483e-05 | C133: =IF('DF raw data'!O138="","",'DF raw data'!O138) -> 0.000175719 | D133: =IF('DF raw data'!P138="","",'DF raw data'!P138) -> -3.85942e-05 | F133: -1.10924932e-05 | G133: 0.000176421876 | H133: -3.87485768e-05 | J133: -0.0005001037037 | K133: -0.008804696503 | L133: 0.005621670092 | M133: 0.101956707 | N133: 0.0003859645102
A134: =IF('DF raw data'!M139="","",'DF raw data'!M139) -> -264 | B134: =IF('DF raw data'!N139="","",'DF raw data'!N139) -> -2.19443e-05 | C134: =IF('DF raw data'!O139="","",'DF raw data'!O139) -> 0.000162463 | D134: =IF('DF raw data'!P139="","",'DF raw data'!P139) -> -2.36542e-05 | F134: -2.20320772e-05 | G134: 0.000163112852 | H134: -2.37488168e-05 | J134: -0.0005111197423 | K134: -0.009060256374 | L134: 0.005703226518 | M134: 0.1048083203 | N134: 0.0004023585283
A135: =IF('DF raw data'!M140="","",'DF raw data'!M140) -> -263.5 | B135: =IF('DF raw data'!N140="","",'DF raw data'!N140) -> -1.38821e-05 | C135: =IF('DF raw data'!O140="","",'DF raw data'!O140) -> 0.000155959 | D135: =IF('DF raw data'!P140="","",'DF raw data'!P140) -> -1.45853e-05 | F135: -1.39376284e-05 | G135: 0.000156582836 | H135: -1.46436412e-05 | J135: -0.0005180885565 | K135: -0.009319300652 | L135: 0.005781517936 | M135: 0.1076990792 | N135: 0.000419205711
A136: =IF('DF raw data'!M141="","",'DF raw data'!M141) -> -263 | B136: =IF('DF raw data'!N141="","",'DF raw data'!N141) -> -2.10523e-05 | C136: =IF('DF raw data'!O141="","",'DF raw data'!O141) -> 0.000167062 | D136: =IF('DF raw data'!P141="","",'DF raw data'!P141) -> -1.66104e-05 | F136: -2.11365092e-05 | G136: 0.000167730248 | H136: -1.66768416e-05 | J136: -0.0005286568111 | K136: -0.009583629058 | L136: 0.00586538306 | M136: 0.1106317708 | N136: 0.0004365468092
A137: =IF('DF raw data'!M142="","",'DF raw data'!M142) -> -262.5 | B137: =IF('DF raw data'!N142="","",'DF raw data'!N142) -> -7.15199e-06 | C137: =IF('DF raw data'!O142="","",'DF raw data'!O142) -> 0.000166291 | D137: =IF('DF raw data'!P142="","",'DF raw data'!P142) -> -2.20362e-05 | F137: -7.18059796e-06 | G137: 0.000166956164 | H137: -2.21243448e-05 | J137: -0.00053224711 | K137: -0.009849752613 | L137: 0.005948861142 | M137: 0.1136062013 | N137: 0.0004543829272
A138: =IF('DF raw data'!M143="","",'DF raw data'!M143) -> -262 | B138: =IF('DF raw data'!N143="","",'DF raw data'!N143) -> -1.7524e-05 | C138: =IF('DF raw data'!O143="","",'DF raw data'!O143) -> 0.000169812 | D138: =IF('DF raw data'!P143="","",'DF raw data'!P143) -> -2.54056e-05 | F138: -1.7594096e-05 | G138: 0.000170491248 | H138: -2.55072224e-05 | J138: -0.000541044158 | K138: -0.01012027469 | L138: 0.006034106766 | M138: 0.1166232547 | N138: 0.0004727345138
A139: =IF('DF raw data'!M144="","",'DF raw data'!M144) -> -261.5 | B139: =IF('DF raw data'!N144="","",'DF raw data'!N144) -> -1.2343e-05 | C139: =IF('DF raw data'!O144="","",'DF raw data'!O144) -> 0.000165944 | D139: =IF('DF raw data'!P144="","",'DF raw data'!P144) -> -1.74233e-05 | F139: -1.2392372e-05 | G139: 0.000166607776 | H139: -1.74929932e-05 | J139: -0.000547240344 | K139: -0.01039389486 | L139: 0.006117410654 | M139: 0.1196819601 | N139: 0.0004915956063
A140: =IF('DF raw data'!M145="","",'DF raw data'!M145) -> -261 | B140: =IF('DF raw data'!N145="","",'DF raw data'!N145) -> -1.20215e-05 | C140: =IF('DF raw data'!O145="","",'DF raw data'!O145) -> 0.000159151 | D140: =IF('DF raw data'!P145="","",'DF raw data'!P145) -> -1.75811e-05 | F140: -1.2069586e-05 | G140: 0.000159787604 | H140: -1.76514244e-05 | J140: -0.000553275137 | K140: -0.01067053243 | L140: 0.006197304456 | M140: 0.1227806123 | N140: 0.0005109519543
A141: =IF('DF raw data'!M146="","",'DF raw data'!M146) -> -260.5 | B141: =IF('DF raw data'!N146="","",'DF raw data'!N146) -> -1.02908e-05 | C141: =IF('DF raw data'!O146="","",'DF raw data'!O146) -> 0.00016481 | D141: =IF('DF raw data'!P146="","",'DF raw data'!P146) -> -2.15195e-05 | F141: -1.03319632e-05 | G141: 0.00016546924 | H141: -2.1605578e-05 | J141: -0.0005584411186 | K141: -0.01094975299 | L141: 0.006280039076 | M141: 0.1259206318 | N141: 0.0005308273279
A142: =IF('DF raw data'!M147="","",'DF raw data'!M147) -> -260 | B142: =IF('DF raw data'!N147="","",'DF raw data'!N147) -> -1.41926e-05 | C142: =IF('DF raw data'!O147="","",'DF raw data'!O147) -> 0.000160693 | D142: =IF('DF raw data'!P147="","",'DF raw data'!P147) -> -2.73547e-05 | F142: -1.42493704e-05 | G142: 0.000161335772 | H142: -2.74641188e-05 | J142: -0.0005655658038 | K142: -0.01123253589 | L142: 0.006360706962 | M142: 0.1291009853 | N142: 0.0005512165568
A143: =IF('DF raw data'!M148="","",'DF raw data'!M148) -> -259.5 | B143: =IF('DF raw data'!N148="","",'DF raw data'!N148) -> -1.5923e-05 | C143: =IF('DF raw data'!O148="","",'DF raw data'!O148) -> 0.000156865 | D143: =IF('DF raw data'!P148="","",'DF raw data'!P148) -> -2.82464e-05 | F143: -1.5986692e-05 | G143: 0.00015749246 | H143: -2.83593856e-05 | J143: -0.0005735591498 | K143: -0.01151931547 | L143: 0.006439453192 | M143: 0.1323207119 | N143: 0.0005721143206
A144: =IF('DF raw data'!M149="","",'DF raw data'!M149) -> -259 | B144: =IF('DF raw data'!N149="","",'DF raw data'!N149) -> -2.73195e-05 | C144: =IF('DF raw data'!O149="","",'DF raw data'!O149) -> 0.000158434 | D144: =IF('DF raw data'!P149="","",'DF raw data'!P149) -> -3.05548e-05 | F144: -2.7428778e-05 | G144: 0.000159067736 | H144: -3.06770192e-05 | J144: -0.0005872735388 | K144: -0.01181295224 | L144: 0.00651898706 | M144: 0.1355802054 | N144: 0.0005935353618
A145: =IF('DF raw data'!M150="","",'DF raw data'!M150) -> -258.5 | B145: =IF('DF raw data'!N150="","",'DF raw data'!N150) -> -2.89144e-05 | C145: =IF('DF raw data'!O150="","",'DF raw data'!O150) -> 0.00016504 | D145: =IF('DF raw data'!P150="","",'DF raw data'!P150) -> -4.53962e-05 | F145: -2.90300576e-05 | G145: 0.00016570016 | H145: -4.55777848e-05 | J145: -0.0006017885676 | K145: -0.01211384652 | L145: 0.00660183714 | M145: 0.138881124 | N145: 0.0006155085634
A146: =IF('DF raw data'!M151="","",'DF raw data'!M151) -> -258 | B146: =IF('DF raw data'!N151="","",'DF raw data'!N151) -> -1.59822e-05 | C146: =IF('DF raw data'!O151="","",'DF raw data'!O151) -> 0.00016558 | D146: =IF('DF raw data'!P151="","",'DF raw data'!P151) -> -3.26983e-05 | F146: -1.60461288e-05 | G146: 0.00016624232 | H146: -3.28290932e-05 | J146: -0.000609811632 | K146: -0.01241875234 | L146: 0.0066849583 | M146: 0.1422236032 | N146: 0.0006380388322
A147: =IF('DF raw data'!M152="","",'DF raw data'!M152) -> -257.5 | B147: =IF('DF raw data'!N152="","",'DF raw data'!N152) -> -1.84198e-05 | C147: =IF('DF raw data'!O152="","",'DF raw data'!O152) -> 0.00016268 | D147: =IF('DF raw data'!P152="","",'DF raw data'!P152) -> -3.00368e-05 | F147: -1.84934792e-05 | G147: 0.00016333072 | H147: -3.01569472e-05 | J147: -0.0006190583716 | K147: -0.01272828152 | L147: 0.00676662366 | M147: 0.145606915 | N147: 0.0006611240467
